Workbook

Sheet Portada
G3: EDECHI
F22: Panamá, junio de 2023
F25: EDECHI
F26: Régimen Tarifario
F27: Julio 2022 - Junio 2026
F29: Pliego Tarifario
F30: julio - diciembre 2023
F33: MODELOS Y PLIEGO

Sheet CONTENIDO modelos
A1: =+[1]Fecha!$A$1 -> EDECHI
A2: MODELO | B2: DETALLE DEL MODELO
A3: AT100 | B3: CALCULO DEL FACTOR DE ACTUALIZACION DE LOS CARGOS POR COMERCIALIZACION, DISTRIBUCION Y SERVICIO DE ALUMBRADO PUBLICO
A4: AT200 | B4: CALCULO DEL FACTOR DE ACTUALIZACION DEL CARGO POR PERDIDAS EN DISTRIBUCION
A5: AT300 | B5: CALCULO DEL FACTOR DE ACTUALIZACION DE LOS CARGOS POR TRANSMISION
A6: AT400 | B6: CALCULO DEL FACTOR DE ACTUALIZACION DEL CARGO POR PERDIDAS EN TRANSMISION
A7: AT500 | B7: CALCULO DEL FACTOR DE ACTUALIZACION DE LOS CARGOS POR GENERACION
A8: AT600 | B8: CALCULO DEL FACTOR DE ACTUALIZACION DE LOS CARGOS POR CONSUMO DE ALUMBRADO PUBLICO
A9: AT1000 | B9: TARIFAS DE P-2, P-1, P Y FACTORES DE AJUSTE
A10: AT RES | B10: VARIACIÓN DEL PRECIO PROMEDIO ESTIMADO DE LA ENERGIA ELECTRICA DE CLIENTES REGULADOS
A11: AT RES (POR TARIFA) | B11: VARIACIÓN DEL PRECIO PROMEDIO ESTIMADO DE LA ENERGIA ELECTRICA DE CLIENTES REGULADOS Y GRANDES CLIENTES POR TARIFA
A12: AT RES (3) | B12: VARIACIÓN DEL PRECIO PROMEDIO ESTIMADO DE LA ENERGIA ELECTRICA DE GRANDES CLIENTES

Sheet Coef_GC
A1: =+[1]Fecha!$A$1 -> EDECHI
A4: Ajuste Potencia G.C. (semestre p) | B4: 2022-07-01 | C4: 2022-08-01 | D4: 2022-09-01 | E4: 2022-10-01 | F4: 2022-11-01 | G4: 2022-12-01 | H4: 2023-01-01 | I4: 2023-02-01 | J4: 2023-03-01 | K4: 2023-04-01 | L4: 2023-05-01 | M4: 2023-06-01 | N4: 2023-07-01 | O4: 2023-08-01 | P4: 2023-09-01 | Q4: 2023-10-01 | R4: 2023-11-01 | S4: 2023-12-01
A5: Factor de Ajuste | B5: =+(1+B6)*(1+B7) -> 1.09185765 | C5: =+(1+C6)*(1+C7) -> 1.09185765 | D5: 1.1168734 | E5: 1.1168734 | F5: 1.1168734 | G5: 1.09185765 | H5: =+(1 +H6) * (1 + H7) -> 1.08579 | I5: 1.08579 | J5: 1.08579 | K5: 1.10399295 | L5: 1.10399295 | M5: 1.10399295 | N5: 1.10399295 | O5: 1.104951 | P5: 1.104951 | Q5: 1.104951 | R5: 1.104951 | S5: 1.104951
A6: Reserva para Confiabilidad de Largo Plazo | B6: 0.0645 | C6: 0.0645 | D6: 0.0645 | E6: 0.0645 | F6: 0.0645 | G6: 0.0645 | H6: 0.0645 | I6: 0.0645 | J6: 0.0645 | K6: 0.0645 | L6: 0.0645 | M6: 0.0645 | N6: 0.0645 | O6: 0.0645 | P6: 0.0645 | Q6: 0.0645 | R6: 0.0645 | S6: 0.0645
A7: Pérdidas Típicas en Punta | B7: 0.0257 | C7: 0.0257 | D7: 0.0492 | E7: 0.0492 | F7: 0.0492 | G7: 0.0257 | H7: 0.02 | I7: 0.02 | J7: 0.02 | K7: 0.0371 | L7: 0.0371 | M7: 0.0371 | N7: 0.0371 | O7: 0.038 | P7: 0.038 | Q7: 0.038 | R7: 0.038 | S7: 0.038
A9: Ajuste Potencia G.C. (aplicado) | B9: 2022-07-01 | C9: 2022-08-01 | D9: 2022-09-01 | E9: 2022-10-01 | F9: 2022-11-01 | G9: 2022-12-01 | H9: 2023-01-01 | I9: 2023-02-01 | J9: 2023-03-01 | K9: 2023-04-01 | L9: 2023-05-01 | M9: 2023-06-01 | N9: 2023-07-01 | O9: 2023-08-01 | P9: 2023-09-01 | Q9: 2023-10-01 | R9: 2023-11-01 | S9: 2023-12-01
A10: Factor de Ajuste | B10: =+(1 +B11) * (1 + B12) -> 1.09185765 | C10: =+(1 +C11) * (1 + C12) -> 1.09185765 | D10: 1.1168734 | E10: 1.1168734 | F10: 1.1168734 | G10: 1.09185765 | H10: 1.08579 | I10: 1.08579 | J10: 1.08579 | K10: 1.10399295 | L10: 1.10399295 | M10: 1.10399295 | N10: 1.10399295 | O10: 1.104951 | P10: 1.104951 | Q10: 1.104951 | R10: 1.104951 | S10: 1.104951
A11: Reserva para Confiabilidad de Largo Plazo | B11: 0.0645 | C11: 0.0645 | D11: 0.0645 | E11: 0.0645 | F11: 0.0645 | G11: 0.0645 | H11: 0.0645 | I11: 0.0645 | J11: 0.0645 | K11: 0.0645 | L11: 0.0645 | M11: 0.0645 | N11: 0.0645 | O11: 0.0645 | P11: 0.0645 | Q11: 0.0645 | R11: 0.0645 | S11: 0.0645
A12: Pérdidas Típicas en Punta | B12: 0.0257 | C12: 0.0257 | D12: 0.0492 | E12: 0.0492 | F12: 0.0492 | G12: 0.0257 | H12: 0.02 | I12: 0.02 | J12: 0.02 | K12: 0.0371 | L12: 0.0371 | M12: 0.0371 | N12: 0.0371 | O12: 0.038 | P12: 0.038 | Q12: 0.038 | R12: 0.038 | S12: 0.038

Sheet Ajuste COMER DISTR Y AP-100
B1: CALCULO DEL FACTOR DE ACTUALIZACION DE:
B2: =+[1]Fecha!$A$1 -> EDECHI | C2: CARGOS DE COMERCIALIZACION, DISTRIBUCION
C3: Y SERVICIO DE ALUMBRADO PUBLICO
B25: Detalle | C25: Variable | D25: Ene-Jun23 | E25: =+[1]Fecha!T4 -> Jul-Dic/2023
A26: 1 | B26: IPC p-2 (Viene del FORM AT 100) | C26: IPCmes 6 | D26: =+'COMER DISTR Y AP-100'!B11 -> 111.9952 | E26: =+'COMER DISTR Y AP-100'!B10 -> 109.5
A27: 2 | B27: IPC p-3 (Viene del FORM AT 100) | C27: IPCmes 6 | D27: =+'COMER DISTR Y AP-100'!E11 -> 107.1067 | E27: =+'COMER DISTR Y AP-100'!E10 -> 111.9952
A28: 3 | B28: Factor de Ajuste = 1 / 2 | C28: (IPCp-2/IPCp-3) | D28: =+D26/D27 -> 1.045641402 | E28: =+E26/E27 -> 0.9777204737
A29: 4 | B29: Porción de cargos de Comercialización que no se ajustan por IPC | C29: XC | D29: =+IF($B$2="EDEMET",0.1181,0.0811) -> 0.0811 | E29: =+IF($B$2="EDEMET",0.1181,0.0811) -> 0.0811
A30: 5 | B30: Porción de cargo de redes de Distribución que no se ajusta por IPC | C30: XUS | D30: =+IF($B$2="EDEMET",0.6247,0.4858) -> 0.4858 | E30: =+IF($B$2="EDEMET",0.6247,0.4858) -> 0.4858
A31: 6 | B31: Porción de cargo de Servicio de Alumbrado Público que no se ajusta por IPC | C31: XAP | D31: =+IF($B$2="EDEMET",0.7892,0.8058) -> 0.8058 | E31: =+IF($B$2="EDEMET",0.7892,0.8058) -> 0.8058
A32: 7 | B32: Factor de Actualización de Cargos de Comercialización | D32: =+D29+((1-D29)*D28) -> 1.041939885 | E32: =+E29+((1-E29)*E28) -> 0.9795273433
A33: 8 | B33: Factor de Actualización de Cargo de redes de Distribución, cargo de conexión y cargo de reconexión | D33: =+D30+((1-D30)*D28) -> 1.023468809 | E33: =+E30+((1-E30)*E28) -> 0.9885438676
A34: 9 | B34: Factor de Actualización de Cargo por Servicio de Alumbrado Público | D34: =+D31+((1-D31)*D28) -> 1.00886356 | E34: =+E31+((1-E31)*E28) -> 0.995673316

Sheet AjustePérd de Dist-200
B1: CALCULO DEL FACTOR DE ACTUALIZACION DE:
B2: =+[1]Fecha!$A$1 -> EDECHI | C2: CARGO POR PERDIDAS EN DISTRIBUCION
B3: FORMULAS
B4: Para las categorías que posean medición con discriminación horaria
B5: Pérdidas de Energía en Punta:
B20: Pérdidas de Energía Fuera de Punta:
B32: Para las categorías que no posean medición con discriminación horaria
B33: Pérdidas de Energía
B42: Pérdidas de Potencia:
B52: Detalle | C52: Variable | D52: =+[1]Fecha!T4 -> Jul-Dic/2023
A53: 1 | B53: Valor TOTAL permitido a recuperar en la tarifa para cubrir los costos de generación en el semestre p (Viene del MODELO AT500, punto 10) (B/.) | D53: =+'Ajuste Generación-500 (2)'!E74 -> 33983373.28
A54: 2 | B54: Valor permitido a traspasar a la tarifa para cubrir los costos del sistema de transmisión en el semestre p, más Costos del MER (Viene del MODELO AT300, punto 11) (B/.) | D54: =+'Ajuste Transmisión-300'!C32 -> 3016872.708
A55: 3 | B55: Valor permitido en la tarifa para cubrir los costos por pérdidas en transmisión en el semestre p (Viene del MODELO AT400, punto 6) (B/.) | D55: =+'AjustePérd de Trans-400'!D28 -> 41608.85553
A56: 4 | B56: Valor a recuperar para cubrir costos de generación, costos del sistema de transporte y pérdidas en transmisión en horas de punta pronosticados en el período p (B/.) = 1 + 2 + 3 | D56: =+D53+D54+D55 -> 37041854.85
A57: 5 | B57: Monto TOTAL necesario para cubrir los apartamientos que se produjeron entre los costos de generación reales y los ingresos reales (producidos por los cargos Base y las ventas reales) y por las diferencias entre los ingresos permitidos (producidos por los cargos Correcc y las ventas estimadas) y los ingresos reales (producidos por los cargos Correcc y las ventas reales) en horas de Punta del semestre p-2 actualizado con la tasa de descuento (Viene del MODELO AT500-En P (2), punto 7) (B/.) | D57: =+'Ajuste Generación-500 -En P (2)'!C31 -> 273956.3307
A58: 6 | B58: Monto necesario para cubrir los apartamientos que se produjeron entre los costos de transmisión reales y los ingresos reales (producidos por los cargos Base y las ventas reales) y por las diferencias entre los ingresos permitidos (producidos por los cargos Correcc y las ventas estimadas) y los ingresos reales (producidos por los cargos Correcc y las ventas reales), ambos referenciados al semestre p-2 actualizado con la tasa de descuento (Viene del MODELO AT300, punto 22) (B/.) | D58: =+'Ajuste Transmisión-300'!D45 -> 37078.12145
A59: 7 | B59: Monto necesario para cubrir los apartamientos que se produjeron en el semestre p-2 entre los costos de pérdidas de transmisión reales y los ingresos reales (producidos por los cargos Base y las ventas reales) y por las diferencias entre los ingresos permitidos (producidos por los cargos Correcc y las ventas estimadas) y los ingresos reales (producidos por los cargos Correcc y las ventas reales) actualizado con la tasa de descuento (Viene del MODELO AT400, punto 16) (B/.) | D59: =+'AjustePérd de Trans-400'!D38 -> 33505.45198
A60: 8 | B60: Corrección para cubrir los apartamientos que se produjeron entre los costos de generación (potencia y energía y demás costos del mercado mayorista) y costos del sistema de transporte (incluyendo pérdidas en transmisión), y los ingresos reales (producidos por los cargos Base y las ventas reales), y por las diferencias entre los ingresos permitidos (producidos por los cargos Correcc y las ventas estimadas) y los ingresos reales (producidos por los cargos Correcc y las ventas reales) ambos en el semestre p-2 = 5 + 6 + 7 | D60: =+D57+D58+D59 -> 344539.9041
A61: 9 | B61: Ingresos estimados a partir de la proyección de ventas del semestre p y los cargos Base asociados a los costos de generación del semestre p-1(Viene del MODELO AT500, punto 12) (B/.) | D61: =+'Ajuste Generación-500 (2)'!G78 -> 36356798.03
A62: 10 | B62: Ingresos estimados a partir de la proyección de ventas del semestre p y los cargos Base asociados a los costos de transmisión del semestre p-1 (Viene del MODELO AT300, punto 13) (B/.) | D62: =+'Ajuste Transmisión-300'!D36 -> 3021001.529
A63: 11 | B63: Ingresos estimados a partir de la proyección de ventas del semestre p y los cargos BASE asociados a los costos de pérdidas de transmisión del semestre p-1 (Viene del MODELO AT400, punto 7) (B/.) | D63: =+'AjustePérd de Trans-400'!D29 -> 68369.09397
A64: 12 | B64: Valor que se recuperaría con los cargos de p-1 correspondientes a los costos Base de generación, costos del sistema de transporte y pérdidas de transmisión en horas de punta, aplicados a las ventas del semestre p (B/.) = 9 + 10 + 11 | D64: =+D61+D62+D63 -> 39446168.66
A65: 13 | B65: Factor de Actualización o corrección = 4 / 12 | D65: =+D56/D64 -> 0.9390482297
A66: 14 | B66: Factor de Actualización o corrección = 8 / 12 | D66: =+D60/D64 -> 0.008734432667
B67: Nota: se utilizará el mismo factor de actualización para todos los cargos Base y el mismo factor de actualización para todos los cargos Correcc.

Sheet Ajuste Transmisión-300
B1: CALCULO DEL FACTOR DE ACTUALIZACION DE:
B2: =+[1]Fecha!$A$1 -> EDECHI
B3: FORMULAS
B5: Donde
B20: Detalle | C20: =+"SEMESTRE p "&[1]Fecha!T4 -> SEMESTRE p Jul-Dic/2023 | D20: =+"SEMESTRE p-2 "&[1]Fecha!T8 -> SEMESTRE p-2 Jul-Dic/2022
A21: 1 | B21: Costos de Conexión (B/.) (Viene del FORM AT302 Y AT322) | C21: =+SUM('TRANSMISION-302'!B21:G21) -> 556950.726 | D21: =+SUM('TRANSMISION-322'!B21:G21) -> 556950.68
A22: 2 | B22: Costos por uso de la red de transporte (B/.) (Viene del FORM AT302 Y AT322) | C22: =+SUM('TRANSMISION-302'!B23:G30)+SUM('TRANSMISION-302'!B32:G37) -> 2535620.706 | D22: =+SUM('TRANSMISION-322'!B23:G30)+SUM('TRANSMISION-322'!B32:G37) -> 2706175.11
A23: 3 | B23: Costos por el servicio de Operación Integrada del Mercado Mayorista (B/.) (Viene del FORM AT302 Y AT322) | C23: =+SUM('TRANSMISION-302'!B31:G31) -> 324914.688 | D23: =+SUM('TRANSMISION-322'!B31:G31) -> 170663.806
A24: 4 | B24: Costos por el servicio de Operación Integrada del Mercado Mayorista (B/.) (Viene del FORM AT302 Y AT322) | C24: =+SUM('TRANSMISION-302'!B39:G39) -> 0 | D24: =+SUM('TRANSMISION-322'!B39:G39) -> 0
A25: 5 | B25: Costos por uso de redes pagado a la Autoridad del Canal de Panamá (B/.) (Viene del FORM AT302 Y AT322) | C25: =+SUM('TRANSMISION-302'!B40:G41) -> 0 | D25: =+SUM('TRANSMISION-322'!B40:G41) -> 0
A26: 6 | B26: Costo por uso de redes, otros costos de transporte y Tasa de Regulación del Mercado Regional (B/.) (Viene del FORM AT302 Y AT322) | C26: =+SUM('TRANSMISION-302'!B43:G43) -> 0 | D26: =+SUM('TRANSMISION-322'!B43:G43) -> 0
A27: 7 | B27: Total de Costos de Transmisión (B/.) = 1 + 2 + 3 + 4 + 5 + 6 | C27: =+SUM(C21:C26) -> 3417486.12 | D27: =+SUM(D21:D26) -> 3433789.596
A28: 8 | B28: Energía transmitida (suma de la energía comprada por la distribuidora ingresada a su red en los nodos de compra o entrega (en contrato más mercado ocasional) más la energía asignada por el CND a los Grandes Clientes) (kWh) (Viene del FORM AT302 Y AT322) | C28: =+SUM('TRANSMISION-302'!B17:G17)*1000+SUM('Facturación-801 (energía)'!B422:G422)+SUM('Facturación-801 (energía)'!B376:G376) -> 571027889.3 | D28: =+SUM('TRANSMISION-322'!B17:G17)*1000+SUM('Facturación-821-A (energía)'!B450:G450)+SUM('Facturación-821-A (energía)'!B407:G407) -> 539818949.7
B29: Detalle | C29: =+C20 -> SEMESTRE p Jul-Dic/2023 | D29: =+D20 -> SEMESTRE p-2 Jul-Dic/2022
A30: 9 | B30: Costo Monómico de Transmisión (B/./kWh) = 6 / 7 | C30: =+IFERROR(C27/C28,0) -> 0.005984797212 | D30: =+IFERROR(D27/D28,0) -> 0.006361002328
A31: 10 | B31: Venta de energía a clientes, Consumo de Alumbrado Público y el consumo de los Grandes Clientes (kWh) (Viene del FORM AT801 y AT821) | C31: =+SUM('Facturación-801 (energía)'!B111:G111)+SUM('Facturación-801 (energía)'!B457:G457)+(SUM('Facturación-801 (energía)'!B422:G422)+SUM('Facturación-801 (energía)'!B376:G376)) -> 504089378.6 | D31: =+SUM('Facturación-821-A (energía)'!B111:G111)+SUM('Facturación-821-A (energía)'!B486:G486)+SUM('Facturación-821-A (energía)'!B450:G450)+SUM('Facturación-821-A (energía)'!B407:G407) -> 476363743.3
A32: 11 | B32: Costos de Transmisión Permitidos (B/.) = 9 x 10 | C32: =+C30*C31 -> 3016872.708 | D32: =+D30*D31 -> 3030150.88
B34: Detalle | D34: Valor
A35: 12 | B35: Valor permitido a traspasar a la tarifa que la empresa aplicaría a los clientes para cubrir los costos puros de transmisión en el semestre p (B/.) (11) | D35: =+C32 -> 3016872.708
A36: 13 | B36: Ingresos estimados que resultan de aplicar los cargos Base por transmisión, que contienen las tarifas del semestre p-1 a la proyección de ventas de potencia y energía del semestre p (Viene del FORM AT303) (B/.) | D36: =+SUM('TRANSMISION-303'!B124:G124,'TRANSMISION-303'!B157:G157,'TRANSMISION-303'!B182:G182) -> 3021001.529
A37: 14 | B37: Costo permitido real de transmisión calculado en base a los costos reales de transmisión en el semestre p-2 (B/.) (11) | D37: =+D32 -> 3030150.88
A38: 15 | B38: Ingresos reales producidos por los cargos Base y las ventas reales del semestre p-2 (Viene del FORM AT306) (B/.) | D38: =+SUM('TRANSMISION-306'!B108:G108,'TRANSMISION-306'!B141:G141,'TRANSMISION-306'!B166:G166) -> 2935924.618
A39: 16 | B39: Ingresos permitidos producidos por los cargos Correcc por transmisión y las ventas estimadas en el semestre p-2 (Viene del FORM AT307) (B/.) | D39: =+SUM('TRANSMISION-307'!B108:G108,'TRANSMISION-307'!B141:G141,'TRANSMISION-307'!B166:G166) -> -350513.3327
A40: 17 | B40: Ingresos reales producidos por los cargos Correcc por transmisión y las ventas reales en el semestre p-2 (Viene del FORM AT308) (B/.) | D40: =+SUM('TRANSMISION-308'!B108:G108,'TRANSMISION-308'!B141:G141,'TRANSMISION-308'!B166:G166) -> -409748.6815
A41: 18 | B41: Monto necesario para cubrir las diferencias entre los ingresos permitidos (producidos por los cargos Correcc y las ventas estimadas) y los ingresos reales (producidos por los cargos Correcc y las ventas reales) en el semestre p-2 (B/.) = 16 - 17 | D41: =+D40-D39 -> -59235.34873
A42: 19 | B42: Monto necesario para cubrir los apartamientos que se produjeron entre los costos de transmisión reales y los ingresos reales (producidos por los cargos Base y las ventas reales) y por las diferencias entre los ingresos permitidos (producidos por los cargos Correcc y las ventas estimadas) y los ingresos reales (producidos por los cargos Correcc y las ventas reales), ambos referenciados al semestre p-2 (B/.) = 14 - 15 + 18 | D42: =+D37-D38+D41 -> 34990.91346
A43: 20 | B43: Tasa de interés (Viene del FORM AT700) | D43: =+'TASAS DE INTERES-700'!B20 -> 0.05965
A44: 21 | B44: Factor de la tasa de interés | D44: =1+D43 -> 1.05965
A45: 22 | B45: Valor de los apartamientos actualizado con la tasa de descuento “r” (B/.) = 19 x 21 | D45: =+D42*D44 -> 37078.12145
A46: 23 | B46: Factor de Actualización o corrección BASE = (12 / 13) | D46: =+IFERROR(D35/D36,0) -> 0.998633294
A47: 24 | B47: Factor de Actualización o corrección = (22 / 13) | D47: =+IFERROR(D45/D36,0) -> 0.01227345339

Sheet AjustePérd de Trans-400
B1: CALCULO DEL FACTOR DE ACTUALIZACION DE:
B2: =+[1]Fecha!$A$1 -> EDECHI
B3: FORMULAS
B7: Donde
B20: Detalle | C20: =+"SEMESTRE p "&[1]Fecha!T4 -> SEMESTRE p Jul-Dic/2023 | D20: =+"SEMESTRE p-2 "&[1]Fecha!T8 -> SEMESTRE p-2 Jul-Dic/2022
A21: 1 | B21: Costos de las pérdidas en transmisión (B/.) (Viene del FORM AT402 y AT422) | C21: =+SUM('PERD TRANS-402'!B13:G13) -> 47880 | D21: =+SUM('PERD TRANS-422'!B13:G13) -> 113885.09
A22: 2 | B22: Energía transmitida (suma de la energía comprada por la distribuidora ingresada a su red en los nodos de compra o entrega (en contrato más mercado ocasional (kWh) (Viene del FORM AT302 Y AT322) | C22: =+SUM('TRANSMISION-302'!B17:G17)*1000 -> 511073522.3 | D22: =+SUM('TRANSMISION-322'!B17:G17)*1000 -> 485790484.7
A23: 3 | B23: Costo promedio de pérdidas en transmisión (B/./kWh) = 1 / 2 | C23: =+IFERROR(C21/C22,0) -> 9.368515078e-05 | D23: =+D21/D22 -> 0.0002344325251
A24: 4 | B24: Venta de energía a clientes y Consumo de Alumbrado Público (kWh) (Viene del FORM AT801 y AT821) | C24: =+SUM('Facturación-801 (energía)'!B111:G111)+SUM('Facturación-801 (energía)'!B457:G457) -> 444135011.6 | D24: =+SUM('Facturación-821-A (energía)'!B111:G111)+SUM('Facturación-821-A (energía)'!B486:G486) -> 422335278.3
A25: 5 | B25: Costo permitido de pérdidas en transmisión (B/.) = 3 X 4 | C25: =+C23*C24 -> 41608.85553 | D25: =+D23*D24 -> 99009.12573
B27: Detalle | D27: Valor
A28: 6 | B28: Valor permitido en la tarifa que la empresa aplicaría a los clientes para cubrir los costos puros por pérdidas de energía en transmisión en el semestre p (B/.) (5) | D28: =+C25 -> 41608.85553
A29: 7 | B29: Ingresos estimados que resultan de aplicar los cargos Base por pérdidas de transmisión que contienen las tarifas del semestre p-1 a la proyección de ventas del semestre p (Viene del FORM AT403) (B/.) | D29: =+SUM('PERD TRANS-403'!B124:G124)+SUM('PERD TRANS-403'!B149:G149) -> 68369.09397
A30: 8 | B30: Costo permitido real de pérdidas de transmisión calculado en base a los costos reales de pérdidas de transmisión en el semestre p-2 (B/.) (5) | D30: =+D25 -> 99009.12573
A31: 9 | B31: Ingresos reales producidos por los cargos Base y las ventas reales del semestre p-2 (Viene del FORM AT406) (B/.) | D31: =+SUM('PERD TRANS-406'!B107:G107,'PERD TRANS-406'!B132:G132) -> 67986.78566
A32: 10 | B32: Ingresos reales producidos por los cargos CORREC por Pérdidas de Transmisión y las ventas reales del semestre p-2 (Viene del FORM AT407) (B/.) | D32: =+SUM('PERD TRANS-407'!B107:G107,'PERD TRANS-407'!B132:G132) -> 41547.48013
A33: 11 | B33: Ingresos permitidos producidos por los cargos CORREC por pérdidas transmisión y las ventas estimadas en el semestre p-2 (Viene del FORM AT408) (B/.) | D33: =+SUM('PERD TRANS-408'!B107:G107,'PERD TRANS-408'!B132:G132) -> 42144.49738
A34: 12 | B34: Monto necesario para cubrir las diferencias entre los ingresos permitidos (producidos por los cargos Correcc y las ventas estimadas) y los ingresos reales (producidos por los cargos CORREC y las ventas reales) en el semestre p-2 (B/.) = 10 - 11 | D34: =+D33-D32 -> 597.0172545
A35: 13 | B35: Monto necesario para cubrir los apartamientos que se produjeron en el semestre p-2 entre los costos de pérdidas de transmisión reales y los ingresos reales (producidos por los cargos Base y las ventas reales) y por las diferencias entre los ingresos permitidos (producidos por los cargos Correcc y las ventas estimadas) y los ingresos reales (producidos por los cargos Correcc y las ventas reales) (B/.) = 8 - 9 + 12 | D35: =+D30-D31+D34 -> 31619.35732
A36: 14 | B36: Tasa de interés (Viene del FORM AT700) | D36: =+'TASAS DE INTERES-700'!B20 -> 0.05965
A37: 15 | B37: Factor de la tasa de interés | D37: =1+D36 -> 1.05965
A38: 16 | B38: Valor de los apartamientos actualizado con la tasa de descuento “r” (B/.) = 13 x 15 | D38: =+D35*D37 -> 33505.45198
A39: 17 | B39: Factor de Actualización o corrección = (6 / 7) | D39: =+D28/D29 -> 0.6085915889
A40: 18 | B40: Factor de Actualización o corrección = (16 / 7) | D40: =+D38/D29 -> 0.4900672224

Sheet Ajuste Generación-500 (2)
C1: CALCULO DEL FACTOR DE ACTUALIZACION DE:
C2: =+[1]Fecha!$A$1 -> EDECHI
C3: FORMULAS
C9: Para todos los Cargos los factores de ajuste son:
C11: Para cargos Base
C13: Donde
C53: Detalle | E53: =+'AjustePérd de Trans-400'!C$20 -> SEMESTRE p Jul-Dic/2023 | F53: =+'AjustePérd de Trans-400'!D$20 -> SEMESTRE p-2 Jul-Dic/2022
A54: 1 | C54: Costos de Generación (B/.) = 2 + 3 + 4 | E54: =+E55+E59+E63 -> 55905645.27 | F54: =+F55+F59+F63 -> 58495775.86
A55: 2 | C55: Costos de compra de potencia (B/.) = 2.1 + 2.2 + 2.3 | E55: =+E56+E57+E58 -> 18693585.05 | F55: =+F56+F57+F58 -> 12932712.81
B56: 2.1 | C56: Costos de compra de potencia contratada mediante el mecanismo establecido por la ASEP (Viene del FORM AT502 y AT522) (B/.) | E56: =+SUM('GEN-502 Cos_Pot'!B24:G24) -> 18603585.05 | F56: =+SUM('GEN-522 Cos_Pot'!B24:G24) -> 12380613.59
B57: 2.2 | C57: Costos o ingresos por Compensaciones de Potencia (Viene del FORM AT502 y AT522) (B/.) | E57: =+SUM('GEN-502 Cos_Pot'!B17:G17) -> 0 | F57: =+SUM('GEN-522 Cos_Pot'!B17:G17) -> 626.28
B58: 2.3 | C58: Costos por servicios auxiliares de potencia (Reserva, Seguimiento de la demanda) (Viene del FORM AT502 y AT522) (B/.) | E58: =+SUM('GEN-502 Cos_Pot'!B16:G16)+SUM('GEN-502 Cos_Pot'!B18:G18) -> 90000 | F58: =+SUM('GEN-522 Cos_Pot'!B16:G16)+SUM('GEN-522 Cos_Pot'!B18:G18) -> 551472.94
A59: 3 | C59: Costos por compra de energía (B/.) = 3.1 + 3.2 | E59: =+E60+E61+E62 -> 36445608.27 | F59: =+F60+F61+F62 -> 44573651.02
B60: 3.1 | C60: Costos por compra de energía asociada contratada mediante el mecanismo establecido por la ASEP (Viene del FORM AT502 y AT522) (B/.) | E60: =+SUM('GEN-502 Cos_Gen_P'!B24:G24)+SUM('GEN-502 Cos_Gen_FP'!B24:G24) -> 26617523.4 | F60: =+SUM('GEN-522 Cos_Gen_P'!B24:G24)+SUM('GEN-522 Cos_Gen_FP'!B24:G24) -> 34729751.21
B61: 3.2 | C61: Costos o ingresos por compras o ventas de energía en el mercado ocasional que hayan sido autorizadas por la ASEP (Viene del FORM AT502 y AT522) (B/.) | E61: =+SUM('GEN-502 Cos_Gen_P'!B16:G16)+SUM('GEN-502 Cos_Gen_FP'!B16:G16) -> 9828084.873 | F61: =+SUM('GEN-522 Cos_Gen_P'!B16:G16)+SUM('GEN-522 Cos_Gen_FP'!B16:G16) -> 9843899.814
B62: 3.3 | C62: Créditos que resultan a favor de los clientes producto de la aplicación del Procedimiento para Autoconsumo con Fuentes Nuevas, Renovables y Limpias aprobado mediante la Resolución AN No.10206-Elec de 11 de julio de 2016 (Viene del FORM AT502 y AT522) (B/.)
A63: 4 | C63: Costos del Mercado (B/.) = 4.1 + 4.2 + 4.3 + 4.4 - 4.5 | E63: =+E64+E65+E66+E67-E68 -> 766451.9465 | F63: =+F64+F65+F66+F67-F68 -> 989412.025
B64: 4.1 | C64: Costos por servicios auxiliares (Viene del FORM AT502 y AT522) (B/.) | E64: =+SUM('GEN-502 Cos_Gen_P'!B17:G17) -> 343713.74 | F64: =+SUM('GEN-522 Cos_Gen_P'!B17:G17) -> 343713.74
B65: 4.2 | C65: Costo de Fianzas correspondientes a contratos (Viene del FORM AT502 y AT522) (B/.) | E65: =+SUM('GEN-502 Cos_Gen_P'!B20:G21) -> 293111.274 | F65: =+SUM('GEN-522 Cos_Gen_P'!B20:G22) -> 516313.62
B66: 4.3 | C66: Costos de Generación relacionados con el Mercado Regional y los servicios de operación integrada regional (Viene del FORM AT502 y AT522) (B/.) | E66: =+SUM('GEN-502 Cos_Gen_P'!B19:G19) -> 0 | F66: =+SUM('GEN-522 Cos_Gen_P'!B19:G19) -> 0
B67: 4.4 | C67: Sobrecostos por Generación Obligada (Viene del FORM AT502 y AT522) (B/.) | E67: =+SUM('GEN-502 Cos_Gen_P'!B18:G18) -> 146376.255 | F67: =+SUM('GEN-522 Cos_Gen_P'!B18:G18) -> 146376.255
B68: 4.5 | C68: Descuento por Cargo Por Uso Esporádico del Sistema de Transmisión (Viene del FORM AT502 y AT522) (B/.) | E68: =+SUM('GEN-502 Cos_Gen_P'!B23:G23) -> 16749.3225 | F68: =+SUM('GEN-522 Cos_Gen_P'!B23:G23) -> 16991.59
A69: 5 | C69: Costo de generación extraordinario (Viene del MODELO AT500 (Extra), punto 1) (B/.) | E69: =+'Ajuste Generación-500 (Extra)'!D19 -> 0 | F69: =+'Ajuste Generación-500 (Extra)'!E19 -> 100137.5
A70: 6 | C70: Ingresos que producen los cargos tarifarios por potencia de generación y las ventas del semeste correspondiente (Viene del FORM AT504-potencia y AT506-potencia) (B/.) | E70: =+SUM('GENERACION-504 (potencia)'!B124:G124,'GENERACION-504 (potencia)'!B140:G140,'GENERACION-504 (potencia)'!B166:G166) -> 16800414.14 | F70: =+SUM('GENERACION-506 (potencia)'!B111:G111,'GENERACION-506 (potencia)'!B308:G308,'GENERACION-506 (potencia)'!B335:G335) -> 15103375.19
A71: 7 | C71: Energía comprada por la distribuidora ingresada a la red de la distribuidora en los nodos de compra o entrega, generación propia y la energía total inyectada a su red por los clientes (contratos + mercado ocasional, incluye toda la energía de pérdidas en distribución) (Viene del FORM AT502 y AT522) (MWh) | E71: =+SUM('GEN-502 Gen_P'!B8:G8)*1000+SUM('GEN-502 Gen_FP'!B8:G8)*1000 -> 511073522.3 | F71: =+SUM('GEN-522 Gen_P'!B8:G8)*1000+SUM('GEN-522 Gen_FP'!B8:G8)*1000 -> 501052472.9
A72: 8 | C72: Precio promedio ponderado de generación permitido (B/./kWh) = (1 - 5 - 6) / 7 | E72: =+IFERROR((E54-E69-E70)/E71,0) -> 0.07651586206 | F72: =+(F54-F69-F70)/F71 -> 0.08640265344
A73: 9 | C73: Venta de energía a clientes y Consumo de Alumbrado Público (Viene del FORM AT801 y AT821 A) (kWh) | E73: =+SUM('Facturación-801 (energía)'!B111:G111)+SUM('Facturación-801 (energía)'!B457:G457) -> 444135011.6 | F73: =+SUM('Facturación-821 (energía)'!H111:M111)+SUM('Facturación-821 (energía)'!H486:M486) -> 422335278.3
A74: 10 | C74: Costo de generación permitido a trasladar a los cargos por energía de las tarifas (B/.) = 8 X 9 | E74: =+E72*E73 -> 33983373.28 | F74: =+F72*F73 -> 36490888.69
C76: Detalle | D76: Variable | G76: Valor
B77: 11 | C77: Porción de los costos de generación permitidos a trasladar a los cargos por energía de las tarifas en el semestre p (B/.) (10) | G77: =+E74 -> 33983373.28
B78: 12 | C78: Ingresos estimados que obtendría la distribuidora de los clientes que no se encuentran abastecidos por otro agente para cubrir los costos de generación asignados a energía. Resultan de aplicar los cargos Base por energía de generación que contienen las tarifas del semestre p-1 a la proyección de ventas del semestre p (Viene del FORM AT503) (B/.) | G78: =+SUM('GENERACION-503'!B124:G124,'GENERACION-503'!B211:G211,'GENERACION-503'!B331:G331,'GENERACION-503'!B364:G364,'GENERACION-503'!B397:G397,'GENERACION-503'!B422:G422) -> 36356798.03
B79: 13 | C79: Costo permitido Real de generación (asignados a energía) calculado en base a los costos reales y a las ventas reales en el semestre p-2. (B/.) (10) | G79: =+F74 -> 36490888.69
B80: 14 | C80: Ingresos reales producidos por los cargos Base por energía y las ventas reales del semestre p-2, incluyendo los ingresos producidos por los cargos por variación por combustible relacionados a los costos del semestre respectivo. (Viene del FORM AT506 + FORM AT506 CVC) (B/.) | G80: =+SUM('GENERACION-506'!B107:G107,'GENERACION-506'!B190:G190,'GENERACION-506'!B306:G306,'GENERACION-506'!B339:G339,'GENERACION-506'!B372:G372,'GENERACION-506'!B397:G397)+SUM('GENERACION-506 (CVC)'!B62:G62,'GENERACION-506 (CVC)'!B109:G109)+SUM('GENERACION-506 (cvc)a'!B62:G62,'GENERACION-506 (cvc)a'!B109:G109) -> 37086102.01
B81: 15 | C81: Ingresos permitidos producidos por los cargos Correcc por generación y las ventas estimadas en el semestre p-2 (Viene del FORM AT507) (B/.) | G81: =+SUM('GENERACION-507'!B107:G107,'GENERACION-507'!B190:G190,'GENERACION-507'!B306:G306,,'GENERACION-507'!B339:G339,'GENERACION-507'!B372:G372,'GENERACION-507'!B397:G397) -> 2439740.166
B82: 16 | C82: Ingresos reales producidos por los cargos Correcc por generación y las ventas reales en el semestre p-2 (Viene del FORM AT508) (B/.) | G82: =+SUM('GENERACION-508'!B107:G107,'GENERACION-508'!B190:G190,'GENERACION-508'!B306:G306,'GENERACION-508'!B339:G339,'GENERACION-508'!B372:G372,'GENERACION-508'!B397:G397) -> 2470310.147
B83: 17 | C83: Monto necesario para cubrir las diferencias entre los ingresos permitidos (producidos por los cargos Correcc y las ventas estimadas) y los ingresos reales (producidos por los cargos Correcc y las ventas reales) en el semestre p-2 (B/.) = 15 - 16 | G83: =+G82-G81 -> 30569.98129
B84: 18 | C84: Monto necesario para cubrir los apartamientos que se produjeron entre los costos de generación reales (asignados a la energía) y los ingresos reales (producidos por los cargos Base y las ventas reales, incluyendo los ingresos por los cargos variación por combustible) y por las diferencias entre los ingresos permitidos (producidos por los cargos Correcc y las ventas estimadas) y los ingresos reales (producidos por los cargos Correcc y las ventas reales) del semestre p-2 (B/.) = 13 - 14 + 17 | G84: =+G79-G80+G83 -> -564643.3428
B85: 19 | C85: Tasa de interés (Viene del FORM AT700) | D85: r | G85: =+'TASAS DE INTERES-700'!B20 -> 0.05965
B86: 20 | C86: Factor de la tasa de interés = (1 + 19) | D86: (1 + r) | G86: =+G85+1 -> 1.05965
B87: 21 | C87: Intereses generados dentro del semestre p-2 ocasionados por el desfase del costo permitido a recuperar en el ajuste mensual del cargo variable por combustible (Viene del FORM AT509) (B/.) | G87: =+'GENERACION-509'!B19 -> 1528199.048
B88: 22 | C88: Valor de los apartamientos actualizado con la tasa de descuento “r” (B/.) = ( 18 x 20 ) + 21 | G88: =+G84*G86+G87+G94 -> 929874.7295
B89: 23 | C89: Factor de Actualización o corrección = (11 / 12) | G89: =+IFERROR(G77/G78,0) -> 0.9347185429
B90: 24 | C90: Factor de Actualización o corrección = (22 / 12) | G90: =+IFERROR(G88/G78,0) -> 0.0255763648

Sheet Ajuste Generación-500 (Extra)
C1: CALCULO DEL FACTOR DE ACTUALIZACION DE:
C2: =+[1]Fecha!$A$1 -> EDECHI
C3: FORMULAS
C6: Donde:
C18: Detalle | D18: =+'AjustePérd de Trans-400'!C$20 -> SEMESTRE p Jul-Dic/2023 | E18: =+'AjustePérd de Trans-400'!D$20 -> SEMESTRE p-2 Jul-Dic/2022
A19: 1 | C19: Costo de generación extraordinario (B/.) = 1.1 + 1.2 + 1.3 + 1.4 | D19: =+D20+D21+D22+D23 -> 0 | E19: =+E20+E21+E22+E23 -> 100137.5
B20: 1.1 | C20: Costos de compra de potencia que la ASEP determine relacionados con mitigación de riesgo de racionamiento (Viene del FORM AT502 y AT522) (B/.)
B21: 1.2 | C21: Costos de autoabastecimiento autorizados por la ASEP (Viene del FORM AT502 y AT522) (B/.) | E21: =+SUM('[1]Extra p-2'!$C$16:$H$16) -> 100137.5
B22: 1.3 | C22: Sobrecostos ocasionados por incrementos en los precios de contratos de generación que son resultado de arbitrajes (Viene del FORM AT502 y AT522) (B/.)
B23: 1.4 | C23: Sobrecostos por sobre contratación de potencia y/o energía que ASEP determine (Viene del FORM AT502 y AT522) (B/.) | D23: =+SUM('[1]Extra p'!C19:H19)+SUM('[1]Extra p'!C12:H12) -> 0 | E23: =+SUM('[1]Extra p-2'!C19:H19)+SUM('[1]Extra p-2'!C12:H12) -> 0
C25: Detalle | F25: Valor
B26: 2 | C26: Costos de generación extraordinario en el semestre p (B/.) (1) | F26: =+D19 -> 0
B27: 3 | C27: Ingresos estimados que resultan de aplicar los cargos de generación extraordinarios que contienen las tarifas del semestre p-1 a la proyección de ventas del semestre p de los clientes que no se encuentran abastecidos por otro agente (Viene del FORM AT503-extra) (B/.) | F27: =+SUM('GENERACION-503 (extra)'!B108:G108,'GENERACION-503 (extra)'!B134:G134,) -> 0.000396561453
B28: 4 | C28: Costo de generación extraordinario real calculado en base a los costos reales del semestre p-2 (B/.) (1) | F28: =+E19 -> 100137.5
B29: 5 | C29: Ingresos producidos por los cargos extraordinarios y las ventas reales del semestre p-2. (Viene del FORM AT506-extra) (B/.) | F29: =+SUM('GENERACION-506 (extra)'!B108:G108,,'GENERACION-506 (extra)'!B136:G136) -> 0.0003777043648
B30: 6 | C30: Ingresos permitidos producidos por los cargos Correcc por generación Extraordinarios y las ventas estimadas en el semestre p-2 (Viene del FORM AT507-extra) (B/.) | F30: =+SUM('GENERACION-507 (extra)'!B107:G107,'GENERACION-507 (extra)'!B135:G135) -> 0
B31: 7 | C31: Ingresos reales producidos por los cargos Correcc por generación Extraordinarios y las ventas reales en el semestre p-2 (Viene del FORM AT508- extra) (B/.) | F31: =+SUM('GENERACION-508 (extra)'!B108:G108,'GENERACION-508 (extra)'!B136:G136) -> 0
B32: 8 | C32: Monto necesario para cubrir las diferencias entre los ingresos permitidos (producidos por los cargos Correcc y las ventas estimadas) y los ingresos reales (producidos por los cargos Correcc y las ventas reales) en el semestre p-2 (B/.) = 6 - 7 | F32: =+F30-F31 -> 0
B33: 9 | C33: Monto necesario para cubrir los apartamientos que se produjeron entre los costos de generación extraordinarios reales y los ingresos reales (producidos por los cargos Base y las ventas reales) y por las diferencias entre los ingresos permitidos (producidos por los cargos Correcc y las ventas estimadas) y los ingresos reales (producidos por los cargos Correcc y las ventas reales) del semestre p-2 (B/.) = 4 - 5 + 8 | F33: =+F28-F29+F32 -> 100137.4996
B34: 10 | C34: Tasa de interés (Viene del FORM AT700) | F34: =+'TASAS DE INTERES-700'!B20 -> 0.05965
B35: 11 | C35: Factor de la tasa de interés = (1 + 9) | F35: =+F34+1 -> 1.05965
B36: 12 | C36: Valor de los apartamientos actualizado con la tasa de descuento “r” (B/.) = ( 8 x 10 ) | F36: =+F33*F35 -> 106110.7015
B37: 13 | C37: Factor de Actualización o corrección = (2 / 3) | F37: =+F26/F27 -> 0
B38: 14 | C38: Factor de Actualización o corrección = (12 / 3) | F38: =+F36/F27 -> 267576943.4
C43: Sobrecosto Potencia Contratada | D43: 2022-07-01 | E43: 2022-08-01 | F43: 2022-09-01 | G43: 2022-10-01 | H43: 2022-11-01 | I43: 2022-12-01
C44: Costo de generación extraordinario real | D44: =+'[1]Extra p-2'!C12 -> 0 | E44: =+'[1]Extra p-2'!D12 -> 0 | F44: =+'[1]Extra p-2'!E12 -> 0 | G44: =+'[1]Extra p-2'!F12 -> 0 | H44: =+'[1]Extra p-2'!G12 -> 0 | I44: =+'[1]Extra p-2'!H12 -> 0
C45: Ingresos producidos por los cargos extraordinarios p-2 | D45: =+SUM('GENERACION-506 (extra)'!B108,'GENERACION-506 (extra)'!B136) -> 6.238339525e-05 | E45: =+SUM('GENERACION-506 (extra)'!C108,'GENERACION-506 (extra)'!C136) -> 6.156080825e-05 | F45: =+SUM('GENERACION-506 (extra)'!D108,'GENERACION-506 (extra)'!D136) -> 6.49404747e-05 | G45: =+SUM('GENERACION-506 (extra)'!E108,'GENERACION-506 (extra)'!E136) -> 6.398175275e-05 | H45: =+SUM('GENERACION-506 (extra)'!F108,'GENERACION-506 (extra)'!F136) -> 6.1984448e-05 | I45: =+SUM('GENERACION-506 (extra)'!G108,'GENERACION-506 (extra)'!G136) -> 6.285348585e-05
C46: Apartamientos entre costos de generación extraord. e ingresos reales | D46: =+D44-D45 -> -6.238339525e-05 | E46: =+E44-E45 -> -6.156080825e-05 | F46: =+F44-F45 -> -6.49404747e-05 | G46: -6.398175275e-05 | H46: -6.1984448e-05 | I46: -6.285348585e-05

Sheet Ajuste Generación-500 -En P (2)
B1: CALCULO DEL FACTOR DE ACTUALIZACION DE:
B2: =+[1]Fecha!$A$1 -> EDECHI
B3: FORMULAS
B4: Cargo por Potencia
B24: Detalle | C24: =+'Ajuste Generación-500 (2)'!E53 -> SEMESTRE p Jul-Dic/2023
A25: 1 | B25: Costo permitido Real de generación (asignados a energía) calculado en base a los costos reales y a las ventas reales en el semestre p-2 (Viene del MODELO AT500, punto 13) (B/.) | C25: =+'Ajuste Generación-500 (2)'!G79 -> 36490888.69
A26: 2 | B26: Ingresos reales producidos por los cargos Base por energía y las ventas reales del semestre p-2 (Viene del FORM AT506) (B/.) | C26: =+SUM('GENERACION-506'!B107:G107)+SUM('GENERACION-506'!B372:G372)+SUM('GENERACION-506'!B190:G190)+SUM('GENERACION-506'!B306:G306)+SUM('GENERACION-506'!B339:G339)+SUM('GENERACION-506'!B397:G397) -> 36262923.94
A27: 3 | B27: Monto necesario para cubrir las diferencias entre los ingresos permitidos (producidos por los cargos Correcc y las ventas estimadas) y los ingresos reales (producidos por los cargos Correcc y las ventas reales) en el semestre p-2 (Viene del MODELO AT500-En Punta, punto 23)(B/.) | C27: =+'Ajuste Generación-500 (2)'!G83 -> 30569.98129
A28: 4 | B28: Monto necesario para cubrir los apartamientos que se produjeron entre los costos de abastecimiento reales y los ingresos reales (producidos por los cargos Base y las ventas reales) y por las diferencias entre los ingresos permitidos (producidos por los cargos Correcc y las ventas estimadas) y los ingresos reales (producidos por los cargos Correcc y las ventas reales) en horas de Punta del semestre p-2 (B/.) = 1 - 2 + 3 | C28: =+C25-C26+C27 -> 258534.7338
A29: 5 | B29: Tasa de interés (Viene del FORM AT700) | C29: =+'TASAS DE INTERES-700'!B20 -> 0.05965
A30: 6 | B30: Factor de la tasa de interés = (1 + 5) | C30: =+C29+1 -> 1.05965
A31: 7 | B31: Valor de los apartamientos actualizado con la tasa de descuento “r” (B/.) = 4 x 6 | C31: =+C28*C30 -> 273956.3307

Sheet Ajuste Cons AlumPub-600
B1: CALCULO DEL FACTOR DE ACTUALIZACION DE:
B2: =+[1]Fecha!$A$1 -> EDECHI
C3: CARGO POR CONSUMO DEL ALUMBRADO PÚBLICO
B4: FORMULAS
B5: Cargo por Energía
B15: Detalle | C15: Variable | D15: =+'Ajuste Generación-500 (2)'!E53 -> SEMESTRE p Jul-Dic/2023
A16: 1 | B16: Factor de Actualización o corrección (Viene del MODELO AT500, punto 22) | D16: =+'Ajuste Generación-500 (2)'!G89 -> 0.9347185429
A17: 2 | B17: Factor de Actualización o corrección (Viene del MODELO AT500, punto 23) | D17: =+'Ajuste Generación-500 (2)'!G90 -> 0.0255763648

Sheet RES DE ACT TARIFARIA-1000
A1: =+"TARIFAS: "&[1]Fecha!$A$1 -> TARIFAS: EDECHI
A2: EDECHI | B2: Unidad | C2: Jul-Dic/2022 | G2: Factor de Ajuste | I2: Ene-Jun/2023 | M2: Factor de Ajuste | O2: =+[1]Fecha!T4 -> Jul-Dic/2023
C3: Cargo Tarifario Actualizado | D3: BASE | E3: Correcc | G3: BASE | H3: Correcc | I3: Cargo Tarifario Actualizado | J3: BASE | K3: Correcc | M3: BASE | N3: Correcc | O3: Cargo Tarifario Actualizado | P3: BASE | Q3: Correcc
A4: Pérdidas de Energía en Distribución | G4: MODELO AT202 | M4: MODELO AT202
A5: CPERDEP | G5: # 20 | H5: # 21 | M5: # 20 | N5: # 21
A6: BTH | B6: B/./kWh | C6: 0.01135 | D6: 0.00997 | E6: 0.001375117243 | G6: 0.9849288551 | H6: 0.2899700954 | I6: 0.01271 | J6: 0.00982 | K6: 0.002891001851 | M6: =+'AjustePérd de Dist-200'!D$65 -> 0.9390482297 | N6: =+'AjustePérd de Dist-200'!D$66 -> 0.008734432667 | O6: =+ROUND(P6+Q6,5) -> 0.00765 | P6: =+'[1]Tarifa ABASTECIMIENTO 22-26'!$C6 -> 0.007565825283 | Q6: =+J6*N6 -> 8.577212879e-05
A7: BTH | B7: B/./kW | M7: =+'AjustePérd de Dist-200'!D$65 -> 0.9390482297 | N7: =+'AjustePérd de Dist-200'!D$66 -> 0.008734432667 | O7: =+ROUND(P7+Q7,2) -> 0.11 | P7: =+'[1]Tarifa ABASTECIMIENTO 22-26'!$D6 -> 0.1094935513 | Q7: 0
A8: MTH | B8: B/./kWh | C8: 0.01225 | D8: 0.01077 | E8: 0.001484935634 | G8: 0.9849288551 | H8: 0.2899700954 | I8: 0.01373 | J8: 0.01061 | K8: 0.003122977928 | M8: =+'AjustePérd de Dist-200'!D$65 -> 0.9390482297 | N8: =+'AjustePérd de Dist-200'!D$66 -> 0.008734432667 | O8: 0.00827 | P8: =+'[1]Tarifa ABASTECIMIENTO 22-26'!$C7 -> 0.008172996155 | Q8: 9.26723306e-05
A9: MTH | B9: B/./kW | M9: =+'AjustePérd de Dist-200'!D$65 -> 0.9390482297 | N9: =+'AjustePérd de Dist-200'!D$66 -> 0.008734432667 | O9: =+ROUND(P9+Q9,2) -> 0.12 | P9: =+'[1]Tarifa ABASTECIMIENTO 22-26'!$D7 -> 0.1160571408 | Q9: 0
A10: ATH | B10: B/./kWh | C10: 0.01211 | D10: 0.01064 | E10: 0.001467428355 | G10: 0.9849288551 | H10: 0.2899700954 | I10: 0.01357 | J10: 0.01048 | K10: 0.003085281815 | M10: =+'AjustePérd de Dist-200'!D$65 -> 0.9390482297 | N10: =+'AjustePérd de Dist-200'!D$66 -> 0.008734432667 | O10: 0.00817 | P10: =+'[1]Tarifa ABASTECIMIENTO 22-26'!$C8 -> 0.008077753665 | Q10: 9.153685435e-05
A11: ATH | B11: B/./kW | M11: =+'AjustePérd de Dist-200'!D$65 -> 0.9390482297 | N11: =+'AjustePérd de Dist-200'!D$66 -> 0.008734432667 | O11: =+ROUND(P11+Q11,2) -> 0.08 | P11: =+'[1]Tarifa ABASTECIMIENTO 22-26'!$D8 -> 0.08486722534 | Q11: 0
A12: CPERDE FP MEDIO | G12: # 22 | H12: # 23 | M12: # 22 | N12: # 23
A13: BTH | B13: B/./kWh | C13: 0.00856 | D13: 0.00752 | E13: 0.001037704216 | G13: 0.9849288551 | H13: 0.2899700954 | I13: 0.00959 | J13: 0.00741 | K13: 0.002180575118 | M13: =+'AjustePérd de Dist-200'!D$65 -> 0.9390482297 | N13: =+'AjustePérd de Dist-200'!D$66 -> 0.008734432667 | O13: =+ROUND(P13+Q13,5) -> 0.00577 | P13: =+'[1]Tarifa ABASTECIMIENTO 22-26'!$C10 -> 0.005708596732 | Q13: =+J13*N13 -> 6.472214606e-05
A14: BTH | B14: B/./kW | M14: =+'AjustePérd de Dist-200'!D$65 -> 0.9390482297 | N14: =+'AjustePérd de Dist-200'!D$66 -> 0.008734432667 | O14: =+ROUND(P14+Q14,2) -> 0.11 | P14: =+'[1]Tarifa ABASTECIMIENTO 22-26'!$D10 -> 0.1094935513 | Q14: 0
A15: MTH | B15: B/./kWh | C15: 0.00916 | D15: 0.00805 | E15: 0.001110916477 | G15: 0.9849288551 | H15: 0.2899700954 | I15: 0.01026 | J15: 0.00793 | K15: 0.002334259268 | M15: =+'AjustePérd de Dist-200'!D$65 -> 0.9390482297 | N15: =+'AjustePérd de Dist-200'!D$66 -> 0.008734432667 | O15: 0.00618 | P15: =+'[1]Tarifa ABASTECIMIENTO 22-26'!$C11 -> 0.006107424658 | Q15: 6.926405105e-05
A16: MTH | B16: B/./kW | M16: =+'AjustePérd de Dist-200'!D$65 -> 0.9390482297 | N16: =+'AjustePérd de Dist-200'!D$66 -> 0.008734432667 | O16: =+ROUND(P16+Q16,2) -> 0.12 | P16: =+'[1]Tarifa ABASTECIMIENTO 22-26'!$D11 -> 0.1160571408 | Q16: 0
A17: ATH | B17: B/./kWh | C17: 0.00864 | D17: 0.00759 | E17: 0.001047253641 | G17: 0.9849288551 | H17: 0.2899700954 | I17: 0.00968 | J17: 0.00748 | K17: 0.002200873024 | M17: =+'AjustePérd de Dist-200'!D$65 -> 0.9390482297 | N17: =+'AjustePérd de Dist-200'!D$66 -> 0.008734432667 | O17: 0.00583 | P17: =+'[1]Tarifa ABASTECIMIENTO 22-26'!$C12 -> 0.005762170632 | Q17: 6.533355635e-05
A18: ATH | B18: B/./kW | M18: =+'AjustePérd de Dist-200'!D$65 -> 0.9390482297 | N18: =+'AjustePérd de Dist-200'!D$66 -> 0.008734432667 | O18: =+ROUND(P18+Q18,2) -> 0.08 | P18: =+'[1]Tarifa ABASTECIMIENTO 22-26'!$D12 -> 0.08486722534 | Q18: 0
A19: CPERDE FP BAJO
A20: BTH | B20: B/./kWh | J20: =+J13 -> 0.00741 | M20: =+'AjustePérd de Dist-200'!D$65 -> 0.9390482297 | N20: =+'AjustePérd de Dist-200'!D$66 -> 0.008734432667 | O20: =+ROUND(P20+Q20,5) -> 0.00577 | P20: =+'[1]Tarifa ABASTECIMIENTO 22-26'!$C14 -> 0.005708596732 | Q20: =+J20*N20 -> 6.472214606e-05
A21: BTH | B21: B/./kW | M21: =+'AjustePérd de Dist-200'!D$65 -> 0.9390482297 | N21: =+'AjustePérd de Dist-200'!D$66 -> 0.008734432667 | O21: =+ROUND(P21+Q21,2) -> 0.11 | P21: =+'[1]Tarifa ABASTECIMIENTO 22-26'!$D14 -> 0.1094935513 | Q21: 0
A22: MTH | B22: B/./kWh | J22: =+J15 -> 0.00793 | M22: =+'AjustePérd de Dist-200'!D$65 -> 0.9390482297 | N22: =+'AjustePérd de Dist-200'!D$66 -> 0.008734432667 | O22: 0.00618 | P22: =+'[1]Tarifa ABASTECIMIENTO 22-26'!$C15 -> 0.006107424658 | Q22: 6.926405105e-05
A23: MTH | B23: B/./kW | M23: =+'AjustePérd de Dist-200'!D$65 -> 0.9390482297 | N23: =+'AjustePérd de Dist-200'!D$66 -> 0.008734432667 | O23: =+ROUND(P23+Q23,2) -> 0.12 | P23: =+'[1]Tarifa ABASTECIMIENTO 22-26'!$D15 -> 0.1160571408 | Q23: 0
A24: ATH | B24: B/./kWh | J24: =+J17 -> 0.00748 | M24: =+'AjustePérd de Dist-200'!D$65 -> 0.9390482297 | N24: =+'AjustePérd de Dist-200'!D$66 -> 0.008734432667 | O24: 0.00583 | P24: =+'[1]Tarifa ABASTECIMIENTO 22-26'!$C16 -> 0.005762170632 | Q24: 6.533355635e-05
A25: ATH | B25: B/./kW | M25: =+'AjustePérd de Dist-200'!D$65 -> 0.9390482297 | N25: =+'AjustePérd de Dist-200'!D$66 -> 0.008734432667 | O25: =+ROUND(P25+Q25,2) -> 0.08 | P25: =+'[1]Tarifa ABASTECIMIENTO 22-26'!$D16 -> 0.08486722534 | Q25: 0
A26: CPERDESM | G26: # 26 | H26: # 27 | M26: # 26 | N26: # 27
A27: BTS (0-300) | B27: B/./kWh | C27: 0.01006 | D27: 0.00884 | E27: 0.001219143297 | G27: 0.9849288551 | H27: 0.2899700954 | I27: 0.01127 | J27: 0.00871 | K27: 0.002563335644 | M27: =+'AjustePérd de Dist-200'!D$65 -> 0.9390482297 | N27: =+'AjustePérd de Dist-200'!D$66 -> 0.008734432667 | O27: =+ROUND(P27+Q27,5) -> 0.00726 | P27: =+'[1]Tarifa ABASTECIMIENTO 22-26'!$C18 -> 0.007182330533 | Q27: =+J27*N27 -> 7.607690853e-05
A28: BTS (301-750) | B28: B/./kWh | C28: 0.01006 | D28: 0.00884 | E28: 0.001219143297 | G28: 0.9849288551 | H28: 0.2899700954 | I28: 0.01127 | J28: 0.00871 | K28: 0.002563335644 | M28: =+'AjustePérd de Dist-200'!D$65 -> 0.9390482297 | N28: =+'AjustePérd de Dist-200'!D$66 -> 0.008734432667 | O28: 0.00726 | P28: =+'[1]Tarifa ABASTECIMIENTO 22-26'!$C19 -> 0.007182330533 | Q28: 7.607690853e-05
A29: BTS (750-más) | B29: B/./kWh | C29: 0.01006 | D29: 0.00884 | E29: 0.001219143297 | G29: 0.9849288551 | H29: 0.2899700954 | I29: 0.01127 | J29: 0.00871 | K29: 0.002563335644 | M29: =+'AjustePérd de Dist-200'!D$65 -> 0.9390482297 | N29: =+'AjustePérd de Dist-200'!D$66 -> 0.008734432667 | O29: 0.00726 | P29: =+'[1]Tarifa ABASTECIMIENTO 22-26'!$C20 -> 0.007182330533 | Q29: 7.607690853e-05
A30: BTD (0-10,000) | B30: B/./kWh | C30: 0.00924 | D30: 0.00812 | E30: 0.001120465902 | G30: 0.9849288551 | H30: 0.2899700954 | I30: 0.01035 | J30: 0.008 | K30: 0.002354557175 | M30: =+'AjustePérd de Dist-200'!D$65 -> 0.9390482297 | N30: =+'AjustePérd de Dist-200'!D$66 -> 0.008734432667 | O30: 0.00623 | P30: =+'[1]Tarifa ABASTECIMIENTO 22-26'!$C21 -> 0.006160998558 | Q30: 6.987546134e-05
A31: BTD (0-10,000) | B31: B/./kW | M31: =+'AjustePérd de Dist-200'!D$65 -> 0.9390482297 | N31: =+'AjustePérd de Dist-200'!D$66 -> 0.008734432667 | O31: 0.15311 | P31: =+'[1]Tarifa ABASTECIMIENTO 22-26'!$D21 -> 0.1531146813 | Q31: 0
A32: BTD (10,001-30,000) | B32: B/./kWh | C32: 0.00924 | D32: 0.00812 | E32: 0.001120465902 | G32: 0.9849288551 | H32: 0.2899700954 | I32: 0.01035 | J32: 0.008 | K32: 0.002354557175 | M32: =+'AjustePérd de Dist-200'!D$65 -> 0.9390482297 | N32: =+'AjustePérd de Dist-200'!D$66 -> 0.008734432667 | O32: 0.00623 | P32: =+'[1]Tarifa ABASTECIMIENTO 22-26'!$C22 -> 0.006160998558 | Q32: 6.987546134e-05
A33: BTD (10,001-30,000) | B33: B/./kW | M33: =+'AjustePérd de Dist-200'!D$65 -> 0.9390482297 | N33: =+'AjustePérd de Dist-200'!D$66 -> 0.008734432667 | O33: 0.15311 | P33: =+'[1]Tarifa ABASTECIMIENTO 22-26'!$D22 -> 0.1531146813 | Q33: 0
A34: BTD (30,001-50,000) | B34: B/./kWh | C34: 0.00924 | D34: 0.00812 | E34: 0.001120465902 | G34: 0.9849288551 | H34: 0.2899700954 | I34: 0.01035 | J34: 0.008 | K34: 0.002354557175 | M34: =+'AjustePérd de Dist-200'!D$65 -> 0.9390482297 | N34: =+'AjustePérd de Dist-200'!D$66 -> 0.008734432667 | O34: 0.00623 | P34: =+'[1]Tarifa ABASTECIMIENTO 22-26'!$C23 -> 0.006160998558 | Q34: 6.987546134e-05
A35: BTD (30,001-50,000) | B35: B/./kW | M35: =+'AjustePérd de Dist-200'!D$65 -> 0.9390482297 | N35: =+'AjustePérd de Dist-200'!D$66 -> 0.008734432667 | O35: 0.15311 | P35: =+'[1]Tarifa ABASTECIMIENTO 22-26'!$D23 -> 0.1531146813 | Q35: 0
A36: BTD (50,001-más) | B36: B/./kWh | C36: 0.00924 | D36: 0.00812 | E36: 0.001120465902 | G36: 0.9849288551 | H36: 0.2899700954 | I36: 0.01035 | J36: 0.008 | K36: 0.002354557175 | M36: =+'AjustePérd de Dist-200'!D$65 -> 0.9390482297 | N36: =+'AjustePérd de Dist-200'!D$66 -> 0.008734432667 | O36: 0.00623 | P36: =+'[1]Tarifa ABASTECIMIENTO 22-26'!$C24 -> 0.006160998558 | Q36: 6.987546134e-05
A37: BTD (50,001-más) | B37: B/./kW | M37: =+'AjustePérd de Dist-200'!D$65 -> 0.9390482297 | N37: =+'AjustePérd de Dist-200'!D$66 -> 0.008734432667 | O37: 0.15311 | P37: =+'[1]Tarifa ABASTECIMIENTO 22-26'!$D24 -> 0.1531146813 | Q37: 0
A38: MTD (0-10,000) | B38: B/./kWh | C38: 0.00922 | D38: 0.0081 | E38: 0.00111728276 | G38: 0.9849288551 | H38: 0.2899700954 | I38: 0.01033 | J38: 0.00798 | K38: 0.002348757773 | M38: =+'AjustePérd de Dist-200'!D$65 -> 0.9390482297 | N38: =+'AjustePérd de Dist-200'!D$66 -> 0.008734432667 | O38: 0.00622 | P38: =+'[1]Tarifa ABASTECIMIENTO 22-26'!$C25 -> 0.006149091252 | Q38: 6.970077268e-05
A39: MTD (0-10,000) | B39: B/./kW | M39: =+'AjustePérd de Dist-200'!D$65 -> 0.9390482297 | N39: =+'AjustePérd de Dist-200'!D$66 -> 0.008734432667 | O39: 0.18693 | P39: =+'[1]Tarifa ABASTECIMIENTO 22-26'!$D25 -> 0.1869297498 | Q39: 0
A40: MTD (10,001-30,000) | B40: B/./kWh | C40: 0.00922 | D40: 0.0081 | E40: 0.00111728276 | G40: 0.9849288551 | H40: 0.2899700954 | I40: 0.01033 | J40: 0.00798 | K40: 0.002348757773 | M40: =+'AjustePérd de Dist-200'!D$65 -> 0.9390482297 | N40: =+'AjustePérd de Dist-200'!D$66 -> 0.008734432667 | O40: 0.00622 | P40: =+'[1]Tarifa ABASTECIMIENTO 22-26'!$C26 -> 0.006149091252 | Q40: 6.970077268e-05
A41: MTD (10,001-30,000) | B41: B/./kW | M41: =+'AjustePérd de Dist-200'!D$65 -> 0.9390482297 | N41: =+'AjustePérd de Dist-200'!D$66 -> 0.008734432667 | O41: 0.18693 | P41: =+'[1]Tarifa ABASTECIMIENTO 22-26'!$D26 -> 0.1869297498 | Q41: 0
A42: MTD (30,001-50,000) | B42: B/./kWh | C42: 0.00922 | D42: 0.0081 | E42: 0.00111728276 | G42: 0.9849288551 | H42: 0.2899700954 | I42: 0.01033 | J42: 0.00798 | K42: 0.002348757773 | M42: =+'AjustePérd de Dist-200'!D$65 -> 0.9390482297 | N42: =+'AjustePérd de Dist-200'!D$66 -> 0.008734432667 | O42: 0.00622 | P42: =+'[1]Tarifa ABASTECIMIENTO 22-26'!$C27 -> 0.006149091252 | Q42: 6.970077268e-05
A43: MTD (30,001-50,000) | B43: B/./kW | M43: =+'AjustePérd de Dist-200'!D$65 -> 0.9390482297 | N43: =+'AjustePérd de Dist-200'!D$66 -> 0.008734432667 | O43: 0.18693 | P43: =+'[1]Tarifa ABASTECIMIENTO 22-26'!$D27 -> 0.1869297498 | Q43: 0
A44: MTD (50,001-más) | B44: B/./kWh | C44: 0.00922 | D44: 0.0081 | E44: 0.00111728276 | G44: 0.9849288551 | H44: 0.2899700954 | I44: 0.01033 | J44: 0.00798 | K44: 0.002348757773 | M44: =+'AjustePérd de Dist-200'!D$65 -> 0.9390482297 | N44: =+'AjustePérd de Dist-200'!D$66 -> 0.008734432667 | O44: 0.00622 | P44: =+'[1]Tarifa ABASTECIMIENTO 22-26'!$C28 -> 0.006149091252 | Q44: 6.970077268e-05
A45: MTD (50,001-más) | B45: B/./kW | M45: =+'AjustePérd de Dist-200'!D$65 -> 0.9390482297 | N45: =+'AjustePérd de Dist-200'!D$66 -> 0.008734432667 | O45: 0.18693 | P45: =+'[1]Tarifa ABASTECIMIENTO 22-26'!$D28 -> 0.1869297498 | Q45: 0
A46: ATD | B46: B/./kWh | C46: 0.00922 | D46: 0.0081 | E46: 0.00111728276 | G46: 0.9849288551 | H46: 0.2899700954 | I46: 0.01033 | J46: 0.00798 | K46: 0.002348757773 | M46: =+'AjustePérd de Dist-200'!D$65 -> 0.9390482297 | N46: =+'AjustePérd de Dist-200'!D$66 -> 0.008734432667 | O46: 0.00622 | P46: =+'[1]Tarifa ABASTECIMIENTO 22-26'!$C29 -> 0.006149093247 | Q46: 6.970077268e-05
A47: ATD | B47: B/./kW | M47: =+'AjustePérd de Dist-200'!D$65 -> 0.9390482297 | N47: =+'AjustePérd de Dist-200'!D$66 -> 0.008734432667 | O47: 0.09805 | P47: =+'[1]Tarifa ABASTECIMIENTO 22-26'!$D29 -> 0.09804747476 | Q47: 0
A48: Pérdidas de Potencia en Distribución
A49: CPERDP | B49: B/./kWh o B/./kW | G49: # 20 | H49: # 21 | M49: # 20 | N49: # 21
A50: BTS (0-300) | C50: 0 | D50: 0 | E50: 0 | G50: 0.9849288551 | H50: 0.2899700954 | I50: 0 | J50: 0 | K50: 0 | M50: =+'AjustePérd de Dist-200'!D$65 -> 0.9390482297 | N50: =+'AjustePérd de Dist-200'!D$66 -> 0.008734432667 | O50: =+ROUND(P50+Q50,5) -> 0 | P50: =+'[1]Tarifa ABASTECIMIENTO 22-26'!$C32 -> 0 | Q50: =+J50*N50 -> 0
A51: BTS (301-750) | C51: 0 | D51: 0 | E51: 0 | G51: 0.9849288551 | H51: 0.2899700954 | I51: 0 | J51: 0 | K51: 0 | M51: =+'AjustePérd de Dist-200'!D$65 -> 0.9390482297 | N51: =+'AjustePérd de Dist-200'!D$66 -> 0.008734432667 | O51: =+ROUND(P51+Q51,5) -> 0 | P51: =+'[1]Tarifa ABASTECIMIENTO 22-26'!$C33 -> 0 | Q51: 0
A52: BTS (750-más) | C52: 0 | D52: 0 | E52: 0 | G52: 0.9849288551 | H52: 0.2899700954 | I52: 0 | J52: 0 | K52: 0 | M52: =+'AjustePérd de Dist-200'!D$65 -> 0.9390482297 | N52: =+'AjustePérd de Dist-200'!D$66 -> 0.008734432667 | O52: =+ROUND(P52+Q52,5) -> 0 | P52: =+'[1]Tarifa ABASTECIMIENTO 22-26'!$C34 -> 0 | Q52: 0
A53: BTD (0-10,000) | C53: 0 | D53: 0 | E53: 0 | G53: 0.9849288551 | H53: 0.2899700954 | I53: 0 | J53: 0 | K53: 0 | M53: =+'AjustePérd de Dist-200'!D$65 -> 0.9390482297 | N53: =+'AjustePérd de Dist-200'!D$66 -> 0.008734432667 | O53: =+ROUND(P53+Q53,2) -> 0 | P53: =+'[1]Tarifa ABASTECIMIENTO 22-26'!$C35 -> 0 | Q53: 0
A54: BTD (10,001-30,000) | C54: 0 | D54: 0 | E54: 0 | G54: 0.9849288551 | H54: 0.2899700954 | I54: 0 | J54: 0 | K54: 0 | M54: =+'AjustePérd de Dist-200'!D$65 -> 0.9390482297 | N54: =+'AjustePérd de Dist-200'!D$66 -> 0.008734432667 | O54: =+ROUND(P54+Q54,2) -> 0 | P54: =+'[1]Tarifa ABASTECIMIENTO 22-26'!$C36 -> 0 | Q54: 0
A55: BTD (30,001-50,000) | C55: 0 | D55: 0 | E55: 0 | G55: 0.9849288551 | H55: 0.2899700954 | I55: 0 | J55: 0 | K55: 0 | M55: =+'AjustePérd de Dist-200'!D$65 -> 0.9390482297 | N55: =+'AjustePérd de Dist-200'!D$66 -> 0.008734432667 | O55: =+ROUND(P55+Q55,2) -> 0 | P55: =+'[1]Tarifa ABASTECIMIENTO 22-26'!$C37 -> 0 | Q55: 0
A56: BTD (50,001-más) | C56: 0 | D56: 0 | E56: 0 | G56: 0.9849288551 | H56: 0.2899700954 | I56: 0 | J56: 0 | K56: 0 | M56: =+'AjustePérd de Dist-200'!D$65 -> 0.9390482297 | N56: =+'AjustePérd de Dist-200'!D$66 -> 0.008734432667 | O56: =+ROUND(P56+Q56,2) -> 0 | P56: =+'[1]Tarifa ABASTECIMIENTO 22-26'!$C38 -> 0 | Q56: 0
A57: BTH | C57: 0 | D57: 0 | E57: 0 | G57: 0.9849288551 | H57: 0.2899700954 | I57: 0 | J57: 0 | K57: 0 | M57: =+'AjustePérd de Dist-200'!D$65 -> 0.9390482297 | N57: =+'AjustePérd de Dist-200'!D$66 -> 0.008734432667 | O57: =+ROUND(P57+Q57,2) -> 0 | P57: =+'[1]Tarifa ABASTECIMIENTO 22-26'!$C39 -> 0 | Q57: =+J57*N57 -> 0
A58: MTD (0-10,000) | C58: 0 | D58: 0 | E58: 0 | G58: 0.9849288551 | H58: 0.2899700954 | I58: 0 | J58: 0 | K58: 0 | M58: =+'AjustePérd de Dist-200'!D$65 -> 0.9390482297 | N58: =+'AjustePérd de Dist-200'!D$66 -> 0.008734432667 | O58: 0 | P58: =+'[1]Tarifa ABASTECIMIENTO 22-26'!$C40 -> 0 | Q58: =+J58*N58 -> 0
A59: MTD (10,001-30,000) | C59: 0 | D59: 0 | E59: 0 | G59: 0.9849288551 | H59: 0.2899700954 | I59: 0 | J59: 0 | K59: 0 | M59: =+'AjustePérd de Dist-200'!D$65 -> 0.9390482297 | N59: =+'AjustePérd de Dist-200'!D$66 -> 0.008734432667 | O59: 0 | P59: =+'[1]Tarifa ABASTECIMIENTO 22-26'!$C41 -> 0 | Q59: =+J59*N59 -> 0
A60: MTD (30,001-50,000) | C60: 0 | D60: 0 | E60: 0 | G60: 0.9849288551 | H60: 0.2899700954 | I60: 0 | J60: 0 | K60: 0 | M60: =+'AjustePérd de Dist-200'!D$65 -> 0.9390482297 | N60: =+'AjustePérd de Dist-200'!D$66 -> 0.008734432667 | O60: 0 | P60: =+'[1]Tarifa ABASTECIMIENTO 22-26'!$C42 -> 0 | Q60: =+J60*N60 -> 0
A61: MTD (50,001-más) | C61: 0 | D61: 0 | E61: 0 | G61: 0.9849288551 | H61: 0.2899700954 | I61: 0 | J61: 0 | K61: 0 | M61: =+'AjustePérd de Dist-200'!D$65 -> 0.9390482297 | N61: =+'AjustePérd de Dist-200'!D$66 -> 0.008734432667 | O61: 0 | P61: =+'[1]Tarifa ABASTECIMIENTO 22-26'!$C43 -> 0 | Q61: =+J61*N61 -> 0
A62: MTH | C62: 0 | D62: 0 | E62: 0 | G62: 0.9849288551 | H62: 0.2899700954 | I62: 0 | J62: 0 | K62: 0 | M62: =+'AjustePérd de Dist-200'!D$65 -> 0.9390482297 | N62: =+'AjustePérd de Dist-200'!D$66 -> 0.008734432667 | O62: 0 | P62: =+'[1]Tarifa ABASTECIMIENTO 22-26'!$C44 -> 0 | Q62: 0
A63: ATD | C63: 0 | D63: 0 | E63: 0 | G63: 0.9849288551 | H63: 0.2899700954 | I63: 0 | J63: 0 | K63: 0 | M63: =+'AjustePérd de Dist-200'!D$65 -> 0.9390482297 | N63: =+'AjustePérd de Dist-200'!D$66 -> 0.008734432667 | O63: 0 | P63: =+'[1]Tarifa ABASTECIMIENTO 22-26'!$C45 -> 0 | Q63: 0
A64: ATH | C64: 0 | D64: 0 | E64: 0 | G64: 0.9849288551 | H64: 0.2899700954 | I64: 0 | J64: 0 | K64: 0 | M64: =+'AjustePérd de Dist-200'!D$65 -> 0.9390482297 | N64: =+'AjustePérd de Dist-200'!D$66 -> 0.008734432667 | O64: 0 | P64: =+'[1]Tarifa ABASTECIMIENTO 22-26'!$C46 -> 0 | Q64: 0
A65: Alumbrado Público | G65: MODELO AT602 | M65: MODELO AT602
A66: CCONAP | B66: B/./KWh | G66: # 8 | H66: # 9 | M66: # 8 | N66: # 9
A67: BTS (0-300) | C67: 0.00535 | D67: 0.00501 | E67: 0.0003368120638 | G67: 0.9865804228 | H67: -0.006138506821 | I67: 0.00491 | J67: 0.00494 | K67: -3.075391917e-05 | M67: =+'Ajuste Generación-500 (2)'!G$89 -> 0.9347185429 | N67: =+'Ajuste Generación-500 (2)'!G$90 -> 0.0255763648 | O67: =+ROUND(P67+Q67,5) -> 0.00392 | P67: =+'[1]Tarifa ABASTECIMIENTO 22-26'!$C49 -> 0.00379783175 | Q67: =+J67*N67 -> 0.0001263472421
A68: BTS (301-750) | C68: 0.00535 | D68: 0.00501 | E68: 0.0003368120638 | G68: 0.9865804228 | H68: -0.006138506821 | I68: 0.00491 | J68: 0.00494 | K68: -3.075391917e-05 | M68: =+'Ajuste Generación-500 (2)'!G$89 -> 0.9347185429 | N68: =+'Ajuste Generación-500 (2)'!G90 -> 0.0255763648 | O68: 0.00392 | P68: =+'[1]Tarifa ABASTECIMIENTO 22-26'!$C50 -> 0.00379783175 | Q68: =+J68*N68 -> 0.0001263472421
A69: BTS (750-más) | C69: 0.00535 | D69: 0.00501 | E69: 0.0003368120638 | G69: 0.9865804228 | H69: -0.006138506821 | I69: 0.00491 | J69: 0.00494 | K69: -3.075391917e-05 | M69: =+'Ajuste Generación-500 (2)'!G$89 -> 0.9347185429 | N69: =+'Ajuste Generación-500 (2)'!G90 -> 0.0255763648 | O69: 0.00392 | P69: =+'[1]Tarifa ABASTECIMIENTO 22-26'!$C51 -> 0.00379783175 | Q69: =+J69*N69 -> 0.0001263472421
A70: BTD (0-10,000) | C70: 0.00491 | D70: 0.0046 | E70: 0.0003096110895 | G70: 0.9865804228 | H70: -0.006138506821 | I70: 0.00451 | J70: 0.00454 | K70: -2.823713138e-05 | M70: =+'Ajuste Generación-500 (2)'!G$89 -> 0.9347185429 | N70: =+'Ajuste Generación-500 (2)'!G90 -> 0.0255763648 | O70: 0.00366 | P70: =+'[1]Tarifa ABASTECIMIENTO 22-26'!$C52 -> 0.003542077538 | Q70: =+J70*N70 -> 0.0001161166962
A71: BTD (10,001-30,000) | C71: 0.00491 | D71: 0.0046 | E71: 0.0003096110895 | G71: 0.9865804228 | H71: -0.006138506821 | I71: 0.00451 | J71: 0.00454 | K71: -2.823713138e-05 | M71: =+'Ajuste Generación-500 (2)'!G$89 -> 0.9347185429 | N71: =+'Ajuste Generación-500 (2)'!G90 -> 0.0255763648 | O71: 0.00366 | P71: =+'[1]Tarifa ABASTECIMIENTO 22-26'!$C53 -> 0.003542077538 | Q71: =+J71*N71 -> 0.0001161166962
A72: BTD (30,001-50,000) | C72: 0.00491 | D72: 0.0046 | E72: 0.0003096110895 | G72: 0.9865804228 | H72: -0.006138506821 | I72: 0.00451 | J72: 0.00454 | K72: -2.823713138e-05 | M72: =+'Ajuste Generación-500 (2)'!G$89 -> 0.9347185429 | N72: =+'Ajuste Generación-500 (2)'!G90 -> 0.0255763648 | O72: 0.00366 | P72: =+'[1]Tarifa ABASTECIMIENTO 22-26'!$C54 -> 0.003542077538 | Q72: =+J72*N72 -> 0.0001161166962
A73: BTD (50,001-más) | C73: 0.00491 | D73: 0.0046 | E73: 0.0003096110895 | G73: 0.9865804228 | H73: -0.006138506821 | I73: 0.00451 | J73: 0.00454 | K73: -2.823713138e-05 | M73: =+'Ajuste Generación-500 (2)'!G$89 -> 0.9347185429 | N73: =+'Ajuste Generación-500 (2)'!G90 -> 0.0255763648 | O73: 0.00366 | P73: =+'[1]Tarifa ABASTECIMIENTO 22-26'!$C55 -> 0.003542077538 | Q73: 0.0001161166962
A74: BTH | C74: 0.0049 | D74: 0.00459 | E74: 0.0003088110609 | G74: 0.9865804228 | H74: -0.006138506821 | I74: 0.0045 | J74: 0.00453 | K74: -2.817574631e-05 | M74: =+'Ajuste Generación-500 (2)'!G$89 -> 0.9347185429 | N74: =+'Ajuste Generación-500 (2)'!G90 -> 0.0255763648 | O74: 0.00365 | P74: =+'[1]Tarifa ABASTECIMIENTO 22-26'!$C56 -> 0.003534223708 | Q74: 0.0001158609325
A75: MTD (0-10,000) | C75: 0.0049 | D75: 0.00459 | E75: 0.0003088110609 | G75: 0.9865804228 | H75: -0.006138506821 | I75: 0.0045 | J75: 0.00453 | K75: -2.817574631e-05 | M75: =+'Ajuste Generación-500 (2)'!G$89 -> 0.9347185429 | N75: =+'Ajuste Generación-500 (2)'!G90 -> 0.0255763648 | O75: 0.00365 | P75: =+'[1]Tarifa ABASTECIMIENTO 22-26'!$C57 -> 0.003534222561 | Q75: 0.0001158609325
A76: MTD (10,001-30,000) | C76: 0.0049 | D76: 0.00459 | E76: 0.0003088110609 | G76: 0.9865804228 | H76: -0.006138506821 | I76: 0.0045 | J76: 0.00453 | K76: -2.817574631e-05 | M76: =+'Ajuste Generación-500 (2)'!G$89 -> 0.9347185429 | N76: =+'Ajuste Generación-500 (2)'!G90 -> 0.0255763648 | O76: 0.00365 | P76: =+'[1]Tarifa ABASTECIMIENTO 22-26'!$C58 -> 0.003534222561 | Q76: 0.0001158609325
A77: MTD (30,001-50,000) | C77: 0.0049 | D77: 0.00459 | E77: 0.0003088110609 | G77: 0.9865804228 | H77: -0.006138506821 | I77: 0.0045 | J77: 0.00453 | K77: -2.817574631e-05 | M77: =+'Ajuste Generación-500 (2)'!G$89 -> 0.9347185429 | N77: =+'Ajuste Generación-500 (2)'!G90 -> 0.0255763648 | O77: 0.00365 | P77: =+'[1]Tarifa ABASTECIMIENTO 22-26'!$C59 -> 0.003534222561 | Q77: 0.0001158609325
A78: MTD (50,001-más) | C78: 0.0049 | D78: 0.00459 | E78: 0.0003088110609 | G78: 0.9865804228 | H78: -0.006138506821 | I78: 0.0045 | J78: 0.00453 | K78: -2.817574631e-05 | M78: =+'Ajuste Generación-500 (2)'!G$89 -> 0.9347185429 | N78: =+'Ajuste Generación-500 (2)'!G90 -> 0.0255763648 | O78: 0.00365 | P78: =+'[1]Tarifa ABASTECIMIENTO 22-26'!$C60 -> 0.003534222561 | Q78: 0.0001158609325
A79: MTH | C79: 0.0049 | D79: 0.00459 | E79: 0.0003088110609 | G79: 0.9865804228 | H79: -0.006138506821 | I79: 0.0045 | J79: 0.00453 | K79: -2.817574631e-05 | M79: =+'Ajuste Generación-500 (2)'!G$89 -> 0.9347185429 | N79: =+'Ajuste Generación-500 (2)'!G90 -> 0.0255763648 | O79: 0.00365 | P79: =+'[1]Tarifa ABASTECIMIENTO 22-26'!$C61 -> 0.003534223708 | Q79: 0.0001158609325
A80: ATD | C80: 0.0049 | D80: 0.00459 | E80: 0.0003088110609 | G80: 0.9865804228 | H80: -0.006138506821 | I80: 0.0045 | J80: 0.00453 | K80: -2.817574631e-05 | M80: =+'Ajuste Generación-500 (2)'!G$89 -> 0.9347185429 | N80: =+'Ajuste Generación-500 (2)'!G90 -> 0.0255763648 | O80: 0.00365 | P80: =+'[1]Tarifa ABASTECIMIENTO 22-26'!$C62 -> 0.003534223708 | Q80: 0.0001158609325
A81: ATH | C81: 0.0049 | D81: 0.00459 | E81: 0.0003088110609 | G81: 0.9865804228 | H81: -0.006138506821 | I81: 0.0045 | J81: 0.00453 | K81: -2.817574631e-05 | M81: =+'Ajuste Generación-500 (2)'!G$89 -> 0.9347185429 | N81: =+'Ajuste Generación-500 (2)'!G90 -> 0.0255763648 | O81: 0.00365 | P81: =+'[1]Tarifa ABASTECIMIENTO 22-26'!$C63 -> 0.003534223708 | Q81: 0.0001158609325
A82: Transmisión | G82: MODELO AT302 | M82: MODELO AT302
A83: CPT (energía) | B83: B/./kWh | G83: # 23 | H83: # 24 | M83: # 23 | N83: # 24
A84: BTS (0-300) | C84: 0.00616 | D84: 0.00699 | E84: -0.0008340926026 | G84: 0.9658320918 | H84: -0.1700170365 | I84: 0.00556 | J84: 0.00675 | K84: -0.001188419085 | M84: =+'Ajuste Transmisión-300'!D$46 -> 0.998633294 | N84: =+'Ajuste Transmisión-300'!D$47 -> 0.01227345339 | O84: =+ROUND(P84+Q84,5) -> 0.00691 | P84: =+'[1]Tarifa ABASTECIMIENTO 22-26'!$C66 -> 0.006822593861 | Q84: =+J84*N84 -> 8.284581037e-05
A85: BTS (301-750) | C85: 0.00616 | D85: 0.00699 | E85: -0.0008340926026 | G85: 0.9658320918 | H85: -0.1700170365 | I85: 0.00556 | J85: 0.00675 | K85: -0.001188419085 | M85: =+'Ajuste Transmisión-300'!D$46 -> 0.998633294 | N85: =+'Ajuste Transmisión-300'!D$47 -> 0.01227345339 | O85: =+ROUND(P85+Q85,5) -> 0.00691 | P85: =+'[1]Tarifa ABASTECIMIENTO 22-26'!$C67 -> 0.006822593861 | Q85: 8.284581037e-05
A86: BTS (750-más) | C86: 0.00616 | D86: 0.00699 | E86: -0.0008340926026 | G86: 0.9658320918 | H86: -0.1700170365 | I86: 0.00556 | J86: 0.00675 | K86: -0.001188419085 | M86: =+'Ajuste Transmisión-300'!D$46 -> 0.998633294 | N86: =+'Ajuste Transmisión-300'!D$47 -> 0.01227345339 | O86: =+ROUND(P86+Q86,5) -> 0.00691 | P86: =+'[1]Tarifa ABASTECIMIENTO 22-26'!$C68 -> 0.006822593861 | Q86: 8.284581037e-05
A87: BTD (0-10,000) | E87: 0 | G87: 0.9658320918 | H87: -0.1700170365 | K87: 0 | M87: =+'Ajuste Transmisión-300'!D$46 -> 0.998633294 | N87: =+'Ajuste Transmisión-300'!D$47 -> 0.01227345339 | Q87: 0
A88: BTD (10,001-30,000) | E88: 0 | G88: 0.9658320918 | H88: -0.1700170365 | K88: 0 | M88: =+'Ajuste Transmisión-300'!D$46 -> 0.998633294 | N88: =+'Ajuste Transmisión-300'!D$47 -> 0.01227345339 | Q88: 0
A89: BTD (30,001-50,000) | E89: 0 | G89: 0.9658320918 | H89: -0.1700170365 | K89: 0 | M89: =+'Ajuste Transmisión-300'!D$46 -> 0.998633294 | N89: =+'Ajuste Transmisión-300'!D$47 -> 0.01227345339 | Q89: 0
A90: BTD (50,001-más) | E90: 0 | G90: 0.9658320918 | H90: -0.1700170365 | K90: 0 | M90: =+'Ajuste Transmisión-300'!D$46 -> 0.998633294 | N90: =+'Ajuste Transmisión-300'!D$47 -> 0.01227345339 | Q90: 0
A91: BTD (0-10,000) | C91: 0.00397 | D91: 0.00451 | E91: -0.0005382219821 | G91: 0.9658320918 | H91: -0.1700170365 | I91: 0.00359 | J91: 0.00436 | K91: -0.0007667768346 | M91: =+'Ajuste Transmisión-300'!D$46 -> 0.998633294 | N91: =+'Ajuste Transmisión-300'!D$47 -> 0.01227345339 | O91: =+ROUND(P91+Q91,5) -> 0.0028 | P91: =+'[1]Tarifa ABASTECIMIENTO 22-26'!$C69 -> 0.00274355456 | Q91: 5.351225677e-05
A92: BTD (10,001-30,000) | C92: 0.00397 | D92: 0.00451 | E92: -0.0005382219821 | G92: 0.9658320918 | H92: -0.1700170365 | I92: 0.00359 | J92: 0.00436 | K92: -0.0007667768346 | M92: =+'Ajuste Transmisión-300'!D$46 -> 0.998633294 | N92: =+'Ajuste Transmisión-300'!D$47 -> 0.01227345339 | O92: =+ROUND(P92+Q92,5) -> 0.0028 | P92: =+'[1]Tarifa ABASTECIMIENTO 22-26'!$C70 -> 0.00274355456 | Q92: 5.351225677e-05
A93: BTD (30,001-50,000) | C93: 0.00397 | D93: 0.00451 | E93: -0.0005382219821 | G93: 0.9658320918 | H93: -0.1700170365 | I93: 0.00359 | J93: 0.00436 | K93: -0.0007667768346 | M93: =+'Ajuste Transmisión-300'!D$46 -> 0.998633294 | N93: =+'Ajuste Transmisión-300'!D$47 -> 0.01227345339 | O93: =+ROUND(P93+Q93,5) -> 0.0028 | P93: =+'[1]Tarifa ABASTECIMIENTO 22-26'!$C71 -> 0.00274355456 | Q93: 5.351225677e-05
A94: BTD (50,001-más) | C94: 0.00397 | D94: 0.00451 | E94: -0.0005382219821 | G94: 0.9658320918 | H94: -0.1700170365 | I94: 0.00359 | J94: 0.00436 | K94: -0.0007667768346 | M94: =+'Ajuste Transmisión-300'!D$46 -> 0.998633294 | N94: =+'Ajuste Transmisión-300'!D$47 -> 0.01227345339 | O94: 0.0028 | P94: =+'[1]Tarifa ABASTECIMIENTO 22-26'!$C72 -> 0.00274355456 | Q94: 5.351225677e-05
A95: BTH | C95: 0.03602 | D95: 0.0409 | E95: -0.004883379935 | G95: 0.9658320918 | H95: -0.1700170365 | I95: 0.03255 | J95: 0.0395 | K95: -0.006953696793 | M95: =+'Ajuste Transmisión-300'!D$46 -> 0.998633294 | N95: =+'Ajuste Transmisión-300'!D$47 -> 0.01227345339 | O95: 0.03179 | P95: =+'[1]Tarifa ABASTECIMIENTO 22-26'!$C73 -> 0.03130908651 | Q95: 0.0004848014088
A96: MTD (0-10,000) | C96: 0.00463 | D96: 0.00526 | E96: -0.0006280939453 | G96: 0.9658320918 | H96: -0.1700170365 | I96: 0.00419 | J96: 0.00508 | K96: -0.000894289612 | M96: =+'Ajuste Transmisión-300'!D$46 -> 0.998633294 | N96: =+'Ajuste Transmisión-300'!D$47 -> 0.01227345339 | O96: 0.00366 | P96: =+'[1]Tarifa ABASTECIMIENTO 22-26'!$C74 -> 0.003592724998 | Q96: 6.234914321e-05
A97: MTD (10,001-30,000) | C97: 0.00463 | D97: 0.00526 | E97: -0.0006280939453 | G97: 0.9658320918 | H97: -0.1700170365 | I97: 0.00419 | J97: 0.00508 | K97: -0.000894289612 | M97: =+'Ajuste Transmisión-300'!D$46 -> 0.998633294 | N97: =+'Ajuste Transmisión-300'!D$47 -> 0.01227345339 | O97: 0.00366 | P97: =+'[1]Tarifa ABASTECIMIENTO 22-26'!$C75 -> 0.003592724998 | Q97: 6.234914321e-05
A98: MTD (30,001-50,000) | C98: 0.00463 | D98: 0.00526 | E98: -0.0006280939453 | G98: 0.9658320918 | H98: -0.1700170365 | I98: 0.00419 | J98: 0.00508 | K98: -0.000894289612 | M98: =+'Ajuste Transmisión-300'!D$46 -> 0.998633294 | N98: =+'Ajuste Transmisión-300'!D$47 -> 0.01227345339 | O98: 0.00366 | P98: =+'[1]Tarifa ABASTECIMIENTO 22-26'!$C76 -> 0.003592724998 | Q98: 6.234914321e-05
A99: MTD (50,001-más) | C99: 0.00463 | D99: 0.00526 | E99: -0.0006280939453 | G99: 0.9658320918 | H99: -0.1700170365 | I99: 0.00419 | J99: 0.00508 | K99: -0.000894289612 | M99: =+'Ajuste Transmisión-300'!D$46 -> 0.998633294 | N99: =+'Ajuste Transmisión-300'!D$47 -> 0.01227345339 | O99: 0.00366 | P99: =+'[1]Tarifa ABASTECIMIENTO 22-26'!$C77 -> 0.003592724998 | Q99: 6.234914321e-05
A100: MTH | C100: 0.00085 | D100: 0.00097 | E100: -0.0001161266941 | G100: 0.9658320918 | H100: -0.1700170365 | I100: 0.00078 | J100: 0.00094 | K100: -0.0001649165254 | M100: =+'Ajuste Transmisión-300'!D$46 -> 0.998633294 | N100: =+'Ajuste Transmisión-300'!D$47 -> 0.01227345339 | O100: 0.00072 | P100: =+'[1]Tarifa ABASTECIMIENTO 22-26'!$C78 -> 0.0007051523062 | Q100: 1.153704618e-05
A101: ATD | C101: 0.00917 | D101: 0.01041 | E101: -0.001243060525 | G101: 0.9658320918 | H101: -0.1700170365 | I101: 0.00828 | J101: 0.01005 | K101: -0.00176987735 | M101: =+'Ajuste Transmisión-300'!D$46 -> 0.998633294 | N101: =+'Ajuste Transmisión-300'!D$47 -> 0.01227345339 | O101: 0.01062 | P101: =+'[1]Tarifa ABASTECIMIENTO 22-26'!$C79 -> 0.0104964257 | Q101: 0.0001233482065
A102: ATH | C102: 0.00025 | D102: 0.00028 | E102: -3.332331221e-05 | G102: 0.9658320918 | H102: -0.1700170365 | I102: 0.00022 | J102: 0.00027 | K102: -4.760477022e-05 | M102: =+'Ajuste Transmisión-300'!D$46 -> 0.998633294 | N102: =+'Ajuste Transmisión-300'!D$47 -> 0.01227345339 | O102: 0.00233 | P102: =+'[1]Tarifa ABASTECIMIENTO 22-26'!$C80 -> 0.00232596296 | Q102: 3.313832415e-06
A103: CPT (potencia) | B103: B/./kW | G103: # 23 | H103: # 24 | M103: # 23 | N103: # 24
A104: BTS
A105: BTD (0-10,000)
A106: BTD (10,001-30,000)
A107: BTD (30,001-50,000)
A108: BTD (50,001-más)
A109: BTD (0-10,000) | C109: 0.44 | D109: 0.5 | E109: -0.05957804304 | G109: 0.9658320918 | H109: -0.1700170365 | I109: 0.39 | J109: 0.48 | K109: -0.08500851825 | M109: =+'Ajuste Transmisión-300'!D$46 -> 0.998633294 | N109: =+'Ajuste Transmisión-300'!D$47 -> 0.01227345339 | O109: =+ROUND(P109+Q109,2) -> 0.79 | P109: =+'[1]Tarifa ABASTECIMIENTO 22-26'!$C83 -> 0.7841103188 | Q109: =+J109*N109 -> 0.005891257626
A110: BTD (10,001-30,000) | C110: 0.44 | D110: 0.5 | E110: -0.05957804304 | G110: 0.9658320918 | H110: -0.1700170365 | I110: 0.39 | J110: 0.48 | K110: -0.08500851825 | M110: =+'Ajuste Transmisión-300'!D$46 -> 0.998633294 | N110: =+'Ajuste Transmisión-300'!D$47 -> 0.01227345339 | O110: 0.79 | P110: =+'[1]Tarifa ABASTECIMIENTO 22-26'!$C84 -> 0.7841103188 | Q110: 0.005891257626
A111: BTD (30,001-50,000) | C111: 0.44 | D111: 0.5 | E111: -0.05957804304 | G111: 0.9658320918 | H111: -0.1700170365 | I111: 0.39 | J111: 0.48 | K111: -0.08500851825 | M111: =+'Ajuste Transmisión-300'!D$46 -> 0.998633294 | N111: =+'Ajuste Transmisión-300'!D$47 -> 0.01227345339 | O111: 0.79 | P111: =+'[1]Tarifa ABASTECIMIENTO 22-26'!$C85 -> 0.7841103188 | Q111: 0.005891257626
A112: BTD (50,001-más) | C112: 0.44 | D112: 0.5 | E112: -0.05957804304 | G112: 0.9658320918 | H112: -0.1700170365 | I112: 0.39 | J112: 0.48 | K112: -0.08500851825 | M112: =+'Ajuste Transmisión-300'!D$46 -> 0.998633294 | N112: =+'Ajuste Transmisión-300'!D$47 -> 0.01227345339 | O112: 0.79 | P112: =+'[1]Tarifa ABASTECIMIENTO 22-26'!$C86 -> 0.7841103188 | Q112: 0.005891257626
A113: BTH Punta | C113: 3.85 | D113: 4.37 | E113: -0.5220652246 | G113: 0.9658320918 | H113: -0.1700170365 | I113: 3.48 | J113: 4.22 | K113: -0.7429744495 | M113: =+'Ajuste Transmisión-300'!D$46 -> 0.998633294 | N113: =+'Ajuste Transmisión-300'!D$47 -> 0.01227345339 | O113: 6.45 | P113: =+'[1]Tarifa ABASTECIMIENTO 22-26'!$C87 -> 6.401584496 | Q113: 0.0517939733
A114: BTH Fuera de Punta Medio | C114: 3.85 | D114: 4.37 | E114: -0.5220652246 | G114: 0.9658320918 | H114: -0.1700170365 | I114: 3.48 | J114: 4.22 | K114: -0.7429744495 | M114: =+'Ajuste Transmisión-300'!D$46 -> 0.998633294 | N114: =+'Ajuste Transmisión-300'!D$47 -> 0.01227345339 | O114: 6.45 | P114: =+'[1]Tarifa ABASTECIMIENTO 22-26'!$C88 -> 6.401584496 | Q114: 0.0517939733
A115: BTH Fuera de Punta Bajo | J115: =+J114 -> 4.22 | M115: =+'Ajuste Transmisión-300'!D$46 -> 0.998633294 | N115: =+'Ajuste Transmisión-300'!D$47 -> 0.01227345339 | O115: 6.45 | P115: =+'[1]Tarifa ABASTECIMIENTO 22-26'!$C89 -> 6.401584496 | Q115: 0.0517939733
A116: MTD | C116: 0.58 | D116: 0.66 | E116: -0.0787641925 | G116: 0.9658320918 | H116: -0.1700170365 | I116: 0.53 | J116: 0.64 | K116: -0.1122112441 | M116: =+'Ajuste Transmisión-300'!D$46 -> 0.998633294 | N116: =+'Ajuste Transmisión-300'!D$47 -> 0.01227345339 | O116: 1.26 | P116: =+'[1]Tarifa ABASTECIMIENTO 22-26'!$C90 -> 1.255999027 | Q116: 0.007855010168
E117: 0 | K117: 0 | Q117: 0
E118: 0 | K118: 0 | Q118: 0
E119: 0 | K119: 0 | Q119: 0
A120: MTH punta | C120: 1.07 | D120: 1.22 | E120: -0.1454108169 | G120: 0.9658320918 | H120: -0.1700170365 | I120: 0.97 | J120: 1.18 | K120: -0.2074207845 | M120: =+'Ajuste Transmisión-300'!D$46 -> 0.998633294 | N120: =+'Ajuste Transmisión-300'!D$47 -> 0.01227345339 | O120: =+ROUND(P120+Q120,2) -> 2.04 | P120: =+'[1]Tarifa ABASTECIMIENTO 22-26'!$C91 -> 2.021994149 | Q120: 0.014482675
A121: MTH Fuera de Punta Medio | C121: 0.05 | D121: 0.06 | E121: -0.007068581378 | G121: 0.9658320918 | H121: -0.1700170365 | I121: 0.05 | J121: 0.06 | K121: -0.01020102219 | M121: =+'Ajuste Transmisión-300'!D$46 -> 0.998633294 | N121: =+'Ajuste Transmisión-300'!D$47 -> 0.01227345339 | O121: 0.1 | P121: =+'[1]Tarifa ABASTECIMIENTO 22-26'!$C92 -> 0.1042265026 | Q121: 0.0007364072033
A122: MTH Fuera de Punta Bajo | J122: =+J121 -> 0.06 | M122: =+'Ajuste Transmisión-300'!D$46 -> 0.998633294 | N122: =+'Ajuste Transmisión-300'!D$47 -> 0.01227345339 | O122: 0.1 | P122: =+'[1]Tarifa ABASTECIMIENTO 22-26'!$C93 -> 0.1042265026 | Q122: 0.0007364072033
A123: ATD | C123: 1.66 | D123: 1.89 | E123: -0.2261946041 | G123: 0.9658320918 | H123: -0.1700170365 | I123: 1.51 | J123: 1.83 | K123: -0.321332199 | M123: =+'Ajuste Transmisión-300'!D$46 -> 0.998633294 | N123: =+'Ajuste Transmisión-300'!D$47 -> 0.01227345339 | O123: 1.95 | P123: =+'[1]Tarifa ABASTECIMIENTO 22-26'!$C97 -> 1.924706931 | Q123: 0.0224604197
A124: ATH Punta | C124: 1.39 | D124: 1.58 | E124: -0.1888321025 | G124: 0.9658320918 | H124: -0.1700170365 | I124: 1.26 | J124: 1.53 | K124: -0.2686269177 | M124: =+'Ajuste Transmisión-300'!D$46 -> 0.998633294 | N124: =+'Ajuste Transmisión-300'!D$47 -> 0.01227345339 | O124: 0.89 | P124: =+'[1]Tarifa ABASTECIMIENTO 22-26'!C94 -> 0.8680944108 | Q124: 0.01877838368
A125: ATH Fuera de Punta Medio | C125: 0.07 | D125: 0.08 | E125: -0.0100979734 | G125: 0.9658320918 | H125: -0.1700170365 | I125: 0.07 | J125: 0.08 | K125: -0.01360136292 | M125: =+'Ajuste Transmisión-300'!D$46 -> 0.998633294 | N125: =+'Ajuste Transmisión-300'!D$47 -> 0.01227345339 | O125: =+ROUND(P125+Q125,2) -> 0.05 | P125: =+'[1]Tarifa ABASTECIMIENTO 22-26'!C95 -> 0.04822746727 | Q125: 0.000981876271
A126: ATH Fuera de Punta Bajo | J126: =+J125 -> 0.08 | M126: =+'Ajuste Transmisión-300'!D$46 -> 0.998633294 | N126: =+'Ajuste Transmisión-300'!D$47 -> 0.01227345339 | O126: =+ROUND(P126+Q126,2) -> 0.05 | P126: =+'[1]Tarifa ABASTECIMIENTO 22-26'!C96 -> 0.04822746727 | Q126: 0.000981876271
A127: Pérdidas en Transmisión | G127: MODELO AT402 | M127: MODELO AT402
A128: CPET | B128: B/./kWh | G128: # 18 | H128: # 19 | M128: # 18 | N128: # 19
A129: BTS (0-300) | C129: 0.00029 | D129: 0.00018 | E129: 0.0001055961837 | G129: 0.9242740714 | H129: -0.08144995552 | I129: 0.00016 | J129: 0.00017 | K129: -1.466099199e-05 | M129: =+'AjustePérd de Trans-400'!D$39 -> 0.6085915889 | N129: =+'AjustePérd de Trans-400'!D$40 -> 0.4900672224 | O129: =+ROUND(P129+Q129,5) -> 0.00019 | P129: =+'[1]Tarifa ABASTECIMIENTO 22-26'!$C99 -> 0.0001030621851 | Q129: =+J129*N129 -> 8.331142781e-05
A130: BTS (301-750) | C130: 0.00029 | D130: 0.00018 | E130: 0.0001055961837 | G130: 0.9242740714 | H130: -0.08144995552 | I130: 0.00016 | J130: 0.00017 | K130: -1.466099199e-05 | M130: =+'AjustePérd de Trans-400'!D$39 -> 0.6085915889 | N130: =+'AjustePérd de Trans-400'!D$40 -> 0.4900672224 | O130: 0.00019 | P130: =+'[1]Tarifa ABASTECIMIENTO 22-26'!$C100 -> 0.0001030621851 | Q130: 8.331142781e-05
A131: BTS (750-más) | C131: 0.00029 | D131: 0.00018 | E131: 0.0001055961837 | G131: 0.9242740714 | H131: -0.08144995552 | I131: 0.00016 | J131: 0.00017 | K131: -1.466099199e-05 | M131: =+'AjustePérd de Trans-400'!D$39 -> 0.6085915889 | N131: =+'AjustePérd de Trans-400'!D$40 -> 0.4900672224 | O131: 0.00019 | P131: =+'[1]Tarifa ABASTECIMIENTO 22-26'!$C101 -> 0.0001030621851 | Q131: 8.331142781e-05
A132: BTD (0-10,000) | C132: 0.00029 | D132: 0.00018 | E132: 0.0001055961837 | G132: 0.9242740714 | H132: -0.08144995552 | I132: 0.00016 | J132: 0.00017 | K132: -1.466099199e-05 | M132: =+'AjustePérd de Trans-400'!D$39 -> 0.6085915889 | N132: =+'AjustePérd de Trans-400'!D$40 -> 0.4900672224 | O132: 0.00019 | P132: =+'[1]Tarifa ABASTECIMIENTO 22-26'!$C102 -> 0.0001048106991 | Q132: 8.331142781e-05
A133: BTD (10,001-30,000) | C133: 0.00029 | D133: 0.00018 | E133: 0.0001055961837 | G133: 0.9242740714 | H133: -0.08144995552 | I133: 0.00016 | J133: 0.00017 | K133: -1.466099199e-05 | M133: =+'AjustePérd de Trans-400'!D$39 -> 0.6085915889 | N133: =+'AjustePérd de Trans-400'!D$40 -> 0.4900672224 | O133: 0.00019 | P133: =+'[1]Tarifa ABASTECIMIENTO 22-26'!$C103 -> 0.0001048106991 | Q133: 8.331142781e-05
A134: BTD (30,001-50,000) | C134: 0.00029 | D134: 0.00018 | E134: 0.0001055961837 | G134: 0.9242740714 | H134: -0.08144995552 | I134: 0.00016 | J134: 0.00017 | K134: -1.466099199e-05 | M134: =+'AjustePérd de Trans-400'!D$39 -> 0.6085915889 | N134: =+'AjustePérd de Trans-400'!D$40 -> 0.4900672224 | O134: 0.00019 | P134: =+'[1]Tarifa ABASTECIMIENTO 22-26'!$C104 -> 0.0001048106991 | Q134: 8.331142781e-05
A135: BTD (50,001-más) | C135: 0.00029 | D135: 0.00018 | E135: 0.0001055961837 | G135: 0.9242740714 | H135: -0.08144995552 | I135: 0.00016 | J135: 0.00017 | K135: -1.466099199e-05 | M135: =+'AjustePérd de Trans-400'!D$39 -> 0.6085915889 | N135: =+'AjustePérd de Trans-400'!D$40 -> 0.4900672224 | O135: 0.00019 | P135: =+'[1]Tarifa ABASTECIMIENTO 22-26'!$C105 -> 0.0001048106991 | Q135: 8.331142781e-05
A136: BTH | C136: 0.00029 | D136: 0.00018 | E136: 0.0001055961837 | G136: 0.9242740714 | H136: -0.08144995552 | I136: 0.00016 | J136: 0.00017 | K136: -1.466099199e-05 | M136: =+'AjustePérd de Trans-400'!D$39 -> 0.6085915889 | N136: =+'AjustePérd de Trans-400'!D$40 -> 0.4900672224 | O136: 0.00019 | P136: =+'[1]Tarifa ABASTECIMIENTO 22-26'!$C106 -> 0.0001048106991 | Q136: 8.331142781e-05
A137: MTD | C137: 0.00029 | D137: 0.00018 | E137: 0.0001055961837 | G137: 0.9242740714 | H137: -0.08144995552 | I137: 0.00016 | J137: 0.00017 | K137: -1.466099199e-05 | M137: =+'AjustePérd de Trans-400'!D$39 -> 0.6085915889 | N137: =+'AjustePérd de Trans-400'!D$40 -> 0.4900672224 | O137: 0.00019 | P137: =+'[1]Tarifa ABASTECIMIENTO 22-26'!$C107 -> 0.0001048106651 | Q137: 8.331142781e-05
A138: MTD | E138: 0 | K138: 0 | Q138: 0
A139: MTD | E139: 0 | K139: 0 | Q139: 0
A140: MTD | E140: 0 | K140: 0 | Q140: 0
A141: MTH | C141: 0.00029 | D141: 0.00018 | E141: 0.0001055961837 | G141: 0.9242740714 | H141: -0.08144995552 | I141: 0.00016 | J141: 0.00017 | K141: -1.466099199e-05 | M141: =+'AjustePérd de Trans-400'!D$39 -> 0.6085915889 | N141: =+'AjustePérd de Trans-400'!D$40 -> 0.4900672224 | O141: =+ROUND(P141+Q141,5) -> 0.00019 | P141: =+'[1]Tarifa ABASTECIMIENTO 22-26'!$C111 -> 0.0001048106991 | Q141: 8.331142781e-05
A142: ATD | C142: 0.00029 | D142: 0.00018 | E142: 0.0001055961837 | G142: 0.9242740714 | H142: -0.08144995552 | I142: 0.00016 | J142: 0.00017 | K142: -1.466099199e-05 | M142: =+'AjustePérd de Trans-400'!D$39 -> 0.6085915889 | N142: =+'AjustePérd de Trans-400'!D$40 -> 0.4900672224 | O142: 0.00019 | P142: =+'[1]Tarifa ABASTECIMIENTO 22-26'!$C112 -> 0.0001048106991 | Q142: 8.331142781e-05
A143: ATH | C143: 0.00029 | D143: 0.00018 | E143: 0.0001055961837 | G143: 0.9242740714 | H143: -0.08144995552 | I143: 0.00016 | J143: 0.00017 | K143: -1.466099199e-05 | M143: =+'AjustePérd de Trans-400'!D$39 -> 0.6085915889 | N143: =+'AjustePérd de Trans-400'!D$40 -> 0.4900672224 | O143: 0.00019 | P143: =+'[1]Tarifa ABASTECIMIENTO 22-26'!$C113 -> 0.0001048106991 | Q143: =+J143*N143 -> 8.331142781e-05
A144: Generación | G144: MODELO AT502 | M144: MODELO AT502
A145: CPGENGC | B145: B/./Kw
A146: BTD | C146: 8.96 | D146: 8.96 | I146: 8.96 | J146: 8.96 | O146: 16 | P146: 8.96
A147: BTH | C147: 8.96 | D147: 8.96 | I147: 8.96 | J147: 8.96 | O147: 16 | P147: 8.96
A148: MTD | C148: 8.96 | D148: 8.96 | I148: 8.96 | J148: 8.96 | O148: 16 | P148: 8.96
A149: MTH | C149: 8.96 | D149: 8.96 | I149: 8.96 | J149: 8.96 | O149: 16 | P149: 8.96
A150: ATD | C150: 8.96 | D150: 8.96 | I150: 8.96 | J150: 8.96 | O150: 16 | P150: 8.96
A151: ATH | C151: 8.96 | D151: 8.96 | I151: 8.96 | J151: 8.96 | O151: 16 | P151: 8.96
A153: CPOTGEN | B153: B/./kWh o B/./kW | G153: # 28 | M153: # 28
A154: BTS (0-300) | C154: 0.03499 | D154: 0.03499 | E154: 0 | G154: 1 | H154: 0 | I154: 0.03499 | J154: 0.03499 | K154: 0 | M154: 1 | N154: 0 | O154: =+ROUND(P154+Q154,5) -> 0.037 | P154: =+'[1]Tarifa ABASTECIMIENTO 22-26'!$C133 -> 0.03699671158 | Q154: =+ROUND(J154*N154,5) -> 0
A155: BTS (301-750) | C155: 0.04659 | D155: 0.04659 | E155: 0 | G155: 1 | H155: 0 | I155: 0.04659 | J155: 0.04659 | K155: 0 | M155: 1 | N155: 0 | O155: 0.04928 | P155: =+'[1]Tarifa ABASTECIMIENTO 22-26'!$C134 -> 0.04927729543 | Q155: 0
A156: BTS (750-más) | C156: 0.0595 | D156: 0.0595 | E156: 0 | G156: 1 | H156: 0 | I156: 0.0595 | J156: 0.0595 | K156: 0 | M156: 1 | N156: 0 | O156: 0.06293 | P156: =+'[1]Tarifa ABASTECIMIENTO 22-26'!$C135 -> 0.0629331497 | Q156: 0
A157: BTD (0-10,000) | C157: 0.01817 | D157: 0.01817 | E157: 0 | G157: 1 | H157: 0 | I157: 0.01817 | J157: 0.01817 | K157: 0 | M157: 1 | N157: 0 | O157: 0.02208 | P157: =+'[1]Tarifa ABASTECIMIENTO 22-26'!$C136 -> 0.0220784021 | Q157: 0
A158: BTD (10,001-30,000) | C158: 0.01956 | D158: 0.01956 | E158: 0 | G158: 1 | H158: 0 | I158: 0.01956 | J158: 0.01956 | K158: 0 | M158: 1 | N158: 0 | O158: 0.02377 | P158: =+'[1]Tarifa ABASTECIMIENTO 22-26'!$C137 -> 0.02376739378 | Q158: 0
A159: BTD (30,001-50,000) | C159: 0.02052 | D159: 0.02052 | E159: 0 | G159: 1 | H159: 0 | I159: 0.02052 | J159: 0.02052 | K159: 0 | M159: 1 | N159: 0 | O159: 0.02493 | P159: =+'[1]Tarifa ABASTECIMIENTO 22-26'!$C138 -> 0.02493389164 | Q159: 0
A160: BTD (50,001-más) | C160: 0.02497 | D160: 0.02497 | E160: 0 | G160: 1 | H160: 0 | I160: 0.02497 | J160: 0.02497 | K160: 0 | M160: 1 | N160: 0 | O160: 0.03034 | P160: =+'[1]Tarifa ABASTECIMIENTO 22-26'!$C139 -> 0.03034109524 | Q160: 0
A161: BTD | C161: 1.14 | D161: 1.14 | E161: 0 | G161: 1 | H161: 0 | I161: 1.14 | J161: 1.14 | K161: 0 | M161: 1 | N161: 0 | O161: =+ROUND(P161+Q161,2) -> 1.23 | P161: =+'[1]Tarifa ABASTECIMIENTO 22-26'!$C$129 -> 1.226481483 | Q161: 0
A162: BTH Punta | C162: 0.00258 | D162: 0.00258 | E162: 0 | G162: 1 | H162: 0 | I162: 0.00258 | J162: 0.00258 | K162: 0 | M162: 1 | N162: 0 | O162: =+ROUND(P162+Q162,5) -> 0.00068 | P162: =+'[1]Tarifa ABASTECIMIENTO 22-26'!$C140 -> 0.0006820820679 | Q162: 0
A163: BTH Fuera de Punta Medio | J163: =+J162 -> 0.00258 | M163: 1 | N163: 0 | O163: 0.00068 | P163: =+'[1]Tarifa ABASTECIMIENTO 22-26'!$C141 -> 0.0006820820679 | Q163: 0
A164: BTH Fuera de Punta Bajo | J164: =+J163 -> 0.00258 | M164: 1 | N164: 0 | O164: 0.00068 | P164: =+'[1]Tarifa ABASTECIMIENTO 22-26'!$C142 -> 0.0006820820679 | Q164: 0
A165: BTH Punta | C165: 0.29 | D165: 0.29 | E165: 0 | G165: 1 | H165: 0 | I165: 0.29 | J165: 0.29 | K165: 0 | M165: 1 | N165: 0 | O165: =+ROUND(P165+Q165,2) -> 0.06 | P165: =+'[1]Tarifa ABASTECIMIENTO 22-26'!$C143 -> 0.05785670754 | Q165: 0
A166: BTH Fuera de Punta Medio | J166: =+J165 -> 0.29 | M166: 1 | N166: 0 | O166: =+ROUND(P166+Q166,2) -> 0 | P166: =+'[1]Tarifa ABASTECIMIENTO 22-26'!$C144 -> 0 | Q166: 0
A167: BTH Fuera de Punta Bajo | J167: =+J166 -> 0.29 | M167: 1 | N167: 0 | O167: =+ROUND(P167+Q167,2) -> 0 | P167: =+'[1]Tarifa ABASTECIMIENTO 22-26'!$C145 -> 0 | Q167: 0
A168: MTD | C168: 0.01622 | D168: 0.01622 | E168: 0 | G168: 1 | H168: 0 | I168: 0.01622 | J168: 0.01622 | K168: 0 | M168: 1 | N168: 0 | O168: =+ROUND(P168+Q168,5) -> 0.02108 | P168: =+'[1]Tarifa ABASTECIMIENTO 22-26'!$C146 -> 0.02107556408 | Q168: 0
A169: MTD | C169: 0.01622 | D169: 0.01622 | E169: 0 | G169: 1 | H169: 0 | I169: 0.01622 | J169: 0.01622 | K169: 0 | M169: 1 | N169: 0 | O169: =+ROUND(P169+Q169,5) -> 0.02108 | P169: =+'[1]Tarifa ABASTECIMIENTO 22-26'!$C147 -> 0.02107556408 | Q169: 0
A170: MTD | C170: 0.01622 | D170: 0.01622 | E170: 0 | G170: 1 | H170: 0 | I170: 0.01622 | J170: 0.01622 | K170: 0 | M170: 1 | N170: 0 | O170: =+ROUND(P170+Q170,5) -> 0.02108 | P170: =+'[1]Tarifa ABASTECIMIENTO 22-26'!$C148 -> 0.02107556408 | Q170: 0
A171: MTD | C171: 0.01622 | D171: 0.01622 | E171: 0 | G171: 1 | H171: 0 | I171: 0.01622 | J171: 0.01622 | K171: 0 | M171: 1 | N171: 0 | O171: =+ROUND(P171+Q171,5) -> 0.02108 | P171: =+'[1]Tarifa ABASTECIMIENTO 22-26'!$C149 -> 0.02107556408 | Q171: 0
A172: MTD | C172: 1.07 | D172: 1.07 | E172: 0 | G172: 1 | H172: 0 | I172: 1.07 | J172: 1.07 | K172: 0 | M172: 1 | N172: 0 | O172: =+ROUND(P172+Q172,2) -> 1.3 | P172: =+'[1]Tarifa ABASTECIMIENTO 22-26'!$C$130 -> 1.300220076 | Q172: 0
A173: MTH punta | C173: 1e-05 | D173: 1e-05 | E173: 0 | G173: 1 | H173: 0 | I173: 1e-05 | J173: 1e-05 | K173: 0 | M173: 1 | N173: 0 | O173: =+ROUND(P173+Q173,5) -> 1e-05 | P173: =+'[1]Tarifa ABASTECIMIENTO 22-26'!$C150 -> 1.070321293e-05 | Q173: 0
A174: MTH Fuera de Punta Medio | J174: =+J173 -> 1e-05 | M174: 1 | N174: 0 | O174: =+ROUND(P174+Q174,5) -> 1e-05 | P174: =+'[1]Tarifa ABASTECIMIENTO 22-26'!$C151 -> 1.070321293e-05 | Q174: 0
A175: MTH Fuera de Punta Bajo | J175: =+J174 -> 1e-05 | M175: 1 | N175: 0 | O175: =+ROUND(P175+Q175,5) -> 1e-05 | P175: =+'[1]Tarifa ABASTECIMIENTO 22-26'!$C152 -> 1.070321293e-05 | Q175: 0
A176: MTH punta | C176: 0.08 | D176: 0.08 | E176: 0 | G176: 1 | H176: 0 | I176: 0.08 | J176: 0.08 | K176: 0 | M176: 1 | N176: 0 | O176: =+ROUND(P176+Q176,2) -> 0.02 | P176: =+'[1]Tarifa ABASTECIMIENTO 22-26'!$C153 -> 0.01596047105 | Q176: 0
A177: MTH Fuera de Punta Medio | J177: =+J176 -> 0.08 | M177: 1 | N177: 0 | O177: =+ROUND(P177+Q177,2) -> 0 | P177: =+'[1]Tarifa ABASTECIMIENTO 22-26'!$C154 -> 0 | Q177: 0
A178: MTH Fuera de Punta Bajo | J178: =+J177 -> 0.08 | M178: 1 | N178: 0 | O178: =+ROUND(P178+Q178,2) -> 0 | P178: =+'[1]Tarifa ABASTECIMIENTO 22-26'!$C155 -> 0 | Q178: 0
A179: ATD | C179: 4.65 | D179: 4.65 | E179: 0 | G179: 1 | H179: 0 | I179: 4.65 | J179: 4.65 | K179: 0 | M179: 1 | N179: 0 | O179: =+ROUND(P179+Q179,2) -> 2.62 | P179: =+'[1]Tarifa ABASTECIMIENTO 22-26'!$C131 -> 2.62262777 | Q179: 0
A180: ATD | C180: 0.04823 | D180: 0.04823 | E180: 0 | G180: 1 | H180: 0 | I180: 0.04823 | J180: 0.04823 | K180: 0 | M180: 1 | N180: 0 | O180: =+ROUND(P180+Q180,5) -> 0.08105 | P180: =+'[1]Tarifa ABASTECIMIENTO 22-26'!$C132 -> 0.08104778456 | Q180: 0
A181: ATH | C181: 14.66 | D181: 14.66 | E181: 0 | G181: 1 | H181: 0 | I181: 14.66 | J181: 14.66 | K181: 0 | M181: 1 | N181: 0 | O181: =+ROUND(P181+Q181,2) -> 2.92 | P181: =+'[1]Tarifa ABASTECIMIENTO 22-26'!$C156 -> 2.924756319 | Q181: 0
A182: ATH Punta | C182: 0.00697 | D182: 0.00697 | E182: 0 | G182: 1 | H182: 0 | I182: 0.00697 | J182: 0.00697 | K182: 0 | M182: 1 | N182: 0 | O182: =+ROUND(P182+Q182,5) -> 0.04082 | P182: =+'[1]Tarifa ABASTECIMIENTO 22-26'!$C157 -> 0.04082414724 | Q182: 0
A183: ATH Fuera de Punta Medio | C183: 0.00014 | D183: 0.00014 | E183: 0 | G183: 1 | H183: 0 | I183: 0.00014 | J183: 0.00014 | K183: 0 | M183: 1 | N183: 0 | O183: =+ROUND(P183+Q183,5) -> 0.04082 | P183: =+'[1]Tarifa ABASTECIMIENTO 22-26'!$C158 -> 0.04082414724 | Q183: 0
A184: ATH Fuera de Punta Bajo | J184: =+J183 -> 0.00014 | M184: 1 | N184: 0 | O184: 0.04082 | P184: =+'[1]Tarifa ABASTECIMIENTO 22-26'!$C159 -> 0.04082414724 | Q184: 0
A185: CENEGEN PUNTA | B185: B/./kWh
A186: BTH | C186: 0.16484 | D186: 0.15445 | E186: 0.01039 | G186: 0.9865804228 | H186: -0.006138506821 | I186: 0.15138 | J186: 0.15238 | K186: -0.00095 | M186: =+'Ajuste Generación-500 (2)'!G$89 -> 0.9347185429 | N186: =+'Ajuste Generación-500 (2)'!G$90 -> 0.0255763648 | O186: =+ROUND(P186+Q186,5)+O240 -> 0.18908 | P186: =+'[1]Tarifa ABASTECIMIENTO 22-26'!$C161 -> 0.1849082946 | Q186: =+ROUND(J186*N186,5) -> 0.0039
A187: MTH | C187: 0.15454 | D187: 0.1448 | E187: 0.00974 | G187: 0.9865804228 | H187: -0.006138506821 | I187: 0.14192 | J187: 0.14286 | K187: -0.00089 | M187: =+'Ajuste Generación-500 (2)'!G$89 -> 0.9347185429 | N187: =+'Ajuste Generación-500 (2)'!G$90 -> 0.0255763648 | O187: =+ROUND(P187+Q187,5)+O235 -> 0.22978 | P187: =+'[1]Tarifa ABASTECIMIENTO 22-26'!$C$164 -> 0.2258625318 | Q187: =+ROUND(J187*N187,5) -> 0.00365
A188: ATH | C188: 0.14927 | D188: 0.13986 | E188: 0.00941 | G188: 0.9865804228 | H188: -0.006138506821 | I188: 0.13707 | J188: 0.13798 | K188: -0.00086 | M188: =+'Ajuste Generación-500 (2)'!G$89 -> 0.9347185429 | N188: =+'Ajuste Generación-500 (2)'!G$90 -> 0.0255763648 | O188: =+ROUND(P188+Q188,5)+O233 -> 0.20839 | P188: =+'[1]Tarifa ABASTECIMIENTO 22-26'!$C$167 -> 0.2045881305 | Q188: =+ROUND(J188*N188,5) -> 0.00353
A189: CENEGEN FP MEDIO | B189: B/./kWh
A190: BTH | C190: 0.09376 | D190: 0.08785 | E190: 0.00591 | G190: 0.9865804228 | H190: -0.006138506821 | I190: 0.08608 | J190: 0.08667 | K190: -0.00054 | M190: =+'Ajuste Generación-500 (2)'!G$89 -> 0.9347185429 | N190: =+'Ajuste Generación-500 (2)'!G$90 -> 0.0255763648 | O190: =+ROUND(P190+Q190,5)+O240 -> 0.07848 | P190: =+'[1]Tarifa ABASTECIMIENTO 22-26'!$C$162 -> 0.07598971009 | Q190: =+ROUND(J190*N190,5) -> 0.00222
A191: MTH | C191: 0.11614 | D191: 0.10882 | E191: 0.00732 | G191: 0.9865804228 | H191: -0.006138506821 | I191: 0.10664 | J191: 0.10736 | K191: -0.00067 | M191: =+'Ajuste Generación-500 (2)'!G$89 -> 0.9347185429 | N191: =+'Ajuste Generación-500 (2)'!G$90 -> 0.0255763648 | O191: =+ROUND(P191+Q191,5)+O235 -> 0.11595 | P191: =+'[1]Tarifa ABASTECIMIENTO 22-26'!$C$165 -> 0.1129312659 | Q191: =+ROUND(J191*N191,5) -> 0.00275
A192: ATH | C192: 0.10983 | D192: 0.10291 | E192: 0.00692 | G192: 0.9865804228 | H192: -0.006138506821 | I192: 0.10085 | J192: 0.10153 | K192: -0.00063 | M192: =+'Ajuste Generación-500 (2)'!G$89 -> 0.9347185429 | N192: =+'Ajuste Generación-500 (2)'!G$90 -> 0.0255763648 | O192: =+ROUND(P192+Q192,5)+O233 -> 0.09257 | P192: =+'[1]Tarifa ABASTECIMIENTO 22-26'!$C$168 -> 0.08970402646 | Q192: =+ROUND(J192*N192,5) -> 0.0026
A193: CENEGEN FP BAJO
A194: BTH | J194: =+J190 -> 0.08667 | M194: =+'Ajuste Generación-500 (2)'!G$89 -> 0.9347185429 | N194: =+'Ajuste Generación-500 (2)'!G$90 -> 0.0255763648 | O194: =+ROUND(P194+Q194,5)+O244 -> 0.02782 | P194: =+'[1]Tarifa ABASTECIMIENTO 22-26'!$C$163 -> 0.02532990336 | Q194: =+ROUND(J194*N194,5) -> 0.00222
A195: MTH | J195: =+J191 -> 0.10736 | M195: =+'Ajuste Generación-500 (2)'!G$89 -> 0.9347185429 | N195: =+'Ajuste Generación-500 (2)'!G$90 -> 0.0255763648 | O195: =+ROUND(P195+Q195,5)+O239 -> 0.06246 | P195: =+'[1]Tarifa ABASTECIMIENTO 22-26'!$C$166 -> 0.05943750836 | Q195: =+ROUND(J195*N195,5) -> 0.00275
A196: ATH | J196: 0.10153 | M196: =+'Ajuste Generación-500 (2)'!G$89 -> 0.9347185429 | N196: =+'Ajuste Generación-500 (2)'!G$90 -> 0.0255763648 | O196: =+ROUND(P196+Q196,5)+O237 -> 0.03435 | P196: =+'[1]Tarifa ABASTECIMIENTO 22-26'!$C$169 -> 0.03147509701 | Q196: =+ROUND(J196*N196,5) -> 0.0026
A197: CENEGEN SM | B197: B/./kWh | G197: # 48 | H197: # 49 | M197: # 48 | N197: # 49
A198: BTS (0-300) | C198: 0.06592 | D198: 0.06177 | E198: 0.00415 | G198: 0.9865804228 | H198: -0.006138506821 | I198: 0.06051 | J198: 0.06094 | K198: -0.00038 | M198: =+'Ajuste Generación-500 (2)'!G$89 -> 0.9347185429 | N198: =+'Ajuste Generación-500 (2)'!G$90 -> 0.0255763648 | O198: =+ROUND(P198+Q198,5)+O245 -> 0.04219 | P198: =+'[1]Tarifa ABASTECIMIENTO 22-26'!$C171 -> 0.04036061218 | Q198: =+ROUND(J198*N198,5) -> 0.00156
A199: BTS (301-750) | C199: 0.0878 | D199: 0.08227 | E199: 0.00553 | G199: 0.9865804228 | H199: -0.006138506821 | I199: 0.08061 | J199: 0.08117 | K199: -0.00051 | M199: =+'Ajuste Generación-500 (2)'!G$89 -> 0.9347185429 | N199: =+'Ajuste Generación-500 (2)'!G$90 -> 0.0255763648 | O199: =+ROUND(P199+Q199,5)+O246 -> 0.07904 | P199: =+'[1]Tarifa ABASTECIMIENTO 22-26'!$C172 -> 0.07668516314 | Q199: 0.00208
A200: BTS (750-más) | C200: 0.11212 | D200: 0.10505 | E200: 0.00707 | G200: 0.9865804228 | H200: -0.006138506821 | I200: 0.10295 | J200: 0.10364 | K200: -0.00064 | M200: =+'Ajuste Generación-500 (2)'!G$89 -> 0.9347185429 | N200: =+'Ajuste Generación-500 (2)'!G$90 -> 0.0255763648 | O200: =+ROUND(P200+Q200,5)+O247 -> 0.15629 | P200: =+'[1]Tarifa ABASTECIMIENTO 22-26'!$C173 -> 0.1533703263 | Q200: 0.00265
A201: BTD (0-10,000) | C201: 0.09946 | D201: 0.09319 | E201: 0.00627 | G201: 0.9865804228 | H201: -0.006138506821 | I201: 0.09132 | J201: 0.09194 | K201: -0.00057 | M201: =+'Ajuste Generación-500 (2)'!G$89 -> 0.9347185429 | N201: =+'Ajuste Generación-500 (2)'!G$90 -> 0.0255763648 | O201: =+ROUND(P201+Q201,5)+O241 -> 0.07715 | P201: =+'[1]Tarifa ABASTECIMIENTO 22-26'!$C174 -> 0.0745303011 | Q201: 0.00235
... 141 more rows

Sheet RES DE ACT TARIFARIA-1000-T (2)
A1: =+"TARIFAS: "&[1]Fecha!$A$1 -> TARIFAS: EDECHI
A3: CARGOS | B3: Factor de Ajuste | C3: Jul-Dic/2022 | E3: Factor de Ajuste | F3: Ene-Jun/2023 | G3: Nuevo Régimen jul/2022 | H3: Factor de Ajuste ene/2023 | I3: Factor de Ajuste julio 2023 | J3: Jul-Dic/2023 | K3: ajuste saldo Jul-Dic18 | L3: Jul-Dic/2023 + saldo Jul-Dic18
C4: Cargo Actualizado | F4: Cargo Actualizado | J4: Cargo Actualizado | L4: Cargo Actualizado
A5: Comercialización
A6: CCOMF | B6: MODELO AT100 # 8
A7: BTS (0-300) | B7: 1.007708276 | C7: 2.72 | E7: 1.041939885 | F7: 2.83 | G7: =+'[1]Tarifa VAD 22-26'!$C$7 -> 2.924079258 | H7: =+'Ajuste COMER DISTR Y AP-100'!D32 -> 1.041939885 | I7: =+'Ajuste COMER DISTR Y AP-100'!E32 -> 0.9795273433 | J7: =+ROUND(G7*H7*I7, 2) -> 2.98 | L7: =+ROUND(J7*(1+K7), 2) -> 2.98
A8: BTS (301-750) | B8: 1.007708276 | C8: 2.72 | E8: 1.041939885 | F8: 2.83 | G8: =+'[1]Tarifa VAD 22-26'!$C$7 -> 2.924079258 | H8: =+H7 -> 1.041939885 | I8: =+I7 -> 0.9795273433 | J8: =+ROUND(G8*H8*I8, 2) -> 2.98 | L8: 2.98
A9: BTS (750-más) | B9: 1.007708276 | C9: 2.72 | E9: 1.041939885 | F9: 2.83 | G9: =+'[1]Tarifa VAD 22-26'!$C$7 -> 2.924079258 | H9: =+H8 -> 1.041939885 | I9: =+I8 -> 0.9795273433 | J9: 2.98 | L9: 2.98
A10: BTD (0-10,000) | B10: 1.007708276 | C10: 5.1 | E10: 1.041939885 | F10: 5.31 | G10: =+'[1]Tarifa VAD 22-26'!$C$8 -> 5.446617994 | H10: =+'Ajuste COMER DISTR Y AP-100'!D32 -> 1.041939885 | I10: =+'Ajuste COMER DISTR Y AP-100'!E32 -> 0.9795273433 | J10: 5.56 | L10: 5.56
A11: BTD (10,001-30,000) | B11: 1.007708276 | C11: 5.1 | E11: 1.041939885 | F11: 5.31 | G11: =+'[1]Tarifa VAD 22-26'!$C$8 -> 5.446617994 | H11: =+H10 -> 1.041939885 | I11: =+I10 -> 0.9795273433 | J11: 5.56 | L11: 5.56
A12: BTD (30,001-50,000) | B12: 1.007708276 | C12: 5.1 | E12: 1.041939885 | F12: 5.31 | G12: =+'[1]Tarifa VAD 22-26'!$C$8 -> 5.446617994 | H12: 1.041939885 | I12: =+I11 -> 0.9795273433 | J12: 5.56 | L12: 5.56
A13: BTD (50,001-más) | B13: 1.007708276 | C13: 5.1 | E13: 1.041939885 | F13: 5.31 | G13: =+'[1]Tarifa VAD 22-26'!$C$8 -> 5.446617994 | H13: 1.041939885 | I13: =+I12 -> 0.9795273433 | J13: 5.56 | L13: 5.56
A14: BTH | B14: 1.007708276 | C14: 5.1 | E14: 1.041939885 | F14: 5.31 | G14: =+'[1]Tarifa VAD 22-26'!$C$9 -> 5.446617994 | H14: =+'Ajuste COMER DISTR Y AP-100'!D32 -> 1.041939885 | I14: =+'Ajuste COMER DISTR Y AP-100'!E32 -> 0.9795273433 | J14: 5.56 | L14: 5.56
A15: MTD (0-10,000) | B15: 1.007708276 | C15: 12.78 | E15: 1.041939885 | F15: 13.32 | G15: =+'[1]Tarifa VAD 22-26'!$C$10 -> 13.67351626 | H15: =+'Ajuste COMER DISTR Y AP-100'!D32 -> 1.041939885 | I15: =+'Ajuste COMER DISTR Y AP-100'!E32 -> 0.9795273433 | J15: 13.96 | L15: 13.96
A16: MTD (10,001-30,000) | B16: 1.007708276 | C16: 12.78 | E16: 1.041939885 | F16: 13.32 | G16: =+'[1]Tarifa VAD 22-26'!$C$10 -> 13.67351626 | H16: =+H15 -> 1.041939885 | I16: =+I15 -> 0.9795273433 | J16: 13.96 | L16: 13.96
A17: MTD (30,001-50,000) | B17: 1.007708276 | C17: 12.78 | E17: 1.041939885 | F17: 13.32 | G17: =+'[1]Tarifa VAD 22-26'!$C$10 -> 13.67351626 | H17: 1.041939885 | I17: =+I16 -> 0.9795273433 | J17: 13.96 | L17: 13.96
A18: MTD (50,001-más) | B18: 1.007708276 | C18: 12.78 | E18: 1.041939885 | F18: 13.32 | G18: =+'[1]Tarifa VAD 22-26'!$C$10 -> 13.67351626 | H18: 1.041939885 | I18: =+I17 -> 0.9795273433 | J18: 13.96 | L18: 13.96
A19: MTH | B19: 1.007708276 | C19: 12.78 | E19: 1.041939885 | F19: 13.32 | G19: =+'[1]Tarifa VAD 22-26'!$C$11 -> 13.66270277 | H19: =+'Ajuste COMER DISTR Y AP-100'!D32 -> 1.041939885 | I19: =+'Ajuste COMER DISTR Y AP-100'!E32 -> 0.9795273433 | J19: 13.94 | L19: 13.94
A20: ATD | B20: 1.007708276 | C20: 12.78 | E20: 1.041939885 | F20: 13.32 | G20: =+'[1]Tarifa VAD 22-26'!$C$12 -> 13.66270277 | H20: =+'Ajuste COMER DISTR Y AP-100'!D32 -> 1.041939885 | I20: =+'Ajuste COMER DISTR Y AP-100'!E32 -> 0.9795273433 | J20: 13.94 | L20: 13.94
A21: ATH | B21: 1.007708276 | C21: 12.78 | E21: 1.041939885 | F21: 13.32 | G21: =+'[1]Tarifa VAD 22-26'!$C$13 -> 13.66270277 | H21: =+'Ajuste COMER DISTR Y AP-100'!D32 -> 1.041939885 | I21: =+'Ajuste COMER DISTR Y AP-100'!E32 -> 0.9795273433 | J21: 13.94 | L21: 13.94
A22: CCOMV | B22: MODELO AT100 # 8
A23: BTS (0-300) | B23: 1.007708276 | C23: 0.00973 | E23: 1.041939885 | F23: 0.01014 | G23: =+'[1]Tarifa VAD 22-26'!$C$15 -> 0.01160711074 | H23: =+'Ajuste COMER DISTR Y AP-100'!D32 -> 1.041939885 | I23: =+'Ajuste COMER DISTR Y AP-100'!E32 -> 0.9795273433 | J23: =+ROUND(G23*H23*I23, 5) -> 0.01185 | L23: =+ROUND(J23*(1+K23), 5) -> 0.01185
A24: BTS (301-750) | B24: 1.007708276 | C24: 0.00973 | E24: 1.041939885 | F24: 0.01014 | G24: =+'[1]Tarifa VAD 22-26'!$C$16 -> 0.01160711074 | H24: =+'Ajuste COMER DISTR Y AP-100'!D32 -> 1.041939885 | I24: =+'Ajuste COMER DISTR Y AP-100'!E32 -> 0.9795273433 | J24: 0.01185 | L24: 0.01185
A25: BTS (750-más) | B25: 1.007708276 | C25: 0.00973 | E25: 1.041939885 | F25: 0.01014 | G25: =+'[1]Tarifa VAD 22-26'!$C$17 -> 0.01160711074 | H25: =+'Ajuste COMER DISTR Y AP-100'!D32 -> 1.041939885 | I25: =+'Ajuste COMER DISTR Y AP-100'!E32 -> 0.9795273433 | J25: 0.01185 | L25: 0.01185
A26: BTD (0-10,000) | B26: 1.007708276 | C26: 0.00894 | E26: 1.041939885 | F26: 0.00931 | G26: =+'[1]Tarifa VAD 22-26'!$C$18 -> 0.01083808939 | H26: =+'Ajuste COMER DISTR Y AP-100'!D32 -> 1.041939885 | I26: =+'Ajuste COMER DISTR Y AP-100'!E32 -> 0.9795273433 | J26: 0.01106 | L26: 0.01106
A27: BTD (10,001-30,000) | B27: 1.007708276 | C27: 0.00894 | E27: 1.041939885 | F27: 0.00931 | G27: =+'[1]Tarifa VAD 22-26'!$C$19 -> 0.01083808939 | H27: =+H26 -> 1.041939885 | I27: =+I26 -> 0.9795273433 | J27: 0.01106 | L27: 0.01106
A28: BTD (30,001-50,000) | B28: 1.007708276 | C28: 0.00894 | E28: 1.041939885 | F28: 0.00931 | G28: =+'[1]Tarifa VAD 22-26'!$C$20 -> 0.01083808939 | H28: 1.041939885 | I28: =+I27 -> 0.9795273433 | J28: 0.01106 | L28: 0.01106
A29: BTD (50,001-más) | B29: 1.007708276 | C29: 0.00894 | E29: 1.041939885 | F29: 0.00931 | G29: =+'[1]Tarifa VAD 22-26'!$C$21 -> 0.01083808939 | H29: 1.041939885 | I29: =+I28 -> 0.9795273433 | J29: 0.01106 | L29: 0.01106
A30: BTH | B30: 1.007708276 | C30: 0.00891 | E30: 1.041939885 | F30: 0.00928 | G30: =+'[1]Tarifa VAD 22-26'!$C$22 -> 0.01080316536 | H30: =+'Ajuste COMER DISTR Y AP-100'!D32 -> 1.041939885 | I30: =+'Ajuste COMER DISTR Y AP-100'!E32 -> 0.9795273433 | J30: 0.01103 | L30: 0.01103
A31: MTD (0-10,000) | B31: 1.007708276 | C31: 0.00891 | E31: 1.041939885 | F31: 0.00928 | G31: =+'[1]Tarifa VAD 22-26'!$C$23 -> 0.01080313531 | H31: =+'Ajuste COMER DISTR Y AP-100'!D32 -> 1.041939885 | I31: =+'Ajuste COMER DISTR Y AP-100'!E32 -> 0.9795273433 | J31: 0.01103 | L31: 0.01103
A32: MTD (10,001-30,000) | B32: 1.007708276 | C32: 0.00891 | E32: 1.041939885 | F32: 0.00928 | G32: =+'[1]Tarifa VAD 22-26'!$C$24 -> 0.01080313531 | H32: =+H31 -> 1.041939885 | I32: =+I31 -> 0.9795273433 | J32: 0.01103 | L32: 0.01103
A33: MTD (30,001-50,000) | B33: 1.007708276 | C33: 0.00891 | E33: 1.041939885 | F33: 0.00928 | G33: =+'[1]Tarifa VAD 22-26'!$C$25 -> 0.01080313531 | H33: 1.041939885 | I33: =+I32 -> 0.9795273433 | J33: 0.01103 | L33: 0.01103
A34: MTD (50,001-más) | B34: 1.007708276 | C34: 0.00891 | E34: 1.041939885 | F34: 0.00928 | G34: =+'[1]Tarifa VAD 22-26'!$C$26 -> 0.01080313531 | H34: 1.041939885 | I34: =+I33 -> 0.9795273433 | J34: 0.01103 | L34: 0.01103
A35: MTH | B35: 1.007708276 | C35: 0.00891 | E35: 1.041939885 | F35: 0.00928 | G35: =+'[1]Tarifa VAD 22-26'!$C$27 -> 0.01080316536 | H35: =+'Ajuste COMER DISTR Y AP-100'!D32 -> 1.041939885 | I35: =+'Ajuste COMER DISTR Y AP-100'!E32 -> 0.9795273433 | J35: 0.01103 | L35: 0.01103
A36: ATD | B36: 1.007708276 | C36: 0.00891 | E36: 1.041939885 | F36: 0.00928 | G36: =+'[1]Tarifa VAD 22-26'!$C$28 -> 0.01080316536 | H36: =+'Ajuste COMER DISTR Y AP-100'!D32 -> 1.041939885 | I36: =+'Ajuste COMER DISTR Y AP-100'!E32 -> 0.9795273433 | J36: 0.01103 | L36: 0.01103
A37: ATH | B37: 1.007708276 | C37: 0.00891 | E37: 1.041939885 | F37: 0.00928 | G37: =+'[1]Tarifa VAD 22-26'!$C$29 -> 0.01080316536 | H37: =+'Ajuste COMER DISTR Y AP-100'!D32 -> 1.041939885 | I37: =+'Ajuste COMER DISTR Y AP-100'!E32 -> 0.9795273433 | J37: 0.01103 | L37: 0.01103
A38: Distribución
A39: CD | B39: MODELO AT100 # 9
A40: BTS (0-300) | B40: 1.004313413 | C40: 0.04329 | E40: 1.023468809 | F40: 0.04431 | G40: =+'[1]Tarifa VAD 22-26'!$C$32 -> 0.05802920122 | H40: =+'Ajuste COMER DISTR Y AP-100'!D33 -> 1.023468809 | I40: =+'Ajuste COMER DISTR Y AP-100'!E33 -> 0.9885438676 | J40: =+ROUND(G40*H40*I40, 5) -> 0.05871 | L40: =+ROUND(J40*(1+K40), 5) -> 0.05871
A41: BTS (301-750) | B41: 1.004313413 | C41: 0.04329 | E41: 1.023468809 | F41: 0.04431 | G41: =+'[1]Tarifa VAD 22-26'!$C$33 -> 0.05802920122 | H41: =+'Ajuste COMER DISTR Y AP-100'!D33 -> 1.023468809 | I41: =+'Ajuste COMER DISTR Y AP-100'!E33 -> 0.9885438676 | J41: 0.05871 | L41: 0.05871
A42: BTS (750-más) | B42: 1.004313413 | C42: 0.04329 | E42: 1.023468809 | F42: 0.04431 | G42: =+'[1]Tarifa VAD 22-26'!$C$34 -> 0.05802920122 | H42: =+'Ajuste COMER DISTR Y AP-100'!D33 -> 1.023468809 | I42: =+'Ajuste COMER DISTR Y AP-100'!E33 -> 0.9885438676 | J42: 0.05871 | L42: 0.05871
A43: BTD (0-10,000) | B43: 1.004313413 | C43: 0 | E43: 1.023468809 | F43: 0 | G43: =+'[1]Tarifa VAD 22-26'!$C$35 -> 0 | H43: =+'Ajuste COMER DISTR Y AP-100'!D33 -> 1.023468809 | I43: =+'Ajuste COMER DISTR Y AP-100'!E33 -> 0.9885438676 | J43: 0 | L43: 0
A44: BTD (10,001-30,000) | B44: 1.004313413 | C44: 0 | E44: 1.023468809 | F44: 0 | G44: =+'[1]Tarifa VAD 22-26'!$C$36 -> 0 | H44: =+H43 -> 1.023468809 | I44: =+I43 -> 0.9885438676 | J44: 0 | L44: 0
A45: BTD (30,001-50,000) | B45: 1.004313413 | C45: 0 | E45: 1.023468809 | F45: 0 | G45: =+'[1]Tarifa VAD 22-26'!$C$37 -> 0 | H45: 1.023468809 | I45: =+I44 -> 0.9885438676 | J45: 0 | L45: 0
A46: BTD (50,001-más) | B46: 1.004313413 | C46: 0 | E46: 1.023468809 | F46: 0 | G46: =+'[1]Tarifa VAD 22-26'!$C$38 -> 0 | H46: 1.023468809 | I46: =+I45 -> 0.9885438676 | J46: 0 | L46: 0
A47: BTD (0-10,000) | B47: 1.004313413 | C47: 16.77 | E47: 1.023468809 | F47: 17.16 | G47: =+'[1]Tarifa VAD 22-26'!$C$39 -> 22.85126685 | H47: =+'Ajuste COMER DISTR Y AP-100'!D33 -> 1.023468809 | I47: =+'Ajuste COMER DISTR Y AP-100'!E33 -> 0.9885438676 | J47: =+ROUND(G47*H47*I47, 2) -> 23.12 | L47: =+ROUND(J47*(1+K47), 2) -> 23.12
A48: BTD (10,001-30,000) | B48: 1.004313413 | C48: 16.77 | E48: 1.023468809 | F48: 17.16 | G48: =+'[1]Tarifa VAD 22-26'!$C$40 -> 22.85126685 | H48: =+H47 -> 1.023468809 | I48: =+I47 -> 0.9885438676 | J48: 23.12 | L48: 23.12
A49: BTD (30,001-50,000) | B49: 1.004313413 | C49: 16.77 | E49: 1.023468809 | F49: 17.16 | G49: =+'[1]Tarifa VAD 22-26'!$C$41 -> 22.85126685 | H49: 1.023468809 | I49: =+I48 -> 0.9885438676 | J49: 23.12 | L49: 23.12
A50: BTD (50,001-más) | B50: 1.004313413 | C50: 16.77 | E50: 1.023468809 | F50: 17.16 | G50: =+'[1]Tarifa VAD 22-26'!$C$42 -> 22.85126685 | H50: 1.023468809 | I50: =+I49 -> 0.9885438676 | J50: 23.12 | L50: 23.12
A51: MTD (0-10,000) | B51: 1.004313413 | C51: 15.88 | E51: 1.023468809 | F51: 16.25 | G51: =+'[1]Tarifa VAD 22-26'!$C$43 -> 21.63932775 | H51: =+'Ajuste COMER DISTR Y AP-100'!D33 -> 1.023468809 | I51: =+'Ajuste COMER DISTR Y AP-100'!E33 -> 0.9885438676 | J51: 21.89 | L51: 21.89
A52: MTD (10,001-30,000) | B52: 1.004313413 | C52: 15.88 | E52: 1.023468809 | F52: 16.25 | G52: =+'[1]Tarifa VAD 22-26'!$C$44 -> 21.63932775 | H52: =+H51 -> 1.023468809 | I52: =+I51 -> 0.9885438676 | J52: 21.89 | L52: 21.89
A53: MTD (30,001-50,000) | B53: 1.004313413 | C53: 15.88 | E53: 1.023468809 | F53: 16.25 | G53: =+'[1]Tarifa VAD 22-26'!$C$45 -> 21.63932775 | H53: 1.023468809 | I53: =+I52 -> 0.9885438676 | J53: 21.89 | L53: 21.89
A54: MTD (50,001-más) | B54: 1.004313413 | C54: 15.88 | E54: 1.023468809 | F54: 16.25 | G54: =+'[1]Tarifa VAD 22-26'!$C$46 -> 21.63932775 | H54: 1.023468809 | I54: =+I53 -> 0.9885438676 | J54: 21.89 | L54: 21.89
A55: ATD | B55: 1.004313413 | C55: 12.05 | E55: 1.023468809 | F55: 12.33 | G55: =+'[1]Tarifa VAD 22-26'!$C$47 -> 16.41933429 | H55: =+'Ajuste COMER DISTR Y AP-100'!D33 -> 1.023468809 | I55: =+'Ajuste COMER DISTR Y AP-100'!E33 -> 0.9885438676 | J55: 16.61 | L55: 16.61
A56: CDPUNTA | B56: MODELO AT100 # 9
A57: BTH | B57: 1.004313413 | C57: 17.13 | E57: 1.023468809 | F57: 17.53 | G57: =+'[1]Tarifa VAD 22-26'!$C$49 -> 23.34395216 | H57: =+'Ajuste COMER DISTR Y AP-100'!D33 -> 1.023468809 | I57: =+'Ajuste COMER DISTR Y AP-100'!E33 -> 0.9885438676 | J57: =+ROUND(G57*H57*I57, 2) -> 23.62 | L57: =+ROUND(J57*(1+K57), 2) -> 23.62
A58: MTH | B58: 1.004313413 | C58: 16.65 | E58: 1.023468809 | F58: 17.04 | G58: =+'[1]Tarifa VAD 22-26'!$C$50 -> 22.6914401 | H58: =+'Ajuste COMER DISTR Y AP-100'!D33 -> 1.023468809 | I58: =+'Ajuste COMER DISTR Y AP-100'!E33 -> 0.9885438676 | J58: 22.96 | L58: =+ROUND(J58*(1+K58), 2) -> 22.96
A59: ATH | B59: 1.004313413 | C59: 4.38 | E59: 1.023468809 | F59: 4.48 | G59: =+'[1]Tarifa VAD 22-26'!$C$51 -> 5.965824626 | H59: =+'Ajuste COMER DISTR Y AP-100'!D33 -> 1.023468809 | I59: =+'Ajuste COMER DISTR Y AP-100'!E33 -> 0.9885438676 | J59: 6.04 | L59: =+ROUND(J59*(1+K59), 2) -> 6.04
A60: CDFUERA DE PUNTA MEDIO | B60: MODELO AT100 # 9
A61: BTH | B61: 1.004313413 | C61: 2.07 | E61: 1.023468809 | F61: 2.12 | G61: =+'[1]Tarifa VAD 22-26'!$C$53 -> 2.823113439 | H61: =+'Ajuste COMER DISTR Y AP-100'!D33 -> 1.023468809 | I61: =+'Ajuste COMER DISTR Y AP-100'!E33 -> 0.9885438676 | J61: =+ROUND(G61*H61*I61, 2) -> 2.86 | L61: =+ROUND(J61*(1+K61), 2) -> 2.86
A62: MTH | B62: 1.004313413 | C62: 2.42 | E62: 1.023468809 | F62: 2.48 | G62: =+'[1]Tarifa VAD 22-26'!$C$54 -> 3.302510061 | H62: =+'Ajuste COMER DISTR Y AP-100'!D33 -> 1.023468809 | I62: =+'Ajuste COMER DISTR Y AP-100'!E33 -> 0.9885438676 | J62: 3.34 | L62: =+ROUND(J62*(1+K62), 2) -> 3.34
A63: ATH | B63: 1.004313413 | C63: 2.96 | E63: 1.023468809 | F63: 3.03 | G63: =+'[1]Tarifa VAD 22-26'!$C$55 -> 4.034921566 | H63: =+'Ajuste COMER DISTR Y AP-100'!D33 -> 1.023468809 | I63: =+'Ajuste COMER DISTR Y AP-100'!E33 -> 0.9885438676 | J63: 4.08 | L63: =+ROUND(J63*(1+K63), 2) -> 4.08
A64: CDFUERA DE PUNTA BAJO
A65: BTH | E65: =+E61 -> 1.023468809 | F65: 2.12 | G65: =+G61 -> 2.823113439 | H65: =+'Ajuste COMER DISTR Y AP-100'!D33 -> 1.023468809 | I65: =+'Ajuste COMER DISTR Y AP-100'!E33 -> 0.9885438676 | J65: =+ROUND(G65*H65*I65, 2) -> 2.86 | L65: =+ROUND(J65*(1+K65), 2) -> 2.86
A66: MTH | E66: =+E62 -> 1.023468809 | F66: 2.48 | G66: =+G62 -> 3.302510061 | H66: =+'Ajuste COMER DISTR Y AP-100'!D33 -> 1.023468809 | I66: =+'Ajuste COMER DISTR Y AP-100'!E33 -> 0.9885438676 | J66: 3.34 | L66: =+ROUND(J66*(1+K66), 2) -> 3.34
A67: ATH | E67: =+E63 -> 1.023468809 | F67: 3.03 | G67: =+G63 -> 4.034921566 | H67: =+'Ajuste COMER DISTR Y AP-100'!D33 -> 1.023468809 | I67: =+'Ajuste COMER DISTR Y AP-100'!E33 -> 0.9885438676 | J67: 4.08 | L67: =+ROUND(J67*(1+K67), 2) -> 4.08
A68: Alumbrado Público
A69: CSERAP | B69: MODELO AT100 # 10
A70: BTS (0-300) | B70: 1.001629064 | C70: 0.00196 | E70: 1.00886356 | F70: 0.00198 | G70: =+'[1]Tarifa VAD 22-26'!$C$62 -> 0.001329991405 | H70: =+'Ajuste COMER DISTR Y AP-100'!D34 -> 1.00886356 | I70: =+'Ajuste COMER DISTR Y AP-100'!E34 -> 0.995673316 | J70: =+ROUND(G70*H70*I70, 5) -> 0.00134 | L70: =+ROUND(J70*(1+K70), 5) -> 0.00134
A71: BTS (301-750) | B71: 1.001629064 | C71: 0.00196 | E71: 1.00886356 | F71: 0.00198 | G71: =+'[1]Tarifa VAD 22-26'!$C$63 -> 0.001329991405 | H71: =+'Ajuste COMER DISTR Y AP-100'!D34 -> 1.00886356 | I71: =+'Ajuste COMER DISTR Y AP-100'!E34 -> 0.995673316 | J71: 0.00134 | L71: 0.00134
A72: BTS (750-más) | B72: 1.001629064 | C72: 0.00196 | E72: 1.00886356 | F72: 0.00198 | G72: =+'[1]Tarifa VAD 22-26'!$C$64 -> 0.001329991405 | H72: =+'Ajuste COMER DISTR Y AP-100'!D34 -> 1.00886356 | I72: =+'Ajuste COMER DISTR Y AP-100'!E34 -> 0.995673316 | J72: 0.00134 | L72: 0.00134
A73: BTD (0-10,000) | B73: 1.001629064 | C73: 0.0018 | E73: 1.00886356 | F73: 0.00182 | G73: =+'[1]Tarifa VAD 22-26'!$C$65 -> 0.001242944683 | H73: =+'Ajuste COMER DISTR Y AP-100'!D34 -> 1.00886356 | I73: =+'Ajuste COMER DISTR Y AP-100'!E34 -> 0.995673316 | J73: 0.00125 | L73: 0.00125
A74: BTD (10,001-30,000) | B74: 1.001629064 | C74: 0.0018 | E74: 1.00886356 | F74: 0.00182 | G74: =+'[1]Tarifa VAD 22-26'!$C$66 -> 0.001242944683 | H74: =+H73 -> 1.00886356 | I74: =+I73 -> 0.995673316 | J74: 0.00125 | L74: 0.00125
A75: BTD (30,001-50,000) | B75: 1.001629064 | C75: 0.0018 | E75: 1.00886356 | F75: 0.00182 | G75: =+'[1]Tarifa VAD 22-26'!$C$67 -> 0.001242944683 | H75: 1.00886356 | I75: =+I74 -> 0.995673316 | J75: 0.00125 | L75: 0.00125
A76: BTD (50,001-más) | B76: 1.001629064 | C76: 0.0018 | E76: 1.00886356 | F76: 0.00182 | G76: =+'[1]Tarifa VAD 22-26'!$C$68 -> 0.001242944683 | H76: 1.00886356 | I76: =+I75 -> 0.995673316 | J76: 0.00125 | L76: 0.00125
A77: BTH | B77: 1.001629064 | C77: 0.00179 | E77: 1.00886356 | F77: 0.00181 | G77: =+'[1]Tarifa VAD 22-26'!$C$69 -> 0.001236115317 | H77: =+'Ajuste COMER DISTR Y AP-100'!D34 -> 1.00886356 | I77: =+'Ajuste COMER DISTR Y AP-100'!E34 -> 0.995673316 | J77: 0.00124 | L77: 0.00124
A78: MTD (0-10,000) | B78: 1.001629064 | C78: 0.00179 | E78: 1.00886356 | F78: 0.00181 | G78: =+'[1]Tarifa VAD 22-26'!$C$70 -> 0.001236125743 | H78: =+'Ajuste COMER DISTR Y AP-100'!D34 -> 1.00886356 | I78: =+'Ajuste COMER DISTR Y AP-100'!E34 -> 0.995673316 | J78: 0.00124 | L78: 0.00124
A79: MTD (10,001-30,000) | B79: 1.001629064 | C79: 0.00179 | E79: 1.00886356 | F79: 0.00181 | G79: =+'[1]Tarifa VAD 22-26'!$C$71 -> 0.001236125743 | H79: =+H78 -> 1.00886356 | I79: =+I78 -> 0.995673316 | J79: 0.00124 | L79: 0.00124
A80: MTD (30,001-50,000) | B80: 1.001629064 | C80: 0.00179 | E80: 1.00886356 | F80: 0.00181 | G80: =+'[1]Tarifa VAD 22-26'!$C$72 -> 0.001236125743 | H80: 1.00886356 | I80: =+I79 -> 0.995673316 | J80: 0.00124 | L80: 0.00124
A81: MTD (50,001-más) | B81: 1.001629064 | C81: 0.00179 | E81: 1.00886356 | F81: 0.00181 | G81: =+'[1]Tarifa VAD 22-26'!$C$73 -> 0.001236125743 | H81: 1.00886356 | I81: =+I80 -> 0.995673316 | J81: 0.00124 | L81: 0.00124
A82: MTH | B82: 1.001629064 | C82: 0.00179 | E82: 1.00886356 | F82: 0.00181 | G82: =+'[1]Tarifa VAD 22-26'!$C$74 -> 0.001236115317 | H82: =+'Ajuste COMER DISTR Y AP-100'!D34 -> 1.00886356 | I82: =+'Ajuste COMER DISTR Y AP-100'!E34 -> 0.995673316 | J82: 0.00124 | L82: 0.00124
A83: ATD | B83: 1.001629064 | C83: 0.00179 | E83: 1.00886356 | F83: 0.00181 | G83: =+'[1]Tarifa VAD 22-26'!$C$75 -> 0.001236115317 | H83: =+'Ajuste COMER DISTR Y AP-100'!D34 -> 1.00886356 | I83: =+'Ajuste COMER DISTR Y AP-100'!E34 -> 0.995673316 | J83: 0.00124 | L83: 0.00124
A84: ATH | B84: 1.001629064 | C84: 0.00179 | E84: 1.00886356 | F84: 0.00181 | G84: =+'[1]Tarifa VAD 22-26'!$C$76 -> 0.001236115317 | H84: =+'Ajuste COMER DISTR Y AP-100'!D34 -> 1.00886356 | I84: =+'Ajuste COMER DISTR Y AP-100'!E34 -> 0.995673316 | J84: 0.00124 | L84: 0.00124
A86: Cargo por Conexión y Reconexión
B87: MODELO AT100 # 9
A88: BTS | B88: 1.004313413 | C88: 11.29 | E88: 1.023468809 | F88: 11.55 | G88: =+'[1]Tarifa VAD 22-26'!$C$80 -> 11.64957445 | H88: =+'Ajuste COMER DISTR Y AP-100'!D33 -> 1.023468809 | I88: =+'Ajuste COMER DISTR Y AP-100'!E33 -> 0.9885438676 | J88: =+ROUND(G88*H88*I88, 2) -> 11.79 | L88: =+ROUND(J88*(1+K88), 2) -> 11.79
A89: BTD | B89: 1.004313413 | C89: 112.83 | E89: 1.023468809 | F89: 115.48 | G89: =+'[1]Tarifa VAD 22-26'!$C$81 -> 117.2030361 | H89: =+'Ajuste COMER DISTR Y AP-100'!D33 -> 1.023468809 | I89: =+'Ajuste COMER DISTR Y AP-100'!E33 -> 0.9885438676 | J89: 118.58 | L89: 118.58
A90: BTH | B90: 1.004313413 | C90: 112.83 | E90: 1.023468809 | F90: 115.48 | G90: =+'[1]Tarifa VAD 22-26'!$C$82 -> 117.2040936 | H90: =+'Ajuste COMER DISTR Y AP-100'!D33 -> 1.023468809 | I90: =+'Ajuste COMER DISTR Y AP-100'!E33 -> 0.9885438676 | J90: 118.58 | L90: 118.58
A91: MTD | B91: 1.004313413 | C91: 112.83 | E91: 1.023468809 | F91: 115.48 | G91: =+'[1]Tarifa VAD 22-26'!$C$83 -> 117.1989409 | H91: =+'Ajuste COMER DISTR Y AP-100'!D33 -> 1.023468809 | I91: =+'Ajuste COMER DISTR Y AP-100'!E33 -> 0.9885438676 | J91: 118.58 | L91: 118.58
A92: MTH | B92: 1.004313413 | C92: 112.83 | E92: 1.023468809 | F92: 115.48 | G92: =+'[1]Tarifa VAD 22-26'!$C$84 -> 117.2040936 | H92: =+'Ajuste COMER DISTR Y AP-100'!D33 -> 1.023468809 | I92: =+'Ajuste COMER DISTR Y AP-100'!E33 -> 0.9885438676 | J92: 118.58 | L92: 118.58
A93: ATD | B93: 1.004313413 | C93: 112.83 | E93: 1.023468809 | F93: 115.48 | G93: =+'[1]Tarifa VAD 22-26'!$C$85 -> 117.2040936 | H93: =+'Ajuste COMER DISTR Y AP-100'!D33 -> 1.023468809 | I93: =+'Ajuste COMER DISTR Y AP-100'!E33 -> 0.9885438676 | J93: 118.58 | L93: 118.58
A94: ATH | B94: 1.004313413 | C94: 112.83 | E94: 1.023468809 | F94: 115.48 | G94: =+'[1]Tarifa VAD 22-26'!$C$86 -> 117.2040936 | H94: =+'Ajuste COMER DISTR Y AP-100'!D33 -> 1.023468809 | I94: =+'Ajuste COMER DISTR Y AP-100'!E33 -> 0.9885438676 | J94: 118.58 | L94: 118.58
A95: PREPAGO | E95: 1.023468809 | G95: =+'[1]Tarifa VAD 22-26'!$C$93 -> 11.64795071 | H95: =+'Ajuste COMER DISTR Y AP-100'!D33 -> 1.023468809 | I95: =+'Ajuste COMER DISTR Y AP-100'!E33 -> 0.9885438676 | J95: 11.78 | L95: 11.78
A96: BTSH | E96: 1.023468809 | G96: =+'[1]Tarifa VAD 22-26'!$F$101 -> 11.66183739 | H96: =+'Ajuste COMER DISTR Y AP-100'!D33 -> 1.023468809 | I96: =+'Ajuste COMER DISTR Y AP-100'!E33 -> 0.9885438676 | J96: 11.8 | L96: 11.8
A98: =+IF('Ajuste Cons AlumPub-600'!B2="EDECHI","CHANGUINOLA","") -> CHANGUINOLA
A99: Comercialización
A100: CCOMF
A101: BTS (0-300) | B101: 1.007708276 | C101: 2.72 | E101: 1.041939885 | F101: 2.83 | G101: =+G7 -> 2.924079258 | H101: =+'Ajuste COMER DISTR Y AP-100'!D32 -> 1.041939885 | I101: =+'Ajuste COMER DISTR Y AP-100'!E32 -> 0.9795273433 | J101: =+ROUND(G101*H101*I101, 2) -> 2.98 | L101: =+ROUND(J101*(1+K101), 2) -> 2.98
A102: BTS (301-750) | B102: 1.007708276 | C102: 2.72 | E102: 1.041939885 | F102: 2.83 | G102: =+G8 -> 2.924079258 | H102: =+'Ajuste COMER DISTR Y AP-100'!D32 -> 1.041939885 | I102: =+'Ajuste COMER DISTR Y AP-100'!E32 -> 0.9795273433 | J102: 2.98 | L102: =+ROUND(J102*(1+K102), 2) -> 2.98
A103: BTS (750-más) | B103: 1.007708276 | C103: 2.72 | E103: 1.041939885 | F103: 2.83 | G103: =+G9 -> 2.924079258 | H103: =+'Ajuste COMER DISTR Y AP-100'!D32 -> 1.041939885 | I103: =+'Ajuste COMER DISTR Y AP-100'!E32 -> 0.9795273433 | J103: 2.98 | L103: =+ROUND(J103*(1+K103), 2) -> 2.98
A105: CCOMV
A106: BTS (0-300) | B106: 1.007708276 | C106: 0.00973 | E106: 1.041939885 | F106: 0.01014 | G106: =+G23 -> 0.01160711074 | H106: =+'Ajuste COMER DISTR Y AP-100'!D32 -> 1.041939885 | I106: =+'Ajuste COMER DISTR Y AP-100'!E32 -> 0.9795273433 | J106: =+ROUND(G106*H106*I106, 5) -> 0.01185 | L106: =+ROUND(J106*(1+K106), 5) -> 0.01185
A107: BTS (301-750) | B107: 1.007708276 | C107: 0.00973 | E107: 1.041939885 | F107: 0.01014 | G107: =+G24 -> 0.01160711074 | H107: =+'Ajuste COMER DISTR Y AP-100'!D32 -> 1.041939885 | I107: =+'Ajuste COMER DISTR Y AP-100'!E32 -> 0.9795273433 | J107: =+ROUND(G107*H107*I107, 5) -> 0.01185 | L107: =+ROUND(J107*(1+K107), 5) -> 0.01185
A108: BTS (750-más) | B108: 1.007708276 | C108: 0.00973 | E108: 1.041939885 | F108: 0.01014 | G108: =+G25 -> 0.01160711074 | H108: =+'Ajuste COMER DISTR Y AP-100'!D32 -> 1.041939885 | I108: =+'Ajuste COMER DISTR Y AP-100'!E32 -> 0.9795273433 | J108: =+ROUND(G108*H108*I108, 5) -> 0.01185 | L108: =+ROUND(J108*(1+K108), 5) -> 0.01185
A110: Distribución
A111: CD
A112: BTS (0-300) | B112: 1.004313413 | C112: 0.04329 | E112: 1.023468809 | F112: 0.04431 | G112: =+G40 -> 0.05802920122 | H112: =+'Ajuste COMER DISTR Y AP-100'!D33 -> 1.023468809 | I112: =+'Ajuste COMER DISTR Y AP-100'!E33 -> 0.9885438676 | J112: =+ROUND(G112*H112*I112, 5) -> 0.05871 | L112: =+ROUND(J112*(1+K112), 5) -> 0.05871
A113: BTS (301-750) | B113: 1.004313413 | C113: 0.04329 | E113: 1.023468809 | F113: 0.04431 | G113: =+G41 -> 0.05802920122 | H113: =+'Ajuste COMER DISTR Y AP-100'!D33 -> 1.023468809 | I113: =+'Ajuste COMER DISTR Y AP-100'!E33 -> 0.9885438676 | J113: =+ROUND(G113*H113*I113, 5) -> 0.05871 | L113: =+ROUND(J113*(1+K113), 5) -> 0.05871
A114: BTS (750-más) | B114: 1.004313413 | C114: 0.04329 | E114: 1.023468809 | F114: 0.04431 | G114: =+G42 -> 0.05802920122 | H114: =+'Ajuste COMER DISTR Y AP-100'!D33 -> 1.023468809 | I114: =+'Ajuste COMER DISTR Y AP-100'!E33 -> 0.9885438676 | J114: =+ROUND(G114*H114*I114, 5) -> 0.05871 | L114: =+ROUND(J114*(1+K114), 5) -> 0.05871
A116: Alumbrado Público
A117: CSERAP
A118: BTS (0-300) | B118: 1.001629064 | C118: 0.00196 | E118: 1.00886356 | F118: 0.00198 | G118: =+G70 -> 0.001329991405 | H118: =+'Ajuste COMER DISTR Y AP-100'!D34 -> 1.00886356 | I118: =+'Ajuste COMER DISTR Y AP-100'!E34 -> 0.995673316 | J118: =+ROUND(G118*H118*I118, 5) -> 0.00134 | L118: =+ROUND(J118*(1+K118), 5) -> 0.00134
A119: BTS (301-750) | B119: 1.001629064 | C119: 0.00196 | E119: 1.00886356 | F119: 0.00198 | G119: =+G71 -> 0.001329991405 | H119: =+'Ajuste COMER DISTR Y AP-100'!D34 -> 1.00886356 | I119: =+'Ajuste COMER DISTR Y AP-100'!E34 -> 0.995673316 | J119: =+ROUND(G119*H119*I119, 5) -> 0.00134 | L119: =+ROUND(J119*(1+K119), 5) -> 0.00134
A120: BTS (750-más) | B120: 1.001629064 | C120: 0.00196 | E120: 1.00886356 | F120: 0.00198 | G120: 0.001329991405 | H120: =+'Ajuste COMER DISTR Y AP-100'!D34 -> 1.00886356 | I120: =+'Ajuste COMER DISTR Y AP-100'!E34 -> 0.995673316 | J120: =+ROUND(G120*H120*I120, 5) -> 0.00134 | L120: =+ROUND(J120*(1+K120), 5) -> 0.00134
A123: Prepago
A124: CD | B124: 1.004313413 | C124: 0.04735 | E124: 1.023468809 | F124: 0.04846 | G124: =+'[1]Tarifa VAD 22-26'!$C$89 -> 0.05812554332 | H124: =+'Ajuste COMER DISTR Y AP-100'!D33 -> 1.023468809 | I124: =+'Ajuste COMER DISTR Y AP-100'!E33 -> 0.9885438676 | J124: =+ROUND(G124*H124*I124, 5) -> 0.05881 | L124: =+ROUND(J124*(1+K124), 5) -> 0.05881
A125: CCOMF | B125: 1.007708276 | C125: 0.01217 | E125: 1.041939885 | F125: 0.01268 | G125: =+'[1]Tarifa VAD 22-26'!$C$90 -> 0.0117637136 | H125: =+'Ajuste COMER DISTR Y AP-100'!D32 -> 1.041939885 | I125: =+'Ajuste COMER DISTR Y AP-100'!E32 -> 0.9795273433 | J125: =+ROUND(G125*H125*I125, 5) -> 0.01201 | L125: =+ROUND(J125*(1+K125), 5) -> 0.01201
A126: CCOMV | B126: 1.007708276 | C126: 0.0102 | E126: 1.041939885 | F126: 0.01063 | G126: =+'[1]Tarifa VAD 22-26'!$C$91 -> 0.01158931197 | H126: =+'Ajuste COMER DISTR Y AP-100'!D32 -> 1.041939885 | I126: =+'Ajuste COMER DISTR Y AP-100'!E32 -> 0.9795273433 | J126: =+ROUND(G126*H126*I126, 5) -> 0.01183 | L126: =+ROUND(J126*(1+K126), 5) -> 0.01183
A127: CSERAP | B127: 1.001629064 | C127: 0.00207 | E127: 1.00886356 | F127: 0.00209 | G127: =+'[1]Tarifa VAD 22-26'!$C$92 -> 0.001388092271 | H127: =+'Ajuste COMER DISTR Y AP-100'!D34 -> 1.00886356 | I127: =+'Ajuste COMER DISTR Y AP-100'!E34 -> 0.995673316 | J127: =+ROUND(G127*H127*I127, 5) -> 0.00139 | L127: =+ROUND(J127*(1+K127), 5) -> 0.00139
A130: BTSH
A131: CCOMF | E131: =+$E$7 -> 1.041939885 | G131: =+'[1]Tarifa VAD 22-26'!$B$101 -> 2.928045624 | H131: =+'Ajuste COMER DISTR Y AP-100'!D32 -> 1.041939885 | I131: =+'Ajuste COMER DISTR Y AP-100'!E32 -> 0.9795273433 | J131: =+ROUND(G131*H131*I131, 2) -> 2.99 | L131: =+ROUND(J131*(1+K131), 2) -> 2.99
A132: CCOMV
A133: BTSH_1
A134: BTSH_1 Punta | E134: =+$E$7 -> 1.041939885 | G134: =+'[1]Tarifa VAD 22-26'!C101 -> 0.01108970999 | H134: =+'Ajuste COMER DISTR Y AP-100'!D32 -> 1.041939885 | I134: =+'Ajuste COMER DISTR Y AP-100'!E32 -> 0.9795273433 | J134: =+ROUND(G134*H134*I134, 5) -> 0.01132 | L134: =+ROUND(J134*(1+K134), 5) -> 0.01132
A135: BTSH_1 Fuera de Punta Medio | E135: 1.041939885 | G135: =+'[1]Tarifa VAD 22-26'!C102 -> 0.01108970999 | H135: =+'Ajuste COMER DISTR Y AP-100'!D32 -> 1.041939885 | I135: =+'Ajuste COMER DISTR Y AP-100'!E32 -> 0.9795273433 | J135: 0.01132 | L135: =+ROUND(J135*(1+K135), 5) -> 0.01132
A136: BTSH_1 Fuera de Punta Bajo | E136: 1.041939885 | G136: =+'[1]Tarifa VAD 22-26'!C103 -> 0.01108970999 | H136: =+'Ajuste COMER DISTR Y AP-100'!D32 -> 1.041939885 | I136: =+'Ajuste COMER DISTR Y AP-100'!E32 -> 0.9795273433 | J136: 0.01132 | L136: =+ROUND(J136*(1+K136), 5) -> 0.01132
A137: BTSH_2
A138: BTSH_2 Punta
A139: BTSH_2 Fuera de Punta Medio
A140: BTSH_2 Fuera de Punta Bajo
A141: BTSH_3
A142: BTSH_3 Punta
A143: BTSH_3 Fuera de Punta Medio
A144: BTSH_3 Fuera de Punta Bajo
A145: CD
A146: BTSH_1
A147: BTSH_1 Punta | E147: =+$E$40 -> 1.023468809 | G147: =+'[1]Tarifa VAD 22-26'!D101 -> 0.05526946933 | H147: =+'Ajuste COMER DISTR Y AP-100'!D33 -> 1.023468809 | I147: =+'Ajuste COMER DISTR Y AP-100'!E33 -> 0.9885438676 | J147: =+ROUND(G147*H147*I147, 5) -> 0.05592 | L147: =+ROUND(J147*(1+K147), 5) -> 0.05592
A148: BTSH_1 Fuera de Punta Medio | E148: =+$E$40 -> 1.023468809 | G148: =+'[1]Tarifa VAD 22-26'!D102 -> 0.05526946933 | H148: =+'Ajuste COMER DISTR Y AP-100'!D33 -> 1.023468809 | I148: =+'Ajuste COMER DISTR Y AP-100'!E33 -> 0.9885438676 | J148: =+ROUND(G148*H148*I148, 5) -> 0.05592 | L148: =+ROUND(J148*(1+K148), 5) -> 0.05592
A149: BTSH_1 Fuera de Punta Bajo | E149: 1.023468809 | G149: =+'[1]Tarifa VAD 22-26'!D103 -> 0.05526946933 | H149: =+'Ajuste COMER DISTR Y AP-100'!D33 -> 1.023468809 | I149: =+'Ajuste COMER DISTR Y AP-100'!E33 -> 0.9885438676 | J149: =+ROUND(G149*H149*I149, 5) -> 0.05592 | L149: =+ROUND(J149*(1+K149), 5) -> 0.05592
A150: BTSH_2
A151: BTSH_2 Punta
A152: BTSH_2 Fuera de Punta Medio
A153: BTSH_2 Fuera de Punta Bajo
A154: BTSH_3
A155: BTSH_3 Punta
A156: BTSH_3 Fuera de Punta Medio
A157: BTSH_3 Fuera de Punta Bajo
A158: CSERAP
A159: BTSH_1
A160: BTSH_1 Punta | E160: 1.00886356 | G160: =+'[1]Tarifa VAD 22-26'!E101 -> 0.00129807197 | H160: =+'Ajuste COMER DISTR Y AP-100'!D34 -> 1.00886356 | I160: =+'Ajuste COMER DISTR Y AP-100'!E34 -> 0.995673316 | J160: =+ROUND(G160*H160*I160, 5) -> 0.0013 | L160: =+ROUND(J160*(1+K160), 5) -> 0.0013
A161: BTSH_1 Fuera de Punta Medio | E161: 1.00886356 | G161: =+'[1]Tarifa VAD 22-26'!E102 -> 0.00129807197 | H161: =+'Ajuste COMER DISTR Y AP-100'!D34 -> 1.00886356 | I161: =+'Ajuste COMER DISTR Y AP-100'!E34 -> 0.995673316 | J161: =+ROUND(G161*H161*I161, 5) -> 0.0013 | L161: =+ROUND(J161*(1+K161), 5) -> 0.0013
A162: BTSH_1 Fuera de Punta Bajo | E162: 1.00886356 | G162: =+'[1]Tarifa VAD 22-26'!E103 -> 0.00129807197 | H162: =+'Ajuste COMER DISTR Y AP-100'!D34 -> 1.00886356 | I162: =+'Ajuste COMER DISTR Y AP-100'!E34 -> 0.995673316 | J162: =+ROUND(G162*H162*I162, 5) -> 0.0013 | L162: =+ROUND(J162*(1+K162), 5) -> 0.0013
A163: BTSH_2
A164: BTSH_2 Punta
A165: BTSH_2 Fuera de Punta Medio
A166: BTSH_2 Fuera de Punta Bajo
A167: BTSH_3
A168: BTSH_3 Punta
A169: BTSH_3 Fuera de Punta Medio
A170: BTSH_3 Fuera de Punta Bajo

Sheet RES DE ACT TARIFARIA-1000-T(4)
A1: =+"TARIFAS: "&[1]Fecha!$A$1 -> TARIFAS: EDECHI
A3: Cargo Mensual
A4: VARIACION DEL COMBUSTIBLE
A5: BTS
A6: BTD
A7: BTH
A8: MTD
A9: MTH
A10: ATD
A11: ATH
A13: Cargo en la Factura del Cliente
A14: VARIACION DEL COMBUSTIBLE
A15: BTS
A16: BTD
A17: BTH
A18: MTD
A19: MTH
A20: ATD
A21: ATH

Sheet VAR PRECIO PROM
A1: =+[1]Fecha!$A$1&": Variación del Precio Promedio Estimado de la Energía Eléctrica de Clientes Regulados" -> EDECHI: Variación del Precio Promedio Estimado de la Energía Eléctrica de Clientes Regulados
A2: (En B/./kWh)
A4: EDECHI CR | B4: =+"Referencia FORM tarifas p-1: "&[1]Fecha!T7&" ventas p: "&[1]Fecha!T4 -> Referencia FORM tarifas p-1: Ene-Jun/2023 ventas p: Jul-Dic/2023 | C4: =+"Semestre p-1 "&[1]Fecha!T$7 -> Semestre p-1 Ene-Jun/2023 | D4: =+"Referencia FORM tarifas p: "&[1]Fecha!T4&" ventas p: "&[1]Fecha!T4 -> Referencia FORM tarifas p: Jul-Dic/2023 ventas p: Jul-Dic/2023 | E4: =+"Semestre p "&[1]Fecha!T$4 -> Semestre p Jul-Dic/2023 | F4: Variación (%)
A5: Comercialización | B5: AT102 / AT809 | C5: =+(SUM('COMER DISTR Y AP-102'!B124:G124,'COMER DISTR Y AP-102'!B182:G182))/(SUM('Facturación-801 (energía)'!B107:G107,'Facturación-801 (energía)'!B457:G457,'Facturación-801 (energía)'!B545:G545)-SUM('Facturación-801 (energía)'!B455:G455)) -> 0.01608543641 | D5: AT101 / AT809 | E5: =+(SUM('COMER DISTR Y AP-101'!B124:G124,'COMER DISTR Y AP-101'!B182:G182))/(SUM('Facturación-801 (energía)'!B107:G107,'Facturación-801 (energía)'!B457:G457,'Facturación-801 (energía)'!B545:G545)-SUM('Facturación-801 (energía)'!B455:G455)) -> 0.01806270681 | F5: =+E5/C5-1 -> 0.1229230189
A6: Distribución | B6: AT104 / AT809 | C6: =+SUM('COMER DISTR Y AP-104'!B124:G124,'COMER DISTR Y AP-104'!B182:G182)/(SUM('Facturación-801 (energía)'!B107:G107,'Facturación-801 (energía)'!B457:G457,'Facturación-801 (energía)'!B545:G545)-SUM('Facturación-801 (energía)'!B455:G455)) -> 0.04523332575 | D6: AT103 / AT809 | E6: =+SUM('COMER DISTR Y AP-103'!B124:G124,'COMER DISTR Y AP-103'!B182:G182)/(SUM('Facturación-801 (energía)'!B107:G107,'Facturación-801 (energía)'!B457:G457,'Facturación-801 (energía)'!B545:G545)-SUM('Facturación-801 (energía)'!B455:G455)) -> 0.06032567694 | F6: 0.3336555723
A7: Alumbrado Público | B7: AT603 / AT809 | C7: =+SUM('ALUMB PUB-603'!B124:G124,'ALUMB PUB-603'!B182:G182)/(SUM('Facturación-801 (energía)'!B107:G107,'Facturación-801 (energía)'!B457:G457,'Facturación-801 (energía)'!B545:G545)-SUM('Facturación-801 (energía)'!B455:G455)) -> 0.001815360615 | D7: AT604 / AT809 | E7: =+SUM('ALUMB PUB-604'!B124:G124,'ALUMB PUB-604'!B182:G182)/(SUM('Facturación-801 (energía)'!B107:G107,'Facturación-801 (energía)'!B457:G457,'Facturación-801 (energía)'!B545:G545)-SUM('Facturación-801 (energía)'!B455:G455)) -> 0.00123338389 | F7: =+E7/C7-1 -> -0.3205846376
A8: Precio Promedio de Distribución | C8: =+SUM(C5:C7) -> 0.06313412277 | E8: =+SUM(E5:E7) -> 0.07962176764 | F8: 0.2611526722
A9: Peaje de Transmisión | B9: AT305 / AT809 | C9: =+SUM('TRANSMISION-305'!B124:G124,'TRANSMISION-305'!B182:G182)/(SUM('Facturación-801 (energía)'!B107:G107,'Facturación-801 (energía)'!B457:G457,'Facturación-801 (energía)'!B545:G545)-SUM('Facturación-801 (energía)'!B455:G455)) -> 0.005507426121 | D9: AT304 / AT809 | E9: =+SUM('TRANSMISION-304'!B124:G124,'TRANSMISION-304'!B182:G182)/(SUM('Facturación-801 (energía)'!B107:G107,'Facturación-801 (energía)'!B457:G457,'Facturación-801 (energía)'!B545:G545)-SUM('Facturación-801 (energía)'!B455:G455)) -> 0.006767679784 | F9: 0.2288280652
A10: Pérdidas de Transmisión | B10: AT405 / AT809 | C10: =+SUM('PERD TRANS-405'!B124:G124,'PERD TRANS-405'!B149:G149)/(SUM('Facturación-801 (energía)'!B107:G107,'Facturación-801 (energía)'!B457:G457,'Facturación-801 (energía)'!B545:G545)-SUM('Facturación-801 (energía)'!B455:G455)) -> 0.0001508408479 | D10: AT404 / AT809 | E10: =+SUM('PERD TRANS-404'!B124:G124,'PERD TRANS-404'!B149:G149)/(SUM('Facturación-801 (energía)'!B107:G107,'Facturación-801 (energía)'!B457:G457,'Facturación-801 (energía)'!B545:G545)-SUM('Facturación-801 (energía)'!B455:G455)) -> 0.0001789920065 | F10: 0.1866282182
A11: Precio Promedio de Transmisión | C11: =+C10+C9 -> 0.005658266969 | E11: =+E10+E9 -> 0.006946671791 | F11: 0.227703081
A12: Alumbrado Público | B12: AT505 / AT805 | C12: =+SUM('GENERACION-505'!B298:G298,'GENERACION-505'!B447:G447)/(SUM('Facturación-801 (energía)'!B107:G107,'Facturación-801 (energía)'!B457:G457,'Facturación-801 (energía)'!B545:G545)-SUM('Facturación-801 (energía)'!B455:G455)) -> 0.004502504495 | D12: AT504 / AT805 | E12: =+SUM('GENERACION-504'!B298:G298,'GENERACION-504'!B447:G447)/(SUM('Facturación-801 (energía)'!B107:G107,'Facturación-801 (energía)'!B457:G457,'Facturación-801 (energía)'!B545:G545)-SUM('Facturación-801 (energía)'!B455:G455)) -> 0.003610372078 | F12: -0.1981413717
A13: Generación | B13: AT505 / AT805 | C13: =+SUM('GENERACION-505'!B124:G124,'GENERACION-505'!B211:G211,'GENERACION-505'!B397:G397,'GENERACION-505'!B422:G422)/(SUM('Facturación-801 (energía)'!B107:G107,'Facturación-801 (energía)'!B457:G457,'Facturación-801 (energía)'!B545:G545)-SUM('Facturación-801 (energía)'!B455:G455))-C12 -> 0.1198741271 | D13: AT504 / AT805 | E13: =+(SUM('GENERACION-504'!B124:G124, 'GENERACION-504'!B211:G211, 'GENERACION-504'!B397:G397, 'GENERACION-504'!B422:G422) + SUM('GENERACION-504 (extra)'!B108:G108, 'GENERACION-504 (extra)'!B134:G134)) / (SUM('Facturación-801 (energía)'!B107:G107, 'Facturación-801 (energía)'!B457:G457, 'Facturación-801 (energía)'!B545:G545) - SUM('Facturación-801 (energía)'!B455:G455)) - E12 -> 0.1158980513 | F13: -0.03316875641
A14: Pérdidas en Distribución | B14: AT202 / AT809 | C14: =+SUM('PERD DISTR Y GEN-202'!B124:G124,'PERD DISTR Y GEN-202'!B182:G182)/(SUM('Facturación-801 (energía)'!B107:G107,'Facturación-801 (energía)'!B457:G457,'Facturación-801 (energía)'!B545:G545)-SUM('Facturación-801 (energía)'!B455:G455)) -> 0.01033493898 | D14: AT201 / AT809 | E14: =+SUM('PERD DISTR Y GEN-201'!B124:G124,'PERD DISTR Y GEN-201'!B182:G182)/(SUM('Facturación-801 (energía)'!B107:G107,'Facturación-801 (energía)'!B457:G457,'Facturación-801 (energía)'!B545:G545)-SUM('Facturación-801 (energía)'!B455:G455)) -> 0.006690234404 | F14: =+E14/C14-1 -> -0.3526585484
A15: Precio Promedio de Generación | C15: =+C12+C13+C14 -> 0.1347115705 | E15: =+E12+E13+E14 -> 0.1261986578 | F15: -0.06319362682
A16: Precio Promedio CR | C16: =+C15+C11+C8 -> 0.2035039603 | E16: =+E15+E11+E8 -> 0.2127670972 | F16: 0.04551821479
A17: Precio Promedio GC | C17: =+'VAR PRECIO PROM (2)'!C26 -> 0.05319499456 | E17: =+'VAR PRECIO PROM (2)'!E26 -> 0.07130343314 | F17: =+E17/C17-1 -> 0.3404162127
A19: =+A1&" (En B/)" -> EDECHI: Variación del Precio Promedio Estimado de la Energía Eléctrica de Clientes Regulados (En B/)
A20: Cargos | B20: =+"Referencia FORM tarifas p-1: "&[1]Fecha!T7&" ventas p: "&[1]Fecha!T4 -> Referencia FORM tarifas p-1: Ene-Jun/2023 ventas p: Jul-Dic/2023 | C20: =+C4 -> Semestre p-1 Ene-Jun/2023 | D20: =+"Referencia FORM tarifas p: "&[1]Fecha!T4&" ventas p: "&[1]Fecha!T4 -> Referencia FORM tarifas p: Jul-Dic/2023 ventas p: Jul-Dic/2023 | E20: =+"Semestre p "&[1]Fecha!T$4 -> Semestre p Jul-Dic/2023 | F20: Variación (%)
A21: Comercialización | B21: AT104 | C21: =+(SUM('COMER DISTR Y AP-102'!B124:G124,'COMER DISTR Y AP-102'!B182:G182)) -> 6861906.074 | D21: AT103 | E21: =+(SUM('COMER DISTR Y AP-101'!B124:G124,'COMER DISTR Y AP-101'!B182:G182)) -> 7705392.284 | F21: =+E21/C21-1 -> 0.1229230189
A22: Distribución | B22: AT106 | C22: =+SUM('COMER DISTR Y AP-104'!B124:G124,'COMER DISTR Y AP-104'!B182:G182) -> 19296139.99 | D22: AT105 | E22: =+SUM('COMER DISTR Y AP-103'!B124:G124,'COMER DISTR Y AP-103'!B182:G182) -> 25734404.62 | F22: 0.3336555723
A23: Pérdidas en Distribución | B23: AT204 | C23: =+SUM('PERD DISTR Y GEN-202'!B124:G124,'PERD DISTR Y GEN-202'!B182:G182) -> 4408794.315 | D23: AT203 | E23: =+SUM('PERD DISTR Y GEN-201'!B124:G124,'PERD DISTR Y GEN-201'!B182:G182) -> 2853995.312 | F23: -0.3526585484
A24: Alumbrado Público | B24: AT605 | C24: =+SUM('ALUMB PUB-603'!B124:G124,'ALUMB PUB-603'!B182:G182) -> 774416.9146 | D24: AT606 | E24: =+SUM('ALUMB PUB-604'!B124:G124,'ALUMB PUB-604'!B182:G182) -> 526150.7487 | F24: -0.3205846376
A25: Precio Promedio de Distribución | C25: =+SUM(C21:C24) -> 31341257.29 | E25: =+SUM(E21:E24) -> 36819942.96 | F25: 0.1748074629
A26: Peaje de Transmisión | B26: AT307 | C26: =+SUM('TRANSMISION-305'!B124:G124,'TRANSMISION-305'!B182:G182) -> 2349419.673 | D26: AT306 | E26: =+SUM('TRANSMISION-304'!B124:G124,'TRANSMISION-304'!B182:G182) -> 2887032.832 | F26: 0.2288280652
A27: Pérdidas de Transmisión | B27: AT407 | C27: =+SUM('PERD TRANS-405'!B124:G124,'PERD TRANS-405'!B149:G149) -> 64347.38256 | D27: AT406 | E27: =+SUM('PERD TRANS-404'!B124:G124,'PERD TRANS-404'!B149:G149) -> 76356.41991 | F27: 0.1866282182
A28: Precio Promedio de Transmisión | C28: =+C27+C26 -> 2413767.056 | E28: =+E27+E26 -> 2963389.251 | F28: 0.227703081
A29: Alumbrado Público | B29: AT507 | C29: =+SUM('GENERACION-505'!B298:G298,'GENERACION-505'!B447:G447) -> 1920728.923 | D29: AT506 | E29: =+SUM('GENERACION-504'!B298:G298,'GENERACION-504'!B447:G447) -> 1540153.059 | F29: -0.1981413717
A30: Generación | B30: AT507 | C30: =+SUM('GENERACION-505'!B124:G124,'GENERACION-505'!B211:G211,'GENERACION-505'!B397:G397,'GENERACION-505'!B422:G422)-C29 -> 51137251.1 | D30: AT506 | E30: =+SUM('GENERACION-504'!B124:G124,'GENERACION-504'!B211:G211,'GENERACION-504'!B397:G397,'GENERACION-504'!B422:G422)+SUM('GENERACION-504 (extra)'!B108:G108,'GENERACION-504 (extra)'!B134:G134)- E29 -> 49441092.07 | F30: -0.03316875641
A31: Precio Promedio de Generación | C31: =+C30+C29 -> 53057980.02 | E31: =+E30+E29 -> 50981245.13 | F31: -0.0391408585
A32: Precio Promedio de Total | C32: =+C31+C28+C25 -> 86813004.37 | E32: =+E31+E28+E25 -> 90764577.35 | F32: 0.04551821479
A35: EDECHI: Variación del Precio Promedio Estimado de la Energía Eléctrica de Grandes Clientes (En B/)
A36: Cargos | B36: =+B20 -> Referencia FORM tarifas p-1: Ene-Jun/2023 ventas p: Jul-Dic/2023 | C36: =+C20 -> Semestre p-1 Ene-Jun/2023 | D36: Referencia FORM tarifas p: Jul-Dic/2023 ventas p: Jul-Dic/2023 | E36: Semestre p Jul-Dic/2023 | F36: Variación (%)
A37: Comercialización | B37: AT103 | C37: =+(SUM('COMER DISTR Y AP-102'!B157:G157)) -> 558030.5568 | D37: AT103 | E37: =+(SUM('COMER DISTR Y AP-101'!B157:G157)) -> 663018.139 | F37: =+E37/C37-1 -> 0.1881394862
A38: Distribución | B38: AT105 | C38: =+SUM('COMER DISTR Y AP-104'!B157:G157) -> 1078649.475 | D38: AT105 | E38: =+SUM('COMER DISTR Y AP-103'!B157:G157) -> 2005702.365 | F38: =+E38/C38-1 -> 0.8594570447
A39: Pérdidas en Distribución | B39: AT203 | C39: =+SUM('PERD DISTR Y GEN-202'!B157:G157) -> 617273.3948 | D39: AT203 | E39: =+SUM('PERD DISTR Y GEN-201'!B157:G157) -> 417811.7682 | F39: =+E39/C39-1 -> -0.3231333609
A40: Alumbrado Público | B40: AT604 | C40: =+SUM('ALUMB PUB-603'!B157:G157) -> 108594.9879 | D40: AT606 | E40: =+SUM('ALUMB PUB-604'!B157:G157) -> 74420.99876 | F40: =+E40/C40-1 -> -0.3146921404
A41: Precio Promedio de Distribución | C41: =+SUM(C37:C40) -> 2362548.415 | E41: =+SUM(E37:E40) -> 3160953.271 | F41: =+E41/C41-1 -> 0.3379422201
A42: Peaje de Transmisión | B42: AT306 | C42: =+SUM('TRANSMISION-305'!B157:G157) -> 138560.5011 | D42: AT306 | E42: =+SUM('TRANSMISION-304'!B157:G157) -> 166508.9603 | F42: =+E42/C42-1 -> 0.2017058178
A43: Pérdidas de Transmisión | B43: AT406 | D43: AT406
A44: Precio Promedio de Transmisión | C44: =+C43+C42 -> 138560.5011 | E44: =+E43+E42 -> 166508.9603 | F44: =+E44/C44-1 -> 0.2017058178
A45: Alumbrado Público | B45: AT506 | C45: =+SUM('GENERACION-505'!B331:G331) -> 269872.2352 | D45: AT506 | E45: =+SUM('GENERACION-504'!B331:G331) -> 218911.0232 | F45: =+E45/C45-1 -> -0.1888345865
A46: Generación | B46: AT506 | C46: =+SUM('GENERACION-505'!B364:G364) -> 418291.0757 | D46: AT506 | E46: =+SUM('GENERACION-504'!B364:G364) -> 728578.9447 | F46: =+E46/C46-1 -> 0.7417989218
A47: Precio Promedio de Generación | C47: =+C46+C45 -> 688163.3109 | E47: =+E46+E45 -> 947489.9679 | F47: =+E47/C47-1 -> 0.3768388301
A48: Precio Promedio de Total | C48: =+C47+C44+C41 -> 3189272.227 | E48: =+E47+E44+E41 -> 4274952.199 | F48: =+E48/C48-1 -> 0.3404162127

Sheet VAR PRECIO PROM (2)
A1: =+[1]Fecha!$A$1&": Ingreso Estimado por la Aplicación de la Energía Eléctrica de Clientes Regulados por Tarifa" -> EDECHI: Ingreso Estimado por la Aplicación de la Energía Eléctrica de Clientes Regulados por Tarifa
A2: (En B/./kWh)
A5: Tarifas | B5: =+"Referencia FORM Cargos Tarifarios p-1: "&[1]Fecha!T7&" ventas p: "&[1]Fecha!T4 -> Referencia FORM Cargos Tarifarios p-1: Ene-Jun/2023 ventas p: Jul-Dic/2023 | C5: =+"Semestre p-1 "&[1]Fecha!T$7 -> Semestre p-1 Ene-Jun/2023 | D5: =+"Referencia FORM Cargos Tarifarios p-1: "&[1]Fecha!T4&" ventas p: "&[1]Fecha!T4 -> Referencia FORM Cargos Tarifarios p-1: Jul-Dic/2023 ventas p: Jul-Dic/2023 | E5: =+"Semestre p "&[1]Fecha!T$4 -> Semestre p Jul-Dic/2023 | F5: Variación (%)
A6: BTS (0-300) | B6: (AT102 + AT104 + AT202 + AT603 + AT305 + AT405 + AT505) / AT806 | C6: =+IF(SUM('Facturación-801 (energía)'!B85:G85)=0,0,(SUM('COMER DISTR Y AP-102'!B98:G98)+SUM('COMER DISTR Y AP-104'!B98:G98)+SUM('PERD DISTR Y GEN-202'!B98:G98)+SUM('ALUMB PUB-603'!B98:G98)+SUM('TRANSMISION-305'!B98:G98)+SUM('PERD TRANS-405'!B98:G98)+SUM('GENERACION-505'!B98:G98)+SUM('GENERACION-505'!B185:G185)+SUM('COMER DISTR Y AP-102'!B161:G161)+SUM('COMER DISTR Y AP-104'!B161:G161)+SUM('PERD DISTR Y GEN-202'!B161:G161)+SUM('ALUMB PUB-603'!B161:G161)+SUM('TRANSMISION-305'!B161:G161)+SUM('PERD TRANS-405'!B128:G128)+SUM('GENERACION-505'!B376:G376)+SUM('GENERACION-505'!B401:G401))/(SUM('Facturación-801 (energía)'!B85:G85)+SUM('Facturación-801 (energía)'!B433:G433))) -> 0.1696396301 | D6: (AT101 + AT103 + AT201 + AT604 +AT304 + AT404 + AT504) / AT806 | E6: =+IF(SUM('Facturación-801 (energía)'!B85:G85)=0,0,(SUM('COMER DISTR Y AP-101'!B98:G98)+SUM('COMER DISTR Y AP-103'!B98:G98)+SUM('PERD DISTR Y GEN-201'!B98:G98)+SUM('ALUMB PUB-604'!B98:G98)+SUM('TRANSMISION-304'!B98:G98)+SUM('PERD TRANS-404'!B98:G98)+SUM('GENERACION-504'!B98:G98)+SUM('GENERACION-504'!B185:G185)+SUM('COMER DISTR Y AP-101'!B161:G161)+SUM('COMER DISTR Y AP-103'!B161:G161)+SUM('PERD DISTR Y GEN-201'!B161:G161)+SUM('ALUMB PUB-604'!B161:G161)+SUM('TRANSMISION-304'!B161:G161)+SUM('PERD TRANS-404'!B128:G128)+SUM('GENERACION-504'!B376:G376)+SUM('GENERACION-504'!B401:G401)+SUM('GENERACION-504 (extra)'!B86:G86,'GENERACION-504 (extra)'!B113:G113))/(SUM('Facturación-801 (energía)'!B85:G85)+SUM('Facturación-801 (energía)'!B433:G433))) -> 0.1671652995 | F6: =+IF(C6=0,0,E6/C6-1) -> -0.0145858048
A7: BTS (301-750) | C7: =+IF(SUM('Facturación-801 (energía)'!B92:G92)=0,0,(SUM('COMER DISTR Y AP-102'!B105:G105)+SUM('COMER DISTR Y AP-104'!B105:G105)+SUM('PERD DISTR Y GEN-202'!B105:G105)+SUM('ALUMB PUB-603'!B105:G105)+SUM('TRANSMISION-305'!B105:G105)+SUM('PERD TRANS-405'!B105:G105)+SUM('GENERACION-505'!B105:G105)+SUM('GENERACION-505'!B192:G192)+SUM('COMER DISTR Y AP-102'!B168:G168)+SUM('COMER DISTR Y AP-104'!B168:G168)+SUM('PERD DISTR Y GEN-202'!B168:G168)+SUM('ALUMB PUB-603'!B168:G168)+SUM('TRANSMISION-305'!B168:G168)+SUM('PERD TRANS-405'!B135:G135)+SUM('GENERACION-505'!B383:G383)+SUM('GENERACION-505'!B408:G408))/(SUM('Facturación-801 (energía)'!B92:G92)+SUM('Facturación-801 (energía)'!B440:G440))) -> 0.1904621027 | E7: =+IF(SUM('Facturación-801 (energía)'!B92:G92)=0,0,(SUM('COMER DISTR Y AP-101'!B105:G105)+SUM('COMER DISTR Y AP-103'!B105:G105)+SUM('PERD DISTR Y GEN-201'!B105:G105)+SUM('ALUMB PUB-604'!B105:G105)+SUM('TRANSMISION-304'!B105:G105)+SUM('PERD TRANS-404'!B105:G105)+SUM('GENERACION-504'!B105:G105)+SUM('GENERACION-504'!B192:G192)+SUM('COMER DISTR Y AP-101'!B168:G168)+SUM('COMER DISTR Y AP-103'!B168:G168)+SUM('PERD DISTR Y GEN-201'!B168:G168)+SUM('ALUMB PUB-604'!B168:G168)+SUM('TRANSMISION-304'!B168:G168)+SUM('PERD TRANS-404'!B135:G135)+SUM('GENERACION-504'!B383:G383)+SUM('GENERACION-504'!B408:G408)+SUM('GENERACION-504 (extra)'!B93:G93,'GENERACION-504 (extra)'!B120:G120))/(SUM('Facturación-801 (energía)'!B92:G92)+SUM('Facturación-801 (energía)'!B440:G440))) -> 0.177370057 | F7: -0.06873832371
A8: BTS (751-más) | C8: =+IF(SUM('Facturación-801 (energía)'!B99:G99)=0,0,(SUM('COMER DISTR Y AP-102'!B112:G112)+SUM('COMER DISTR Y AP-104'!B112:G112)+SUM('PERD DISTR Y GEN-202'!B112:G112)+SUM('ALUMB PUB-603'!B112:G112)+SUM('TRANSMISION-305'!B112:G112)+SUM('PERD TRANS-405'!B112:G112)+SUM('GENERACION-505'!B112:G112)+SUM('GENERACION-505'!B199:G199)+SUM('COMER DISTR Y AP-102'!B175:G175)+SUM('COMER DISTR Y AP-104'!B175:G175)+SUM('PERD DISTR Y GEN-202'!B175:G175)+SUM('ALUMB PUB-603'!B175:G175)+SUM('TRANSMISION-305'!B175:G175)+SUM('PERD TRANS-405'!B142:G142)+SUM('GENERACION-505'!B390:G390)+SUM('GENERACION-505'!B415:G415))/(SUM('Facturación-801 (energía)'!B99:G99)+SUM('Facturación-801 (energía)'!B447:G447))) -> 0.238534404 | E8: =+IF(SUM('Facturación-801 (energía)'!B99:G99)=0,0,(SUM('COMER DISTR Y AP-101'!B112:G112)+SUM('COMER DISTR Y AP-103'!B112:G112)+SUM('PERD DISTR Y GEN-201'!B112:G112)+SUM('ALUMB PUB-604'!B112:G112)+SUM('TRANSMISION-304'!B112:G112)+SUM('PERD TRANS-404'!B112:G112)+SUM('GENERACION-504'!B112:G112)+SUM('GENERACION-504'!B199:G199)+SUM('COMER DISTR Y AP-101'!B175:G175)+SUM('COMER DISTR Y AP-103'!B175:G175)+SUM('PERD DISTR Y GEN-201'!B175:G175)+SUM('ALUMB PUB-604'!B175:G175)+SUM('TRANSMISION-304'!B175:G175)+SUM('PERD TRANS-404'!B142:G142)+SUM('GENERACION-504'!B390:G390)+SUM('GENERACION-504'!B415:G415)+SUM('GENERACION-504 (extra)'!B100:G100,'GENERACION-504 (extra)'!B127:G127))/(SUM('Facturación-801 (energía)'!B99:G99)+SUM('Facturación-801 (energía)'!B447:G447))) -> 0.2752885655 | F8: 0.154083272
A9: BTD (0-10,000) | C9: =+IF(SUM('Facturación-801 (energía)'!B50:G50)=0,0,(SUM('COMER DISTR Y AP-102'!B70:G70)+SUM('COMER DISTR Y AP-104'!B70:G70)+SUM('PERD DISTR Y GEN-202'!B70:G70)+SUM('ALUMB PUB-603'!B70:G70)+SUM('TRANSMISION-305'!B70:G70)+SUM('PERD TRANS-405'!B70:G70)+SUM('GENERACION-505'!B70:G70)+SUM('GENERACION-505'!B157:G157))/SUM('Facturación-801 (energía)'!B50:G50)) -> 0.2357822065 | E9: =+IF(SUM('Facturación-801 (energía)'!B50:G50)=0,0,(SUM('COMER DISTR Y AP-101'!B70:G70)+SUM('COMER DISTR Y AP-103'!B70:G70)+SUM('PERD DISTR Y GEN-201'!B70:G70)+SUM('ALUMB PUB-604'!B70:G70)+SUM('TRANSMISION-304'!B70:G70)+SUM('PERD TRANS-404'!B70:G70)+SUM('GENERACION-504'!B70:G70)+SUM('GENERACION-504'!B157:G157)+SUM('GENERACION-504 (extra)'!B58:G58))/SUM('Facturación-801 (energía)'!B50:G50)) -> 0.2550075363 | F9: 0.08153851021
A10: BTD (10,001-30,000) | C10: =+IF(SUM('Facturación-801 (energía)'!B57:G57)=0,0,(SUM('COMER DISTR Y AP-102'!B77:G77)+SUM('COMER DISTR Y AP-104'!B77:G77)+SUM('PERD DISTR Y GEN-202'!B77:G77)+SUM('ALUMB PUB-603'!B77:G77)+SUM('TRANSMISION-305'!B77:G77)+SUM('PERD TRANS-405'!B77:G77)+SUM('GENERACION-505'!B77:G77)+SUM('GENERACION-505'!B164:G164))/SUM('Facturación-801 (energía)'!B57:G57)) -> 0.2058761436 | E10: =+IF(SUM('Facturación-801 (energía)'!B57:G57)=0,0,(SUM('COMER DISTR Y AP-101'!B77:G77)+SUM('COMER DISTR Y AP-103'!B77:G77)+SUM('PERD DISTR Y GEN-201'!B77:G77)+SUM('ALUMB PUB-604'!B77:G77)+SUM('TRANSMISION-304'!B77:G77)+SUM('PERD TRANS-404'!B77:G77)+SUM('GENERACION-504'!B77:G77)+SUM('GENERACION-504'!B164:G164)+SUM('GENERACION-504 (extra)'!B65:G65))/SUM('Facturación-801 (energía)'!B57:G57)) -> 0.2136547637 | F10: 0.03778300875
A11: BTD (30,001-50,000) | C11: =+IF(SUM('Facturación-801 (energía)'!B64:G64)=0,0,(SUM('COMER DISTR Y AP-102'!B84:G84)+SUM('COMER DISTR Y AP-104'!B84:G84)+SUM('PERD DISTR Y GEN-202'!B84:G84)+SUM('ALUMB PUB-603'!B84:G84)+SUM('TRANSMISION-305'!B84:G84)+SUM('PERD TRANS-405'!B84:G84)+SUM('GENERACION-505'!B84:G84)+SUM('GENERACION-505'!B171:G171))/SUM('Facturación-801 (energía)'!B64:G64)) -> 0.2075532491 | E11: =+IF(SUM('Facturación-801 (energía)'!B64:G64)=0,0,(SUM('COMER DISTR Y AP-101'!B84:G84)+SUM('COMER DISTR Y AP-103'!B84:G84)+SUM('PERD DISTR Y GEN-201'!B84:G84)+SUM('ALUMB PUB-604'!B84:G84)+SUM('TRANSMISION-304'!B84:G84)+SUM('PERD TRANS-404'!B84:G84)+SUM('GENERACION-504'!B84:G84)+SUM('GENERACION-504'!B171:G171)+SUM('GENERACION-504 (extra)'!B72:G72))/SUM('Facturación-801 (energía)'!B64:G64)) -> 0.2140327399 | F11: 0.03121845037
A12: BTD (50,001-más) | C12: =+IF(SUM('Facturación-801 (energía)'!B71:G71)=0,0,(SUM('COMER DISTR Y AP-102'!B91:G91)+SUM('COMER DISTR Y AP-104'!B91:G91)+SUM('PERD DISTR Y GEN-202'!B91:G91)+SUM('ALUMB PUB-603'!B91:G91)+SUM('TRANSMISION-305'!B91:G91)+SUM('PERD TRANS-405'!B91:G91)+SUM('GENERACION-505'!B91:G91)+SUM('GENERACION-505'!B178:G178))/SUM('Facturación-801 (energía)'!B71:G71)) -> 0.2189434016 | E12: =+IF(SUM('Facturación-801 (energía)'!B71:G71)=0,0,(SUM('COMER DISTR Y AP-101'!B91:G91)+SUM('COMER DISTR Y AP-103'!B91:G91)+SUM('PERD DISTR Y GEN-201'!B91:G91)+SUM('ALUMB PUB-604'!B91:G91)+SUM('TRANSMISION-304'!B91:G91)+SUM('PERD TRANS-404'!B91:G91)+SUM('GENERACION-504'!B91:G91)+SUM('GENERACION-504'!B178:G178)+SUM('GENERACION-504 (extra)'!B79:G79))/SUM('Facturación-801 (energía)'!B71:G71)) -> 0.2189454784 | F12: 9.485349575e-06
A13: BTH | C13: =+IF(SUM('Facturación-801 (energía)'!B42:G42)=0,0,(SUM('COMER DISTR Y AP-102'!B69:G69)+SUM('COMER DISTR Y AP-104'!B69:G69)+SUM('PERD DISTR Y GEN-202'!B69:G69)+SUM('ALUMB PUB-603'!B69:G69)+SUM('TRANSMISION-305'!B69:G69)+SUM('PERD TRANS-405'!B69:G69)+SUM('GENERACION-505'!B69:G69)+SUM('GENERACION-505'!B156:G156))/SUM('Facturación-801 (energía)'!B42:G42)) -> 0.2193777534 | E13: =+IF(SUM('Facturación-801 (energía)'!B42:G42)=0,0,(SUM('COMER DISTR Y AP-101'!B69:G69)+SUM('COMER DISTR Y AP-103'!B69:G69)+SUM('PERD DISTR Y GEN-201'!B69:G69)+SUM('ALUMB PUB-604'!B69:G69)+SUM('TRANSMISION-304'!B69:G69)+SUM('PERD TRANS-404'!B69:G69)+SUM('GENERACION-504'!B69:G69)+SUM('GENERACION-504'!B156:G156)+SUM('GENERACION-504 (extra)'!B57:G57))/SUM('Facturación-801 (energía)'!B42:G42)) -> 0.2291433811 | F13: 0.04451512305
A14: MTD (0-10,000) | C14: =+IF(SUM('Facturación-801 (energía)'!B20:G20)=0,0,(SUM('COMER DISTR Y AP-102'!B47:G47)+SUM('COMER DISTR Y AP-104'!B47:G47)+SUM('PERD DISTR Y GEN-202'!B47:G47)+SUM('ALUMB PUB-603'!B47:G47)+SUM('TRANSMISION-305'!B47:G47)+SUM('PERD TRANS-405'!B47:G47)+SUM('GENERACION-505'!B47:G47)+SUM('GENERACION-505'!B134:G134))/SUM('Facturación-801 (energía)'!B20:G20)) -> 0.2643297175 | E14: =+IF(SUM('Facturación-801 (energía)'!B20:G20)=0,0,(SUM('COMER DISTR Y AP-101'!B47:G47)+SUM('COMER DISTR Y AP-103'!B47:G47)+SUM('PERD DISTR Y GEN-201'!B47:G47)+SUM('ALUMB PUB-604'!B47:G47)+SUM('TRANSMISION-304'!B47:G47)+SUM('PERD TRANS-404'!B47:G47)+SUM('GENERACION-504'!B47:G47)+SUM('GENERACION-504'!B134:G134)+SUM('GENERACION-504 (extra)'!B35:G35))/SUM('Facturación-801 (energía)'!B20:G20)) -> 0.2927918461 | F14: 0.1076766125
A15: MTD (10,001-30,000) | C15: =+IF(SUM('Facturación-801 (energía)'!B25:G25)=0,0,(SUM('COMER DISTR Y AP-102'!B52:G52)+SUM('COMER DISTR Y AP-104'!B52:G52)+SUM('PERD DISTR Y GEN-202'!B52:G52)+SUM('ALUMB PUB-603'!B52:G52)+SUM('TRANSMISION-305'!B52:G52)+SUM('PERD TRANS-405'!B52:G52)+SUM('GENERACION-505'!B52:G52)+SUM('GENERACION-505'!B139:G139))/SUM('Facturación-801 (energía)'!B25:G25)) -> 0.2193483808 | E15: =+IF(SUM('Facturación-801 (energía)'!B25:G25)=0,0,(SUM('COMER DISTR Y AP-101'!B52:G52)+SUM('COMER DISTR Y AP-103'!B52:G52)+SUM('PERD DISTR Y GEN-201'!B52:G52)+SUM('ALUMB PUB-604'!B52:G52)+SUM('TRANSMISION-304'!B52:G52)+SUM('PERD TRANS-404'!B52:G52)+SUM('GENERACION-504'!B52:G52)+SUM('GENERACION-504'!B139:G139)+SUM('GENERACION-504 (extra)'!B40:G40))/SUM('Facturación-801 (energía)'!B25:G25)) -> 0.2322945977 | F15: 0.05902125573
A16: MTD (30,001-50,000) | C16: =+IF(SUM('Facturación-801 (energía)'!B30:G30)=0,0,(SUM('COMER DISTR Y AP-102'!B57:G57)+SUM('COMER DISTR Y AP-104'!B57:G57)+SUM('PERD DISTR Y GEN-202'!B57:G57)+SUM('ALUMB PUB-603'!B57:G57)+SUM('TRANSMISION-305'!B57:G57)+SUM('PERD TRANS-405'!B57:G57)+SUM('GENERACION-505'!B57:G57)+SUM('GENERACION-505'!B144:G144))/SUM('Facturación-801 (energía)'!B30:G30)) -> 0.2056916458 | E16: =+IF(SUM('Facturación-801 (energía)'!B30:G30)=0,0,(SUM('COMER DISTR Y AP-101'!B57:G57)+SUM('COMER DISTR Y AP-103'!B57:G57)+SUM('PERD DISTR Y GEN-201'!B57:G57)+SUM('ALUMB PUB-604'!B57:G57)+SUM('TRANSMISION-304'!B57:G57)+SUM('PERD TRANS-404'!B57:G57)+SUM('GENERACION-504'!B57:G57)+SUM('GENERACION-504'!B144:G144)+SUM('GENERACION-504 (extra)'!B45:G45))/SUM('Facturación-801 (energía)'!B30:G30)) -> 0.2135205712 | F16: 0.03806146476
A17: MTD (50,001-más) | C17: =+IF(SUM('Facturación-801 (energía)'!B35:G35)=0,0,(SUM('COMER DISTR Y AP-102'!B62:G62)+SUM('COMER DISTR Y AP-104'!B62:G62)+SUM('PERD DISTR Y GEN-202'!B62:G62)+SUM('ALUMB PUB-603'!B62:G62)+SUM('TRANSMISION-305'!B62:G62)+SUM('PERD TRANS-405'!B62:G62)+SUM('GENERACION-505'!B62:G62)+SUM('GENERACION-505'!B149:G149))/SUM('Facturación-801 (energía)'!B35:G35)) -> 0.1911592331 | E17: =+IF(SUM('Facturación-801 (energía)'!B35:G35)=0,0,(SUM('COMER DISTR Y AP-101'!B62:G62)+SUM('COMER DISTR Y AP-103'!B62:G62)+SUM('PERD DISTR Y GEN-201'!B62:G62)+SUM('ALUMB PUB-604'!B62:G62)+SUM('TRANSMISION-304'!B62:G62)+SUM('PERD TRANS-404'!B62:G62)+SUM('GENERACION-504'!B62:G62)+SUM('GENERACION-504'!B149:G149)+SUM('GENERACION-504 (extra)'!B50:G50))/SUM('Facturación-801 (energía)'!B35:G35)) -> 0.1935115731 | F17: 0.0123056576
A18: MTH | C18: =+IF(SUM('Facturación-801 (energía)'!B14:G14)=0,0,(SUM('COMER DISTR Y AP-102'!B46:G46)+SUM('COMER DISTR Y AP-104'!B46:G46)+SUM('PERD DISTR Y GEN-202'!B46:G46)+SUM('ALUMB PUB-603'!B46:G46)+SUM('TRANSMISION-305'!B46:G46)+SUM('PERD TRANS-405'!B46:G46)+SUM('GENERACION-505'!B46:G46)+SUM('GENERACION-505'!B133:G133))/SUM('Facturación-801 (energía)'!B14:G14)) -> 0.19739072 | E18: =+IF(SUM('Facturación-801 (energía)'!B14:G14)=0,0,(SUM('COMER DISTR Y AP-101'!B46:G46)+SUM('COMER DISTR Y AP-103'!B46:G46)+SUM('PERD DISTR Y GEN-201'!B46:G46)+SUM('ALUMB PUB-604'!B46:G46)+SUM('TRANSMISION-304'!B46:G46)+SUM('PERD TRANS-404'!B46:G46)+SUM('GENERACION-504'!B46:G46)+SUM('GENERACION-504'!B133:G133)+SUM('GENERACION-504 (extra)'!B34:G34))/SUM('Facturación-801 (energía)'!B14:G14)) -> 0.2179503513 | F18: 0.1041570311
A19: ATD | C19: =+IF(SUM('Facturación-801 (energía)'!B11:G11)=0,0,(SUM('COMER DISTR Y AP-102'!B43:G43)+SUM('COMER DISTR Y AP-104'!B43:G43)+SUM('PERD DISTR Y GEN-202'!B43:G43)+SUM('ALUMB PUB-603'!B43:G43)+SUM('TRANSMISION-305'!B43:G43)+SUM('PERD TRANS-405'!B43:G43)+SUM('GENERACION-505'!B43:G43)+SUM('GENERACION-505'!B130:G130))/SUM('Facturación-801 (energía)'!B11:G11)) -> 0 | E19: =+IF(SUM('Facturación-801 (energía)'!B11:G11)=0,0,(SUM('COMER DISTR Y AP-101'!B43:G43)+SUM('COMER DISTR Y AP-103'!B43:G43)+SUM('PERD DISTR Y GEN-201'!B43:G43)+SUM('ALUMB PUB-604'!B43:G43)+SUM('TRANSMISION-304'!B43:G43)+SUM('PERD TRANS-404'!B43:G43)+SUM('GENERACION-504'!B43:G43)+SUM('GENERACION-504'!B130:G130)+SUM('GENERACION-504 (extra)'!B31:G31))/SUM('Facturación-801 (energía)'!B11:G11)) -> 0 | F19: 0
A20: ATH | C20: =+IF(SUM('Facturación-801 (energía)'!B10:G10)=0,0,(SUM('COMER DISTR Y AP-102'!B42:G42)+SUM('COMER DISTR Y AP-104'!B42:G42)+SUM('PERD DISTR Y GEN-202'!B42:G42)+SUM('ALUMB PUB-603'!B42:G42)+SUM('TRANSMISION-305'!B42:G42)+SUM('PERD TRANS-405'!B42:G42)+SUM('GENERACION-505'!B42:G42)+SUM('GENERACION-505'!B129:G129))/SUM('Facturación-801 (energía)'!B10:G10)) -> 0.1849049604 | E20: =+IF(SUM('Facturación-801 (energía)'!B10:G10)=0,0,(SUM('COMER DISTR Y AP-101'!B42:G42)+SUM('COMER DISTR Y AP-103'!B42:G42)+SUM('PERD DISTR Y GEN-201'!B42:G42)+SUM('ALUMB PUB-604'!B42:G42)+SUM('TRANSMISION-304'!B42:G42)+SUM('PERD TRANS-404'!B42:G42)+SUM('GENERACION-504'!B42:G42)+SUM('GENERACION-504'!B129:G129)+SUM('GENERACION-504 (extra)'!B30:G30))/SUM('Facturación-801 (energía)'!B10:G10)) -> 0.1886790365 | F20: 0.02041089661
A21: PREPAGO | C21: =+IF(SUM('Facturación-801 (energía)'!B106:G106)=0,0,(SUM('COMER DISTR Y AP-102'!B123:G123)+SUM('COMER DISTR Y AP-104'!B123:G123)+SUM('PERD DISTR Y GEN-202'!B123:G123)+SUM('ALUMB PUB-603'!B123:G123)+SUM('TRANSMISION-305'!B123:G123)+SUM('PERD TRANS-405'!B123:G123)+SUM('GENERACION-505'!B123:G123)+SUM('GENERACION-505'!B210:G210))/SUM('Facturación-801 (energía)'!B106:G106)) -> 0 | E21: =+IF(SUM('Facturación-801 (energía)'!B106:G106)=0,0,(SUM('COMER DISTR Y AP-101'!B123:G123)+SUM('COMER DISTR Y AP-103'!B123:G123)+SUM('PERD DISTR Y GEN-201'!B123:G123)+SUM('ALUMB PUB-604'!B123:G123)+SUM('TRANSMISION-304'!B123:G123)+SUM('PERD TRANS-404'!B123:G123)+SUM('GENERACION-504'!B123:G123)+SUM('GENERACION-504'!B210:G210)+SUM('GENERACION-504 (extra)'!B107:G107))/SUM('Facturación-801 (energía)'!B106:G106)) -> 0 | F21: 0
A22: BTSH_1 | C22: =+IF(SUM('Facturación-801 (energía)'!$B$533:$G$533)=0,0, (SUM('COMER DISTR Y AP-102'!B120:G120)+ SUM('COMER DISTR Y AP-104'!B120:G120)+ SUM('PERD DISTR Y GEN-202'!B120:G120)+ SUM('ALUMB PUB-603'!B120:G120)+ SUM('TRANSMISION-305'!B120:G120)+ SUM('PERD TRANS-405'!B120:G120)+ SUM('GENERACION-505'!B120:G120)+ SUM('GENERACION-505'!B207:G207))/SUM('Facturación-801 (energía)'!$B$533:$G$533)) -> 0.1568468732 | E22: =+IF(SUM('Facturación-801 (energía)'!$B$533:$G$533)=0,0, (SUM('COMER DISTR Y AP-101'!B120:G120)+ SUM('COMER DISTR Y AP-103'!B120:G120)+ SUM('PERD DISTR Y GEN-201'!B120:G120)+ SUM('ALUMB PUB-604'!B120:G120)+ SUM('TRANSMISION-304'!B120:G120)+ SUM('PERD TRANS-404'!B120:G120)+ SUM('GENERACION-504'!B120:G120)+ SUM('GENERACION-504'!B207:G207))/SUM('Facturación-801 (energía)'!$B$533:$G$533)) -> 0.2146213494 | F22: 0.3683495563
A23: BTSH_2 | C23: =+IF(SUM('Facturación-801 (energía)'!$B$537:$G$537)=0,0, (SUM('COMER DISTR Y AP-102'!B121:G121)+ SUM('COMER DISTR Y AP-104'!B121:G121)+ SUM('PERD DISTR Y GEN-202'!B121:G121)+ SUM('ALUMB PUB-603'!B121:G121)+ SUM('TRANSMISION-305'!B121:G121)+ SUM('PERD TRANS-405'!B121:G121)+ SUM('GENERACION-505'!B121:G121)+ SUM('GENERACION-505'!B208:G208))/SUM('Facturación-801 (energía)'!$B$537:$G$537)) -> 0 | E23: =+IF(SUM('Facturación-801 (energía)'!$B$537:$G$537)=0,0, (SUM('COMER DISTR Y AP-101'!B121:G121)+ SUM('COMER DISTR Y AP-103'!B121:G121)+ SUM('PERD DISTR Y GEN-201'!B121:G121)+ SUM('ALUMB PUB-604'!B121:G121)+ SUM('TRANSMISION-304'!B121:G121)+ SUM('PERD TRANS-404'!B121:G121)+ SUM('GENERACION-504'!B121:G121)+ SUM('GENERACION-504'!B208:G208))/SUM('Facturación-801 (energía)'!$B$537:$G$537)) -> 0 | F23: 0
A24: BTSH_3 | C24: =+IF(SUM('Facturación-801 (energía)'!$B$541:$G$541)=0,0, (SUM('COMER DISTR Y AP-102'!B122:G122)+ SUM('COMER DISTR Y AP-104'!B122:G122)+ SUM('PERD DISTR Y GEN-202'!B122:G122)+ SUM('ALUMB PUB-603'!B122:G122)+ SUM('TRANSMISION-305'!B122:G122)+ SUM('PERD TRANS-405'!B122:G122)+ SUM('GENERACION-505'!B122:G122)+ SUM('GENERACION-505'!B209:G209))/SUM('Facturación-801 (energía)'!$B$541:$G$541)) -> 0 | E24: =+IF(SUM('Facturación-801 (energía)'!$B$541:$G$541)=0,0, (SUM('COMER DISTR Y AP-101'!B122:G122)+ SUM('COMER DISTR Y AP-103'!B122:G122)+ SUM('PERD DISTR Y GEN-201'!B122:G122)+ SUM('ALUMB PUB-604'!B122:G122)+ SUM('TRANSMISION-304'!B122:G122)+ SUM('PERD TRANS-404'!B122:G122)+ SUM('GENERACION-504'!B122:G122)+ SUM('GENERACION-504'!B209:G209))/SUM('Facturación-801 (energía)'!$B$541:$G$541)) -> 0 | F24: 0
A25: Precio Promedio | C25: =+IF(SUM('Facturación-801 (energía)'!B107:G107)=0,0,(SUM('COMER DISTR Y AP-102'!B124:G124)+SUM('COMER DISTR Y AP-104'!B124:G124)+SUM('PERD DISTR Y GEN-202'!B124:G124)+SUM('ALUMB PUB-603'!B124:G124)+SUM('TRANSMISION-305'!B124:G124)+SUM('PERD TRANS-405'!B124:G124)+SUM('GENERACION-505'!B124:G124)+SUM('GENERACION-505'!B211:G211)+SUM('COMER DISTR Y AP-102'!B182:G182)+SUM('COMER DISTR Y AP-104'!B182:G182)+SUM('PERD DISTR Y GEN-202'!B182:G182)+SUM('ALUMB PUB-603'!B182:G182)+SUM('TRANSMISION-305'!B182:G182)+SUM('PERD TRANS-405'!B149:G149)+SUM('GENERACION-505'!B397:G397)+SUM('GENERACION-505'!B422:G422))/(SUM('Facturación-801 (energía)'!B107:G107)+SUM('Facturación-801 (energía)'!B457:G457)+SUM('Facturación-801 (energía)'!B545:G545)-SUM('Facturación-801 (energía)'!B455:G455))) -> 0.2035039603 | E25: =+IF(SUM('Facturación-801 (energía)'!B107:G107)=0,0,(SUM('COMER DISTR Y AP-101'!B124:G124)+SUM('COMER DISTR Y AP-103'!B124:G124)+SUM('PERD DISTR Y GEN-201'!B124:G124)+SUM('ALUMB PUB-604'!B124:G124)+SUM('TRANSMISION-304'!B124:G124)+SUM('PERD TRANS-404'!B124:G124)+SUM('GENERACION-504'!B124:G124)+SUM('GENERACION-504'!B211:G211)+SUM('COMER DISTR Y AP-101'!B182:G182)+SUM('COMER DISTR Y AP-103'!B182:G182)+SUM('PERD DISTR Y GEN-201'!B182:G182)+SUM('ALUMB PUB-604'!B182:G182)+SUM('TRANSMISION-304'!B182:G182)+SUM('PERD TRANS-404'!B149:G149)+SUM('GENERACION-504'!B397:G397)+SUM('GENERACION-504'!B422:G422)+SUM('GENERACION-504 (extra)'!B108:G108,'GENERACION-504 (extra)'!B134:G134))/(SUM('Facturación-801 (energía)'!B107:G107)+SUM('Facturación-801 (energía)'!B457:G457)+SUM('Facturación-801 (energía)'!B545:G545)-SUM('Facturación-801 (energía)'!B455:G455))) -> 0.2127670972 | F25: =+E25/C25-1 -> 0.04551821479
A26: Grandes Clientes | C26: =+IF(SUM('Facturación-801 (energía)'!B$376:G$376,'Facturación-801 (energía)'!B$422:G$422)=0,0,(SUM('COMER DISTR Y AP-102'!B157:G157)+SUM('COMER DISTR Y AP-104'!B157:G157)+SUM('PERD DISTR Y GEN-202'!B157:G157)+SUM('ALUMB PUB-603'!B157:G157)+SUM('TRANSMISION-305'!B157:G157)+SUM('GENERACION-505'!B331:G331)+SUM('GENERACION-505'!B364:G364))/SUM('Facturación-801 (energía)'!B$376:G$376,'Facturación-801 (energía)'!B$422:G$422)) -> 0.05319499456 | E26: =+IF(SUM('Facturación-801 (energía)'!B$376:G$376,'Facturación-801 (energía)'!B$422:G$422)=0,0,(SUM('COMER DISTR Y AP-101'!B157:G157)+SUM('COMER DISTR Y AP-103'!B157:G157)+SUM('PERD DISTR Y GEN-201'!B157:G157)+SUM('ALUMB PUB-604'!B157:G157)+SUM('TRANSMISION-304'!B157:G157)+SUM('GENERACION-504'!B331:G331)+SUM('GENERACION-504'!B364:G364))/SUM('Facturación-801 (energía)'!B$376:G$376,'Facturación-801 (energía)'!B$422:G$422)) -> 0.07130343314 | F26: =+IF(C26=0,0,E26/C26-1) -> 0.3404162127
A27: Precio Promedio de Total | C27: =+IF(SUM('Facturación-801 (energía)'!B107:G107)=0,0,(SUM('COMER DISTR Y AP-102'!B124:G124)+SUM('COMER DISTR Y AP-104'!B124:G124)+SUM('PERD DISTR Y GEN-202'!B124:G124)+SUM('ALUMB PUB-603'!B124:G124)+SUM('TRANSMISION-305'!B124:G124)+SUM('PERD TRANS-405'!B124:G124)+SUM('GENERACION-505'!B124:G124)+SUM('GENERACION-505'!B211:G211)+SUM('COMER DISTR Y AP-102'!B182:G182)+SUM('COMER DISTR Y AP-104'!B182:G182)+SUM('PERD DISTR Y GEN-202'!B182:G182)+SUM('ALUMB PUB-603'!B182:G182)+SUM('TRANSMISION-305'!B182:G182)+SUM('PERD TRANS-405'!B149:G149)+SUM('GENERACION-505'!B397:G397)+SUM('GENERACION-505'!B422:G422)+SUM('COMER DISTR Y AP-102'!B157:G157)+SUM('COMER DISTR Y AP-104'!B157:G157)+SUM('PERD DISTR Y GEN-202'!B157:G157)+SUM('ALUMB PUB-603'!B157:G157)+SUM('TRANSMISION-305'!B157:G157)+SUM('GENERACION-505'!B331:G331)+SUM('GENERACION-505'!B364:G364))/(SUM('Facturación-801 (energía)'!B107:G107)+SUM('Facturación-801 (energía)'!B457:G457)+SUM('Facturación-801 (energía)'!B545:G545)-SUM('Facturación-801 (energía)'!B455:G455)+SUM('Facturación-801 (energía)'!B$376:G$376,'Facturación-801 (energía)'!B$422:G$422))) -> 0.1849822041 | E27: =+IF(SUM('Facturación-801 (energía)'!B107:G107)=0,0,(SUM('COMER DISTR Y AP-101'!B124:G124)+SUM('COMER DISTR Y AP-103'!B124:G124)+SUM('PERD DISTR Y GEN-201'!B124:G124)+SUM('ALUMB PUB-604'!B124:G124)+SUM('TRANSMISION-304'!B124:G124)+SUM('PERD TRANS-404'!B124:G124)+SUM('GENERACION-504'!B124:G124)+SUM('GENERACION-504'!B211:G211)+SUM('COMER DISTR Y AP-101'!B182:G182)+SUM('COMER DISTR Y AP-103'!B182:G182)+SUM('PERD DISTR Y GEN-201'!B182:G182)+SUM('ALUMB PUB-604'!B182:G182)+SUM('TRANSMISION-304'!B182:G182)+SUM('PERD TRANS-404'!B149:G149)+SUM('GENERACION-504'!B397:G397)+SUM('GENERACION-504'!B422:G422)+SUM('COMER DISTR Y AP-101'!B157:G157)+SUM('COMER DISTR Y AP-103'!B157:G157)+SUM('PERD DISTR Y GEN-201'!B157:G157)+SUM('ALUMB PUB-604'!B157:G157)+SUM('TRANSMISION-304'!B157:G157)+SUM('GENERACION-504'!B331:G331)+SUM('GENERACION-504'!B364:G364)+SUM('GENERACION-504 (extra)'!B108:G108,'GENERACION-504 (extra)'!B134:G134))/(SUM('Facturación-801 (energía)'!B107:G107)+SUM('Facturación-801 (energía)'!B457:G457)+SUM('Facturación-801 (energía)'!B545:G545)-SUM('Facturación-801 (energía)'!B455:G455)+SUM('Facturación-801 (energía)'!B$376:G$376,'Facturación-801 (energía)'!B$422:G$422))) -> 0.1953352995 | F27: =+E27/C27-1 -> 0.0559680615
A29: =+A1&" (En B/)" -> EDECHI: Ingreso Estimado por la Aplicación de la Energía Eléctrica de Clientes Regulados por Tarifa (En B/)
A30: Tarifas | B30: =+"Referencia FORM Cargos Tarifarios p-1: "&[1]Fecha!T7&" ventas p: "&[1]Fecha!T4 -> Referencia FORM Cargos Tarifarios p-1: Ene-Jun/2023 ventas p: Jul-Dic/2023 | C30: =+"Semestre p-1 "&[1]Fecha!T$7 -> Semestre p-1 Ene-Jun/2023 | D30: =+"Referencia FORM Cargos Tarifarios p-1: "&[1]Fecha!T4&" ventas p: "&[1]Fecha!T4 -> Referencia FORM Cargos Tarifarios p-1: Jul-Dic/2023 ventas p: Jul-Dic/2023 | E30: =+"Semestre p "&[1]Fecha!T$4 -> Semestre p Jul-Dic/2023 | F30: Variación (%)
A31: BTS (0-300) | B31: (AT102 + AT104 + AT202 + AT603 + AT305 + AT405 + AT505) / AT806 | C31: =+IF(SUM('Facturación-801 (energía)'!B85:G85)=0,0,(SUM('COMER DISTR Y AP-102'!B98:G98)+SUM('COMER DISTR Y AP-104'!B98:G98)+SUM('PERD DISTR Y GEN-202'!B98:G98)+SUM('ALUMB PUB-603'!B98:G98)+SUM('TRANSMISION-305'!B98:G98)+SUM('PERD TRANS-405'!B98:G98)+SUM('GENERACION-505'!B98:G98)+SUM('GENERACION-505'!B185:G185)+SUM('COMER DISTR Y AP-102'!B161:G161)+SUM('COMER DISTR Y AP-104'!B161:G161)+SUM('PERD DISTR Y GEN-202'!B161:G161)+SUM('ALUMB PUB-603'!B161:G161)+SUM('TRANSMISION-305'!B161:G161)+SUM('PERD TRANS-405'!B128:G128)+SUM('GENERACION-505'!B376:G376)+SUM('GENERACION-505'!B401:G401))) -> 17942313.75 | D31: (AT101 + AT103 + AT201 + AT604 +AT304 + AT404 + AT504) / AT806 | E31: =+IF(SUM('Facturación-801 (energía)'!B85:G85)=0,0,(SUM('COMER DISTR Y AP-101'!B98:G98)+SUM('COMER DISTR Y AP-103'!B98:G98)+SUM('PERD DISTR Y GEN-201'!B98:G98)+SUM('ALUMB PUB-604'!B98:G98)+SUM('TRANSMISION-304'!B98:G98)+SUM('PERD TRANS-404'!B98:G98)+SUM('GENERACION-504'!B98:G98)+SUM('GENERACION-504'!B185:G185)+SUM('COMER DISTR Y AP-101'!B161:G161)+SUM('COMER DISTR Y AP-103'!B161:G161)+SUM('PERD DISTR Y GEN-201'!B161:G161)+SUM('ALUMB PUB-604'!B161:G161)+SUM('TRANSMISION-304'!B161:G161)+SUM('PERD TRANS-404'!B128:G128)+SUM('GENERACION-504'!B376:G376)+SUM('GENERACION-504'!B401:G401))+SUM('GENERACION-504 (extra)'!B86:G86,'GENERACION-504 (extra)'!B113:G113)) -> 17680610.66 | F31: =+IF(C31=0,0,E31/C31-1) -> -0.0145858048
A32: BTS (301-750) | C32: =+IF(SUM('Facturación-801 (energía)'!B92:G92)=0,0,(SUM('COMER DISTR Y AP-102'!B105:G105)+SUM('COMER DISTR Y AP-104'!B105:G105)+SUM('PERD DISTR Y GEN-202'!B105:G105)+SUM('ALUMB PUB-603'!B105:G105)+SUM('TRANSMISION-305'!B105:G105)+SUM('PERD TRANS-405'!B105:G105)+SUM('GENERACION-505'!B105:G105)+SUM('GENERACION-505'!B192:G192)+SUM('COMER DISTR Y AP-102'!B168:G168)+SUM('COMER DISTR Y AP-104'!B168:G168)+SUM('PERD DISTR Y GEN-202'!B168:G168)+SUM('ALUMB PUB-603'!B168:G168)+SUM('TRANSMISION-305'!B168:G168)+SUM('PERD TRANS-405'!B135:G135)+SUM('GENERACION-505'!B383:G383)+SUM('GENERACION-505'!B408:G408))) -> 14152488.92 | E32: =+IF(SUM('Facturación-801 (energía)'!B92:G92)=0,0,(SUM('COMER DISTR Y AP-101'!B105:G105)+SUM('COMER DISTR Y AP-103'!B105:G105)+SUM('PERD DISTR Y GEN-201'!B105:G105)+SUM('ALUMB PUB-604'!B105:G105)+SUM('TRANSMISION-304'!B105:G105)+SUM('PERD TRANS-404'!B105:G105)+SUM('GENERACION-504'!B105:G105)+SUM('GENERACION-504'!B192:G192)+SUM('COMER DISTR Y AP-101'!B168:G168)+SUM('COMER DISTR Y AP-103'!B168:G168)+SUM('PERD DISTR Y GEN-201'!B168:G168)+SUM('ALUMB PUB-604'!B168:G168)+SUM('TRANSMISION-304'!B168:G168)+SUM('PERD TRANS-404'!B135:G135)+SUM('GENERACION-504'!B383:G383)+SUM('GENERACION-504'!B408:G408))+SUM('GENERACION-504 (extra)'!B93:G93,'GENERACION-504 (extra)'!B120:G120)) -> 13179670.55 | F32: -0.06873832371
A33: BTS (751-más) | C33: =+IF(SUM('Facturación-801 (energía)'!B99:G99)=0,0,(SUM('COMER DISTR Y AP-102'!B112:G112)+SUM('COMER DISTR Y AP-104'!B112:G112)+SUM('PERD DISTR Y GEN-202'!B112:G112)+SUM('ALUMB PUB-603'!B112:G112)+SUM('TRANSMISION-305'!B112:G112)+SUM('PERD TRANS-405'!B112:G112)+SUM('GENERACION-505'!B112:G112)+SUM('GENERACION-505'!B199:G199)+SUM('COMER DISTR Y AP-102'!B175:G175)+SUM('COMER DISTR Y AP-104'!B175:G175)+SUM('PERD DISTR Y GEN-202'!B175:G175)+SUM('ALUMB PUB-603'!B175:G175)+SUM('TRANSMISION-305'!B175:G175)+SUM('PERD TRANS-405'!B142:G142)+SUM('GENERACION-505'!B390:G390)+SUM('GENERACION-505'!B415:G415))) -> 25600332.28 | E33: =+IF(SUM('Facturación-801 (energía)'!B99:G99)=0,0,(SUM('COMER DISTR Y AP-101'!B112:G112)+SUM('COMER DISTR Y AP-103'!B112:G112)+SUM('PERD DISTR Y GEN-201'!B112:G112)+SUM('ALUMB PUB-604'!B112:G112)+SUM('TRANSMISION-304'!B112:G112)+SUM('PERD TRANS-404'!B112:G112)+SUM('GENERACION-504'!B112:G112)+SUM('GENERACION-504'!B199:G199)+SUM('COMER DISTR Y AP-101'!B175:G175)+SUM('COMER DISTR Y AP-103'!B175:G175)+SUM('PERD DISTR Y GEN-201'!B175:G175)+SUM('ALUMB PUB-604'!B175:G175)+SUM('TRANSMISION-304'!B175:G175)+SUM('PERD TRANS-404'!B142:G142)+SUM('GENERACION-504'!B390:G390)+SUM('GENERACION-504'!B415:G415))+SUM('GENERACION-504 (extra)'!B100:G100,'GENERACION-504 (extra)'!B127:G127)) -> 29544915.24 | F33: 0.154083272
A34: BTD (0-10,000) | C34: =+IF(SUM('Facturación-801 (energía)'!B50:G50)=0,0,(SUM('COMER DISTR Y AP-102'!B70:G70)+SUM('COMER DISTR Y AP-104'!B70:G70)+SUM('PERD DISTR Y GEN-202'!B70:G70)+SUM('ALUMB PUB-603'!B70:G70)+SUM('TRANSMISION-305'!B70:G70)+SUM('PERD TRANS-405'!B70:G70)+SUM('GENERACION-505'!B70:G70)+SUM('GENERACION-505'!B157:G157))) -> 4736957.426 | E34: =+IF(SUM('Facturación-801 (energía)'!B50:G50)=0,0,(SUM('COMER DISTR Y AP-101'!B70:G70)+SUM('COMER DISTR Y AP-103'!B70:G70)+SUM('PERD DISTR Y GEN-201'!B70:G70)+SUM('ALUMB PUB-604'!B70:G70)+SUM('TRANSMISION-304'!B70:G70)+SUM('PERD TRANS-404'!B70:G70)+SUM('GENERACION-504'!B70:G70)+SUM('GENERACION-504'!B157:G157))+SUM('GENERACION-504 (extra)'!B58:G58)) -> 5123201.877 | F34: 0.08153851021
A35: BTD (10,001-30,000) | C35: =+IF(SUM('Facturación-801 (energía)'!B57:G57)=0,0,(SUM('COMER DISTR Y AP-102'!B77:G77)+SUM('COMER DISTR Y AP-104'!B77:G77)+SUM('PERD DISTR Y GEN-202'!B77:G77)+SUM('ALUMB PUB-603'!B77:G77)+SUM('TRANSMISION-305'!B77:G77)+SUM('PERD TRANS-405'!B77:G77)+SUM('GENERACION-505'!B77:G77)+SUM('GENERACION-505'!B164:G164))) -> 4723110.43 | E35: =+IF(SUM('Facturación-801 (energía)'!B57:G57)=0,0,(SUM('COMER DISTR Y AP-101'!B77:G77)+SUM('COMER DISTR Y AP-103'!B77:G77)+SUM('PERD DISTR Y GEN-201'!B77:G77)+SUM('ALUMB PUB-604'!B77:G77)+SUM('TRANSMISION-304'!B77:G77)+SUM('PERD TRANS-404'!B77:G77)+SUM('GENERACION-504'!B77:G77)+SUM('GENERACION-504'!B164:G164))+SUM('GENERACION-504 (extra)'!B65:G65)) -> 4901563.753 | F35: 0.03778300875
A36: BTD (30,001-50,000) | C36: =+IF(SUM('Facturación-801 (energía)'!B64:G64)=0,0,(SUM('COMER DISTR Y AP-102'!B84:G84)+SUM('COMER DISTR Y AP-104'!B84:G84)+SUM('PERD DISTR Y GEN-202'!B84:G84)+SUM('ALUMB PUB-603'!B84:G84)+SUM('TRANSMISION-305'!B84:G84)+SUM('PERD TRANS-405'!B84:G84)+SUM('GENERACION-505'!B84:G84)+SUM('GENERACION-505'!B171:G171))) -> 1786058.804 | E36: =+IF(SUM('Facturación-801 (energía)'!B64:G64)=0,0,(SUM('COMER DISTR Y AP-101'!B84:G84)+SUM('COMER DISTR Y AP-103'!B84:G84)+SUM('PERD DISTR Y GEN-201'!B84:G84)+SUM('ALUMB PUB-604'!B84:G84)+SUM('TRANSMISION-304'!B84:G84)+SUM('PERD TRANS-404'!B84:G84)+SUM('GENERACION-504'!B84:G84)+SUM('GENERACION-504'!B171:G171))+SUM('GENERACION-504 (extra)'!B72:G72)) -> 1841816.793 | F36: 0.03121845037
A37: BTD (50,001-más) | C37: =+IF(SUM('Facturación-801 (energía)'!B71:G71)=0,0,(SUM('COMER DISTR Y AP-102'!B91:G91)+SUM('COMER DISTR Y AP-104'!B91:G91)+SUM('PERD DISTR Y GEN-202'!B91:G91)+SUM('ALUMB PUB-603'!B91:G91)+SUM('TRANSMISION-305'!B91:G91)+SUM('PERD TRANS-405'!B91:G91)+SUM('GENERACION-505'!B91:G91)+SUM('GENERACION-505'!B178:G178))) -> 6645196.941 | E37: =+IF(SUM('Facturación-801 (energía)'!B71:G71)=0,0,(SUM('COMER DISTR Y AP-101'!B91:G91)+SUM('COMER DISTR Y AP-103'!B91:G91)+SUM('PERD DISTR Y GEN-201'!B91:G91)+SUM('ALUMB PUB-604'!B91:G91)+SUM('TRANSMISION-304'!B91:G91)+SUM('PERD TRANS-404'!B91:G91)+SUM('GENERACION-504'!B91:G91)+SUM('GENERACION-504'!B178:G178))+SUM('GENERACION-504 (extra)'!B79:G79)) -> 6645259.974 | F37: 9.485349575e-06
A38: BTH | C38: =+IF(SUM('Facturación-801 (energía)'!B42:G42)=0,0,(SUM('COMER DISTR Y AP-102'!B69:G69)+SUM('COMER DISTR Y AP-104'!B69:G69)+SUM('PERD DISTR Y GEN-202'!B69:G69)+SUM('ALUMB PUB-603'!B69:G69)+SUM('TRANSMISION-305'!B69:G69)+SUM('PERD TRANS-405'!B69:G69)+SUM('GENERACION-505'!B69:G69)+SUM('GENERACION-505'!B156:G156))) -> 775118.2021 | E38: =+IF(SUM('Facturación-801 (energía)'!B42:G42)=0,0,(SUM('COMER DISTR Y AP-101'!B69:G69)+SUM('COMER DISTR Y AP-103'!B69:G69)+SUM('PERD DISTR Y GEN-201'!B69:G69)+SUM('ALUMB PUB-604'!B69:G69)+SUM('TRANSMISION-304'!B69:G69)+SUM('PERD TRANS-404'!B69:G69)+SUM('GENERACION-504'!B69:G69)+SUM('GENERACION-504'!B156:G156))+SUM('GENERACION-504 (extra)'!B57:G57)) -> 809622.6843 | F38: 0.04451512305
A39: MTD (0-10,000) | C39: =+IF(SUM('Facturación-801 (energía)'!B20:G20)=0,0,(SUM('COMER DISTR Y AP-102'!B47:G47)+SUM('COMER DISTR Y AP-104'!B47:G47)+SUM('PERD DISTR Y GEN-202'!B47:G47)+SUM('ALUMB PUB-603'!B47:G47)+SUM('TRANSMISION-305'!B47:G47)+SUM('PERD TRANS-405'!B47:G47)+SUM('GENERACION-505'!B47:G47)+SUM('GENERACION-505'!B134:G134))) -> 544285.2863 | E39: =+IF(SUM('Facturación-801 (energía)'!B20:G20)=0,0,(SUM('COMER DISTR Y AP-101'!B47:G47)+SUM('COMER DISTR Y AP-103'!B47:G47)+SUM('PERD DISTR Y GEN-201'!B47:G47)+SUM('ALUMB PUB-604'!B47:G47)+SUM('TRANSMISION-304'!B47:G47)+SUM('PERD TRANS-404'!B47:G47)+SUM('GENERACION-504'!B47:G47)+SUM('GENERACION-504'!B134:G134))+SUM('GENERACION-504 (extra)'!B35:G35)) -> 602892.0821 | F39: 0.1076766125
A40: MTD (10,001-30,000) | C40: =+IF(SUM('Facturación-801 (energía)'!B25:G25)=0,0,(SUM('COMER DISTR Y AP-102'!B52:G52)+SUM('COMER DISTR Y AP-104'!B52:G52)+SUM('PERD DISTR Y GEN-202'!B52:G52)+SUM('ALUMB PUB-603'!B52:G52)+SUM('TRANSMISION-305'!B52:G52)+SUM('PERD TRANS-405'!B52:G52)+SUM('GENERACION-505'!B52:G52)+SUM('GENERACION-505'!B139:G139))) -> 1005411.599 | E40: =+IF(SUM('Facturación-801 (energía)'!B25:G25)=0,0,(SUM('COMER DISTR Y AP-101'!B52:G52)+SUM('COMER DISTR Y AP-103'!B52:G52)+SUM('PERD DISTR Y GEN-201'!B52:G52)+SUM('ALUMB PUB-604'!B52:G52)+SUM('TRANSMISION-304'!B52:G52)+SUM('PERD TRANS-404'!B52:G52)+SUM('GENERACION-504'!B52:G52)+SUM('GENERACION-504'!B139:G139))+SUM('GENERACION-504 (extra)'!B40:G40)) -> 1064752.255 | F40: 0.05902125573
A41: MTD (30,001-50,000) | C41: =+IF(SUM('Facturación-801 (energía)'!B30:G30)=0,0,(SUM('COMER DISTR Y AP-102'!B57:G57)+SUM('COMER DISTR Y AP-104'!B57:G57)+SUM('PERD DISTR Y GEN-202'!B57:G57)+SUM('ALUMB PUB-603'!B57:G57)+SUM('TRANSMISION-305'!B57:G57)+SUM('PERD TRANS-405'!B57:G57)+SUM('GENERACION-505'!B57:G57)+SUM('GENERACION-505'!B144:G144))) -> 1451786.857 | E41: =+IF(SUM('Facturación-801 (energía)'!B30:G30)=0,0,(SUM('COMER DISTR Y AP-101'!B57:G57)+SUM('COMER DISTR Y AP-103'!B57:G57)+SUM('PERD DISTR Y GEN-201'!B57:G57)+SUM('ALUMB PUB-604'!B57:G57)+SUM('TRANSMISION-304'!B57:G57)+SUM('PERD TRANS-404'!B57:G57)+SUM('GENERACION-504'!B57:G57)+SUM('GENERACION-504'!B144:G144))+SUM('GENERACION-504 (extra)'!B45:G45)) -> 1507043.992 | F41: 0.03806146476
A42: MTD (50,001-más) | C42: =+IF(SUM('Facturación-801 (energía)'!B35:G35)=0,0,(SUM('COMER DISTR Y AP-102'!B62:G62)+SUM('COMER DISTR Y AP-104'!B62:G62)+SUM('PERD DISTR Y GEN-202'!B62:G62)+SUM('ALUMB PUB-603'!B62:G62)+SUM('TRANSMISION-305'!B62:G62)+SUM('PERD TRANS-405'!B62:G62)+SUM('GENERACION-505'!B62:G62)+SUM('GENERACION-505'!B149:G149))) -> 6443022.715 | E42: =+IF(SUM('Facturación-801 (energía)'!B35:G35)=0,0,(SUM('COMER DISTR Y AP-101'!B62:G62)+SUM('COMER DISTR Y AP-103'!B62:G62)+SUM('PERD DISTR Y GEN-201'!B62:G62)+SUM('ALUMB PUB-604'!B62:G62)+SUM('TRANSMISION-304'!B62:G62)+SUM('PERD TRANS-404'!B62:G62)+SUM('GENERACION-504'!B62:G62)+SUM('GENERACION-504'!B149:G149))+SUM('GENERACION-504 (extra)'!B50:G50)) -> 6522308.346 | F42: 0.0123056576
A43: MTH | C43: =+IF(SUM('Facturación-801 (energía)'!B14:G14)=0,0,(SUM('COMER DISTR Y AP-102'!B46:G46)+SUM('COMER DISTR Y AP-104'!B46:G46)+SUM('PERD DISTR Y GEN-202'!B46:G46)+SUM('ALUMB PUB-603'!B46:G46)+SUM('TRANSMISION-305'!B46:G46)+SUM('PERD TRANS-405'!B46:G46)+SUM('GENERACION-505'!B46:G46)+SUM('GENERACION-505'!B133:G133))) -> 87261.30514 | E43: =+IF(SUM('Facturación-801 (energía)'!B14:G14)=0,0,(SUM('COMER DISTR Y AP-101'!B46:G46)+SUM('COMER DISTR Y AP-103'!B46:G46)+SUM('PERD DISTR Y GEN-201'!B46:G46)+SUM('ALUMB PUB-604'!B46:G46)+SUM('TRANSMISION-304'!B46:G46)+SUM('PERD TRANS-404'!B46:G46)+SUM('GENERACION-504'!B46:G46)+SUM('GENERACION-504'!B133:G133))+SUM('GENERACION-504 (extra)'!B34:G34)) -> 96350.18361 | F43: 0.1041570311
A44: ATD | C44: =+IF(SUM('Facturación-801 (energía)'!B11:G11)=0,0,(SUM('COMER DISTR Y AP-102'!B43:G43)+SUM('COMER DISTR Y AP-104'!B43:G43)+SUM('PERD DISTR Y GEN-202'!B43:G43)+SUM('ALUMB PUB-603'!B43:G43)+SUM('TRANSMISION-305'!B43:G43)+SUM('PERD TRANS-405'!B43:G43)+SUM('GENERACION-505'!B43:G43)+SUM('GENERACION-505'!B130:G130))) -> 0 | E44: =+IF(SUM('Facturación-801 (energía)'!B11:G11)=0,0,(SUM('COMER DISTR Y AP-101'!B43:G43)+SUM('COMER DISTR Y AP-103'!B43:G43)+SUM('PERD DISTR Y GEN-201'!B43:G43)+SUM('ALUMB PUB-604'!B43:G43)+SUM('TRANSMISION-304'!B43:G43)+SUM('PERD TRANS-404'!B43:G43)+SUM('GENERACION-504'!B43:G43)+SUM('GENERACION-504'!B130:G130))+SUM('GENERACION-504 (extra)'!B31:G31)) -> 0 | F44: 0
A45: ATH | C45: =+IF(SUM('Facturación-801 (energía)'!B10:G10)=0,0,(SUM('COMER DISTR Y AP-102'!B42:G42)+SUM('COMER DISTR Y AP-104'!B42:G42)+SUM('PERD DISTR Y GEN-202'!B42:G42)+SUM('ALUMB PUB-603'!B42:G42)+SUM('TRANSMISION-305'!B42:G42)+SUM('PERD TRANS-405'!B42:G42)+SUM('GENERACION-505'!B42:G42)+SUM('GENERACION-505'!B129:G129))) -> 39797.83425 | E45: =+IF(SUM('Facturación-801 (energía)'!B10:G10)=0,0,(SUM('COMER DISTR Y AP-101'!B42:G42)+SUM('COMER DISTR Y AP-103'!B42:G42)+SUM('PERD DISTR Y GEN-201'!B42:G42)+SUM('ALUMB PUB-604'!B42:G42)+SUM('TRANSMISION-304'!B42:G42)+SUM('PERD TRANS-404'!B42:G42)+SUM('GENERACION-504'!B42:G42)+SUM('GENERACION-504'!B129:G129))+SUM('GENERACION-504 (extra)'!B30:G30)) -> 40610.14373 | F45: 0.02041089661
A46: PREPAGO | C46: =+IF(SUM('Facturación-801 (energía)'!B106:G106)=0,0,(SUM('COMER DISTR Y AP-102'!B123:G123)+SUM('COMER DISTR Y AP-104'!B123:G123)+SUM('PERD DISTR Y GEN-202'!B123:G123)+SUM('ALUMB PUB-603'!B123:G123)+SUM('TRANSMISION-305'!B123:G123)+SUM('PERD TRANS-405'!B123:G123)+SUM('GENERACION-505'!B123:G123)+SUM('GENERACION-505'!B210:G210))) -> 0 | E46: =+IF(SUM('Facturación-801 (energía)'!B106:G106)=0,0,(SUM('COMER DISTR Y AP-101'!B123:G123)+SUM('COMER DISTR Y AP-103'!B123:G123)+SUM('PERD DISTR Y GEN-201'!B123:G123)+SUM('ALUMB PUB-604'!B123:G123)+SUM('TRANSMISION-304'!B123:G123)+SUM('PERD TRANS-404'!B123:G123)+SUM('GENERACION-504'!B123:G123)+SUM('GENERACION-504'!B210:G210))+SUM('GENERACION-504 (extra)'!B107:G107)) -> 0 | F46: 0
A47: BTSH_1 | C47: =+IF(SUM('Facturación-801 (energía)'!$B$533:$G$533)=0,0, (SUM('COMER DISTR Y AP-102'!B120:G120)+ SUM('COMER DISTR Y AP-104'!B120:G120)+ SUM('PERD DISTR Y GEN-202'!B120:G120)+ SUM('ALUMB PUB-603'!B120:G120)+ SUM('TRANSMISION-305'!B120:G120)+ SUM('PERD TRANS-405'!B120:G120)+ SUM('GENERACION-505'!B120:G120)+ SUM('GENERACION-505'!B207:G207))) -> 879862.0225 | E47: =+IF(SUM('Facturación-801 (energía)'!$B$533:$G$533)=0,0, (SUM('COMER DISTR Y AP-101'!B120:G120)+ SUM('COMER DISTR Y AP-103'!B120:G120)+ SUM('PERD DISTR Y GEN-201'!B120:G120)+ SUM('ALUMB PUB-604'!B120:G120)+ SUM('TRANSMISION-304'!B120:G120)+ SUM('PERD TRANS-404'!B120:G120)+ SUM('GENERACION-504'!B120:G120)+ SUM('GENERACION-504'!B207:G207))) -> 1203958.808 | F47: 0.3683495563
A48: BTSH_2 | C48: =+IF(SUM('Facturación-801 (energía)'!$B$537:$G$537)=0,0, (SUM('COMER DISTR Y AP-102'!B121:G121)+ SUM('COMER DISTR Y AP-104'!B121:G121)+ SUM('PERD DISTR Y GEN-202'!B121:G121)+ SUM('ALUMB PUB-603'!B121:G121)+ SUM('TRANSMISION-305'!B121:G121)+ SUM('PERD TRANS-405'!B121:G121)+ SUM('GENERACION-505'!B121:G121)+ SUM('GENERACION-505'!B208:G208))) -> 0 | E48: =+IF(SUM('Facturación-801 (energía)'!$B$537:$G$537)=0,0, (SUM('COMER DISTR Y AP-101'!B121:G121)+ SUM('COMER DISTR Y AP-103'!B121:G121)+ SUM('PERD DISTR Y GEN-201'!B121:G121)+ SUM('ALUMB PUB-604'!B121:G121)+ SUM('TRANSMISION-304'!B121:G121)+ SUM('PERD TRANS-404'!B121:G121)+ SUM('GENERACION-504'!B121:G121)+ SUM('GENERACION-504'!B208:G208))) -> 0 | F48: 0
A49: BTSH_3 | C49: =+IF(SUM('Facturación-801 (energía)'!$B$541:$G$541)=0,0, (SUM('COMER DISTR Y AP-102'!B122:G122)+ SUM('COMER DISTR Y AP-104'!B122:G122)+ SUM('PERD DISTR Y GEN-202'!B122:G122)+ SUM('ALUMB PUB-603'!B122:G122)+ SUM('TRANSMISION-305'!B122:G122)+ SUM('PERD TRANS-405'!B122:G122)+ SUM('GENERACION-505'!B122:G122)+ SUM('GENERACION-505'!B209:G209))) -> 0 | E49: =+IF(SUM('Facturación-801 (energía)'!$B$541:$G$541)=0,0, (SUM('COMER DISTR Y AP-101'!B122:G122)+ SUM('COMER DISTR Y AP-103'!B122:G122)+ SUM('PERD DISTR Y GEN-201'!B122:G122)+ SUM('ALUMB PUB-604'!B122:G122)+ SUM('TRANSMISION-304'!B122:G122)+ SUM('PERD TRANS-404'!B122:G122)+ SUM('GENERACION-504'!B122:G122)+ SUM('GENERACION-504'!B209:G209))) -> 0 | F49: 0
A50: Precio Promedio de Total | C50: =+IF(SUM('Facturación-801 (energía)'!B107:G107)=0,0,(SUM('COMER DISTR Y AP-102'!B124:G124)+SUM('COMER DISTR Y AP-104'!B124:G124)+SUM('PERD DISTR Y GEN-202'!B124:G124)+SUM('ALUMB PUB-603'!B124:G124)+SUM('TRANSMISION-305'!B124:G124)+SUM('PERD TRANS-405'!B124:G124)+SUM('GENERACION-505'!B124:G124)+SUM('GENERACION-505'!B211:G211)+SUM('COMER DISTR Y AP-102'!B182:G182)+SUM('COMER DISTR Y AP-104'!B182:G182)+SUM('PERD DISTR Y GEN-202'!B182:G182)+SUM('ALUMB PUB-603'!B182:G182)+SUM('TRANSMISION-305'!B182:G182)+SUM('PERD TRANS-405'!B149:G149)+SUM('GENERACION-505'!B397:G397)+SUM('GENERACION-505'!B422:G422))) -> 86813004.37 | E50: =+IF(SUM('Facturación-801 (energía)'!B107:G107)=0,0,(SUM('COMER DISTR Y AP-101'!B124:G124)+SUM('COMER DISTR Y AP-103'!B124:G124)+SUM('PERD DISTR Y GEN-201'!B124:G124)+SUM('ALUMB PUB-604'!B124:G124)+SUM('TRANSMISION-304'!B124:G124)+SUM('PERD TRANS-404'!B124:G124)+SUM('GENERACION-504'!B124:G124)+SUM('GENERACION-504'!B211:G211)+SUM('COMER DISTR Y AP-101'!B182:G182)+SUM('COMER DISTR Y AP-103'!B182:G182)+SUM('PERD DISTR Y GEN-201'!B182:G182)+SUM('ALUMB PUB-604'!B182:G182)+SUM('TRANSMISION-304'!B182:G182)+SUM('PERD TRANS-404'!B149:G149)+SUM('GENERACION-504'!B397:G397)+SUM('GENERACION-504'!B422:G422))+SUM('GENERACION-504 (extra)'!B108:G108,'GENERACION-504 (extra)'!B134:G134)) -> 90764577.35 | F50: =+E50/C50-1 -> 0.04551821479
A51: Grandes Clientes | C51: =+IF(SUM('Facturación-801 (energía)'!B$376:G$376,'Facturación-801 (energía)'!B$422:G$422)=0,0,(SUM('COMER DISTR Y AP-102'!B157:G157)+SUM('COMER DISTR Y AP-104'!B157:G157)+SUM('PERD DISTR Y GEN-202'!B157:G157)+SUM('ALUMB PUB-603'!B157:G157)+SUM('TRANSMISION-305'!B157:G157)+SUM('GENERACION-505'!B331:G331)+SUM('GENERACION-505'!B364:G364))) -> 3189272.227 | E51: =+IF(SUM('Facturación-801 (energía)'!B$376:G$376,'Facturación-801 (energía)'!B$422:G$422)=0,0,(SUM('COMER DISTR Y AP-101'!B157:G157)+SUM('COMER DISTR Y AP-103'!B157:G157)+SUM('PERD DISTR Y GEN-201'!B157:G157)+SUM('ALUMB PUB-604'!B157:G157)+SUM('TRANSMISION-304'!B157:G157)+SUM('GENERACION-504'!B331:G331)+SUM('GENERACION-504'!B364:G364))) -> 4274952.199 | F51: =+IF(C51=0,0,E51/C51-1) -> 0.3404162127
A52: Precio Promedio de Total | C52: =+IF(SUM('Facturación-801 (energía)'!B107:G107)=0,0,(SUM('COMER DISTR Y AP-102'!B124:G124)+SUM('COMER DISTR Y AP-104'!B124:G124)+SUM('PERD DISTR Y GEN-202'!B124:G124)+SUM('ALUMB PUB-603'!B124:G124)+SUM('TRANSMISION-305'!B124:G124)+SUM('PERD TRANS-405'!B124:G124)+SUM('GENERACION-505'!B124:G124)+SUM('GENERACION-505'!B211:G211)+SUM('COMER DISTR Y AP-102'!B182:G182)+SUM('COMER DISTR Y AP-104'!B182:G182)+SUM('PERD DISTR Y GEN-202'!B182:G182)+SUM('ALUMB PUB-603'!B182:G182)+SUM('TRANSMISION-305'!B182:G182)+SUM('PERD TRANS-405'!B149:G149)+SUM('GENERACION-505'!B397:G397)+SUM('GENERACION-505'!B422:G422)+SUM('COMER DISTR Y AP-102'!B157:G157)+SUM('COMER DISTR Y AP-104'!B157:G157)+SUM('PERD DISTR Y GEN-202'!B157:G157)+SUM('ALUMB PUB-603'!B157:G157)+SUM('TRANSMISION-305'!B157:G157)+SUM('GENERACION-505'!B331:G331)+SUM('GENERACION-505'!B364:G364))) -> 90002276.59 | E52: =+IF(SUM('Facturación-801 (energía)'!B107:G107)=0,0,(SUM('COMER DISTR Y AP-101'!B124:G124)+SUM('COMER DISTR Y AP-103'!B124:G124)+SUM('PERD DISTR Y GEN-201'!B124:G124)+SUM('ALUMB PUB-604'!B124:G124)+SUM('TRANSMISION-304'!B124:G124)+SUM('PERD TRANS-404'!B124:G124)+SUM('GENERACION-504'!B124:G124)+SUM('GENERACION-504'!B211:G211)+SUM('COMER DISTR Y AP-101'!B182:G182)+SUM('COMER DISTR Y AP-103'!B182:G182)+SUM('PERD DISTR Y GEN-201'!B182:G182)+SUM('ALUMB PUB-604'!B182:G182)+SUM('TRANSMISION-304'!B182:G182)+SUM('PERD TRANS-404'!B149:G149)+SUM('GENERACION-504'!B397:G397)+SUM('GENERACION-504'!B422:G422)+SUM('COMER DISTR Y AP-101'!B157:G157)+SUM('COMER DISTR Y AP-103'!B157:G157)+SUM('PERD DISTR Y GEN-201'!B157:G157)+SUM('ALUMB PUB-604'!B157:G157)+SUM('TRANSMISION-304'!B157:G157)+SUM('GENERACION-504'!B331:G331)+SUM('GENERACION-504'!B364:G364))+SUM('GENERACION-504 (extra)'!B108:G108,'GENERACION-504 (extra)'!B134:G134)) -> 95039529.54 | F52: =+E52/C52-1 -> 0.0559680615

Sheet Tarifas
A1: CARGO TARIFARIO ACTUALIZADO
A2: =+[1]Fecha!$A$1 -> EDECHI
A4: BTS (0-300) | B4: Ene-Jun/2023 | C4: =+[1]Fecha!T4 -> Jul-Dic/2023
A5: Cargo Fijo por los primeros 10 kWh | B5: =+B11 -> 2.83 | C5: =+C11 -> 2.98
A6: Cargo por los siguientes kWh de 11-301 | B6: =+B$12+B$15+B$16+B$19+B$20+B$23+B$24+B26 -> 0.17383 | C6: 0.16937
A7: Cargo por los siguientes kWh de 301-750 | B7: 0.20553 | C7: 0.2185
A8: Cargo por los siguientes en exceso a 751 kWh | B8: 0.24078 | C8: 0.3094
A10: Comercialización
A11: - Fijo (Primeros 10 kWh) | B11: =+'RES DE ACT TARIFARIA-1000-T (2)'!F7 -> 2.83 | C11: =+'RES DE ACT TARIFARIA-1000-T (2)'!L7 -> 2.98 | E11: =+INDIRECT(MID(MID(_xlfn.FORMULATEXT(C11),1,FIND("!",_xlfn.FORMULATEXT(C11))),3,100)&"A"&MID(_xlfn.FORMULATEXT(C11),FIND("!",_xlfn.FORMULATEXT(C11))+2,3)) -> BTS (0-300)
A12: - Energía (Siguientes kWh) | B12: =+'RES DE ACT TARIFARIA-1000-T (2)'!F23 -> 0.01014 | C12: =+'RES DE ACT TARIFARIA-1000-T (2)'!L23 -> 0.01185 | E12: =+INDIRECT(MID(MID(_xlfn.FORMULATEXT(C12),1,FIND("!",_xlfn.FORMULATEXT(C12))),3,100)&"A"&MID(_xlfn.FORMULATEXT(C12),FIND("!",_xlfn.FORMULATEXT(C12))+2,3)) -> BTS (0-300)
A14: Distribución
A15: - Energía, excluyendo pérdidas | B15: =+'RES DE ACT TARIFARIA-1000-T (2)'!F40 -> 0.04431 | C15: =+'RES DE ACT TARIFARIA-1000-T (2)'!L40 -> 0.05871 | E15: =+INDIRECT(MID(MID(_xlfn.FORMULATEXT(C15),1,FIND("!",_xlfn.FORMULATEXT(C15))),3,100)&"A"&MID(_xlfn.FORMULATEXT(C15),FIND("!",_xlfn.FORMULATEXT(C15))+2,3)) -> BTS (0-300)
A16: - Pérdidas Energía en Distribución | B16: =+'RES DE ACT TARIFARIA-1000'!I27+'RES DE ACT TARIFARIA-1000'!I50 -> 0.01127 | C16: =+'RES DE ACT TARIFARIA-1000'!O27+'RES DE ACT TARIFARIA-1000'!O50 -> 0.00726 | E16: =+INDIRECT(MID(MID(_xlfn.FORMULATEXT(C16),1,FIND("!",_xlfn.FORMULATEXT(C16))),3,100)&"A"&MID(_xlfn.FORMULATEXT(C16),FIND("!",_xlfn.FORMULATEXT(C16))+2,FIND("+",_xlfn.FORMULATEXT(C16),5)-FIND("!",_xlfn.FORMULATEXT(C16))-2)) -> BTS (0-300) | F16: =+INDIRECT(MID(MID(_xlfn.FORMULATEXT(C16),FIND("+",_xlfn.FORMULATEXT(C16),5)+1,FIND("!",_xlfn.FORMULATEXT(C16),FIND("!",_xlfn.FORMULATEXT(C16))+5)-FIND("+",_xlfn.FORMULATEXT(C16),5)),1,100)&"A"&MID(_xlfn.FORMULATEXT(C16),FIND("!",_xlfn.FORMULATEXT(C16),FIND("!",_xlfn.FORMULATEXT(C16))+5)+2,10)) -> BTS (0-300)
A18: Alumbrado Público
A19: - Sistema | B19: =+'RES DE ACT TARIFARIA-1000-T (2)'!F70 -> 0.00198 | C19: =+'RES DE ACT TARIFARIA-1000-T (2)'!L70 -> 0.00134 | E19: =+INDIRECT(MID(MID(_xlfn.FORMULATEXT(C19),1,FIND("!",_xlfn.FORMULATEXT(C19))),3,100)&"A"&MID(_xlfn.FORMULATEXT(C19),FIND("!",_xlfn.FORMULATEXT(C19))+2,3)) -> BTS (0-300)
A20: - Consumo de energía | B20: =+'RES DE ACT TARIFARIA-1000'!I67 -> 0.00491 | C20: =+'RES DE ACT TARIFARIA-1000'!O67 -> 0.00392 | E20: =+INDIRECT(MID(MID(_xlfn.FORMULATEXT(C20),1,FIND("!",_xlfn.FORMULATEXT(C20))),3,100)&"A"&MID(_xlfn.FORMULATEXT(C20),FIND("!",_xlfn.FORMULATEXT(C20))+2,3)) -> BTS (0-300)
A22: Transmisión
A23: - Energía | B23: =+'RES DE ACT TARIFARIA-1000'!I84 -> 0.00556 | C23: =+'RES DE ACT TARIFARIA-1000'!O84 -> 0.00691 | E23: =+INDIRECT(MID(MID(_xlfn.FORMULATEXT(C23),1,FIND("!",_xlfn.FORMULATEXT(C23))),3,100)&"A"&MID(_xlfn.FORMULATEXT(C23),FIND("!",_xlfn.FORMULATEXT(C23))+2,3)) -> BTS (0-300)
A24: - Pérdidas de Energía en Transmisión | B24: =+'RES DE ACT TARIFARIA-1000'!I129 -> 0.00016 | C24: =+'RES DE ACT TARIFARIA-1000'!O129 -> 0.00019 | E24: =+INDIRECT(MID(MID(_xlfn.FORMULATEXT(C24),1,FIND("!",_xlfn.FORMULATEXT(C24))),3,100)&"A"&MID(_xlfn.FORMULATEXT(C24),FIND("!",_xlfn.FORMULATEXT(C24))+2,3)) -> BTS (0-300)
A26: Generación (Siguientes kWh de 11-300) | B26: =+'RES DE ACT TARIFARIA-1000'!I154+'RES DE ACT TARIFARIA-1000'!I198 -> 0.0955 | C26: =+'RES DE ACT TARIFARIA-1000'!O154+'RES DE ACT TARIFARIA-1000'!O198 -> 0.07919 | E26: =+INDIRECT(MID(MID(_xlfn.FORMULATEXT(C26),1,FIND("!",_xlfn.FORMULATEXT(C26))),3,100)&"A"&MID(_xlfn.FORMULATEXT(C26),FIND("!",_xlfn.FORMULATEXT(C26))+2,FIND("+",_xlfn.FORMULATEXT(C26),5)-FIND("!",_xlfn.FORMULATEXT(C26))-2)) -> BTS (0-300) | F26: =+INDIRECT(MID(MID(_xlfn.FORMULATEXT(C26),FIND("+",_xlfn.FORMULATEXT(C26),5)+1,FIND("!",_xlfn.FORMULATEXT(C26),FIND("!",_xlfn.FORMULATEXT(C26))+5)-FIND("+",_xlfn.FORMULATEXT(C26),5)),1,100)&"A"&MID(_xlfn.FORMULATEXT(C26),FIND("!",_xlfn.FORMULATEXT(C26),FIND("!",_xlfn.FORMULATEXT(C26))+5)+2,10)) -> BTS (0-300)
A27: Generación (Siguientes kWh de 301-750) | B27: =+'RES DE ACT TARIFARIA-1000'!I$155+'RES DE ACT TARIFARIA-1000'!I$199 -> 0.1272 | C27: =+'RES DE ACT TARIFARIA-1000'!O155+'RES DE ACT TARIFARIA-1000'!O199 -> 0.12832 | E27: =+INDIRECT(MID(MID(_xlfn.FORMULATEXT(C27),1,FIND("!",_xlfn.FORMULATEXT(C27))),3,100)&"A"&MID(_xlfn.FORMULATEXT(C27),FIND("!",_xlfn.FORMULATEXT(C27))+2,FIND("+",_xlfn.FORMULATEXT(C27),5)-FIND("!",_xlfn.FORMULATEXT(C27))-2)) -> BTS (301-750) | F27: =+INDIRECT(MID(MID(_xlfn.FORMULATEXT(C27),FIND("+",_xlfn.FORMULATEXT(C27),5)+1,FIND("!",_xlfn.FORMULATEXT(C27),FIND("!",_xlfn.FORMULATEXT(C27))+5)-FIND("+",_xlfn.FORMULATEXT(C27),5)),1,100)&"A"&MID(_xlfn.FORMULATEXT(C27),FIND("!",_xlfn.FORMULATEXT(C27),FIND("!",_xlfn.FORMULATEXT(C27))+5)+2,10)) -> BTS (301-750)
A28: Generación (Siguientes en exceso a 751 kWh) | B28: =+'RES DE ACT TARIFARIA-1000'!I$156+'RES DE ACT TARIFARIA-1000'!I$200 -> 0.16245 | C28: =+'RES DE ACT TARIFARIA-1000'!O156+'RES DE ACT TARIFARIA-1000'!O200 -> 0.21922 | E28: =+INDIRECT(MID(MID(_xlfn.FORMULATEXT(C28),1,FIND("!",_xlfn.FORMULATEXT(C28))),3,100)&"A"&MID(_xlfn.FORMULATEXT(C28),FIND("!",_xlfn.FORMULATEXT(C28))+2,FIND("+",_xlfn.FORMULATEXT(C28),5)-FIND("!",_xlfn.FORMULATEXT(C28))-2)) -> BTS (750-más) | F28: =+INDIRECT(MID(MID(_xlfn.FORMULATEXT(C28),FIND("+",_xlfn.FORMULATEXT(C28),5)+1,FIND("!",_xlfn.FORMULATEXT(C28),FIND("!",_xlfn.FORMULATEXT(C28))+5)-FIND("+",_xlfn.FORMULATEXT(C28),5)),1,100)&"A"&MID(_xlfn.FORMULATEXT(C28),FIND("!",_xlfn.FORMULATEXT(C28),FIND("!",_xlfn.FORMULATEXT(C28))+5)+2,10)) -> BTS (750-más)
A29: BTD (0-10,000) | B29: =+B4 -> Ene-Jun/2023 | C29: =+C4 -> Jul-Dic/2023
A30: Cargo Fijo | B30: =+B35 -> 5.31 | C30: =+C35 -> 5.56
A31: Cargo por Energía | B31: =+B36+B40+B43+B44+B47+B48+B51+B52+B38 -> 0.13923 | C31: =+C36+C40+C43+C44+C47+C48+C51+C52+C38 -> 0.12442
A32: Cargo por Demanda Máxima | B32: =+B39+B41+B46+B50 -> 18.69 | C32: =+C39+C41+C46+C50 -> 25.29311
A34: Comercialización
A35: - Fijo | B35: =+'RES DE ACT TARIFARIA-1000-T (2)'!F10 -> 5.31 | C35: =+'RES DE ACT TARIFARIA-1000-T (2)'!L10 -> 5.56 | E35: =+INDIRECT(MID(MID(_xlfn.FORMULATEXT(C35),1,FIND("!",_xlfn.FORMULATEXT(C35))),3,100)&"A"&MID(_xlfn.FORMULATEXT(C35),FIND("!",_xlfn.FORMULATEXT(C35))+2,3)) -> BTD (0-10,000)
A36: - Energía | B36: =+'RES DE ACT TARIFARIA-1000-T (2)'!F26 -> 0.00931 | C36: =+'RES DE ACT TARIFARIA-1000-T (2)'!L26 -> 0.01106 | E36: =+INDIRECT(MID(MID(_xlfn.FORMULATEXT(C36),1,FIND("!",_xlfn.FORMULATEXT(C36))),3,100)&"A"&MID(_xlfn.FORMULATEXT(C36),FIND("!",_xlfn.FORMULATEXT(C36))+2,3)) -> BTD (0-10,000)
A37: Distribución
A38: - Energía | B38: =+'RES DE ACT TARIFARIA-1000-T (2)'!F43 -> 0 | C38: =+'RES DE ACT TARIFARIA-1000-T (2)'!L43 -> 0 | E38: =+INDIRECT(MID(MID(_xlfn.FORMULATEXT(C38),1,FIND("!",_xlfn.FORMULATEXT(C38))),3,100)&"A"&MID(_xlfn.FORMULATEXT(C38),FIND("!",_xlfn.FORMULATEXT(C38))+2,3)) -> BTD (0-10,000)
A39: - Demanda Máxima | B39: =+'RES DE ACT TARIFARIA-1000-T (2)'!F47 -> 17.16 | C39: =+'RES DE ACT TARIFARIA-1000-T (2)'!L47 -> 23.12 | E39: =+INDIRECT(MID(MID(_xlfn.FORMULATEXT(C39),1,FIND("!",_xlfn.FORMULATEXT(C39))),3,100)&"A"&MID(_xlfn.FORMULATEXT(C39),FIND("!",_xlfn.FORMULATEXT(C39))+2,3)) -> BTD (0-10,000)
A40: - Pérdidas Energía en Distribución | B40: =+'RES DE ACT TARIFARIA-1000'!I30 -> 0.01035 | C40: =+'RES DE ACT TARIFARIA-1000'!O30 -> 0.00623 | E40: =+INDIRECT(MID(MID(_xlfn.FORMULATEXT(C40),1,FIND("!",_xlfn.FORMULATEXT(C40))),3,100)&"A"&MID(_xlfn.FORMULATEXT(C40),FIND("!",_xlfn.FORMULATEXT(C40))+2,3)) -> BTD (0-10,000)
A41: - Pérdidas Potencia en Distribución | B41: =+'RES DE ACT TARIFARIA-1000'!I53 + 'RES DE ACT TARIFARIA-1000'!I31 -> 0 | C41: =+'RES DE ACT TARIFARIA-1000'!O53 + 'RES DE ACT TARIFARIA-1000'!O31 -> 0.15311 | E41: =+INDIRECT(MID(MID(_xlfn.FORMULATEXT(C41),1,FIND("!",_xlfn.FORMULATEXT(C41))),3,100)&"A"&MID(_xlfn.FORMULATEXT(C41),FIND("!",_xlfn.FORMULATEXT(C41))+2,3)) -> BTD (0-10,000) | F41: =+INDIRECT(MID(_xlfn.FORMULATEXT(C41),FIND("'",_xlfn.FORMULATEXT(C41),FIND("!",_xlfn.FORMULATEXT(C41))+1),FIND("!",_xlfn.FORMULATEXT(C41),FIND("!",_xlfn.FORMULATEXT(C41))+1) - FIND("'",_xlfn.FORMULATEXT(C41),FIND("!",_xlfn.FORMULATEXT(C41))+1) + 1)&"A"&MID(_xlfn.FORMULATEXT(C41),FIND("!",_xlfn.FORMULATEXT(C41),FIND("!",_xlfn.FORMULATEXT(C41))+1)+2,3)) -> BTD (0-10,000)
A42: Alumbrado Público
A43: - Sistema | B43: =+'RES DE ACT TARIFARIA-1000-T (2)'!F73 -> 0.00182 | C43: =+'RES DE ACT TARIFARIA-1000-T (2)'!L73 -> 0.00125 | E43: =+INDIRECT(MID(MID(_xlfn.FORMULATEXT(C43),1,FIND("!",_xlfn.FORMULATEXT(C43))),3,100)&"A"&MID(_xlfn.FORMULATEXT(C43),FIND("!",_xlfn.FORMULATEXT(C43))+2,3)) -> BTD (0-10,000)
A44: - Consumo de energía | B44: =+'RES DE ACT TARIFARIA-1000'!I70 -> 0.00451 | C44: =+'RES DE ACT TARIFARIA-1000'!O70 -> 0.00366 | E44: =+INDIRECT(MID(MID(_xlfn.FORMULATEXT(C44),1,FIND("!",_xlfn.FORMULATEXT(C44))),3,100)&"A"&MID(_xlfn.FORMULATEXT(C44),FIND("!",_xlfn.FORMULATEXT(C44))+2,3)) -> BTD (0-10,000)
A45: Transmisión
A46: - Demanda Máxima | B46: =+'RES DE ACT TARIFARIA-1000'!I109 -> 0.39 | C46: =+'RES DE ACT TARIFARIA-1000'!O109 -> 0.79 | E46: =+INDIRECT(MID(MID(_xlfn.FORMULATEXT(C46),1,FIND("!",_xlfn.FORMULATEXT(C46))),3,100)&"A"&MID(_xlfn.FORMULATEXT(C46),FIND("!",_xlfn.FORMULATEXT(C46))+2,3)) -> BTD (0-10,000)
A47: - Energía | B47: =+'RES DE ACT TARIFARIA-1000'!I91 -> 0.00359 | C47: =+'RES DE ACT TARIFARIA-1000'!O91 -> 0.0028 | E47: =+INDIRECT(MID(MID(_xlfn.FORMULATEXT(C47),1,FIND("!",_xlfn.FORMULATEXT(C47))),3,100)&"A"&MID(_xlfn.FORMULATEXT(C47),FIND("!",_xlfn.FORMULATEXT(C47))+2,3)) -> BTD (0-10,000)
A48: - Pérdidas de Energía en Transmisión | B48: =+'RES DE ACT TARIFARIA-1000'!I132 -> 0.00016 | C48: =+'RES DE ACT TARIFARIA-1000'!O132 -> 0.00019 | E48: =+INDIRECT(MID(MID(_xlfn.FORMULATEXT(C48),1,FIND("!",_xlfn.FORMULATEXT(C48))),3,100)&"A"&MID(_xlfn.FORMULATEXT(C48),FIND("!",_xlfn.FORMULATEXT(C48))+2,3)) -> BTD (0-10,000)
A49: Generación
A50: - Demanda Máxima | B50: =+'RES DE ACT TARIFARIA-1000'!I161 -> 1.14 | C50: =+'RES DE ACT TARIFARIA-1000'!O161 -> 1.23 | E50: =+INDIRECT(MID(MID(_xlfn.FORMULATEXT(C50),1,FIND("!",_xlfn.FORMULATEXT(C50))),3,100)&"A"&MID(_xlfn.FORMULATEXT(C50),FIND("!",_xlfn.FORMULATEXT(C50))+2,3)) -> BTD
A51: - Energía | B51: =+'RES DE ACT TARIFARIA-1000'!I201 -> 0.09132 | C51: =+'RES DE ACT TARIFARIA-1000'!O201 -> 0.07715 | E51: =+INDIRECT(MID(MID(_xlfn.FORMULATEXT(C51),1,FIND("!",_xlfn.FORMULATEXT(C51))),3,100)&"A"&MID(_xlfn.FORMULATEXT(C51),FIND("!",_xlfn.FORMULATEXT(C51))+2,3)) -> BTD (0-10,000)
A52: - Potencia Energizada | B52: =+'RES DE ACT TARIFARIA-1000'!I157 -> 0.01817 | C52: =+'RES DE ACT TARIFARIA-1000'!O157 -> 0.02208 | E52: =+INDIRECT(MID(MID(_xlfn.FORMULATEXT(C52),1,FIND("!",_xlfn.FORMULATEXT(C52))),3,100)&"A"&MID(_xlfn.FORMULATEXT(C52),FIND("!",_xlfn.FORMULATEXT(C52))+2,3)) -> BTD (0-10,000)
A53: BTD (10,001-30,000) | B53: =+B29 -> Ene-Jun/2023 | C53: =+C29 -> Jul-Dic/2023
A54: Cargo Fijo | B54: =+B59 -> 5.31 | C54: =+C59 -> 5.56
A55: Cargo por Energía | B55: =+B60+B64+B67+B68+B71+B72+B75+B76+B62 -> 0.1476 | C55: =+C60+C64+C67+C68+C71+C72+C75+C76+C62 -> 0.13199
A56: Cargo por Demanda Máxima | B56: =+B63+B65+B70+B74 -> 18.69 | C56: =+C63+C65+C70+C74 -> 25.29311
A58: Comercialización
A59: - Fijo | B59: =+'RES DE ACT TARIFARIA-1000-T (2)'!F$11 -> 5.31 | C59: =+'RES DE ACT TARIFARIA-1000-T (2)'!L$11 -> 5.56 | E59: =+INDIRECT(MID(MID(_xlfn.FORMULATEXT(C59),1,FIND("!",_xlfn.FORMULATEXT(C59))),3,100)&"A"&MID(_xlfn.FORMULATEXT(C59),FIND("!",_xlfn.FORMULATEXT(C59))+2,3)) -> BTD (10,001-30,000)
A60: - Energía | B60: =+'RES DE ACT TARIFARIA-1000-T (2)'!F$27 -> 0.00931 | C60: =+'RES DE ACT TARIFARIA-1000-T (2)'!L$27 -> 0.01106 | E60: =+INDIRECT(MID(MID(_xlfn.FORMULATEXT(C60),1,FIND("!",_xlfn.FORMULATEXT(C60))),3,100)&"A"&MID(_xlfn.FORMULATEXT(C60),FIND("!",_xlfn.FORMULATEXT(C60))+2,3)) -> BTD (10,001-30,000)
A61: Distribución
A62: - Energía | B62: =+'RES DE ACT TARIFARIA-1000-T (2)'!F$44 -> 0 | C62: =+'RES DE ACT TARIFARIA-1000-T (2)'!L$44 -> 0 | E62: =+INDIRECT(MID(MID(_xlfn.FORMULATEXT(C62),1,FIND("!",_xlfn.FORMULATEXT(C62))),3,100)&"A"&MID(_xlfn.FORMULATEXT(C62),FIND("!",_xlfn.FORMULATEXT(C62))+2,3)) -> BTD (10,001-30,000)
A63: - Demanda Máxima | B63: =+'RES DE ACT TARIFARIA-1000-T (2)'!F$48 -> 17.16 | C63: =+'RES DE ACT TARIFARIA-1000-T (2)'!L$48 -> 23.12 | E63: =+INDIRECT(MID(MID(_xlfn.FORMULATEXT(C63),1,FIND("!",_xlfn.FORMULATEXT(C63))),3,100)&"A"&MID(_xlfn.FORMULATEXT(C63),FIND("!",_xlfn.FORMULATEXT(C63))+2,3)) -> BTD (10,001-30,000)
A64: - Pérdidas Energía en Distribución | B64: =+'RES DE ACT TARIFARIA-1000'!I$32 -> 0.01035 | C64: =+'RES DE ACT TARIFARIA-1000'!O$32 -> 0.00623 | E64: =+INDIRECT(MID(MID(_xlfn.FORMULATEXT(C64),1,FIND("!",_xlfn.FORMULATEXT(C64))),3,100)&"A"&MID(_xlfn.FORMULATEXT(C64),FIND("!",_xlfn.FORMULATEXT(C64))+2,3)) -> BTD (10,001-30,000)
A65: - Pérdidas Potencia en Distribución | B65: =+'RES DE ACT TARIFARIA-1000'!I$54 + 'RES DE ACT TARIFARIA-1000'!I33 -> 0 | C65: =+'RES DE ACT TARIFARIA-1000'!O$54 + 'RES DE ACT TARIFARIA-1000'!O33 -> 0.15311 | E65: =+INDIRECT(MID(MID(_xlfn.FORMULATEXT(C65),1,FIND("!",_xlfn.FORMULATEXT(C65))),3,100)&"A"&MID(_xlfn.FORMULATEXT(C65),FIND("!",_xlfn.FORMULATEXT(C65))+2,3)) -> BTD (10,001-30,000) | F65: =+INDIRECT(MID(_xlfn.FORMULATEXT(C65),FIND("'",_xlfn.FORMULATEXT(C65),FIND("!",_xlfn.FORMULATEXT(C65))+1),FIND("!",_xlfn.FORMULATEXT(C65),FIND("!",_xlfn.FORMULATEXT(C65))+1) - FIND("'",_xlfn.FORMULATEXT(C65),FIND("!",_xlfn.FORMULATEXT(C65))+1) + 1)&"A"&MID(_xlfn.FORMULATEXT(C65),FIND("!",_xlfn.FORMULATEXT(C65),FIND("!",_xlfn.FORMULATEXT(C65))+1)+2,3)) -> BTD (10,001-30,000)
A66: Alumbrado Público
A67: - Sistema | B67: =+'RES DE ACT TARIFARIA-1000-T (2)'!F$74 -> 0.00182 | C67: =+'RES DE ACT TARIFARIA-1000-T (2)'!L$74 -> 0.00125 | E67: =+INDIRECT(MID(MID(_xlfn.FORMULATEXT(C67),1,FIND("!",_xlfn.FORMULATEXT(C67))),3,100)&"A"&MID(_xlfn.FORMULATEXT(C67),FIND("!",_xlfn.FORMULATEXT(C67))+2,3)) -> BTD (10,001-30,000)
A68: - Consumo de energía | B68: =+'RES DE ACT TARIFARIA-1000'!I$71 -> 0.00451 | C68: =+'RES DE ACT TARIFARIA-1000'!O$71 -> 0.00366 | E68: =+INDIRECT(MID(MID(_xlfn.FORMULATEXT(C68),1,FIND("!",_xlfn.FORMULATEXT(C68))),3,100)&"A"&MID(_xlfn.FORMULATEXT(C68),FIND("!",_xlfn.FORMULATEXT(C68))+2,3)) -> BTD (10,001-30,000)
A69: Transmisión
A70: - Demanda Máxima | B70: =+'RES DE ACT TARIFARIA-1000'!I$110 -> 0.39 | C70: =+'RES DE ACT TARIFARIA-1000'!O$110 -> 0.79 | E70: =+INDIRECT(MID(MID(_xlfn.FORMULATEXT(C70),1,FIND("!",_xlfn.FORMULATEXT(C70))),3,100)&"A"&MID(_xlfn.FORMULATEXT(C70),FIND("!",_xlfn.FORMULATEXT(C70))+3,3)) -> BTD (10,001-30,000)
A71: - Energía | B71: =+'RES DE ACT TARIFARIA-1000'!I$92 -> 0.00359 | C71: =+'RES DE ACT TARIFARIA-1000'!O$92 -> 0.0028 | E71: =+INDIRECT(MID(MID(_xlfn.FORMULATEXT(C71),1,FIND("!",_xlfn.FORMULATEXT(C71))),3,100)&"A"&MID(_xlfn.FORMULATEXT(C71),FIND("!",_xlfn.FORMULATEXT(C71))+2,3)) -> BTD (10,001-30,000)
A72: - Pérdidas de Energía en Transmisión | B72: =+'RES DE ACT TARIFARIA-1000'!I$133 -> 0.00016 | C72: =+'RES DE ACT TARIFARIA-1000'!O$133 -> 0.00019 | E72: =+INDIRECT(MID(MID(_xlfn.FORMULATEXT(C72),1,FIND("!",_xlfn.FORMULATEXT(C72))),3,100)&"A"&MID(_xlfn.FORMULATEXT(C72),FIND("!",_xlfn.FORMULATEXT(C72))+3,3)) -> BTD (10,001-30,000)
A73: Generación
A74: - Demanda Máxima | B74: =+'RES DE ACT TARIFARIA-1000'!I$161 -> 1.14 | C74: =+'RES DE ACT TARIFARIA-1000'!O$161 -> 1.23 | E74: =+INDIRECT(MID(MID(_xlfn.FORMULATEXT(C74),1,FIND("!",_xlfn.FORMULATEXT(C74))),3,100)&"A"&MID(_xlfn.FORMULATEXT(C74),FIND("!",_xlfn.FORMULATEXT(C74))+3,3)) -> BTD
A75: - Energía | B75: =+'RES DE ACT TARIFARIA-1000'!I$202 -> 0.0983 | C75: =+'RES DE ACT TARIFARIA-1000'!O$202 -> 0.08303 | E75: =+INDIRECT(MID(MID(_xlfn.FORMULATEXT(C75),1,FIND("!",_xlfn.FORMULATEXT(C75))),3,100)&"A"&MID(_xlfn.FORMULATEXT(C75),FIND("!",_xlfn.FORMULATEXT(C75))+3,3)) -> BTD (10,001-30,000)
A76: - Potencia Energizada | B76: =+'RES DE ACT TARIFARIA-1000'!I$158 -> 0.01956 | C76: =+'RES DE ACT TARIFARIA-1000'!O$158 -> 0.02377 | E76: =+INDIRECT(MID(MID(_xlfn.FORMULATEXT(C76),1,FIND("!",_xlfn.FORMULATEXT(C76))),3,100)&"A"&MID(_xlfn.FORMULATEXT(C76),FIND("!",_xlfn.FORMULATEXT(C76))+3,3)) -> BTD (10,001-30,000)
A77: BTD (30,001-50,000) | B77: =+B53 -> Ene-Jun/2023 | C77: =+C53 -> Jul-Dic/2023
A78: Cargo Fijo | B78: =+B83 -> 5.31 | C78: =+C83 -> 5.56
A79: Cargo por Energía | B79: =+B84+B88+B91+B92+B95+B96+B99+B100+B86 -> 0.15346 | C79: =+C84+C88+C91+C92+C95+C96+C99+C100+C86 -> 0.13728
A80: Cargo por Demanda Máxima | B80: =+B87+B89+B94+B98 -> 18.69 | C80: =+C87+C89+C94+C98 -> 25.29311
A82: Comercialización
A83: - Fijo | B83: =+'RES DE ACT TARIFARIA-1000-T (2)'!F$12 -> 5.31 | C83: =+'RES DE ACT TARIFARIA-1000-T (2)'!L$12 -> 5.56 | E83: =+INDIRECT(MID(MID(_xlfn.FORMULATEXT(C83),1,FIND("!",_xlfn.FORMULATEXT(C83))),3,100)&"A"&MID(_xlfn.FORMULATEXT(C83),FIND("!",_xlfn.FORMULATEXT(C83))+3,3)) -> BTD (30,001-50,000)
A84: - Energía | B84: =+'RES DE ACT TARIFARIA-1000-T (2)'!F$28 -> 0.00931 | C84: =+'RES DE ACT TARIFARIA-1000-T (2)'!L$28 -> 0.01106 | E84: =+INDIRECT(MID(MID(_xlfn.FORMULATEXT(C84),1,FIND("!",_xlfn.FORMULATEXT(C84))),3,100)&"A"&MID(_xlfn.FORMULATEXT(C84),FIND("!",_xlfn.FORMULATEXT(C84))+3,3)) -> BTD (30,001-50,000)
A85: Distribución
A86: - Energía | B86: =+'RES DE ACT TARIFARIA-1000-T (2)'!F$45 -> 0 | C86: =+'RES DE ACT TARIFARIA-1000-T (2)'!L$45 -> 0 | E86: =+INDIRECT(MID(MID(_xlfn.FORMULATEXT(C86),1,FIND("!",_xlfn.FORMULATEXT(C86))),3,100)&"A"&MID(_xlfn.FORMULATEXT(C86),FIND("!",_xlfn.FORMULATEXT(C86))+3,3)) -> BTD (30,001-50,000)
A87: - Demanda Máxima | B87: =+'RES DE ACT TARIFARIA-1000-T (2)'!F$49 -> 17.16 | C87: =+'RES DE ACT TARIFARIA-1000-T (2)'!L$49 -> 23.12 | E87: =+INDIRECT(MID(MID(_xlfn.FORMULATEXT(C87),1,FIND("!",_xlfn.FORMULATEXT(C87))),3,100)&"A"&MID(_xlfn.FORMULATEXT(C87),FIND("!",_xlfn.FORMULATEXT(C87))+3,3)) -> BTD (30,001-50,000)
A88: - Pérdidas Energía en Distribución | B88: =+'RES DE ACT TARIFARIA-1000'!I$34 -> 0.01035 | C88: =+'RES DE ACT TARIFARIA-1000'!O$34 -> 0.00623 | E88: =+INDIRECT(MID(MID(_xlfn.FORMULATEXT(C88),1,FIND("!",_xlfn.FORMULATEXT(C88))),3,100)&"A"&MID(_xlfn.FORMULATEXT(C88),FIND("!",_xlfn.FORMULATEXT(C88))+3,3)) -> BTD (30,001-50,000)
A89: - Pérdidas Potencia en Distribución | B89: =+'RES DE ACT TARIFARIA-1000'!I$55 + 'RES DE ACT TARIFARIA-1000'!I35 -> 0 | C89: =+'RES DE ACT TARIFARIA-1000'!O$55 + 'RES DE ACT TARIFARIA-1000'!O35 -> 0.15311 | E89: =+INDIRECT(MID(MID(_xlfn.FORMULATEXT(C89),1,FIND("!",_xlfn.FORMULATEXT(C89))),3,100)&"A"&MID(_xlfn.FORMULATEXT(C89),FIND("!",_xlfn.FORMULATEXT(C89))+3,3)) -> BTD (30,001-50,000) | F89: =+INDIRECT(MID(_xlfn.FORMULATEXT(C89),FIND("'",_xlfn.FORMULATEXT(C89),FIND("!",_xlfn.FORMULATEXT(C89))+1),FIND("!",_xlfn.FORMULATEXT(C89),FIND("!",_xlfn.FORMULATEXT(C89))+1) - FIND("'",_xlfn.FORMULATEXT(C89),FIND("!",_xlfn.FORMULATEXT(C89))+1) + 1)&"A"&MID(_xlfn.FORMULATEXT(C89),FIND("!",_xlfn.FORMULATEXT(C89),FIND("!",_xlfn.FORMULATEXT(C89))+1)+2,3)) -> BTD (30,001-50,000)
A90: Alumbrado Público
A91: - Sistema | B91: =+'RES DE ACT TARIFARIA-1000-T (2)'!F$75 -> 0.00182 | C91: =+'RES DE ACT TARIFARIA-1000-T (2)'!L$75 -> 0.00125 | E91: =+INDIRECT(MID(MID(_xlfn.FORMULATEXT(C91),1,FIND("!",_xlfn.FORMULATEXT(C91))),3,100)&"A"&MID(_xlfn.FORMULATEXT(C91),FIND("!",_xlfn.FORMULATEXT(C91))+3,3)) -> BTD (30,001-50,000)
A92: - Consumo de energía | B92: =+'RES DE ACT TARIFARIA-1000'!I$72 -> 0.00451 | C92: =+'RES DE ACT TARIFARIA-1000'!O$72 -> 0.00366 | E92: =+INDIRECT(MID(MID(_xlfn.FORMULATEXT(C92),1,FIND("!",_xlfn.FORMULATEXT(C92))),3,100)&"A"&MID(_xlfn.FORMULATEXT(C92),FIND("!",_xlfn.FORMULATEXT(C92))+3,3)) -> BTD (30,001-50,000)
A93: Transmisión
A94: - Demanda Máxima | B94: =+'RES DE ACT TARIFARIA-1000'!I$111 -> 0.39 | C94: =+'RES DE ACT TARIFARIA-1000'!O$111 -> 0.79 | E94: =+INDIRECT(MID(MID(_xlfn.FORMULATEXT(C94),1,FIND("!",_xlfn.FORMULATEXT(C94))),3,100)&"A"&MID(_xlfn.FORMULATEXT(C94),FIND("!",_xlfn.FORMULATEXT(C94))+3,3)) -> BTD (30,001-50,000)
A95: - Energía | B95: =+'RES DE ACT TARIFARIA-1000'!I$93 -> 0.00359 | C95: =+'RES DE ACT TARIFARIA-1000'!O$93 -> 0.0028 | E95: =+INDIRECT(MID(MID(_xlfn.FORMULATEXT(C95),1,FIND("!",_xlfn.FORMULATEXT(C95))),3,100)&"A"&MID(_xlfn.FORMULATEXT(C95),FIND("!",_xlfn.FORMULATEXT(C95))+3,3)) -> BTD (30,001-50,000)
A96: - Pérdidas de Energía en Transmisión | B96: =+'RES DE ACT TARIFARIA-1000'!I$134 -> 0.00016 | C96: =+'RES DE ACT TARIFARIA-1000'!O$134 -> 0.00019 | E96: =+INDIRECT(MID(MID(_xlfn.FORMULATEXT(C96),1,FIND("!",_xlfn.FORMULATEXT(C96))),3,100)&"A"&MID(_xlfn.FORMULATEXT(C96),FIND("!",_xlfn.FORMULATEXT(C96))+3,3)) -> BTD (30,001-50,000)
A97: Generación
A98: - Demanda Máxima | B98: =+'RES DE ACT TARIFARIA-1000'!I$161 -> 1.14 | C98: =+'RES DE ACT TARIFARIA-1000'!O$161 -> 1.23 | E98: =+INDIRECT(MID(MID(_xlfn.FORMULATEXT(C98),1,FIND("!",_xlfn.FORMULATEXT(C98))),3,100)&"A"&MID(_xlfn.FORMULATEXT(C98),FIND("!",_xlfn.FORMULATEXT(C98))+3,3)) -> BTD
A99: - Energía | B99: =+'RES DE ACT TARIFARIA-1000'!I$203 -> 0.1032 | C99: =+'RES DE ACT TARIFARIA-1000'!O$203 -> 0.08716 | E99: =+INDIRECT(MID(MID(_xlfn.FORMULATEXT(C99),1,FIND("!",_xlfn.FORMULATEXT(C99))),3,100)&"A"&MID(_xlfn.FORMULATEXT(C99),FIND("!",_xlfn.FORMULATEXT(C99))+3,3)) -> BTD (30,001-50,000)
A100: - Potencia Energizada | B100: =+'RES DE ACT TARIFARIA-1000'!I$159 -> 0.02052 | C100: =+'RES DE ACT TARIFARIA-1000'!O$159 -> 0.02493 | E100: =+INDIRECT(MID(MID(_xlfn.FORMULATEXT(C100),1,FIND("!",_xlfn.FORMULATEXT(C100))),3,100)&"A"&MID(_xlfn.FORMULATEXT(C100),FIND("!",_xlfn.FORMULATEXT(C100))+3,3)) -> BTD (30,001-50,000)
A101: BTD (50,001-más) | B101: =+B77 -> Ene-Jun/2023 | C101: =+C77 -> Jul-Dic/2023
A102: Cargo Fijo | B102: =+B107 -> 5.31 | C102: =+C107 -> 5.56
A103: Cargo por Energía | B103: =+B108+B112+B115+B116+B119+B120+B123+B124+B110 -> 0.18025 | C103: =+C108+C112+C115+C116+C119+C120+C123+C124+C110 -> 0.16149
A104: Cargo por Demanda Máxima | B104: =+B111+B113+B118+B122 -> 18.69 | C104: =+C111+C113+C118+C122 -> 25.29311
A106: Comercialización
A107: - Fijo | B107: =+'RES DE ACT TARIFARIA-1000-T (2)'!F$13 -> 5.31 | C107: =+'RES DE ACT TARIFARIA-1000-T (2)'!L$13 -> 5.56 | E107: =+INDIRECT(MID(MID(_xlfn.FORMULATEXT(C107),1,FIND("!",_xlfn.FORMULATEXT(C107))),3,100)&"A"&MID(_xlfn.FORMULATEXT(C107),FIND("!",_xlfn.FORMULATEXT(C107))+3,3)) -> BTD (50,001-más)
A108: - Energía | B108: =+'RES DE ACT TARIFARIA-1000-T (2)'!F$29 -> 0.00931 | C108: =+'RES DE ACT TARIFARIA-1000-T (2)'!L$29 -> 0.01106 | E108: =+INDIRECT(MID(MID(_xlfn.FORMULATEXT(C108),1,FIND("!",_xlfn.FORMULATEXT(C108))),3,100)&"A"&MID(_xlfn.FORMULATEXT(C108),FIND("!",_xlfn.FORMULATEXT(C108))+3,3)) -> BTD (50,001-más)
A109: Distribución
A110: - Energía | B110: =+'RES DE ACT TARIFARIA-1000-T (2)'!F$46 -> 0 | C110: =+'RES DE ACT TARIFARIA-1000-T (2)'!L$46 -> 0 | E110: =+INDIRECT(MID(MID(_xlfn.FORMULATEXT(C110),1,FIND("!",_xlfn.FORMULATEXT(C110))),3,100)&"A"&MID(_xlfn.FORMULATEXT(C110),FIND("!",_xlfn.FORMULATEXT(C110))+3,3)) -> BTD (50,001-más)
A111: - Demanda Máxima | B111: =+'RES DE ACT TARIFARIA-1000-T (2)'!F$50 -> 17.16 | C111: =+'RES DE ACT TARIFARIA-1000-T (2)'!L$50 -> 23.12 | E111: =+INDIRECT(MID(MID(_xlfn.FORMULATEXT(C111),1,FIND("!",_xlfn.FORMULATEXT(C111))),3,100)&"A"&MID(_xlfn.FORMULATEXT(C111),FIND("!",_xlfn.FORMULATEXT(C111))+3,3)) -> BTD (50,001-más)
A112: - Pérdidas Energía en Distribución | B112: =+'RES DE ACT TARIFARIA-1000'!I$36 -> 0.01035 | C112: =+'RES DE ACT TARIFARIA-1000'!O$36 -> 0.00623 | E112: =+INDIRECT(MID(MID(_xlfn.FORMULATEXT(C112),1,FIND("!",_xlfn.FORMULATEXT(C112))),3,100)&"A"&MID(_xlfn.FORMULATEXT(C112),FIND("!",_xlfn.FORMULATEXT(C112))+3,3)) -> BTD (50,001-más)
A113: - Pérdidas Potencia en Distribución | B113: =+'RES DE ACT TARIFARIA-1000'!I$56 + 'RES DE ACT TARIFARIA-1000'!I37 -> 0 | C113: =+'RES DE ACT TARIFARIA-1000'!O$56 + 'RES DE ACT TARIFARIA-1000'!O37 -> 0.15311 | E113: =+INDIRECT(MID(MID(_xlfn.FORMULATEXT(C113),1,FIND("!",_xlfn.FORMULATEXT(C113))),3,100)&"A"&MID(_xlfn.FORMULATEXT(C113),FIND("!",_xlfn.FORMULATEXT(C113))+3,3)) -> BTD (50,001-más) | F113: =+INDIRECT(MID(_xlfn.FORMULATEXT(C113),FIND("'",_xlfn.FORMULATEXT(C113),FIND("!",_xlfn.FORMULATEXT(C113))+1),FIND("!",_xlfn.FORMULATEXT(C113),FIND("!",_xlfn.FORMULATEXT(C113))+1) - FIND("'",_xlfn.FORMULATEXT(C113),FIND("!",_xlfn.FORMULATEXT(C113))+1) + 1)&"A"&MID(_xlfn.FORMULATEXT(C113),FIND("!",_xlfn.FORMULATEXT(C113),FIND("!",_xlfn.FORMULATEXT(C113))+1)+2,3)) -> BTD (50,001-más)
A114: Alumbrado Público
A115: - Sistema | B115: =+'RES DE ACT TARIFARIA-1000-T (2)'!F$76 -> 0.00182 | C115: =+'RES DE ACT TARIFARIA-1000-T (2)'!L$76 -> 0.00125 | E115: =+INDIRECT(MID(MID(_xlfn.FORMULATEXT(C115),1,FIND("!",_xlfn.FORMULATEXT(C115))),3,100)&"A"&MID(_xlfn.FORMULATEXT(C115),FIND("!",_xlfn.FORMULATEXT(C115))+3,3)) -> BTD (50,001-más)
A116: - Consumo de energía | B116: =+'RES DE ACT TARIFARIA-1000'!I$73 -> 0.00451 | C116: =+'RES DE ACT TARIFARIA-1000'!O$73 -> 0.00366 | E116: =+INDIRECT(MID(MID(_xlfn.FORMULATEXT(C116),1,FIND("!",_xlfn.FORMULATEXT(C116))),3,100)&"A"&MID(_xlfn.FORMULATEXT(C116),FIND("!",_xlfn.FORMULATEXT(C116))+3,3)) -> BTD (50,001-más)
A117: Transmisión
A118: - Demanda Máxima | B118: =+'RES DE ACT TARIFARIA-1000'!I$112 -> 0.39 | C118: =+'RES DE ACT TARIFARIA-1000'!O$112 -> 0.79 | E118: =+INDIRECT(MID(MID(_xlfn.FORMULATEXT(C118),1,FIND("!",_xlfn.FORMULATEXT(C118))),3,100)&"A"&MID(_xlfn.FORMULATEXT(C118),FIND("!",_xlfn.FORMULATEXT(C118))+3,3)) -> BTD (50,001-más)
A119: - Energía | B119: =+'RES DE ACT TARIFARIA-1000'!I$94 -> 0.00359 | C119: =+'RES DE ACT TARIFARIA-1000'!O$94 -> 0.0028 | E119: =+INDIRECT(MID(MID(_xlfn.FORMULATEXT(C119),1,FIND("!",_xlfn.FORMULATEXT(C119))),3,100)&"A"&MID(_xlfn.FORMULATEXT(C119),FIND("!",_xlfn.FORMULATEXT(C119))+3,3)) -> BTD (50,001-más)
A120: - Pérdidas de Energía en Transmisión | B120: =+'RES DE ACT TARIFARIA-1000'!I$135 -> 0.00016 | C120: =+'RES DE ACT TARIFARIA-1000'!O$135 -> 0.00019 | E120: =+INDIRECT(MID(MID(_xlfn.FORMULATEXT(C120),1,FIND("!",_xlfn.FORMULATEXT(C120))),3,100)&"A"&MID(_xlfn.FORMULATEXT(C120),FIND("!",_xlfn.FORMULATEXT(C120))+3,3)) -> BTD (50,001-más)
A121: Generación
A122: - Demanda Máxima | B122: =+'RES DE ACT TARIFARIA-1000'!I$161 -> 1.14 | C122: =+'RES DE ACT TARIFARIA-1000'!O$161 -> 1.23 | E122: =+INDIRECT(MID(MID(_xlfn.FORMULATEXT(C122),1,FIND("!",_xlfn.FORMULATEXT(C122))),3,100)&"A"&MID(_xlfn.FORMULATEXT(C122),FIND("!",_xlfn.FORMULATEXT(C122))+3,3)) -> BTD
A123: - Energía | B123: =+'RES DE ACT TARIFARIA-1000'!I$204 -> 0.12554 | C123: =+'RES DE ACT TARIFARIA-1000'!O$204 -> 0.10596 | E123: =+INDIRECT(MID(MID(_xlfn.FORMULATEXT(C123),1,FIND("!",_xlfn.FORMULATEXT(C123))),3,100)&"A"&MID(_xlfn.FORMULATEXT(C123),FIND("!",_xlfn.FORMULATEXT(C123))+3,3)) -> BTD (50,001-más)
A124: - Potencia Energizada | B124: =+'RES DE ACT TARIFARIA-1000'!I$160 -> 0.02497 | C124: =+'RES DE ACT TARIFARIA-1000'!O$160 -> 0.03034 | E124: =+INDIRECT(MID(MID(_xlfn.FORMULATEXT(C124),1,FIND("!",_xlfn.FORMULATEXT(C124))),3,100)&"A"&MID(_xlfn.FORMULATEXT(C124),FIND("!",_xlfn.FORMULATEXT(C124))+3,3)) -> BTD (50,001-más)
A125: BTH | B125: =+B4 -> Ene-Jun/2023 | C125: =+C4 -> Jul-Dic/2023
A126: Cargo Fijo | B126: =+B135 -> 5.31 | C126: =+C135 -> 5.56
A127: Cargo por Energía en Punta | B127: =+B136+B141+B146+B147+B152+B153+B156+B159 -> 0.21497 | C127: =+C136+C141+C146+C147+C152+C153+C156+C159 -> 0.24531
A128: Cargo por Energía Fuera de Punta Medio | B128: =+B136+B142+B146+B147+B152+B153+B157+B159 -> 0.14655 | C128: =+C136+C142+C146+C147+C152+C153+C157+C159 -> 0.13283
A129: Cargo por Energía Fuera de Punta Bajo | C129: =+C136+C143+C146+C147+C152+C153+C158+C159 -> 0.08217
A130: Cargo por Demanda Máxima en Punta | B130: =+B138+B144+B149+B155 -> 21.3 | C130: =+C138+C144+C149+C155 -> 30.24
A131: Cargo por Demanda Máxima Fuera de Punta Medio | B131: =+B139+B150+B144 -> 5.6 | C131: =+C139+C150+C144 -> 9.42
A132: Cargo por Demanda Máxima Fuera de Punta Bajo | B132: =+B140+B151+B144 -> 0 | C132: =+C140+C151+C144 -> 9.42
A134: Comercialización
A135: - Fijo | B135: =+'RES DE ACT TARIFARIA-1000-T (2)'!F14 -> 5.31 | C135: =+'RES DE ACT TARIFARIA-1000-T (2)'!L14 -> 5.56 | E135: =+INDIRECT(MID(MID(_xlfn.FORMULATEXT(C135),1,FIND("!",_xlfn.FORMULATEXT(C135))),3,100)&"A"&MID(_xlfn.FORMULATEXT(C135),FIND("!",_xlfn.FORMULATEXT(C135))+2,3)) -> BTH
A136: - Energía | B136: =+'RES DE ACT TARIFARIA-1000-T (2)'!F30 -> 0.00928 | C136: =+'RES DE ACT TARIFARIA-1000-T (2)'!L30 -> 0.01103 | E136: =+INDIRECT(MID(MID(_xlfn.FORMULATEXT(C136),1,FIND("!",_xlfn.FORMULATEXT(C136))),3,100)&"A"&MID(_xlfn.FORMULATEXT(C136),FIND("!",_xlfn.FORMULATEXT(C136))+2,3)) -> BTH
A137: Distribución
A138: - Demanda Máxima en Punta | B138: =+'RES DE ACT TARIFARIA-1000-T (2)'!F57 -> 17.53 | C138: =+'RES DE ACT TARIFARIA-1000-T (2)'!L57 -> 23.62 | E138: =+INDIRECT(MID(MID(_xlfn.FORMULATEXT(C138),1,FIND("!",_xlfn.FORMULATEXT(C138))),3,100)&"A"&MID(_xlfn.FORMULATEXT(C138),FIND("!",_xlfn.FORMULATEXT(C138))+2,3)) -> BTH
A139: - Demanda Máxima Fuera de Punta Medio | B139: =+'RES DE ACT TARIFARIA-1000-T (2)'!F61 -> 2.12 | C139: =+'RES DE ACT TARIFARIA-1000-T (2)'!L61 -> 2.86 | E139: =+INDIRECT(MID(MID(_xlfn.FORMULATEXT(C139),1,FIND("!",_xlfn.FORMULATEXT(C139))),3,100)&"A"&MID(_xlfn.FORMULATEXT(C139),FIND("!",_xlfn.FORMULATEXT(C139))+2,3)) -> BTH
A140: - Demanda Máxima Fuera de Punta Bajo | C140: =+'RES DE ACT TARIFARIA-1000-T (2)'!L65 -> 2.86 | E140: =+INDIRECT(MID(MID(_xlfn.FORMULATEXT(C140),1,FIND("!",_xlfn.FORMULATEXT(C140))),3,100)&"A"&MID(_xlfn.FORMULATEXT(C140),FIND("!",_xlfn.FORMULATEXT(C140))+2,3)) -> BTH
A141: - Pérdidas Energía Distribución en Punta | B141: =+'RES DE ACT TARIFARIA-1000'!I6 -> 0.01271 | C141: =+'RES DE ACT TARIFARIA-1000'!O6 -> 0.00765 | E141: =+INDIRECT(MID(MID(_xlfn.FORMULATEXT(C141),1,FIND("!",_xlfn.FORMULATEXT(C141))),3,100)&"A"&MID(_xlfn.FORMULATEXT(C141),FIND("!",_xlfn.FORMULATEXT(C141))+2,3)) -> BTH
A142: - Pérdidas Energía Distribución Fuera de Punta Medio | B142: =+'RES DE ACT TARIFARIA-1000'!I13 -> 0.00959 | C142: =+'RES DE ACT TARIFARIA-1000'!O13 -> 0.00577 | E142: =+INDIRECT(MID(MID(_xlfn.FORMULATEXT(C142),1,FIND("!",_xlfn.FORMULATEXT(C142))),3,100)&"A"&MID(_xlfn.FORMULATEXT(C142),FIND("!",_xlfn.FORMULATEXT(C142))+2,3)) -> BTH
A143: - Pérdidas Energía Distribución Fuera de Punta Bajo | B143: =+'RES DE ACT TARIFARIA-1000'!I20 -> 0 | C143: =+'RES DE ACT TARIFARIA-1000'!O20 -> 0.00577 | E143: =+INDIRECT(MID(MID(_xlfn.FORMULATEXT(C143),1,FIND("!",_xlfn.FORMULATEXT(C143))),3,100)&"A"&MID(_xlfn.FORMULATEXT(C143),FIND("!",_xlfn.FORMULATEXT(C143))+2,3)) -> BTH
A144: - Pérdidas Potencia en Distribución | B144: =+'RES DE ACT TARIFARIA-1000'!I57 + 'RES DE ACT TARIFARIA-1000'!I7 -> 0 | C144: =+'RES DE ACT TARIFARIA-1000'!O57 + 'RES DE ACT TARIFARIA-1000'!O7 -> 0.11 | E144: =+INDIRECT(MID(MID(_xlfn.FORMULATEXT(C144),1,FIND("!",_xlfn.FORMULATEXT(C144))),3,100)&"A"&MID(_xlfn.FORMULATEXT(C144),FIND("!",_xlfn.FORMULATEXT(C144))+2,3)) -> BTH | F144: =+INDIRECT(MID(_xlfn.FORMULATEXT(C144),FIND("'",_xlfn.FORMULATEXT(C144),FIND("!",_xlfn.FORMULATEXT(C144))+1),FIND("!",_xlfn.FORMULATEXT(C144),FIND("!",_xlfn.FORMULATEXT(C144))+1) - FIND("'",_xlfn.FORMULATEXT(C144),FIND("!",_xlfn.FORMULATEXT(C144))+1) + 1)&"A"&MID(_xlfn.FORMULATEXT(C144),FIND("!",_xlfn.FORMULATEXT(C144),FIND("!",_xlfn.FORMULATEXT(C144))+1)+2,3)) -> BTH
A145: Alumbrado Público
A146: - Sistema | B146: =+'RES DE ACT TARIFARIA-1000-T (2)'!F77 -> 0.00181 | C146: =+'RES DE ACT TARIFARIA-1000-T (2)'!L77 -> 0.00124 | E146: =+INDIRECT(MID(MID(_xlfn.FORMULATEXT(C146),1,FIND("!",_xlfn.FORMULATEXT(C146))),3,100)&"A"&MID(_xlfn.FORMULATEXT(C146),FIND("!",_xlfn.FORMULATEXT(C146))+2,3)) -> BTH
A147: - Consumo de energía | B147: =+'RES DE ACT TARIFARIA-1000'!I74 -> 0.0045 | C147: =+'RES DE ACT TARIFARIA-1000'!O74 -> 0.00365 | E147: =+INDIRECT(MID(MID(_xlfn.FORMULATEXT(C147),1,FIND("!",_xlfn.FORMULATEXT(C147))),3,100)&"A"&MID(_xlfn.FORMULATEXT(C147),FIND("!",_xlfn.FORMULATEXT(C147))+2,3)) -> BTH
A148: Transmisión
A149: - Demanda en Punta | B149: =+'RES DE ACT TARIFARIA-1000'!I113 -> 3.48 | C149: =+'RES DE ACT TARIFARIA-1000'!O113 -> 6.45 | E149: =+INDIRECT(MID(MID(_xlfn.FORMULATEXT(C149),1,FIND("!",_xlfn.FORMULATEXT(C149))),3,100)&"A"&MID(_xlfn.FORMULATEXT(C149),FIND("!",_xlfn.FORMULATEXT(C149))+2,3)) -> BTH Punta
A150: - Demanda Fuera de Punta Medio | B150: =+'RES DE ACT TARIFARIA-1000'!I114 -> 3.48 | C150: =+'RES DE ACT TARIFARIA-1000'!O114 -> 6.45 | E150: =+INDIRECT(MID(MID(_xlfn.FORMULATEXT(C150),1,FIND("!",_xlfn.FORMULATEXT(C150))),3,100)&"A"&MID(_xlfn.FORMULATEXT(C150),FIND("!",_xlfn.FORMULATEXT(C150))+2,3)) -> BTH Fuera de Punta Medio
A151: - Demanda Fuera de Punta Bajo | B151: =+'RES DE ACT TARIFARIA-1000'!I115 -> 0 | C151: =+'RES DE ACT TARIFARIA-1000'!O115 -> 6.45 | E151: =+INDIRECT(MID(MID(_xlfn.FORMULATEXT(C151),1,FIND("!",_xlfn.FORMULATEXT(C151))),3,100)&"A"&MID(_xlfn.FORMULATEXT(C151),FIND("!",_xlfn.FORMULATEXT(C151))+2,3)) -> BTH Fuera de Punta Bajo
A152: - Energía | B152: =+'RES DE ACT TARIFARIA-1000'!I95 -> 0.03255 | C152: =+'RES DE ACT TARIFARIA-1000'!O95 -> 0.03179 | E152: =+INDIRECT(MID(MID(_xlfn.FORMULATEXT(C152),1,FIND("!",_xlfn.FORMULATEXT(C152))),3,100)&"A"&MID(_xlfn.FORMULATEXT(C152),FIND("!",_xlfn.FORMULATEXT(C152))+2,3)) -> BTH
A153: - Pérdidas de Energía en Transmisión | B153: =+'RES DE ACT TARIFARIA-1000'!I136 -> 0.00016 | C153: =+'RES DE ACT TARIFARIA-1000'!O136 -> 0.00019 | E153: =+INDIRECT(MID(MID(_xlfn.FORMULATEXT(C153),1,FIND("!",_xlfn.FORMULATEXT(C153))),3,100)&"A"&MID(_xlfn.FORMULATEXT(C153),FIND("!",_xlfn.FORMULATEXT(C153))+2,3)) -> BTH
A154: Generación
A155: - Demanda Máxima | B155: =+'RES DE ACT TARIFARIA-1000'!I165 -> 0.29 | C155: =+'RES DE ACT TARIFARIA-1000'!O165 -> 0.06 | E155: =+INDIRECT(MID(MID(_xlfn.FORMULATEXT(C155),1,FIND("!",_xlfn.FORMULATEXT(C155))),3,100)&"A"&MID(_xlfn.FORMULATEXT(C155),FIND("!",_xlfn.FORMULATEXT(C155))+2,3)) -> BTH Punta
A156: - Energía en Punta | B156: =+'RES DE ACT TARIFARIA-1000'!I186 -> 0.15138 | C156: =+'RES DE ACT TARIFARIA-1000'!O186 -> 0.18908 | E156: =+INDIRECT(MID(MID(_xlfn.FORMULATEXT(C156),1,FIND("!",_xlfn.FORMULATEXT(C156))),3,100)&"A"&MID(_xlfn.FORMULATEXT(C156),FIND("!",_xlfn.FORMULATEXT(C156))+2,3)) -> BTH
A157: - Energía Fuera de Punta Medio | B157: =+'RES DE ACT TARIFARIA-1000'!I190 -> 0.08608 | C157: =+'RES DE ACT TARIFARIA-1000'!O190 -> 0.07848 | E157: =+INDIRECT(MID(MID(_xlfn.FORMULATEXT(C157),1,FIND("!",_xlfn.FORMULATEXT(C157))),3,100)&"A"&MID(_xlfn.FORMULATEXT(C157),FIND("!",_xlfn.FORMULATEXT(C157))+2,3)) -> BTH
A158: - Energía Fuera de Punta Bajo | B158: =+'RES DE ACT TARIFARIA-1000'!I194 -> 0 | C158: =+'RES DE ACT TARIFARIA-1000'!O194 -> 0.02782 | E158: =+INDIRECT(MID(MID(_xlfn.FORMULATEXT(C158),1,FIND("!",_xlfn.FORMULATEXT(C158))),3,100)&"A"&MID(_xlfn.FORMULATEXT(C158),FIND("!",_xlfn.FORMULATEXT(C158))+2,3)) -> BTH
A159: - Potencia Energizada | B159: =+'RES DE ACT TARIFARIA-1000'!I162 -> 0.00258 | C159: =+'RES DE ACT TARIFARIA-1000'!O162 -> 0.00068 | E159: =+INDIRECT(MID(MID(_xlfn.FORMULATEXT(C159),1,FIND("!",_xlfn.FORMULATEXT(C159))),3,100)&"A"&MID(_xlfn.FORMULATEXT(C159),FIND("!",_xlfn.FORMULATEXT(C159))+2,3)) -> BTH Punta
A160: MTD (0-10,000) | B160: =+B4 -> Ene-Jun/2023 | C160: =+C4 -> Jul-Dic/2023
A161: Cargo Fijo | B161: =+B166 -> 13.32 | C161: =+C166 -> 13.96
A162: Cargo por Energía | B162: =+B167+B170+B173+B174+B177+B178+B181+B182 -> 0.14639 | C162: =+C167+C170+C173+C174+C177+C178+C181+C182 -> 0.13146
A163: Cargo por Demanda Máxima | B163: =+B169+B171+B176+B180 -> 17.85 | C163: =+C169+C171+C176+C180 -> 24.63693
A165: Comercialización
A166: – Fijo | B166: =+'RES DE ACT TARIFARIA-1000-T (2)'!F$15 -> 13.32 | C166: =+'RES DE ACT TARIFARIA-1000-T (2)'!L$15 -> 13.96 | E166: =+INDIRECT(MID(MID(_xlfn.FORMULATEXT(C166),1,FIND("!",_xlfn.FORMULATEXT(C166))),3,100)&"A"&MID(_xlfn.FORMULATEXT(C166),FIND("!",_xlfn.FORMULATEXT(C166))+2,3)) -> MTD (0-10,000)
A167: – Energía | B167: =+'RES DE ACT TARIFARIA-1000-T (2)'!F$31 -> 0.00928 | C167: =+'RES DE ACT TARIFARIA-1000-T (2)'!L$31 -> 0.01103 | E167: =+INDIRECT(MID(MID(_xlfn.FORMULATEXT(C167),1,FIND("!",_xlfn.FORMULATEXT(C167))),3,100)&"A"&MID(_xlfn.FORMULATEXT(C167),FIND("!",_xlfn.FORMULATEXT(C167))+2,3)) -> MTD (0-10,000)
A168: Distribución
A169: - Demanda Máxima | B169: =+'RES DE ACT TARIFARIA-1000-T (2)'!F$51 -> 16.25 | C169: =+'RES DE ACT TARIFARIA-1000-T (2)'!L$51 -> 21.89 | E169: =+INDIRECT(MID(MID(_xlfn.FORMULATEXT(C169),1,FIND("!",_xlfn.FORMULATEXT(C169))),3,100)&"A"&MID(_xlfn.FORMULATEXT(C169),FIND("!",_xlfn.FORMULATEXT(C169))+2,3)) -> MTD (0-10,000)
A170: - Pérdidas Energía en Distribución | B170: =+'RES DE ACT TARIFARIA-1000'!I$38 -> 0.01033 | C170: =+'RES DE ACT TARIFARIA-1000'!O$38 -> 0.00622 | E170: =+INDIRECT(MID(MID(_xlfn.FORMULATEXT(C170),1,FIND("!",_xlfn.FORMULATEXT(C170))),3,100)&"A"&MID(_xlfn.FORMULATEXT(C170),FIND("!",_xlfn.FORMULATEXT(C170))+2,3)) -> MTD (0-10,000)
A171: - Pérdidas Potencia en Distribución | B171: =+'RES DE ACT TARIFARIA-1000'!I$58 + 'RES DE ACT TARIFARIA-1000'!I39 -> 0 | C171: =+'RES DE ACT TARIFARIA-1000'!O$58 + 'RES DE ACT TARIFARIA-1000'!O39 -> 0.18693 | E171: =+INDIRECT(MID(MID(_xlfn.FORMULATEXT(C171),1,FIND("!",_xlfn.FORMULATEXT(C171))),3,100)&"A"&MID(_xlfn.FORMULATEXT(C171),FIND("!",_xlfn.FORMULATEXT(C171))+2,3)) -> MTD (0-10,000) | F171: =+INDIRECT(MID(_xlfn.FORMULATEXT(C171),FIND("'",_xlfn.FORMULATEXT(C171),FIND("!",_xlfn.FORMULATEXT(C171))+1),FIND("!",_xlfn.FORMULATEXT(C171),FIND("!",_xlfn.FORMULATEXT(C171))+1) - FIND("'",_xlfn.FORMULATEXT(C171),FIND("!",_xlfn.FORMULATEXT(C171))+1) + 1)&"A"&MID(_xlfn.FORMULATEXT(C171),FIND("!",_xlfn.FORMULATEXT(C171),FIND("!",_xlfn.FORMULATEXT(C171))+1)+2,3)) -> MTD (0-10,000)
A172: Alumbrado Público
A173: - Sistema | B173: =+'RES DE ACT TARIFARIA-1000-T (2)'!F$78 -> 0.00181 | C173: =+'RES DE ACT TARIFARIA-1000-T (2)'!L$78 -> 0.00124 | E173: =+INDIRECT(MID(MID(_xlfn.FORMULATEXT(C173),1,FIND("!",_xlfn.FORMULATEXT(C173))),3,100)&"A"&MID(_xlfn.FORMULATEXT(C173),FIND("!",_xlfn.FORMULATEXT(C173))+2,3)) -> MTD (0-10,000)
A174: - Consumo de energía | B174: =+'RES DE ACT TARIFARIA-1000'!I$75 -> 0.0045 | C174: =+'RES DE ACT TARIFARIA-1000'!O$75 -> 0.00365 | E174: =+INDIRECT(MID(MID(_xlfn.FORMULATEXT(C174),1,FIND("!",_xlfn.FORMULATEXT(C174))),3,100)&"A"&MID(_xlfn.FORMULATEXT(C174),FIND("!",_xlfn.FORMULATEXT(C174))+2,3)) -> MTD (0-10,000)
A175: Transmisión
A176: - Demanda Máxima | B176: =+'RES DE ACT TARIFARIA-1000'!I$116 -> 0.53 | C176: =+'RES DE ACT TARIFARIA-1000'!O$116 -> 1.26 | E176: =+INDIRECT(MID(MID(_xlfn.FORMULATEXT(C176),1,FIND("!",_xlfn.FORMULATEXT(C176))),3,100)&"A"&MID(_xlfn.FORMULATEXT(C176),FIND("!",_xlfn.FORMULATEXT(C176))+3,3)) -> MTD
A177: - Energía | B177: =+'RES DE ACT TARIFARIA-1000'!I$96 -> 0.00419 | C177: =+'RES DE ACT TARIFARIA-1000'!O$96 -> 0.00366 | E177: =+INDIRECT(MID(MID(_xlfn.FORMULATEXT(C177),1,FIND("!",_xlfn.FORMULATEXT(C177))),3,100)&"A"&MID(_xlfn.FORMULATEXT(C177),FIND("!",_xlfn.FORMULATEXT(C177))+2,3)) -> MTD (0-10,000)
A178: - Pérdidas de Energía en Transmisión | B178: =+'RES DE ACT TARIFARIA-1000'!I$137 -> 0.00016 | C178: =+'RES DE ACT TARIFARIA-1000'!O$137 -> 0.00019 | E178: =+INDIRECT(MID(MID(_xlfn.FORMULATEXT(C178),1,FIND("!",_xlfn.FORMULATEXT(C178))),3,100)&"A"&MID(_xlfn.FORMULATEXT(C178),FIND("!",_xlfn.FORMULATEXT(C178))+3,3)) -> MTD
A179: Generación
A180: - Demanda Máxima | B180: =+'RES DE ACT TARIFARIA-1000'!I$172 -> 1.07 | C180: =+'RES DE ACT TARIFARIA-1000'!O$172 -> 1.3 | E180: =+INDIRECT(MID(MID(_xlfn.FORMULATEXT(C180),1,FIND("!",_xlfn.FORMULATEXT(C180))),3,100)&"A"&MID(_xlfn.FORMULATEXT(C180),FIND("!",_xlfn.FORMULATEXT(C180))+3,3)) -> MTD
A181: - Energía | B181: =+'RES DE ACT TARIFARIA-1000'!I$205 -> 0.0999 | C181: =+'RES DE ACT TARIFARIA-1000'!O$205 -> 0.08439 | E181: =+INDIRECT(MID(MID(_xlfn.FORMULATEXT(C181),1,FIND("!",_xlfn.FORMULATEXT(C181))),3,100)&"A"&MID(_xlfn.FORMULATEXT(C181),FIND("!",_xlfn.FORMULATEXT(C181))+3,3)) -> MTD (0-10,000)
A182: - Potencia Energizada | B182: =+'RES DE ACT TARIFARIA-1000'!I$168 -> 0.01622 | C182: =+'RES DE ACT TARIFARIA-1000'!O$168 -> 0.02108 | E182: =+INDIRECT(MID(MID(_xlfn.FORMULATEXT(C182),1,FIND("!",_xlfn.FORMULATEXT(C182))),3,100)&"A"&MID(_xlfn.FORMULATEXT(C182),FIND("!",_xlfn.FORMULATEXT(C182))+3,3)) -> MTD
A183: MTD (10,001-30,000) | B183: =+B160 -> Ene-Jun/2023 | C183: =+C160 -> Jul-Dic/2023
A184: Cargo Fijo | B184: =+B189 -> 13.32 | C184: =+C189 -> 13.96
A185: Cargo por Energía | B185: =+B190+B193+B196+B197+B200+B201+B204+B205 -> 0.14639 | C185: =+C190+C193+C196+C197+C200+C201+C204+C205 -> 0.13146
A186: Cargo por Demanda Máxima | B186: =+B192+B194+B199+B203 -> 17.85 | C186: =+C192+C194+C199+C203 -> 24.63693
A188: Comercialización
A189: – Fijo | B189: =+'RES DE ACT TARIFARIA-1000-T (2)'!F$15 -> 13.32 | C189: =+'RES DE ACT TARIFARIA-1000-T (2)'!L$15 -> 13.96 | E189: =+INDIRECT(MID(MID(_xlfn.FORMULATEXT(C189),1,FIND("!",_xlfn.FORMULATEXT(C189))),3,100)&"A"&MID(_xlfn.FORMULATEXT(C189),FIND("!",_xlfn.FORMULATEXT(C189))+2,3)) -> MTD (0-10,000)
A190: – Energía | B190: =+'RES DE ACT TARIFARIA-1000-T (2)'!F$31 -> 0.00928 | C190: =+'RES DE ACT TARIFARIA-1000-T (2)'!L$31 -> 0.01103 | E190: =+INDIRECT(MID(MID(_xlfn.FORMULATEXT(C190),1,FIND("!",_xlfn.FORMULATEXT(C190))),3,100)&"A"&MID(_xlfn.FORMULATEXT(C190),FIND("!",_xlfn.FORMULATEXT(C190))+2,3)) -> MTD (0-10,000)
A191: Distribución
A192: - Demanda Máxima | B192: =+'RES DE ACT TARIFARIA-1000-T (2)'!F$51 -> 16.25 | C192: =+'RES DE ACT TARIFARIA-1000-T (2)'!L$51 -> 21.89 | E192: =+INDIRECT(MID(MID(_xlfn.FORMULATEXT(C192),1,FIND("!",_xlfn.FORMULATEXT(C192))),3,100)&"A"&MID(_xlfn.FORMULATEXT(C192),FIND("!",_xlfn.FORMULATEXT(C192))+2,3)) -> MTD (0-10,000)
A193: - Pérdidas Energía en Distribución | B193: =+'RES DE ACT TARIFARIA-1000'!I$38 -> 0.01033 | C193: =+'RES DE ACT TARIFARIA-1000'!O$38 -> 0.00622 | E193: =+INDIRECT(MID(MID(_xlfn.FORMULATEXT(C193),1,FIND("!",_xlfn.FORMULATEXT(C193))),3,100)&"A"&MID(_xlfn.FORMULATEXT(C193),FIND("!",_xlfn.FORMULATEXT(C193))+2,3)) -> MTD (0-10,000)
A194: - Pérdidas Potencia en Distribución | B194: =+'RES DE ACT TARIFARIA-1000'!I$58 + 'RES DE ACT TARIFARIA-1000'!I39 -> 0 | C194: =+'RES DE ACT TARIFARIA-1000'!O$58 + 'RES DE ACT TARIFARIA-1000'!O39 -> 0.18693 | E194: =+INDIRECT(MID(MID(_xlfn.FORMULATEXT(C194),1,FIND("!",_xlfn.FORMULATEXT(C194))),3,100)&"A"&MID(_xlfn.FORMULATEXT(C194),FIND("!",_xlfn.FORMULATEXT(C194))+2,3)) -> MTD (0-10,000)
A195: Alumbrado Público
A196: - Sistema | B196: =+'RES DE ACT TARIFARIA-1000-T (2)'!F$78 -> 0.00181 | C196: =+'RES DE ACT TARIFARIA-1000-T (2)'!L$78 -> 0.00124 | E196: =+INDIRECT(MID(MID(_xlfn.FORMULATEXT(C196),1,FIND("!",_xlfn.FORMULATEXT(C196))),3,100)&"A"&MID(_xlfn.FORMULATEXT(C196),FIND("!",_xlfn.FORMULATEXT(C196))+2,3)) -> MTD (0-10,000)
A197: - Consumo de energía | B197: =+'RES DE ACT TARIFARIA-1000'!I$75 -> 0.0045 | C197: =+'RES DE ACT TARIFARIA-1000'!O$75 -> 0.00365 | E197: =+INDIRECT(MID(MID(_xlfn.FORMULATEXT(C197),1,FIND("!",_xlfn.FORMULATEXT(C197))),3,100)&"A"&MID(_xlfn.FORMULATEXT(C197),FIND("!",_xlfn.FORMULATEXT(C197))+2,3)) -> MTD (0-10,000)
A198: Transmisión
A199: - Demanda Máxima | B199: =+'RES DE ACT TARIFARIA-1000'!I$116 -> 0.53 | C199: =+'RES DE ACT TARIFARIA-1000'!O$116 -> 1.26 | E199: =+INDIRECT(MID(MID(_xlfn.FORMULATEXT(C199),1,FIND("!",_xlfn.FORMULATEXT(C199))),3,100)&"A"&MID(_xlfn.FORMULATEXT(C199),FIND("!",_xlfn.FORMULATEXT(C199))+2,3)) -> ATH
A200: - Energía | B200: =+'RES DE ACT TARIFARIA-1000'!I$96 -> 0.00419 | C200: =+'RES DE ACT TARIFARIA-1000'!O$96 -> 0.00366 | E200: =+INDIRECT(MID(MID(_xlfn.FORMULATEXT(C200),1,FIND("!",_xlfn.FORMULATEXT(C200))),3,100)&"A"&MID(_xlfn.FORMULATEXT(C200),FIND("!",_xlfn.FORMULATEXT(C200))+2,3)) -> MTD (0-10,000)
A201: - Pérdidas de Energía en Transmisión | B201: =+'RES DE ACT TARIFARIA-1000'!I$137 -> 0.00016 | C201: =+'RES DE ACT TARIFARIA-1000'!O$137 -> 0.00019 | E201: =+INDIRECT(MID(MID(_xlfn.FORMULATEXT(C201),1,FIND("!",_xlfn.FORMULATEXT(C201))),3,100)&"A"&MID(_xlfn.FORMULATEXT(C201),FIND("!",_xlfn.FORMULATEXT(C201))+3,3)) -> MTD
A202: Generación
A203: - Demanda Máxima | B203: =+'RES DE ACT TARIFARIA-1000'!I$172 -> 1.07 | C203: =+'RES DE ACT TARIFARIA-1000'!O$172 -> 1.3 | E203: =+INDIRECT(MID(MID(_xlfn.FORMULATEXT(C203),1,FIND("!",_xlfn.FORMULATEXT(C203))),3,100)&"A"&MID(_xlfn.FORMULATEXT(C203),FIND("!",_xlfn.FORMULATEXT(C203))+3,3)) -> MTD
A204: - Energía | B204: =+'RES DE ACT TARIFARIA-1000'!I$205 -> 0.0999 | C204: =+'RES DE ACT TARIFARIA-1000'!O$205 -> 0.08439 | E204: =+INDIRECT(MID(MID(_xlfn.FORMULATEXT(C204),1,FIND("!",_xlfn.FORMULATEXT(C204))),3,100)&"A"&MID(_xlfn.FORMULATEXT(C204),FIND("!",_xlfn.FORMULATEXT(C204))+3,3)) -> MTD (0-10,000)
A205: - Potencia Energizada | B205: =+'RES DE ACT TARIFARIA-1000'!I$168 -> 0.01622 | C205: =+'RES DE ACT TARIFARIA-1000'!O$168 -> 0.02108 | E205: =+INDIRECT(MID(MID(_xlfn.FORMULATEXT(C205),1,FIND("!",_xlfn.FORMULATEXT(C205))),3,100)&"A"&MID(_xlfn.FORMULATEXT(C205),FIND("!",_xlfn.FORMULATEXT(C205))+3,3)) -> MTD
A206: MTD (30,001-50,000) | B206: =+B183 -> Ene-Jun/2023 | C206: =+C183 -> Jul-Dic/2023
A207: Cargo Fijo | B207: =+B212 -> 13.32 | C207: =+C212 -> 13.96
A208: Cargo por Energía | B208: =+B213+B216+B219+B220+B223+B224+B227+B228 -> 0.14639 | C208: =+C213+C216+C219+C220+C223+C224+C227+C228 -> 0.13146
A209: Cargo por Demanda Máxima | B209: =+B215+B217+B222+B226 -> 17.85 | C209: =+C215+C217+C222+C226 -> 24.63693
A211: Comercialización
A212: – Fijo | B212: =+'RES DE ACT TARIFARIA-1000-T (2)'!F$15 -> 13.32 | C212: =+'RES DE ACT TARIFARIA-1000-T (2)'!L$15 -> 13.96 | E212: =+INDIRECT(MID(MID(_xlfn.FORMULATEXT(C212),1,FIND("!",_xlfn.FORMULATEXT(C212))),3,100)&"A"&MID(_xlfn.FORMULATEXT(C212),FIND("!",_xlfn.FORMULATEXT(C212))+2,3)) -> MTD (0-10,000)
A213: – Energía | B213: =+'RES DE ACT TARIFARIA-1000-T (2)'!F$31 -> 0.00928 | C213: =+'RES DE ACT TARIFARIA-1000-T (2)'!L$31 -> 0.01103 | E213: =+INDIRECT(MID(MID(_xlfn.FORMULATEXT(C213),1,FIND("!",_xlfn.FORMULATEXT(C213))),3,100)&"A"&MID(_xlfn.FORMULATEXT(C213),FIND("!",_xlfn.FORMULATEXT(C213))+2,3)) -> MTD (0-10,000)
A214: Distribución
... 227 more rows

Sheet CONTENIDO formularios
A1: FORM | B1: DETALLE DEL FORMULARIO
A2: AT100 | B2: INDICE DE PRECIOS AL CONSUMIDOR
A3: AT101 | B3: INGRESOS ESTIMADOS PARA p APLICANDO LOS NUEVOS CARGOS TARIFARIOS DE COMERCIALIZACION EN LA TARIFA
A4: AT102 | B4: INGRESOS ESTIMADOS PARA p APLICANDO LOS CARGOS TARIFARIOS DE COMERCIALIZACION EN LA TARIFA DE p-1
A5: AT103 | B5: INGRESOS ESTIMADOS PARA p APLICANDO LOS NUEVOS CARGOS TARIFARIOS DE DISTRIBUCION EN LA TARIFA
A6: AT104 | B6: INGRESOS ESTIMADOS PARA p APLICANDO LOS CARGOS TARIFARIOS DE DISTRIBUCION EN LA TARIFA DE p-1
A7: AT200 | B7: PARTICIPACIÓN DEL CONSUMO DE ENERGÍA DE LAS CATEGORÍAS SIN MEDICIÓN HORARIA EN EL BLOQUE HORARIO
A8: AT201 | B8: INGRESOS ESTIMADOS PARA p APLICANDO LOS NUEVOS CARGOS TARIFARIOS DE PERDIDAS EN DISTRIBUCION EN LA TARIFA
A9: AT202 | B9: INGRESOS ESTIMADOS PARA p APLICANDO LOS CARGOS TARIFARIOS DE PERDIDAS EN DISTRIBUCION EN LA TARIFA DE p-1
A10: AT302 | B10: INFORMACION PARA ACTUALIZAR CARGO POR TRANSMISION - DATOS RELACIONADOS A CLIENTES CONECTADOS A LA RED DE LA DISTRIBUIDORA PARA p
A11: AT303 | B11: INGRESOS ESTIMADOS APLICANDO LOS CARGOS BASE DE TRANSMISION DE p-1 A LA PROYECCION DE VENTAS PARA p
A12: AT304 | B12: INGRESOS ESTIMADOS PARA p APLICANDO LOS NUEVOS CARGOS TARIFARIOS DE TRANSMISION EN LA TARIFA
A13: AT305 | B13: INGRESOS ESTIMADOS PARA p APLICANDO LOS CARGOS TARIFARIOS DE TRANSMISIÓN DE p-1 A LA PROYECCION DE VENTAS DE p
A14: AT306 | B14: INGRESOS ESTIMADOS PARA p-2 APLICANDO LOS CARGOS BASE DE TRANSMISIÓN DE p-2 A LAS VENTAS REALES DE p-2
A15: AT307 | B15: INGRESOS REALES PARA p-2 APLICANDO LOS CARGOS CORREC DE TRANSMISIÓN DE p-2 A LAS VENTAS REALES DE p-2
A16: AT308 | B16: INGRESOS PERMITIDOS PARA p-2 APLICANDO LOS CARGOS CORREC DE TRANSMISIÓN DE p-2 A LAS VENTAS ESTIMADAS DE p-2
A17: AT322 | B17: INFORMACION PARA ACTUALIZAR CARGO POR TRANSMISION - DATOS RELACIONADOS A CLIENTES CONECTADOS A LA RED DE LA DISTRIBUIDORA PARA p-2
A18: AT402 | B18: INFORMACION PARA ACTUALIZAR CARGO POR PERDIDAS EN TRANSMISION - DATOS RELACIONADOS A CLIENTES NO ABASTECIDOS POR OTRO AGENTE PARA p
A19: AT403 | B19: INGRESOS ESTIMADOS APLICANDO LOS CARGOS BASE DE PERDIDAS EN TRANSMISION DE p-1 A LA PROYECCION DE VENTAS PARA p
A20: AT404 | B20: INGRESOS ESTIMADOS PARA p APLICANDO LOS NUEVOS CARGOS TARIFARIOS DE PERDIDAS EN TRANSMISION EN LA TARIFA
A21: AT405 | B21: INGRESOS ESTIMADOS PARA p APLICANDO LOS CARGOS TARIFARIOS DE PERDIDAS EN TRANSMISIÓN DE p-1 A LA PROYECCION DE VENTAS DE p
A22: AT406 | B22: INGRESOS ESTIMADOS PARA p-2 APLICANDO LOS CARGOS BASE DE PERDIDAS EN TRANSMISIÓN DE p-2 A LAS VENTAS REALES DE p-2
A23: AT407 | B23: INGRESOS REALES PARA p-2 APLICANDO LOS CARGOS CORREC DE PÉRDIDAS EN TRANSMISIÓN DE p-2 A LAS VENTAS REALES DE p-2
A24: AT408 | B24: INGRESOS PERMITIDOS PARA p-2 APLICANDO LOS CARGOS CORREC DE PÉRDIDAS EN TRANSMISIÓN DE p-2 A LAS VENTAS ESTIMADAS DE p-2
A25: AT422 | B25: INFORMACION PARA ACTUALIZAR CARGO POR PERDIDAS DE ENERGIA EN TRANSMISION - DATOS RELACIONADOS A CLIENTES NO ABASTECIDOS POR OTRO AGENTE PARA p-2
A26: AT502 | B26: INFORMACION PARA ACTUALIZAR CARGO POR GENERACION - DATOS RELACIONADOS A CLIENTES NO ABASTECIDOS POR OTRO AGENTE PARA p
A27: AT503 | B27: INGRESOS ESTIMADOS APLICANDO LOS CARGOS BASE DE GENERACION DE p-1 A LA PROYECCION DE VENTAS PARA p
A28: AT504 | B28: INGRESOS ESTIMADOS PARA p APLICANDO LOS NUEVOS CARGOS TARIFARIOS DE GENERACION EN LA TARIFA
A29: AT505 | B29: INGRESOS ESTIMADOS PARA p APLICANDO LOS CARGOS TARIFARIOS DE GENERACION DE p-1 A LA PROYECCION DE VENTAS DE p
A30: AT505 CVC | B30: INGRESOS ESTIMADOS APLICANDO LOS CARGOS POR VARIACIÓN POR COMBUSTIBLE APLICADOS EN p-1 A LA PROYECCIÓN DE VENTAS DE p
A31: AT506 | B31: INGRESOS ESTIMADOS PARA p-2 APLICANDO LOS CARGOS BASE DE GENERACION DE p-2 A LAS VENTAS REALES DE p-2
A32: AT506 CVC | B32: INGRESOS ESTIMADOS PARA p-2 APLICANDO LOS CARGOS VARIACION POR COMBUSTIBLE DE p-2 A LAS VENTAS REALES DE p-2
A33: AT507 | B33: INGRESOS REALES PARA p-2 APLICANDO LOS CARGOS CORREC DE GENERACION DE p-2 A LAS VENTAS REALES DE p-2
A34: AT508 | B34: INGRESOS PERMITIDOS PARA p-2 APLICANDO LOS CARGOS CORREC DE GENERACION DE p-2 A LAS VENTAS ESTIMADAS DE p-2
A35: AT509 | B35: INTERESES GENERADOS DENTRO DEL PERIODO TARIFARIO P-2 OCASIONADOS POR EL DESFASE DEL CARGO VARIACION POR COMBUSTIBLE
A36: AT522 | B36: INFORMACION PARA ACTUALIZAR CARGO POR GENERACION - DATOS RELACIONADOS A CLIENTES NO ABASTECIDOS POR OTRO AGENTE PARA p-2
A37: AT531 | B37: REQUERIMIENTOS DE ENERGIA PARA EL PERIODO p
A38: AT602 | B38: CONSUMO DE ENERGIA DE ALUMBRADO PUBLICO PARA p
A39: AT603 | B39: INGRESOS ESTIMADOS APLICANDO LOS CARGOS TARIFARIOS DE ALUMBRADO PUBLICO DE p-1 A LA PROYECCION DE VENTAS PARA p
A40: AT604 | B40: INGRESOS ESTIMADOS PARA p APLICANDO LOS NUEVOS CARGOS TARIFARIOS DE ALUMBRADO PUBLICO EN LA TARIFA
A41: AT622 | B41: CONSUMO DE ENERGIA DEL ALUMBRADO PUBLICO PARA p-2
A42: AT700 | B42: TASAS DE INTERES
A43: AT800 | B43: ESTRUCTURA DE MERCADO
A44: AT801- Clientes | B44: PROYECCION DE CANTIDAD DE CLIENTES PARA EL SEMESTRE p
A45: AT801- Energía | B45: PROYECCION DE VENTAS DE ENERGIA PARA EL SEMESTRE p
A46: AT801- Demanda | B46: PROYECCION DE DEMANDA PARA EL SEMESTRE p
A47: AT821- Clientes | B47: CANTIDAD DE CLIENTES EN EL SEMESTRE p-2
A48: AT821- Energía | B48: VENTAS DE ENERGIA FACTURADAS EN EL SEMESTRE p-2
A49: AT821- Energía - A | B49: VENTAS DE ENERGIA FACTURADAS EN EL SEMESTRE p-2
A50: AT821- Demanda | B50: DEMANDA FACTURADA EN EL SEMESTRE p-2
A51: AT821- Clientes Estimado Original | B51: CANTIDAD DE CLIENTES EN EL SEMESTRE p-2
A52: AT821- Energía Estimado Original | B52: VENTAS DE ENERGIA FACTURADAS EN EL SEMESTRE p-2
A53: AT821- Demanda Estimado Original | B53: DEMANDA FACTURADA EN EL SEMESTRE p-2
A54: AT811- Clientes BTS por rango de Consumo | B54: CANTIDAD DE CLIENTES BTS POR RANGO DE CONSUMO EN EL SEMESTRE p-1
A55: AT811- Energía BTS por rango de Consumo | B55: VENTAS DE ENERGIA FACTURADA A CLIENTES BTS POR RANGO DE CONSUMO EN EL SEMESTRE p-1

Sheet COMER DISTR Y AP-100
A1: INFORMACION PARA ACTUALIZAR:
A2: =+[1]Fecha!$A$1 -> EDECHI | C2: CARGOS DE COMERCIALIZACION, DISTRIBUCION
C3: Y SERVICIO DE ALUMBRADO PUBLICO
A5: INDICE DE PRECIOS AL CONSUMIDOR
A6: PUBLICADOS POR CONTRALORIA GENERAL DE LA REPUBLICA
A8: ="Actualización: "&[1]Fecha!T4 -> Actualización: Jul-Dic/2023
B9: =+"Semestre p-2 "&[1]Fecha!T8 -> Semestre p-2 Jul-Dic/2022 | E9: =+"Semestre p-3 "&[1]Fecha!T9 -> Semestre p-3 Ene-Jun/2022
A10: =+RIGHT(B9,8) -> Dic/2022 | B10: =+IF($A$2="EDEMET",SUMIF($A$18:$A$127,A10,$C$18:$C$127),SUMIF($A$18:$A$127,A10,$B$18:$B$127)) -> 109.5 | D10: =+RIGHT(E9,8) -> Jun/2022 | E10: =+IF($A$2="EDEMET",SUMIF($A$18:$A$127,D10,$C$18:$C$127),SUMIF($A$18:$A$127,D10,$B$18:$B$127)) -> 111.9952
A11: Jun/2022 | B11: =+IF($A$2="EDEMET",SUMIF($A$18:$A$127,A11,$C$18:$C$127),SUMIF($A$18:$A$127,A11,$B$18:$B$127)) -> 111.9952 | D11: 2021-12-01 | E11: =+IF($A$2="EDEMET",SUMIF($A$18:$A$127,D11,$C$18:$C$127),SUMIF($A$18:$A$127,D11,$B$18:$B$127)) -> 107.1067
A13: Fuente: Boletín de Estadística Panameña: Indice de Precios al por Mayor y al Consumidor.
A14: Situación Económica. Dirección de Estadística y Censo. Contraloría General de la República.
B17: IPC Resto Urbano (Áreas urbanas de los distritos Colón, La Chorrera, Aguadulce, Chitré, Santiago, David y Changuinola) EDECHI | C17: IPC (Nacional Urbano, DISTRITOS DE PANAMÁ Y SAN MIGUELITO) EDEMET
A18: 2015-12-01 | B18: 102.7 | C18: 102.5 | D18: http://www.contraloria.gob.pa/inec/Avance/Avance.aspx?ID_CATEGORIA=2&ID_CIFRAS=10
A19: 2016-01-01 | B19: 102.8 | C19: 102.6
A20: 2016-02-01 | B20: 102.7 | C20: 102.7
A21: 2016-03-01 | B21: 103.1 | C21: 103
A22: 2016-04-01 | B22: 103.6 | C22: 103.5
A23: 2016-05-01 | B23: 103.8 | C23: 103.7
A24: 2016-06-01 | B24: 103.8 | C24: 103.6
A25: 2016-07-01 | B25: 103.9 | C25: 103.7
A26: 2016-08-01 | B26: 103.8 | C26: 103.7
A27: 2016-09-01 | B27: 104 | C27: 103.9
A28: 2016-10-01 | B28: 104.1 | C28: 104
A29: 2016-11-01 | B29: 104.1 | C29: 103.9
A30: 2016-12-01 | B30: 104.2 | C30: 104
A31: 2017-01-01 | B31: 104.6 | C31: 104.3
A32: 2017-02-01 | B32: 104.8 | C32: 104.6
A33: 2017-03-01 | B33: 104.8 | C33: 104.5
A34: 2017-04-01 | B34: 104.9 | C34: 104.5
A35: 2017-05-01 | B35: 104.9 | C35: 104.5
A36: 2017-06-01 | B36: 104.7 | C36: 104.3
A37: 2017-07-01 | B37: 104.5 | C37: 104.1
A38: 2017-08-01 | B38: 104.8 | C38: 104.4
A39: 2017-09-01 | B39: 105.1 | C39: 104.7
A40: 2017-10-01 | B40: 104.8 | C40: 104.5
A41: 2017-11-01 | B41: 105 | C41: 104.3
A42: 2017-12-01 | B42: 105.1 | C42: 104.5
A43: 2018-01-01 | B43: 105.4 | C43: 104.7
A44: 2018-02-01 | B44: 106 | C44: 105
A45: 2018-03-01 | B45: 106 | C45: 105.1
A46: 2018-04-01 | B46: 106.2 | C46: 105.3
A47: 2018-05-01 | B47: 106.4 | C47: 105.3
A48: 2018-06-01 | B48: 106.4989 | C48: 105.5165
A49: 2018-07-01 | B49: 106.4828 | C49: 105.4581
A50: 2018-08-01 | B50: 106.6133 | C50: 105.527
A51: 2018-09-01 | B51: 106.5504 | C51: 105.4892
A52: 2018-10-01 | B52: 106.7814 | C52: 105.5743
A53: 2018-11-01 | B53: 106.2618 | C53: 105.1135 | D53: http://www.contraloria.gob.pa/inec
A54: 2018-12-01 | B54: 105.8339 | C54: 104.6655 | D54: http://www.contraloria.gob.pa/inec/archivos/A101Cuadro%2013.xlsx
A55: 2019-01-01 | B55: 105.4655 | C55: 104.3809 | D55: http://www.contraloria.gob.pa/inec/archivos/A101Cuadro%203.xlsx
A56: 2019-02-01 | B56: 105.6598 | C56: 104.4745
A57: 2019-03-01 | B57: 106.0612 | C57: 104.9066
A58: 2019-04-01 | B58: 106.3899 | C58: 105.2011
A59: 2019-05-01 | B59: 106.5792 | C59: 105.2952
A60: 2019-06-01 | B60: 106.1403 | C60: 104.9465
A61: 2019-07-01 | B61: 106.4336 | C61: 105.1781
A62: 2019-08-01 | B62: 106.1956 | C62: 104.8884
A63: 2019-09-01 | B63: 106.1487 | C63: 104.8386
A64: 2019-10-01 | B64: 106.1353 | C64: 104.7837
A65: 2019-11-01 | B65: 105.9484 | C65: 104.7681
A66: 2019-12-01 | B66: 105.8437 | C66: 104.5986
A67: 2020-01-01 | B67: 106.0203 | C67: 104.7523
A68: 2020-02-01 | B68: 105.6741 | C68: 104.4896
A69: 2020-03-01 | B69: 105.2421 | C69: 104.0257
A70: 2020-04-01 | B70: 103.9293 | C70: 102.704 | D70: https://www.inec.gob.pa/archivos/A0705547520200904124534Cuadro13.xlsx | I70: https://www.inec.gob.pa/archivos/A0705547520200904113941Cuadro3.xlsx
A71: 2020-05-01 | B71: 103.944 | C71: 102.6954
A72: 2020-06-01 | B72: 103.9 | C72: 102.7
A73: 2020-07-01 | B73: 104.1645 | C73: 102.8116
A74: 2020-08-01 | B74: 104.1751 | C74: 102.8287
A75: 2020-09-01 | B75: 104.2554 | C75: 102.8901
A76: 2020-10-01 | B76: 104.1443 | C76: 102.7416
A77: 2020-11-01 | B77: 104.1016 | C77: 102.6344
A78: 2020-12-01 | B78: 104.4206 | C78: 102.9512 | D78: https://www.inec.gob.pa/archivos/A0774740120210302152541Cuadro14.xlsx | I78: https://www.inec.gob.pa/archivos/A00140176420210302150259Cuadro4.xlsx
A79: 2021-01-01 | B79: 104.8083 | C79: 103.2744
A80: 2021-02-01 | B80: 105.1932 | C80: 103.8777
A81: 2021-03-01 | B81: 105.7384 | C81: 104.3257
A82: 2021-04-01 | B82: 105.8012 | C82: 104.4554
A83: 2021-05-01 | B83: 106.0035 | C83: 104.6713
A84: 2021-06-01 | B84: 106.2157 | C84: 104.8603 | D84: https://www.inec.gob.pa
A85: 2021-07-01 | B85: 106.6471 | C85: 105.2507 | D85: https://www.inec.gob.pa/archivos/A0705547520210813103016Cuadro13.xlsx | I85: https://www.inec.gob.pa/archivos/A0705547520210813102551Cuadro3.xlsx
A86: 2021-08-01 | B86: 106.7298 | C86: 105.2891
A87: 2021-09-01 | B87: 106.8191 | C87: 105.4479
A88: 2021-10-01 | B88: 107.1836 | C88: 105.7653 | D88: https://www.inec.gob.pa/archivos/A0774740120211115141045Cuadro13.xlsx | I88: https://www.inec.gob.pa/archivos/A0705547520211115140603Cuadro3.xlsx
A89: 2021-11-01 | B89: 107.5119 | C89: 106.0834
A90: 2021-12-01 | B90: 107.1067 | C90: 105.653 | D90: https://inec.gob.pa/archivos/A053342420220114142934Cuadro13.xlsx | I90: https://inec.gob.pa/archivos/A0579518620220114152535Cuadro3.xlsx
A91: 2022-01-01 | B91: 107.4349 | C91: 105.9866
A92: 2022-02-01 | B92: 108.3053 | C92: 106.7193
A93: 2022-03-01 | B93: 109.2342 | C93: 107.6479
A94: 2022-04-01 | B94: 109.9064 | C94: 108.2685
A95: 2022-05-01 | B95: 110.8149 | C95: 109.0885
A96: 2022-06-01 | B96: 111.9952 | C96: 110.3114 | D96: https://inec.gob.pa/archivos/A0705547520220715133157Cuadro13.xlsx | I96: https://inec.gob.pa/archivos/A0705547520220715132704Cuadro3.xlsx
A97: 2022-07-01 | B97: 110.6224 | C97: 108.9409
A98: 2022-08-01 | B98: 109.1482 | C98: 107.4655
A99: 2022-09-01 | B99: 109.2 | C99: 107.5 | D99: https://www.inec.gob.pa/archivos/A0289562520221014161448Cuadro13.xlsx | I99: https://www.inec.gob.pa/archivos/A0705547520221014160900Cuadro3.xlsx
A100: 2022-10-01 | B100: 109.2 | C100: 107.5296
A101: 2022-11-01 | B101: 109.3 | C101: 107.6666
A102: 2022-12-01 | B102: 109.5 | C102: 107.845 | D102: https://inec.gob.pa/archivos/A030194820230113105945Cuadro13.xlsx | I102: https://inec.gob.pa/archivos/A053342420230113105109Cuadro3.xlsx

Sheet COMER DISTR Y AP-101
A1: INFORMACION PARA ACTUALIZAR: CARGOS DE COMERCIALIZACIÓN | J1: INFORMACION PARA ACTUALIZAR: CARGOS DE COMERCIALIZACIÓN | S1: INFORMACION PARA ACTUALIZAR: CARGOS DE COMERCIALIZACIÓN
A2: =+[1]Fecha!$A$1 -> EDECHI | J2: =+[1]Fecha!$A$1 -> EDECHI | S2: =+[1]Fecha!$A$1 -> EDECHI
A4: Ingresos estimados que resultan de aplicar los cargos tarifarios por comercialización para cada clase de cliente que contienen las tarifas actualizadas para el semestre p a la proyección de clientes y ventas de energía de clientes que no se encuentran abastecidos por otro agente, por categoría tarifaria, del semestre p | J4: Ingresos estimados que resultan de aplicar los cargos tarifarios por comercialización para cada clase de cliente que contienen las tarifas actualizadas para el semestre p a la proyección de clientes y ventas de energía de clientes que no se encuentran abastecidos por otro agente, por categoría tarifaria, del semestre p | S4: Ingresos estimados que resultan de aplicar los cargos tarifarios por comercialización para cada clase de cliente que contienen las tarifas actualizadas para el semestre p a la proyección de clientes y ventas de energía de clientes que no se encuentran abastecidos por otro agente, por categoría tarifaria, del semestre p
A6: Nuevos Cargos por Comercialización en p | B6: CCOMFi,p | C6: CCOMVi,p | J6: Nuevos Cargos por Comercialización en p | K6: CCOMFi,p | L6: CCOMVi,p | S6: Nuevos Cargos por Comercialización en p | T6: CCOMFi,p | U6: CCOMVi,p
A7: Tarifa ATH | B7: =+'RES DE ACT TARIFARIA-1000-T (2)'!$L21 -> 13.94 | C7: =+'RES DE ACT TARIFARIA-1000-T (2)'!$L37 -> 0.01103 | J7: Tarifa ATH | K7: =+'RES DE ACT TARIFARIA-1000-T (2)'!$L21 -> 13.94 | S7: Tarifa ATH | U7: =+'RES DE ACT TARIFARIA-1000-T (2)'!$L37 -> 0.01103
A8: Tarifa ATD | B8: =+'RES DE ACT TARIFARIA-1000-T (2)'!$L20 -> 13.94 | C8: =+'RES DE ACT TARIFARIA-1000-T (2)'!$L36 -> 0.01103 | J8: Tarifa ATD | K8: =+'RES DE ACT TARIFARIA-1000-T (2)'!$L20 -> 13.94 | S8: Tarifa ATD | U8: =+'RES DE ACT TARIFARIA-1000-T (2)'!$L36 -> 0.01103
A9: Tarifa MTH | B9: =+'RES DE ACT TARIFARIA-1000-T (2)'!$L19 -> 13.94 | C9: =+'RES DE ACT TARIFARIA-1000-T (2)'!$L35 -> 0.01103 | J9: Tarifa MTH | K9: =+'RES DE ACT TARIFARIA-1000-T (2)'!$L19 -> 13.94 | S9: Tarifa MTH | U9: =+'RES DE ACT TARIFARIA-1000-T (2)'!$L35 -> 0.01103
A10: MTD (0-10,000) | B10: =+'RES DE ACT TARIFARIA-1000-T (2)'!$L15 -> 13.96 | C10: =+'RES DE ACT TARIFARIA-1000-T (2)'!$L31 -> 0.01103 | J10: MTD (0-10,000) | K10: =+'RES DE ACT TARIFARIA-1000-T (2)'!$L15 -> 13.96 | S10: MTD (0-10,000) | U10: =+'RES DE ACT TARIFARIA-1000-T (2)'!$L31 -> 0.01103
A11: MTD (10,001-30,000) | B11: =+'RES DE ACT TARIFARIA-1000-T (2)'!$L16 -> 13.96 | C11: =+'RES DE ACT TARIFARIA-1000-T (2)'!$L32 -> 0.01103 | J11: MTD (10,001-30,000) | K11: =+'RES DE ACT TARIFARIA-1000-T (2)'!$L16 -> 13.96 | S11: MTD (10,001-30,000) | U11: =+'RES DE ACT TARIFARIA-1000-T (2)'!$L32 -> 0.01103
A12: MTD (30,001-50,000) | B12: =+'RES DE ACT TARIFARIA-1000-T (2)'!$L17 -> 13.96 | C12: =+'RES DE ACT TARIFARIA-1000-T (2)'!$L33 -> 0.01103 | J12: MTD (30,001-50,000) | K12: =+'RES DE ACT TARIFARIA-1000-T (2)'!$L17 -> 13.96 | S12: MTD (30,001-50,000) | U12: =+'RES DE ACT TARIFARIA-1000-T (2)'!$L33 -> 0.01103
A13: MTD (50,001-más) | B13: =+'RES DE ACT TARIFARIA-1000-T (2)'!$L18 -> 13.96 | C13: =+'RES DE ACT TARIFARIA-1000-T (2)'!$L34 -> 0.01103 | J13: MTD (50,001-más) | K13: =+'RES DE ACT TARIFARIA-1000-T (2)'!$L18 -> 13.96 | S13: MTD (50,001-más) | U13: =+'RES DE ACT TARIFARIA-1000-T (2)'!$L34 -> 0.01103
A14: Tarifa BTH | B14: =+'RES DE ACT TARIFARIA-1000-T (2)'!$L14 -> 5.56 | C14: =+'RES DE ACT TARIFARIA-1000-T (2)'!$L30 -> 0.01103 | J14: Tarifa BTH | K14: =+'RES DE ACT TARIFARIA-1000-T (2)'!$L14 -> 5.56 | S14: Tarifa BTH | U14: =+'RES DE ACT TARIFARIA-1000-T (2)'!$L30 -> 0.01103
A15: BTD (0-10,000) | B15: =+'RES DE ACT TARIFARIA-1000-T (2)'!$L10 -> 5.56 | C15: =+'RES DE ACT TARIFARIA-1000-T (2)'!$L26 -> 0.01106 | J15: BTD (0-10,000) | K15: =+'RES DE ACT TARIFARIA-1000-T (2)'!$L10 -> 5.56 | S15: BTD (0-10,000) | U15: =+'RES DE ACT TARIFARIA-1000-T (2)'!$L26 -> 0.01106
A16: BTD (10,001-30,000) | B16: =+'RES DE ACT TARIFARIA-1000-T (2)'!$L11 -> 5.56 | C16: =+'RES DE ACT TARIFARIA-1000-T (2)'!$L27 -> 0.01106 | J16: BTD (10,001-30,000) | K16: =+'RES DE ACT TARIFARIA-1000-T (2)'!$L11 -> 5.56 | S16: BTD (10,001-30,000) | U16: =+'RES DE ACT TARIFARIA-1000-T (2)'!$L27 -> 0.01106
A17: BTD (30,001-50,000) | B17: =+'RES DE ACT TARIFARIA-1000-T (2)'!$L12 -> 5.56 | C17: =+'RES DE ACT TARIFARIA-1000-T (2)'!$L28 -> 0.01106 | J17: BTD (30,001-50,000) | K17: =+'RES DE ACT TARIFARIA-1000-T (2)'!$L12 -> 5.56 | S17: BTD (30,001-50,000) | U17: =+'RES DE ACT TARIFARIA-1000-T (2)'!$L28 -> 0.01106
A18: BTD (50,001-más) | B18: =+'RES DE ACT TARIFARIA-1000-T (2)'!$L13 -> 5.56 | C18: =+'RES DE ACT TARIFARIA-1000-T (2)'!$L29 -> 0.01106 | J18: BTD (50,001-más) | K18: =+'RES DE ACT TARIFARIA-1000-T (2)'!$L13 -> 5.56 | S18: BTD (50,001-más) | U18: =+'RES DE ACT TARIFARIA-1000-T (2)'!$L29 -> 0.01106
A19: Tarifa BTS (0-300) | B19: =+'RES DE ACT TARIFARIA-1000-T (2)'!$L7 -> 2.98 | C19: =+'RES DE ACT TARIFARIA-1000-T (2)'!$L23 -> 0.01185 | J19: Tarifa BTS (0-300) | K19: =+'RES DE ACT TARIFARIA-1000-T (2)'!$L7 -> 2.98 | S19: Tarifa BTS (0-300) | U19: =+'RES DE ACT TARIFARIA-1000-T (2)'!$L23 -> 0.01185
A20: Tarifa BTS (301-750) | B20: =+'RES DE ACT TARIFARIA-1000-T (2)'!$L8 -> 2.98 | C20: =+'RES DE ACT TARIFARIA-1000-T (2)'!$L24 -> 0.01185 | J20: Tarifa BTS (301-750) | K20: =+'RES DE ACT TARIFARIA-1000-T (2)'!$L8 -> 2.98 | S20: Tarifa BTS (301-750) | U20: =+'RES DE ACT TARIFARIA-1000-T (2)'!$L24 -> 0.01185
A21: Tarifa BTS (751-más) | B21: =+'RES DE ACT TARIFARIA-1000-T (2)'!$L9 -> 2.98 | C21: =+'RES DE ACT TARIFARIA-1000-T (2)'!$L25 -> 0.01185 | J21: Tarifa BTS (751-más) | K21: =+'RES DE ACT TARIFARIA-1000-T (2)'!$L9 -> 2.98 | S21: Tarifa BTS (751-más) | U21: =+'RES DE ACT TARIFARIA-1000-T (2)'!$L25 -> 0.01185
A22: =+IF($A$2="EDECHI","Tarifa BTS (0-300) Chang","") -> Tarifa BTS (0-300) Chang | B22: =+'RES DE ACT TARIFARIA-1000-T (2)'!$L101 -> 2.98 | C22: =+'RES DE ACT TARIFARIA-1000-T (2)'!$L106 -> 0.01185 | J22: =+IF($A$2="EDECHI","Tarifa BTS (0-300) Chang","") -> Tarifa BTS (0-300) Chang | K22: =+'RES DE ACT TARIFARIA-1000-T (2)'!$L101 -> 2.98 | S22: =+IF($A$2="EDECHI","Tarifa BTS (0-300) Chang","") -> Tarifa BTS (0-300) Chang | U22: =+'RES DE ACT TARIFARIA-1000-T (2)'!$L106 -> 0.01185
A23: =+IF($A$2="EDECHI","Tarifa BTS (301-750) Chang","") -> Tarifa BTS (301-750) Chang | B23: =+'RES DE ACT TARIFARIA-1000-T (2)'!$L102 -> 2.98 | C23: =+'RES DE ACT TARIFARIA-1000-T (2)'!$L107 -> 0.01185 | J23: =+IF($A$2="EDECHI","Tarifa BTS (301-750) Chang","") -> Tarifa BTS (301-750) Chang | K23: =+'RES DE ACT TARIFARIA-1000-T (2)'!$L102 -> 2.98 | S23: =+IF($A$2="EDECHI","Tarifa BTS (301-750) Chang","") -> Tarifa BTS (301-750) Chang | U23: =+'RES DE ACT TARIFARIA-1000-T (2)'!$L107 -> 0.01185
A24: =+IF($A$2="EDECHI","Tarifa BTS (751-más) Chang","") -> Tarifa BTS (751-más) Chang | B24: =+'RES DE ACT TARIFARIA-1000-T (2)'!$L103 -> 2.98 | C24: =+'RES DE ACT TARIFARIA-1000-T (2)'!$L108 -> 0.01185 | J24: =+IF($A$2="EDECHI","Tarifa BTS (751-más) Chang","") -> Tarifa BTS (751-más) Chang | K24: =+'RES DE ACT TARIFARIA-1000-T (2)'!$L103 -> 2.98 | S24: =+IF($A$2="EDECHI","Tarifa BTS (751-más) Chang","") -> Tarifa BTS (751-más) Chang | U24: =+'RES DE ACT TARIFARIA-1000-T (2)'!$L108 -> 0.01185
A25: PREPAGO | B25: =+'RES DE ACT TARIFARIA-1000-T (2)'!$L125 -> 0.01201 | C25: =+'RES DE ACT TARIFARIA-1000-T (2)'!$L126 -> 0.01183 | J25: PREPAGO | K25: =+'RES DE ACT TARIFARIA-1000-T (2)'!$L125 -> 0.01201 | S25: PREPAGO | U25: =+'RES DE ACT TARIFARIA-1000-T (2)'!$L126 -> 0.01183
A26: BTSH_1 | J26: BTSH_1 | S26: BTSH_1
A27: BTSH_1 Punta | B27: =+'RES DE ACT TARIFARIA-1000-T (2)'!$L$131 -> 2.99 | C27: =+'RES DE ACT TARIFARIA-1000-T (2)'!L134 -> 0.01132 | J27: BTSH_1 Punta | K27: =+'RES DE ACT TARIFARIA-1000-T (2)'!$L$131 -> 2.99 | S27: BTSH_1 Punta | U27: =+'RES DE ACT TARIFARIA-1000-T (2)'!AD134 -> 0
A28: BTSH_1 Fuera de Punta Medio | B28: =+'RES DE ACT TARIFARIA-1000-T (2)'!$L$131 -> 2.99 | C28: =+'RES DE ACT TARIFARIA-1000-T (2)'!L135 -> 0.01132 | J28: BTSH_1 Fuera de Punta Medio | K28: =+'RES DE ACT TARIFARIA-1000-T (2)'!$L$131 -> 2.99 | S28: BTSH_1 Fuera de Punta Medio | U28: =+'RES DE ACT TARIFARIA-1000-T (2)'!AD135 -> 0
A29: BTSH_1 Fuera de Punta Bajo | B29: =+'RES DE ACT TARIFARIA-1000-T (2)'!$L$131 -> 2.99 | C29: =+'RES DE ACT TARIFARIA-1000-T (2)'!L136 -> 0.01132 | J29: BTSH_1 Fuera de Punta Bajo | K29: =+'RES DE ACT TARIFARIA-1000-T (2)'!$L$131 -> 2.99 | S29: BTSH_1 Fuera de Punta Bajo | U29: =+'RES DE ACT TARIFARIA-1000-T (2)'!AD136 -> 0
A30: BTSH_2 | J30: BTSH_2 | S30: BTSH_2
A31: BTSH_2 Punta | B31: =+'RES DE ACT TARIFARIA-1000-T (2)'!$L$131 -> 2.99 | C31: =+'RES DE ACT TARIFARIA-1000-T (2)'!L138 -> 0 | J31: BTSH_2 Punta | K31: =+'RES DE ACT TARIFARIA-1000-T (2)'!$L$131 -> 2.99 | S31: BTSH_2 Punta | U31: =+'RES DE ACT TARIFARIA-1000-T (2)'!AD138 -> 0
A32: BTSH_2 Fuera de Punta Medio | B32: =+'RES DE ACT TARIFARIA-1000-T (2)'!$L$131 -> 2.99 | C32: =+'RES DE ACT TARIFARIA-1000-T (2)'!L139 -> 0 | J32: BTSH_2 Fuera de Punta Medio | K32: =+'RES DE ACT TARIFARIA-1000-T (2)'!$L$131 -> 2.99 | S32: BTSH_2 Fuera de Punta Medio | U32: =+'RES DE ACT TARIFARIA-1000-T (2)'!AD139 -> 0
A33: BTSH_2 Fuera de Punta Bajo | B33: =+'RES DE ACT TARIFARIA-1000-T (2)'!$L$131 -> 2.99 | C33: =+'RES DE ACT TARIFARIA-1000-T (2)'!L140 -> 0 | J33: BTSH_2 Fuera de Punta Bajo | K33: =+'RES DE ACT TARIFARIA-1000-T (2)'!$L$131 -> 2.99 | S33: BTSH_2 Fuera de Punta Bajo | U33: =+'RES DE ACT TARIFARIA-1000-T (2)'!AD140 -> 0
A34: BTSH_3 | J34: BTSH_3 | S34: BTSH_3
A35: BTSH_3 Punta | B35: =+'RES DE ACT TARIFARIA-1000-T (2)'!$L$131 -> 2.99 | C35: =+'RES DE ACT TARIFARIA-1000-T (2)'!L142 -> 0 | J35: BTSH_3 Punta | K35: =+'RES DE ACT TARIFARIA-1000-T (2)'!$L$131 -> 2.99 | S35: BTSH_3 Punta | U35: =+'RES DE ACT TARIFARIA-1000-T (2)'!AD142 -> 0
A36: BTSH_3 Fuera de Punta Medio | B36: =+'RES DE ACT TARIFARIA-1000-T (2)'!$L$131 -> 2.99 | C36: =+'RES DE ACT TARIFARIA-1000-T (2)'!L143 -> 0 | J36: BTSH_3 Fuera de Punta Medio | K36: =+'RES DE ACT TARIFARIA-1000-T (2)'!$L$131 -> 2.99 | S36: BTSH_3 Fuera de Punta Medio | U36: =+'RES DE ACT TARIFARIA-1000-T (2)'!AD143 -> 0
A37: BTSH_3 Fuera de Punta Bajo | B37: =+'RES DE ACT TARIFARIA-1000-T (2)'!$L$131 -> 2.99 | C37: =+'RES DE ACT TARIFARIA-1000-T (2)'!L144 -> 0 | J37: BTSH_3 Fuera de Punta Bajo | K37: =+'RES DE ACT TARIFARIA-1000-T (2)'!$L$131 -> 2.99 | S37: BTSH_3 Fuera de Punta Bajo | U37: =+'RES DE ACT TARIFARIA-1000-T (2)'!AD144 -> 0
A39: INGRESOS ESTIMADOS PARA p APLICANDO LOS NUEVOS CARGOS POR TARIFA A LA PROYECCION DE VENTAS (FORM AT801) [SUMi (CCOMFp, i x CLIENTESp, i) + SUMi (CCOMVp, i x VEp, i)] | J39: INGRESOS ESTIMADOS PARA p APLICANDO LOS NUEVOS CARGOS FIJOS POR TARIFA A LA PROYECCION DE VENTAS (FORM AT801) [SUMi (CCOMFp, i x CLIENTESp, i) + SUMi (CCOMVp, i x VEp, i)] | S39: INGRESOS ESTIMADOS PARA p APLICANDO LOS NUEVOS CARGOS VARIABLE POR TARIFA A LA PROYECCION DE VENTAS (FORM AT801) [SUMi (CCOMFp, i x CLIENTESp, i) + SUMi (CCOMVp, i x VEp, i)]
A40: Tarifas | B40: 2023-07-01 | C40: 2023-08-01 | D40: 2023-09-01 | E40: 2023-10-01 | F40: 2023-11-01 | G40: 2023-12-01 | H40: TOTAL | J40: Tarifas | K40: 2023-07-01 | L40: 2023-08-01 | M40: 2023-09-01 | N40: 2023-10-01 | O40: 2023-11-01 | P40: 2023-12-01 | Q40: TOTAL | S40: Tarifas | T40: 2023-07-01 | U40: 2023-08-01 | V40: 2023-09-01 | W40: 2023-10-01 | X40: 2023-11-01 | Y40: 2023-12-01 | Z40: TOTAL
A41: Alta Tensión | B41: =+B42+B43 -> 403.31003 | C41: 425.0281 | D41: 402.75853 | E41: 410.21481 | F41: 392.20282 | G41: 424.15673 | H41: =+SUM(B41:G41) -> 2457.67102 | J41: Alta Tensión | K41: =+K42+K43 -> 13.94 | L41: 13.94 | M41: 13.94 | N41: 13.94 | O41: 13.94 | P41: 13.94 | Q41: =+SUM(K41:P41) -> 83.64 | S41: Alta Tensión | T41: =+T42+T43 -> 389.37003 | U41: 411.0881 | V41: 388.81853 | W41: 396.27481 | X41: 378.26282 | Y41: 410.21673 | Z41: =+SUM(T41:Y41) -> 2374.03102
A42: Horaria | B42: =+B7*'Facturación-801 (clientes)'!$B10+C7*'Facturación-801 (energía)'!$B10 -> 403.31003 | C42: =+B7*'Facturación-801 (clientes)'!$C10+C7*'Facturación-801 (energía)'!$C10 -> 425.0281 | D42: =+B7*'Facturación-801 (clientes)'!$D10+C7*'Facturación-801 (energía)'!$D10 -> 402.75853 | E42: =+B7*'Facturación-801 (clientes)'!$E10+C7*'Facturación-801 (energía)'!$E10 -> 410.21481 | F42: =+B7*'Facturación-801 (clientes)'!$F10+C7*'Facturación-801 (energía)'!$F10 -> 392.20282 | G42: =+B7*'Facturación-801 (clientes)'!$G10+C7*'Facturación-801 (energía)'!$G10 -> 424.15673 | H42: 2457.67102 | J42: Horaria | K42: =+K7*'Facturación-801 (clientes)'!$B10+L7*'Facturación-801 (energía)'!$B10 -> 13.94 | L42: =+K7*'Facturación-801 (clientes)'!$C10+L7*'Facturación-801 (energía)'!$C10 -> 13.94 | M42: =+K7*'Facturación-801 (clientes)'!$D10+L7*'Facturación-801 (energía)'!$D10 -> 13.94 | N42: =+K7*'Facturación-801 (clientes)'!$E10+L7*'Facturación-801 (energía)'!$E10 -> 13.94 | O42: =+K7*'Facturación-801 (clientes)'!$F10+L7*'Facturación-801 (energía)'!$F10 -> 13.94 | P42: =+K7*'Facturación-801 (clientes)'!$G10+L7*'Facturación-801 (energía)'!$G10 -> 13.94 | Q42: 83.64 | S42: Horaria | T42: =+T7*'Facturación-801 (clientes)'!$B10+U7*'Facturación-801 (energía)'!$B10 -> 389.37003 | U42: =+T7*'Facturación-801 (clientes)'!$C10+U7*'Facturación-801 (energía)'!$C10 -> 411.0881 | V42: =+T7*'Facturación-801 (clientes)'!$D10+U7*'Facturación-801 (energía)'!$D10 -> 388.81853 | W42: =+T7*'Facturación-801 (clientes)'!$E10+U7*'Facturación-801 (energía)'!$E10 -> 396.27481 | X42: =+T7*'Facturación-801 (clientes)'!$F10+U7*'Facturación-801 (energía)'!$F10 -> 378.26282 | Y42: =+T7*'Facturación-801 (clientes)'!$G10+U7*'Facturación-801 (energía)'!$G10 -> 410.21673 | Z42: 2374.03102
A43: Demanda Máxima | B43: =+B8*'Facturación-801 (clientes)'!$B11+C8*'Facturación-801 (energía)'!$B11 -> 0 | C43: =+B8*'Facturación-801 (clientes)'!$C11+C8*'Facturación-801 (energía)'!$C11 -> 0 | D43: =+B8*'Facturación-801 (clientes)'!$D11+C8*'Facturación-801 (energía)'!$D11 -> 0 | E43: =+B8*'Facturación-801 (clientes)'!$E11+C8*'Facturación-801 (energía)'!$E11 -> 0 | F43: =+B8*'Facturación-801 (clientes)'!$F11+C8*'Facturación-801 (energía)'!$F11 -> 0 | G43: =+B8*'Facturación-801 (clientes)'!$G11+C8*'Facturación-801 (energía)'!$G11 -> 0 | H43: 0 | J43: Demanda Máxima | K43: =+K8*'Facturación-801 (clientes)'!$B11+L8*'Facturación-801 (energía)'!$B11 -> 0 | L43: =+K8*'Facturación-801 (clientes)'!$C11+L8*'Facturación-801 (energía)'!$C11 -> 0 | M43: =+K8*'Facturación-801 (clientes)'!$D11+L8*'Facturación-801 (energía)'!$D11 -> 0 | N43: =+K8*'Facturación-801 (clientes)'!$E11+L8*'Facturación-801 (energía)'!$E11 -> 0 | O43: =+K8*'Facturación-801 (clientes)'!$F11+L8*'Facturación-801 (energía)'!$F11 -> 0 | P43: =+K8*'Facturación-801 (clientes)'!$G11+L8*'Facturación-801 (energía)'!$G11 -> 0 | Q43: 0 | S43: Demanda Máxima | T43: =+T8*'Facturación-801 (clientes)'!$B11+U8*'Facturación-801 (energía)'!$B11 -> 0 | U43: =+T8*'Facturación-801 (clientes)'!$C11+U8*'Facturación-801 (energía)'!$C11 -> 0 | V43: =+T8*'Facturación-801 (clientes)'!$D11+U8*'Facturación-801 (energía)'!$D11 -> 0 | W43: =+T8*'Facturación-801 (clientes)'!$E11+U8*'Facturación-801 (energía)'!$E11 -> 0 | X43: =+T8*'Facturación-801 (clientes)'!$F11+U8*'Facturación-801 (energía)'!$F11 -> 0 | Y43: =+T8*'Facturación-801 (clientes)'!$G11+U8*'Facturación-801 (energía)'!$G11 -> 0 | Z43: 0
A45: Media Tensión | B45: =+B46+B47+B52+B57+B62 -> 90290.77025 | C45: =+C46+C47+C52+C57+C62 -> 95130.12472 | D45: 90196.25835 | E45: 91852.26891 | F45: 87849.65453 | G45: 94964.72522 | H45: =+SUM(B45:G45) -> 550283.802 | J45: Media Tensión | K45: =+K46+K47+K52+K57+K62 -> 3787.168 | L45: =+L46+L47+L52+L57+L62 -> 3801.128 | M45: 3815.088 | N45: 3815.088 | O45: 3815.088 | P45: 3829.048 | Q45: =+SUM(K45:P45) -> 22862.608 | S45: Media Tensión | T45: =+T46+T47+T52+T57+T62 -> 86503.60225 | U45: =+U46+U47+U52+U57+U62 -> 91328.99672 | V45: 86381.17035 | W45: 88037.18091 | X45: 84034.56653 | Y45: 91135.67722 | Z45: =+SUM(T45:Y45) -> 527421.194
A46: Horaria | B46: =+B9*'Facturación-801 (clientes)'!$B14+C9*'Facturación-801 (energía)'!$B14 -> 925.20118 | C46: =+B9*'Facturación-801 (clientes)'!$C14+C9*'Facturación-801 (energía)'!$C14 -> 969.8065 | D46: =+B9*'Facturación-801 (clientes)'!$D14+C9*'Facturación-801 (energía)'!$D14 -> 924.06509 | E46: =+B9*'Facturación-801 (clientes)'!$E14+C9*'Facturación-801 (energía)'!$E14 -> 939.37473 | F46: =+B9*'Facturación-801 (clientes)'!$F14+C9*'Facturación-801 (energía)'!$F14 -> 902.36908 | G46: =+B9*'Facturación-801 (clientes)'!$G14+C9*'Facturación-801 (energía)'!$G14 -> 968.01964 | H46: 5628.83622 | J46: Horaria | K46: =+K9*'Facturación-801 (clientes)'!$B14+L9*'Facturación-801 (energía)'!$B14 -> 125.46 | L46: =+K9*'Facturación-801 (clientes)'!$C14+L9*'Facturación-801 (energía)'!$C14 -> 125.46 | M46: =+K9*'Facturación-801 (clientes)'!$D14+L9*'Facturación-801 (energía)'!$D14 -> 125.46 | N46: =+K9*'Facturación-801 (clientes)'!$E14+L9*'Facturación-801 (energía)'!$E14 -> 125.46 | O46: =+K9*'Facturación-801 (clientes)'!$F14+L9*'Facturación-801 (energía)'!$F14 -> 125.46 | P46: =+K9*'Facturación-801 (clientes)'!$G14+L9*'Facturación-801 (energía)'!$G14 -> 125.46 | Q46: 752.76 | S46: Horaria | T46: =+T9*'Facturación-801 (clientes)'!$B14+U9*'Facturación-801 (energía)'!$B14 -> 799.74118 | U46: =+T9*'Facturación-801 (clientes)'!$C14+U9*'Facturación-801 (energía)'!$C14 -> 844.3465 | V46: =+T9*'Facturación-801 (clientes)'!$D14+U9*'Facturación-801 (energía)'!$D14 -> 798.60509 | W46: =+T9*'Facturación-801 (clientes)'!$E14+U9*'Facturación-801 (energía)'!$E14 -> 813.91473 | X46: =+T9*'Facturación-801 (clientes)'!$F14+U9*'Facturación-801 (energía)'!$F14 -> 776.90908 | Y46: =+T9*'Facturación-801 (clientes)'!$G14+U9*'Facturación-801 (energía)'!$G14 -> 842.55964 | Z46: 4876.07622
A47: Demanda Máxima | B47: =SUM(B48:B51) -> 5865.780132 | C47: 6072.715617 | D47: 5874.499779 | E47: 5945.503749 | F47: 5773.859853 | G47: 6092.353189 | H47: 35624.71232 | J47: Demanda Máxima | K47: =SUM(K48:K51) -> 2156.122 | L47: 2156.122 | M47: 2170.082 | N47: 2170.082 | O47: 2170.082 | P47: 2184.042 | Q47: 13006.532 | S47: Demanda Máxima | T47: =SUM(T48:T51) -> 3709.658132 | U47: 3916.593616 | V47: 3704.417779 | W47: 3775.42175 | X47: 3603.777853 | Y47: 3908.311189 | Z47: 22618.18032
A48: - Regulares | B48: =+B10*'Facturación-801 (clientes)'!$B21+C10*'Facturación-801 (energía)'!$B21 -> 5522.74964 | C48: =+B10*'Facturación-801 (clientes)'!$C21+C10*'Facturación-801 (energía)'!$C21 -> 5715.5761 | D48: =+B10*'Facturación-801 (clientes)'!$D21+C10*'Facturación-801 (energía)'!$D21 -> 5531.82335 | E48: =+B10*'Facturación-801 (clientes)'!$E21+C10*'Facturación-801 (energía)'!$E21 -> 5597.99232 | F48: =+B10*'Facturación-801 (clientes)'!$F21+C10*'Facturación-801 (energía)'!$F21 -> 5438.04629 | G48: =+B10*'Facturación-801 (clientes)'!$G21+C10*'Facturación-801 (energía)'!$G21 -> 5735.7751 | H48: 33541.9628 | J48: - Regulares | K48: =+K10*'Facturación-801 (clientes)'!$B21+L10*'Facturación-801 (energía)'!$B21 -> 2066.08 | L48: =+K10*'Facturación-801 (clientes)'!$C21+L10*'Facturación-801 (energía)'!$C21 -> 2066.08 | M48: =+K10*'Facturación-801 (clientes)'!$D21+L10*'Facturación-801 (energía)'!$D21 -> 2080.04 | N48: =+K10*'Facturación-801 (clientes)'!$E21+L10*'Facturación-801 (energía)'!$E21 -> 2080.04 | O48: =+K10*'Facturación-801 (clientes)'!$F21+L10*'Facturación-801 (energía)'!$F21 -> 2080.04 | P48: =+K10*'Facturación-801 (clientes)'!$G21+L10*'Facturación-801 (energía)'!$G21 -> 2094 | Q48: 12466.28 | S48: - Regulares | T48: =+T10*'Facturación-801 (clientes)'!$B21+U10*'Facturación-801 (energía)'!$B21 -> 3456.66964 | U48: =+T10*'Facturación-801 (clientes)'!$C21+U10*'Facturación-801 (energía)'!$C21 -> 3649.4961 | V48: =+T10*'Facturación-801 (clientes)'!$D21+U10*'Facturación-801 (energía)'!$D21 -> 3451.78335 | W48: =+T10*'Facturación-801 (clientes)'!$E21+U10*'Facturación-801 (energía)'!$E21 -> 3517.95232 | X48: =+T10*'Facturación-801 (clientes)'!$F21+U10*'Facturación-801 (energía)'!$F21 -> 3358.00629 | Y48: =+T10*'Facturación-801 (clientes)'!$G21+U10*'Facturación-801 (energía)'!$G21 -> 3641.7751 | Z48: 21075.6828
A49: - Agropecuarios | B49: =+(B10*'Facturación-801 (clientes)'!$B22+C10*'Facturación-801 (energía)'!$B22)*0.95 -> 325.1566045 | C49: =+(B10*'Facturación-801 (clientes)'!$C22+C10*'Facturación-801 (energía)'!$C22)*0.95 -> 338.852004 | D49: =+(B10*'Facturación-801 (clientes)'!$D22+C10*'Facturación-801 (energía)'!$D22)*0.95 -> 324.810814 | E49: =+(B10*'Facturación-801 (clientes)'!$E22+C10*'Facturación-801 (energía)'!$E22)*0.95 -> 329.505182 | F49: =+(B10*'Facturación-801 (clientes)'!$F22+C10*'Facturación-801 (energía)'!$F22)*0.95 -> 318.146488 | G49: =+(B10*'Facturación-801 (clientes)'!$G22+C10*'Facturación-801 (energía)'!$G22)*0.95 -> 338.307122 | H49: 1974.778214 | J49: - Agropecuarios | K49: =+(K10*'Facturación-801 (clientes)'!$B22+L10*'Facturación-801 (energía)'!$B22)*0.95 -> 79.572 | L49: =+(K10*'Facturación-801 (clientes)'!$C22+L10*'Facturación-801 (energía)'!$C22)*0.95 -> 79.572 | M49: =+(K10*'Facturación-801 (clientes)'!$D22+L10*'Facturación-801 (energía)'!$D22)*0.95 -> 79.572 | N49: =+(K10*'Facturación-801 (clientes)'!$E22+L10*'Facturación-801 (energía)'!$E22)*0.95 -> 79.572 | O49: =+(K10*'Facturación-801 (clientes)'!$F22+L10*'Facturación-801 (energía)'!$F22)*0.95 -> 79.572 | P49: =+(K10*'Facturación-801 (clientes)'!$G22+L10*'Facturación-801 (energía)'!$G22)*0.95 -> 79.572 | Q49: 477.432 | S49: - Agropecuarios | T49: =+(T10*'Facturación-801 (clientes)'!$B22+U10*'Facturación-801 (energía)'!$B22)*0.95 -> 245.5846045 | U49: =+(T10*'Facturación-801 (clientes)'!$C22+U10*'Facturación-801 (energía)'!$C22)*0.95 -> 259.280004 | V49: =+(T10*'Facturación-801 (clientes)'!$D22+U10*'Facturación-801 (energía)'!$D22)*0.95 -> 245.238814 | W49: =+(T10*'Facturación-801 (clientes)'!$E22+U10*'Facturación-801 (energía)'!$E22)*0.95 -> 249.933182 | X49: =+(T10*'Facturación-801 (clientes)'!$F22+U10*'Facturación-801 (energía)'!$F22)*0.95 -> 238.574488 | Y49: =+(T10*'Facturación-801 (clientes)'!$G22+U10*'Facturación-801 (energía)'!$G22)*0.95 -> 258.735122 | Z49: 1497.346214
A50: - Jubilados, Pen. Tercera Edad | B50: =+(B10*'Facturación-801 (clientes)'!$B23+C10*'Facturación-801 (energía)'!$B23)*0.75 -> 17.8738875 | C50: =+(B10*'Facturación-801 (clientes)'!$C23+C10*'Facturación-801 (energía)'!$C23)*0.75 -> 18.2875125 | D50: =+(B10*'Facturación-801 (clientes)'!$D23+C10*'Facturación-801 (energía)'!$D23)*0.75 -> 17.865615 | E50: =+(B10*'Facturación-801 (clientes)'!$E23+C10*'Facturación-801 (energía)'!$E23)*0.75 -> 18.0062475 | F50: =+(B10*'Facturación-801 (clientes)'!$F23+C10*'Facturación-801 (energía)'!$F23)*0.75 -> 17.667075 | G50: =+(B10*'Facturación-801 (clientes)'!$G23+C10*'Facturación-801 (energía)'!$G23)*0.75 -> 18.2709675 | H50: 107.971305 | J50: - Jubilados, Pen. Tercera Edad | K50: =+(K10*'Facturación-801 (clientes)'!$B23+L10*'Facturación-801 (energía)'!$B23)*0.75 -> 10.47 | L50: =+(K10*'Facturación-801 (clientes)'!$C23+L10*'Facturación-801 (energía)'!$C23)*0.75 -> 10.47 | M50: =+(K10*'Facturación-801 (clientes)'!$D23+L10*'Facturación-801 (energía)'!$D23)*0.75 -> 10.47 | N50: =+(K10*'Facturación-801 (clientes)'!$E23+L10*'Facturación-801 (energía)'!$E23)*0.75 -> 10.47 | O50: =+(K10*'Facturación-801 (clientes)'!$F23+L10*'Facturación-801 (energía)'!$F23)*0.75 -> 10.47 | P50: =+(K10*'Facturación-801 (clientes)'!$G23+L10*'Facturación-801 (energía)'!$G23)*0.75 -> 10.47 | Q50: 62.82 | S50: - Jubilados, Pen. Tercera Edad | T50: =+(T10*'Facturación-801 (clientes)'!$B23+U10*'Facturación-801 (energía)'!$B23)*0.75 -> 7.4038875 | U50: =+(T10*'Facturación-801 (clientes)'!$C23+U10*'Facturación-801 (energía)'!$C23)*0.75 -> 7.8175125 | V50: =+(T10*'Facturación-801 (clientes)'!$D23+U10*'Facturación-801 (energía)'!$D23)*0.75 -> 7.395615 | W50: =+(T10*'Facturación-801 (clientes)'!$E23+U10*'Facturación-801 (energía)'!$E23)*0.75 -> 7.5362475 | X50: =+(T10*'Facturación-801 (clientes)'!$F23+U10*'Facturación-801 (energía)'!$F23)*0.75 -> 7.197075 | Y50: =+(T10*'Facturación-801 (clientes)'!$G23+U10*'Facturación-801 (energía)'!$G23)*0.75 -> 7.8009675 | Z50: 45.151305
A51: - Partidos Políticos | B51: =+(B10*'Facturación-801 (clientes)'!$B24+C10*'Facturación-801 (energía)'!$B24)*0.5 -> 0 | C51: =+(B10*'Facturación-801 (clientes)'!$C24+C10*'Facturación-801 (energía)'!$C24)*0.5 -> 0 | D51: =+(B10*'Facturación-801 (clientes)'!$D24+C10*'Facturación-801 (energía)'!$D24)*0.5 -> 0 | E51: =+(B10*'Facturación-801 (clientes)'!$E24+C10*'Facturación-801 (energía)'!$E24)*0.5 -> 0 | F51: =+(B10*'Facturación-801 (clientes)'!$F24+C10*'Facturación-801 (energía)'!$F24)*0.5 -> 0 | G51: =+(B10*'Facturación-801 (clientes)'!$G24+C10*'Facturación-801 (energía)'!$G24)*0.5 -> 0 | H51: 0 | J51: - Partidos Políticos | K51: =+(K10*'Facturación-801 (clientes)'!$B24+L10*'Facturación-801 (energía)'!$B24)*0.5 -> 0 | L51: =+(K10*'Facturación-801 (clientes)'!$C24+L10*'Facturación-801 (energía)'!$C24)*0.5 -> 0 | M51: =+(K10*'Facturación-801 (clientes)'!$D24+L10*'Facturación-801 (energía)'!$D24)*0.5 -> 0 | N51: =+(K10*'Facturación-801 (clientes)'!$E24+L10*'Facturación-801 (energía)'!$E24)*0.5 -> 0 | O51: =+(K10*'Facturación-801 (clientes)'!$F24+L10*'Facturación-801 (energía)'!$F24)*0.5 -> 0 | P51: =+(K10*'Facturación-801 (clientes)'!$G24+L10*'Facturación-801 (energía)'!$G24)*0.5 -> 0 | Q51: 0 | S51: - Partidos Políticos | T51: =+(T10*'Facturación-801 (clientes)'!$B24+U10*'Facturación-801 (energía)'!$B24)*0.5 -> 0 | U51: =+(T10*'Facturación-801 (clientes)'!$C24+U10*'Facturación-801 (energía)'!$C24)*0.5 -> 0 | V51: =+(T10*'Facturación-801 (clientes)'!$D24+U10*'Facturación-801 (energía)'!$D24)*0.5 -> 0 | W51: =+(T10*'Facturación-801 (clientes)'!$E24+U10*'Facturación-801 (energía)'!$E24)*0.5 -> 0 | X51: =+(T10*'Facturación-801 (clientes)'!$F24+U10*'Facturación-801 (energía)'!$F24)*0.5 -> 0 | Y51: =+(T10*'Facturación-801 (clientes)'!$G24+U10*'Facturación-801 (energía)'!$G24)*0.5 -> 0 | Z51: 0
A52: Demanda Máxima (10,001-30,000) | B52: =SUM(B53:B56) -> 8902.865587 | C52: 9378.477413 | D52: 8905.112278 | E52: 9063.549956 | F52: 8680.600489 | G52: 9359.993339 | H52: 54290.59906 | J52: Demanda Máxima (10,001-30,000) | K52: =SUM(K53:K56) -> 626.804 | L52: 640.764 | M52: 640.764 | N52: 640.764 | O52: 640.764 | P52: 640.764 | Q52: 3830.624 | S52: Demanda Máxima (10,001-30,000) | T52: =SUM(T53:T56) -> 8276.061587 | U52: 8737.713413 | V52: 8264.348278 | W52: 8422.785956 | X52: 8039.836489 | Y52: 8719.229339 | Z52: 50459.97506
A53: - Regulares | B53: =+B11*'Facturación-801 (clientes)'!$B26+C10*10000*'Facturación-801 (clientes)'!$B26+C11*('Facturación-801 (energía)'!$B26-'Facturación-801 (clientes)'!$B26*10000) -> 8572.6537 | C53: =+B11*'Facturación-801 (clientes)'!$C26+C10*10000*'Facturación-801 (clientes)'!$C26+C11*('Facturación-801 (energía)'!$C26-'Facturación-801 (clientes)'!$C26*10000) -> 9031.33227 | D53: =+B11*'Facturación-801 (clientes)'!$D26+C10*10000*'Facturación-801 (clientes)'!$D26+C11*('Facturación-801 (energía)'!$D26-'Facturación-801 (clientes)'!$D26*10000) -> 8575.33001 | E53: =+B11*'Facturación-801 (clientes)'!$E26+C10*10000*'Facturación-801 (clientes)'!$E26+C11*('Facturación-801 (energía)'!$E26-'Facturación-801 (clientes)'!$E26*10000) -> 8727.95212 | F53: =+B11*'Facturación-801 (clientes)'!$F26+C10*10000*'Facturación-801 (clientes)'!$F26+C11*('Facturación-801 (energía)'!$F26-'Facturación-801 (clientes)'!$F26*10000) -> 8359.0648 | G53: =+B11*'Facturación-801 (clientes)'!$G26+C10*10000*'Facturación-801 (clientes)'!$G26+C11*('Facturación-801 (energía)'!$G26-'Facturación-801 (clientes)'!$G26*10000) -> 9013.51882 | H53: 52279.85172 | J53: - Regulares | K53: =+K11*'Facturación-801 (clientes)'!$B26+L10*10000*'Facturación-801 (clientes)'!$B26+L11*('Facturación-801 (energía)'!$B26-'Facturación-801 (clientes)'!$B26*10000) -> 600.28 | L53: =+K11*'Facturación-801 (clientes)'!$C26+L10*10000*'Facturación-801 (clientes)'!$C26+L11*('Facturación-801 (energía)'!$C26-'Facturación-801 (clientes)'!$C26*10000) -> 614.24 | M53: =+K11*'Facturación-801 (clientes)'!$D26+L10*10000*'Facturación-801 (clientes)'!$D26+L11*('Facturación-801 (energía)'!$D26-'Facturación-801 (clientes)'!$D26*10000) -> 614.24 | N53: =+K11*'Facturación-801 (clientes)'!$E26+L10*10000*'Facturación-801 (clientes)'!$E26+L11*('Facturación-801 (energía)'!$E26-'Facturación-801 (clientes)'!$E26*10000) -> 614.24 | O53: =+K11*'Facturación-801 (clientes)'!$F26+L10*10000*'Facturación-801 (clientes)'!$F26+L11*('Facturación-801 (energía)'!$F26-'Facturación-801 (clientes)'!$F26*10000) -> 614.24 | P53: =+K11*'Facturación-801 (clientes)'!$G26+L10*10000*'Facturación-801 (clientes)'!$G26+L11*('Facturación-801 (energía)'!$G26-'Facturación-801 (clientes)'!$G26*10000) -> 614.24 | Q53: 3671.48 | S53: - Regulares | T53: =+T11*'Facturación-801 (clientes)'!$B26+U10*10000*'Facturación-801 (clientes)'!$B26+U11*('Facturación-801 (energía)'!$B26-'Facturación-801 (clientes)'!$B26*10000) -> 7972.3737 | U53: =+T11*'Facturación-801 (clientes)'!$C26+U10*10000*'Facturación-801 (clientes)'!$C26+U11*('Facturación-801 (energía)'!$C26-'Facturación-801 (clientes)'!$C26*10000) -> 8417.09227 | V53: =+T11*'Facturación-801 (clientes)'!$D26+U10*10000*'Facturación-801 (clientes)'!$D26+U11*('Facturación-801 (energía)'!$D26-'Facturación-801 (clientes)'!$D26*10000) -> 7961.09001 | W53: =+T11*'Facturación-801 (clientes)'!$E26+U10*10000*'Facturación-801 (clientes)'!$E26+U11*('Facturación-801 (energía)'!$E26-'Facturación-801 (clientes)'!$E26*10000) -> 8113.71212 | X53: =+T11*'Facturación-801 (clientes)'!$F26+U10*10000*'Facturación-801 (clientes)'!$F26+U11*('Facturación-801 (energía)'!$F26-'Facturación-801 (clientes)'!$F26*10000) -> 7744.8248 | Y53: =+T11*'Facturación-801 (clientes)'!$G26+U10*10000*'Facturación-801 (clientes)'!$G26+U11*('Facturación-801 (energía)'!$G26-'Facturación-801 (clientes)'!$G26*10000) -> 8399.27882 | Z53: 48608.37172
A54: - Agropecuarios | B54: =+(B11*'Facturación-801 (clientes)'!$B27+C10*10000*'Facturación-801 (clientes)'!$B27+C11*('Facturación-801 (energía)'!$B27-'Facturación-801 (clientes)'!$B27*10000))*0.95 -> 330.211887 | C54: =+(B11*'Facturación-801 (clientes)'!$C27+C10*10000*'Facturación-801 (clientes)'!$C27+C11*('Facturación-801 (energía)'!$C27-'Facturación-801 (clientes)'!$C27*10000))*0.95 -> 347.145143 | D54: =+(B11*'Facturación-801 (clientes)'!$D27+C10*10000*'Facturación-801 (clientes)'!$D27+C11*('Facturación-801 (energía)'!$D27-'Facturación-801 (clientes)'!$D27*10000))*0.95 -> 329.7822685 | E54: =+(B11*'Facturación-801 (clientes)'!$E27+C10*10000*'Facturación-801 (clientes)'!$E27+C11*('Facturación-801 (energía)'!$E27-'Facturación-801 (clientes)'!$E27*10000))*0.95 -> 335.597836 | F54: =+(B11*'Facturación-801 (clientes)'!$F27+C10*10000*'Facturación-801 (clientes)'!$F27+C11*('Facturación-801 (energía)'!$F27-'Facturación-801 (clientes)'!$F27*10000))*0.95 -> 321.535689 | G54: =+(B11*'Facturación-801 (clientes)'!$G27+C10*10000*'Facturación-801 (clientes)'!$G27+C11*('Facturación-801 (energía)'!$G27-'Facturación-801 (clientes)'!$G27*10000))*0.95 -> 346.474519 | H54: 2010.747342 | J54: - Agropecuarios | K54: =+(K11*'Facturación-801 (clientes)'!$B27+L10*10000*'Facturación-801 (clientes)'!$B27+L11*('Facturación-801 (energía)'!$B27-'Facturación-801 (clientes)'!$B27*10000))*0.95 -> 26.524 | L54: =+(K11*'Facturación-801 (clientes)'!$C27+L10*10000*'Facturación-801 (clientes)'!$C27+L11*('Facturación-801 (energía)'!$C27-'Facturación-801 (clientes)'!$C27*10000))*0.95 -> 26.524 | M54: =+(K11*'Facturación-801 (clientes)'!$D27+L10*10000*'Facturación-801 (clientes)'!$D27+L11*('Facturación-801 (energía)'!$D27-'Facturación-801 (clientes)'!$D27*10000))*0.95 -> 26.524 | N54: =+(K11*'Facturación-801 (clientes)'!$E27+L10*10000*'Facturación-801 (clientes)'!$E27+L11*('Facturación-801 (energía)'!$E27-'Facturación-801 (clientes)'!$E27*10000))*0.95 -> 26.524 | O54: =+(K11*'Facturación-801 (clientes)'!$F27+L10*10000*'Facturación-801 (clientes)'!$F27+L11*('Facturación-801 (energía)'!$F27-'Facturación-801 (clientes)'!$F27*10000))*0.95 -> 26.524 | P54: =+(K11*'Facturación-801 (clientes)'!$G27+L10*10000*'Facturación-801 (clientes)'!$G27+L11*('Facturación-801 (energía)'!$G27-'Facturación-801 (clientes)'!$G27*10000))*0.95 -> 26.524 | Q54: 159.144 | S54: - Agropecuarios | T54: =+(T11*'Facturación-801 (clientes)'!$B27+U10*10000*'Facturación-801 (clientes)'!$B27+U11*('Facturación-801 (energía)'!$B27-'Facturación-801 (clientes)'!$B27*10000))*0.95 -> 303.687887 | U54: =+(T11*'Facturación-801 (clientes)'!$C27+U10*10000*'Facturación-801 (clientes)'!$C27+U11*('Facturación-801 (energía)'!$C27-'Facturación-801 (clientes)'!$C27*10000))*0.95 -> 320.621143 | V54: =+(T11*'Facturación-801 (clientes)'!$D27+U10*10000*'Facturación-801 (clientes)'!$D27+U11*('Facturación-801 (energía)'!$D27-'Facturación-801 (clientes)'!$D27*10000))*0.95 -> 303.2582685 | W54: =+(T11*'Facturación-801 (clientes)'!$E27+U10*10000*'Facturación-801 (clientes)'!$E27+U11*('Facturación-801 (energía)'!$E27-'Facturación-801 (clientes)'!$E27*10000))*0.95 -> 309.073836 | X54: =+(T11*'Facturación-801 (clientes)'!$F27+U10*10000*'Facturación-801 (clientes)'!$F27+U11*('Facturación-801 (energía)'!$F27-'Facturación-801 (clientes)'!$F27*10000))*0.95 -> 295.011689 | Y54: =+(T11*'Facturación-801 (clientes)'!$G27+U10*10000*'Facturación-801 (clientes)'!$G27+U11*('Facturación-801 (energía)'!$G27-'Facturación-801 (clientes)'!$G27*10000))*0.95 -> 319.950519 | Z54: 1851.603342
A55: - Jubilados, Pen. Tercera Edad | B55: =+(B11*'Facturación-801 (clientes)'!$B28+C10*10000*'Facturación-801 (clientes)'!$B28+C11*('Facturación-801 (energía)'!$B28-'Facturación-801 (clientes)'!$B28*10000))*0.75 -> 0 | C55: =+(B11*'Facturación-801 (clientes)'!$C28+C10*10000*'Facturación-801 (clientes)'!$C28+C11*('Facturación-801 (energía)'!$C28-'Facturación-801 (clientes)'!$C28*10000))*0.75 -> 0 | D55: =+(B11*'Facturación-801 (clientes)'!$D28+C10*10000*'Facturación-801 (clientes)'!$D28+C11*('Facturación-801 (energía)'!$D28-'Facturación-801 (clientes)'!$D28*10000))*0.75 -> 0 | E55: =+(B11*'Facturación-801 (clientes)'!$E28+C10*10000*'Facturación-801 (clientes)'!$E28+C11*('Facturación-801 (energía)'!$E28-'Facturación-801 (clientes)'!$E28*10000))*0.75 -> 0 | F55: =+(B11*'Facturación-801 (clientes)'!$F28+C10*10000*'Facturación-801 (clientes)'!$F28+C11*('Facturación-801 (energía)'!$F28-'Facturación-801 (clientes)'!$F28*10000))*0.75 -> 0 | G55: =+(B11*'Facturación-801 (clientes)'!$G28+C10*10000*'Facturación-801 (clientes)'!$G28+C11*('Facturación-801 (energía)'!$G28-'Facturación-801 (clientes)'!$G28*10000))*0.75 -> 0 | H55: 0 | J55: - Jubilados, Pen. Tercera Edad | K55: =+(K11*'Facturación-801 (clientes)'!$B28+L10*10000*'Facturación-801 (clientes)'!$B28+L11*('Facturación-801 (energía)'!$B28-'Facturación-801 (clientes)'!$B28*10000))*0.75 -> 0 | L55: =+(K11*'Facturación-801 (clientes)'!$C28+L10*10000*'Facturación-801 (clientes)'!$C28+L11*('Facturación-801 (energía)'!$C28-'Facturación-801 (clientes)'!$C28*10000))*0.75 -> 0 | M55: =+(K11*'Facturación-801 (clientes)'!$D28+L10*10000*'Facturación-801 (clientes)'!$D28+L11*('Facturación-801 (energía)'!$D28-'Facturación-801 (clientes)'!$D28*10000))*0.75 -> 0 | N55: =+(K11*'Facturación-801 (clientes)'!$E28+L10*10000*'Facturación-801 (clientes)'!$E28+L11*('Facturación-801 (energía)'!$E28-'Facturación-801 (clientes)'!$E28*10000))*0.75 -> 0 | O55: =+(K11*'Facturación-801 (clientes)'!$F28+L10*10000*'Facturación-801 (clientes)'!$F28+L11*('Facturación-801 (energía)'!$F28-'Facturación-801 (clientes)'!$F28*10000))*0.75 -> 0 | P55: =+(K11*'Facturación-801 (clientes)'!$G28+L10*10000*'Facturación-801 (clientes)'!$G28+L11*('Facturación-801 (energía)'!$G28-'Facturación-801 (clientes)'!$G28*10000))*0.75 -> 0 | Q55: 0 | S55: - Jubilados, Pen. Tercera Edad | T55: =+(T11*'Facturación-801 (clientes)'!$B28+U10*10000*'Facturación-801 (clientes)'!$B28+U11*('Facturación-801 (energía)'!$B28-'Facturación-801 (clientes)'!$B28*10000))*0.75 -> 0 | U55: =+(T11*'Facturación-801 (clientes)'!$C28+U10*10000*'Facturación-801 (clientes)'!$C28+U11*('Facturación-801 (energía)'!$C28-'Facturación-801 (clientes)'!$C28*10000))*0.75 -> 0 | V55: =+(T11*'Facturación-801 (clientes)'!$D28+U10*10000*'Facturación-801 (clientes)'!$D28+U11*('Facturación-801 (energía)'!$D28-'Facturación-801 (clientes)'!$D28*10000))*0.75 -> 0 | W55: =+(T11*'Facturación-801 (clientes)'!$E28+U10*10000*'Facturación-801 (clientes)'!$E28+U11*('Facturación-801 (energía)'!$E28-'Facturación-801 (clientes)'!$E28*10000))*0.75 -> 0 | X55: =+(T11*'Facturación-801 (clientes)'!$F28+U10*10000*'Facturación-801 (clientes)'!$F28+U11*('Facturación-801 (energía)'!$F28-'Facturación-801 (clientes)'!$F28*10000))*0.75 -> 0 | Y55: =+(T11*'Facturación-801 (clientes)'!$G28+U10*10000*'Facturación-801 (clientes)'!$G28+U11*('Facturación-801 (energía)'!$G28-'Facturación-801 (clientes)'!$G28*10000))*0.75 -> 0 | Z55: 0
A56: - Partidos Políticos | B56: =+(B11*'Facturación-801 (clientes)'!$B29+C10*10000*'Facturación-801 (clientes)'!$B29+C11*('Facturación-801 (energía)'!$B29-'Facturación-801 (clientes)'!$B29*10000))*0.5 -> 0 | C56: =+(B11*'Facturación-801 (clientes)'!$C29+C10*10000*'Facturación-801 (clientes)'!$C29+C11*('Facturación-801 (energía)'!$C29-'Facturación-801 (clientes)'!$C29*10000))*0.5 -> 0 | D56: =+(B11*'Facturación-801 (clientes)'!$D29+C10*10000*'Facturación-801 (clientes)'!$D29+C11*('Facturación-801 (energía)'!$D29-'Facturación-801 (clientes)'!$D29*10000))*0.5 -> 0 | E56: =+(B11*'Facturación-801 (clientes)'!$E29+C10*10000*'Facturación-801 (clientes)'!$E29+C11*('Facturación-801 (energía)'!$E29-'Facturación-801 (clientes)'!$E29*10000))*0.5 -> 0 | F56: =+(B11*'Facturación-801 (clientes)'!$F29+C10*10000*'Facturación-801 (clientes)'!$F29+C11*('Facturación-801 (energía)'!$F29-'Facturación-801 (clientes)'!$F29*10000))*0.5 -> 0 | G56: =+(B11*'Facturación-801 (clientes)'!$G29+C10*10000*'Facturación-801 (clientes)'!$G29+C11*('Facturación-801 (energía)'!$G29-'Facturación-801 (clientes)'!$G29*10000))*0.5 -> 0 | H56: 0 | J56: - Partidos Políticos | K56: =+(K11*'Facturación-801 (clientes)'!$B29+L10*10000*'Facturación-801 (clientes)'!$B29+L11*('Facturación-801 (energía)'!$B29-'Facturación-801 (clientes)'!$B29*10000))*0.5 -> 0 | L56: =+(K11*'Facturación-801 (clientes)'!$C29+L10*10000*'Facturación-801 (clientes)'!$C29+L11*('Facturación-801 (energía)'!$C29-'Facturación-801 (clientes)'!$C29*10000))*0.5 -> 0 | M56: =+(K11*'Facturación-801 (clientes)'!$D29+L10*10000*'Facturación-801 (clientes)'!$D29+L11*('Facturación-801 (energía)'!$D29-'Facturación-801 (clientes)'!$D29*10000))*0.5 -> 0 | N56: =+(K11*'Facturación-801 (clientes)'!$E29+L10*10000*'Facturación-801 (clientes)'!$E29+L11*('Facturación-801 (energía)'!$E29-'Facturación-801 (clientes)'!$E29*10000))*0.5 -> 0 | O56: =+(K11*'Facturación-801 (clientes)'!$F29+L10*10000*'Facturación-801 (clientes)'!$F29+L11*('Facturación-801 (energía)'!$F29-'Facturación-801 (clientes)'!$F29*10000))*0.5 -> 0 | P56: =+(K11*'Facturación-801 (clientes)'!$G29+L10*10000*'Facturación-801 (clientes)'!$G29+L11*('Facturación-801 (energía)'!$G29-'Facturación-801 (clientes)'!$G29*10000))*0.5 -> 0 | Q56: 0 | S56: - Partidos Políticos | T56: =+(T11*'Facturación-801 (clientes)'!$B29+U10*10000*'Facturación-801 (clientes)'!$B29+U11*('Facturación-801 (energía)'!$B29-'Facturación-801 (clientes)'!$B29*10000))*0.5 -> 0 | U56: =+(T11*'Facturación-801 (clientes)'!$C29+U10*10000*'Facturación-801 (clientes)'!$C29+U11*('Facturación-801 (energía)'!$C29-'Facturación-801 (clientes)'!$C29*10000))*0.5 -> 0 | V56: =+(T11*'Facturación-801 (clientes)'!$D29+U10*10000*'Facturación-801 (clientes)'!$D29+U11*('Facturación-801 (energía)'!$D29-'Facturación-801 (clientes)'!$D29*10000))*0.5 -> 0 | W56: =+(T11*'Facturación-801 (clientes)'!$E29+U10*10000*'Facturación-801 (clientes)'!$E29+U11*('Facturación-801 (energía)'!$E29-'Facturación-801 (clientes)'!$E29*10000))*0.5 -> 0 | X56: =+(T11*'Facturación-801 (clientes)'!$F29+U10*10000*'Facturación-801 (clientes)'!$F29+U11*('Facturación-801 (energía)'!$F29-'Facturación-801 (clientes)'!$F29*10000))*0.5 -> 0 | Y56: =+(T11*'Facturación-801 (clientes)'!$G29+U10*10000*'Facturación-801 (clientes)'!$G29+U11*('Facturación-801 (energía)'!$G29-'Facturación-801 (clientes)'!$G29*10000))*0.5 -> 0 | Z56: 0
A57: Demanda Máxima (30-001-50,000) | B57: =SUM(B58:B61) -> 13242.70722 | C57: 13954.19682 | D57: 13224.64835 | E57: 13468.82277 | F57: 12878.64387 | G57: 13925.69254 | H57: 80694.71157 | J57: Demanda Máxima (30-001-50,000) | K57: =SUM(K58:K61) -> 487.902 | L57: 487.902 | M57: 487.902 | N57: 487.902 | O57: 487.902 | P57: 487.902 | Q57: 2927.412 | S57: Demanda Máxima (30-001-50,000) | T57: =SUM(T58:T61) -> 12754.80522 | U57: 13466.29482 | V57: 12736.74635 | W57: 12980.92077 | X57: 12390.74187 | Y57: 13437.79054 | Z57: 77767.29957
A58: - Regulares | B58: =+B12*'Facturación-801 (clientes)'!$B31+(C10*10000+C11*20000)*'Facturación-801 (clientes)'!$B31+C12*('Facturación-801 (energía)'!$B31-'Facturación-801 (clientes)'!$B31*30000) -> 12969.99756 | C58: =+B12*'Facturación-801 (clientes)'!$C31+(C10*10000+C11*20000)*'Facturación-801 (clientes)'!$C31+C12*('Facturación-801 (energía)'!$C31-'Facturación-801 (clientes)'!$C31*30000) -> 13667.01635 | D58: =+B12*'Facturación-801 (clientes)'!$D31+(C10*10000+C11*20000)*'Facturación-801 (clientes)'!$D31+C12*('Facturación-801 (energía)'!$D31-'Facturación-801 (clientes)'!$D31*30000) -> 12952.30544 | E58: =+B12*'Facturación-801 (clientes)'!$E31+(C10*10000+C11*20000)*'Facturación-801 (clientes)'!$E31+C12*('Facturación-801 (energía)'!$E31-'Facturación-801 (clientes)'!$E31*30000) -> 13191.51305 | F58: =+B12*'Facturación-801 (clientes)'!$F31+(C10*10000+C11*20000)*'Facturación-801 (clientes)'!$F31+C12*('Facturación-801 (energía)'!$F31-'Facturación-801 (clientes)'!$F31*30000) -> 12613.34251 | G58: =+B12*'Facturación-801 (clientes)'!$G31+(C10*10000+C11*20000)*'Facturación-801 (clientes)'!$G31+C12*('Facturación-801 (energía)'!$G31-'Facturación-801 (clientes)'!$G31*30000) -> 13639.08839 | H58: 79033.2633 | J58: - Regulares | K58: =+K12*'Facturación-801 (clientes)'!$B31+(L10*10000+L11*20000)*'Facturación-801 (clientes)'!$B31+L12*('Facturación-801 (energía)'!$B31-'Facturación-801 (clientes)'!$B31*30000) -> 474.64 | L58: =+K12*'Facturación-801 (clientes)'!$C31+(L10*10000+L11*20000)*'Facturación-801 (clientes)'!$C31+L12*('Facturación-801 (energía)'!$C31-'Facturación-801 (clientes)'!$C31*30000) -> 474.64 | M58: =+K12*'Facturación-801 (clientes)'!$D31+(L10*10000+L11*20000)*'Facturación-801 (clientes)'!$D31+L12*('Facturación-801 (energía)'!$D31-'Facturación-801 (clientes)'!$D31*30000) -> 474.64 | N58: =+K12*'Facturación-801 (clientes)'!$E31+(L10*10000+L11*20000)*'Facturación-801 (clientes)'!$E31+L12*('Facturación-801 (energía)'!$E31-'Facturación-801 (clientes)'!$E31*30000) -> 474.64 | O58: =+K12*'Facturación-801 (clientes)'!$F31+(L10*10000+L11*20000)*'Facturación-801 (clientes)'!$F31+L12*('Facturación-801 (energía)'!$F31-'Facturación-801 (clientes)'!$F31*30000) -> 474.64 | P58: =+K12*'Facturación-801 (clientes)'!$G31+(L10*10000+L11*20000)*'Facturación-801 (clientes)'!$G31+L12*('Facturación-801 (energía)'!$G31-'Facturación-801 (clientes)'!$G31*30000) -> 474.64 | Q58: 2847.84 | S58: - Regulares | T58: =+T12*'Facturación-801 (clientes)'!$B31+(U10*10000+U11*20000)*'Facturación-801 (clientes)'!$B31+U12*('Facturación-801 (energía)'!$B31-'Facturación-801 (clientes)'!$B31*30000) -> 12495.35756 | U58: =+T12*'Facturación-801 (clientes)'!$C31+(U10*10000+U11*20000)*'Facturación-801 (clientes)'!$C31+U12*('Facturación-801 (energía)'!$C31-'Facturación-801 (clientes)'!$C31*30000) -> 13192.37635 | V58: =+T12*'Facturación-801 (clientes)'!$D31+(U10*10000+U11*20000)*'Facturación-801 (clientes)'!$D31+U12*('Facturación-801 (energía)'!$D31-'Facturación-801 (clientes)'!$D31*30000) -> 12477.66544 | W58: =+T12*'Facturación-801 (clientes)'!$E31+(U10*10000+U11*20000)*'Facturación-801 (clientes)'!$E31+U12*('Facturación-801 (energía)'!$E31-'Facturación-801 (clientes)'!$E31*30000) -> 12716.87305 | X58: =+T12*'Facturación-801 (clientes)'!$F31+(U10*10000+U11*20000)*'Facturación-801 (clientes)'!$F31+U12*('Facturación-801 (energía)'!$F31-'Facturación-801 (clientes)'!$F31*30000) -> 12138.70251 | Y58: =+T12*'Facturación-801 (clientes)'!$G31+(U10*10000+U11*20000)*'Facturación-801 (clientes)'!$G31+U12*('Facturación-801 (energía)'!$G31-'Facturación-801 (clientes)'!$G31*30000) -> 13164.44839 | Z58: 76185.4233
A59: - Agropecuarios | B59: =+(B12*'Facturación-801 (clientes)'!$B32+(C10*10000+C11*20000)*'Facturación-801 (clientes)'!$B32+C12*('Facturación-801 (energía)'!$B32-'Facturación-801 (clientes)'!$B32*30000))*0.95 -> 272.70966 | C59: =+(B12*'Facturación-801 (clientes)'!$C32+(C10*10000+C11*20000)*'Facturación-801 (clientes)'!$C32+C12*('Facturación-801 (energía)'!$C32-'Facturación-801 (clientes)'!$C32*30000))*0.95 -> 287.1804685 | D59: =+(B12*'Facturación-801 (clientes)'!$D32+(C10*10000+C11*20000)*'Facturación-801 (clientes)'!$D32+C12*('Facturación-801 (energía)'!$D32-'Facturación-801 (clientes)'!$D32*30000))*0.95 -> 272.3429125 | E59: =+(B12*'Facturación-801 (clientes)'!$E32+(C10*10000+C11*20000)*'Facturación-801 (clientes)'!$E32+C12*('Facturación-801 (energía)'!$E32-'Facturación-801 (clientes)'!$E32*30000))*0.95 -> 277.3097215 | F59: =+(B12*'Facturación-801 (clientes)'!$F32+(C10*10000+C11*20000)*'Facturación-801 (clientes)'!$F32+C12*('Facturación-801 (energía)'!$F32-'Facturación-801 (clientes)'!$F32*30000))*0.95 -> 265.3013605 | G59: =+(B12*'Facturación-801 (clientes)'!$G32+(C10*10000+C11*20000)*'Facturación-801 (clientes)'!$G32+C12*('Facturación-801 (energía)'!$G32-'Facturación-801 (clientes)'!$G32*30000))*0.95 -> 286.604151 | H59: 1661.448274 | J59: - Agropecuarios | K59: =+(K12*'Facturación-801 (clientes)'!$B32+(L10*10000+L11*20000)*'Facturación-801 (clientes)'!$B32+L12*('Facturación-801 (energía)'!$B32-'Facturación-801 (clientes)'!$B32*30000))*0.95 -> 13.262 | L59: =+(K12*'Facturación-801 (clientes)'!$C32+(L10*10000+L11*20000)*'Facturación-801 (clientes)'!$C32+L12*('Facturación-801 (energía)'!$C32-'Facturación-801 (clientes)'!$C32*30000))*0.95 -> 13.262 | M59: =+(K12*'Facturación-801 (clientes)'!$D32+(L10*10000+L11*20000)*'Facturación-801 (clientes)'!$D32+L12*('Facturación-801 (energía)'!$D32-'Facturación-801 (clientes)'!$D32*30000))*0.95 -> 13.262 | N59: =+(K12*'Facturación-801 (clientes)'!$E32+(L10*10000+L11*20000)*'Facturación-801 (clientes)'!$E32+L12*('Facturación-801 (energía)'!$E32-'Facturación-801 (clientes)'!$E32*30000))*0.95 -> 13.262 | O59: =+(K12*'Facturación-801 (clientes)'!$F32+(L10*10000+L11*20000)*'Facturación-801 (clientes)'!$F32+L12*('Facturación-801 (energía)'!$F32-'Facturación-801 (clientes)'!$F32*30000))*0.95 -> 13.262 | P59: =+(K12*'Facturación-801 (clientes)'!$G32+(L10*10000+L11*20000)*'Facturación-801 (clientes)'!$G32+L12*('Facturación-801 (energía)'!$G32-'Facturación-801 (clientes)'!$G32*30000))*0.95 -> 13.262 | Q59: 79.572 | S59: - Agropecuarios | T59: =+(T12*'Facturación-801 (clientes)'!$B32+(U10*10000+U11*20000)*'Facturación-801 (clientes)'!$B32+U12*('Facturación-801 (energía)'!$B32-'Facturación-801 (clientes)'!$B32*30000))*0.95 -> 259.44766 | U59: =+(T12*'Facturación-801 (clientes)'!$C32+(U10*10000+U11*20000)*'Facturación-801 (clientes)'!$C32+U12*('Facturación-801 (energía)'!$C32-'Facturación-801 (clientes)'!$C32*30000))*0.95 -> 273.9184685 | V59: =+(T12*'Facturación-801 (clientes)'!$D32+(U10*10000+U11*20000)*'Facturación-801 (clientes)'!$D32+U12*('Facturación-801 (energía)'!$D32-'Facturación-801 (clientes)'!$D32*30000))*0.95 -> 259.0809125 | W59: =+(T12*'Facturación-801 (clientes)'!$E32+(U10*10000+U11*20000)*'Facturación-801 (clientes)'!$E32+U12*('Facturación-801 (energía)'!$E32-'Facturación-801 (clientes)'!$E32*30000))*0.95 -> 264.0477215 | X59: =+(T12*'Facturación-801 (clientes)'!$F32+(U10*10000+U11*20000)*'Facturación-801 (clientes)'!$F32+U12*('Facturación-801 (energía)'!$F32-'Facturación-801 (clientes)'!$F32*30000))*0.95 -> 252.0393605 | Y59: =+(T12*'Facturación-801 (clientes)'!$G32+(U10*10000+U11*20000)*'Facturación-801 (clientes)'!$G32+U12*('Facturación-801 (energía)'!$G32-'Facturación-801 (clientes)'!$G32*30000))*0.95 -> 273.342151 | Z59: 1581.876274
A60: - Jubilados, Pen. Tercera Edad | B60: =+(B12*'Facturación-801 (clientes)'!$B33+(C10*10000+C11*20000)*'Facturación-801 (clientes)'!$B33+C12*('Facturación-801 (energía)'!$B33-'Facturación-801 (clientes)'!$B33*30000))*0.75 -> 0 | C60: =+(B12*'Facturación-801 (clientes)'!$C33+(C10*10000+C11*20000)*'Facturación-801 (clientes)'!$C33+C12*('Facturación-801 (energía)'!$C33-'Facturación-801 (clientes)'!$C33*30000))*0.75 -> 0 | D60: =+(B12*'Facturación-801 (clientes)'!$D33+(C10*10000+C11*20000)*'Facturación-801 (clientes)'!$D33+C12*('Facturación-801 (energía)'!$D33-'Facturación-801 (clientes)'!$D33*30000))*0.75 -> 0 | E60: =+(B12*'Facturación-801 (clientes)'!$E33+(C10*10000+C11*20000)*'Facturación-801 (clientes)'!$E33+C12*('Facturación-801 (energía)'!$E33-'Facturación-801 (clientes)'!$E33*30000))*0.75 -> 0 | F60: =+(B12*'Facturación-801 (clientes)'!$F33+(C10*10000+C11*20000)*'Facturación-801 (clientes)'!$F33+C12*('Facturación-801 (energía)'!$F33-'Facturación-801 (clientes)'!$F33*30000))*0.75 -> 0 | G60: =+(B12*'Facturación-801 (clientes)'!$G33+(C10*10000+C11*20000)*'Facturación-801 (clientes)'!$G33+C12*('Facturación-801 (energía)'!$G33-'Facturación-801 (clientes)'!$G33*30000))*0.75 -> 0 | H60: 0 | J60: - Jubilados, Pen. Tercera Edad | K60: =+(K12*'Facturación-801 (clientes)'!$B33+(L10*10000+L11*20000)*'Facturación-801 (clientes)'!$B33+L12*('Facturación-801 (energía)'!$B33-'Facturación-801 (clientes)'!$B33*30000))*0.75 -> 0 | L60: =+(K12*'Facturación-801 (clientes)'!$C33+(L10*10000+L11*20000)*'Facturación-801 (clientes)'!$C33+L12*('Facturación-801 (energía)'!$C33-'Facturación-801 (clientes)'!$C33*30000))*0.75 -> 0 | M60: =+(K12*'Facturación-801 (clientes)'!$D33+(L10*10000+L11*20000)*'Facturación-801 (clientes)'!$D33+L12*('Facturación-801 (energía)'!$D33-'Facturación-801 (clientes)'!$D33*30000))*0.75 -> 0 | N60: =+(K12*'Facturación-801 (clientes)'!$E33+(L10*10000+L11*20000)*'Facturación-801 (clientes)'!$E33+L12*('Facturación-801 (energía)'!$E33-'Facturación-801 (clientes)'!$E33*30000))*0.75 -> 0 | O60: =+(K12*'Facturación-801 (clientes)'!$F33+(L10*10000+L11*20000)*'Facturación-801 (clientes)'!$F33+L12*('Facturación-801 (energía)'!$F33-'Facturación-801 (clientes)'!$F33*30000))*0.75 -> 0 | P60: =+(K12*'Facturación-801 (clientes)'!$G33+(L10*10000+L11*20000)*'Facturación-801 (clientes)'!$G33+L12*('Facturación-801 (energía)'!$G33-'Facturación-801 (clientes)'!$G33*30000))*0.75 -> 0 | Q60: 0 | S60: - Jubilados, Pen. Tercera Edad | T60: =+(T12*'Facturación-801 (clientes)'!$B33+(U10*10000+U11*20000)*'Facturación-801 (clientes)'!$B33+U12*('Facturación-801 (energía)'!$B33-'Facturación-801 (clientes)'!$B33*30000))*0.75 -> 0 | U60: =+(T12*'Facturación-801 (clientes)'!$C33+(U10*10000+U11*20000)*'Facturación-801 (clientes)'!$C33+U12*('Facturación-801 (energía)'!$C33-'Facturación-801 (clientes)'!$C33*30000))*0.75 -> 0 | V60: =+(T12*'Facturación-801 (clientes)'!$D33+(U10*10000+U11*20000)*'Facturación-801 (clientes)'!$D33+U12*('Facturación-801 (energía)'!$D33-'Facturación-801 (clientes)'!$D33*30000))*0.75 -> 0 | W60: =+(T12*'Facturación-801 (clientes)'!$E33+(U10*10000+U11*20000)*'Facturación-801 (clientes)'!$E33+U12*('Facturación-801 (energía)'!$E33-'Facturación-801 (clientes)'!$E33*30000))*0.75 -> 0 | X60: =+(T12*'Facturación-801 (clientes)'!$F33+(U10*10000+U11*20000)*'Facturación-801 (clientes)'!$F33+U12*('Facturación-801 (energía)'!$F33-'Facturación-801 (clientes)'!$F33*30000))*0.75 -> 0 | Y60: =+(T12*'Facturación-801 (clientes)'!$G33+(U10*10000+U11*20000)*'Facturación-801 (clientes)'!$G33+U12*('Facturación-801 (energía)'!$G33-'Facturación-801 (clientes)'!$G33*30000))*0.75 -> 0 | Z60: 0
A61: - Partidos Políticos | B61: =+(B12*'Facturación-801 (clientes)'!$B34+(C10*10000+C11*20000)*'Facturación-801 (clientes)'!$B34+C12*('Facturación-801 (energía)'!$B34-'Facturación-801 (clientes)'!$B34*30000))*0.5 -> 0 | C61: =+(B12*'Facturación-801 (clientes)'!$C34+(C10*10000+C11*20000)*'Facturación-801 (clientes)'!$C34+C12*('Facturación-801 (energía)'!$C34-'Facturación-801 (clientes)'!$C34*30000))*0.5 -> 0 | D61: =+(B12*'Facturación-801 (clientes)'!$D34+(C10*10000+C11*20000)*'Facturación-801 (clientes)'!$D34+C12*('Facturación-801 (energía)'!$D34-'Facturación-801 (clientes)'!$D34*30000))*0.5 -> 0 | E61: =+(B12*'Facturación-801 (clientes)'!$E34+(C10*10000+C11*20000)*'Facturación-801 (clientes)'!$E34+C12*('Facturación-801 (energía)'!$E34-'Facturación-801 (clientes)'!$E34*30000))*0.5 -> 0 | F61: =+(B12*'Facturación-801 (clientes)'!$F34+(C10*10000+C11*20000)*'Facturación-801 (clientes)'!$F34+C12*('Facturación-801 (energía)'!$F34-'Facturación-801 (clientes)'!$F34*30000))*0.5 -> 0 | G61: =+(B12*'Facturación-801 (clientes)'!$G34+(C10*10000+C11*20000)*'Facturación-801 (clientes)'!$G34+C12*('Facturación-801 (energía)'!$G34-'Facturación-801 (clientes)'!$G34*30000))*0.5 -> 0 | H61: 0 | J61: - Partidos Políticos | K61: =+(K12*'Facturación-801 (clientes)'!$B34+(L10*10000+L11*20000)*'Facturación-801 (clientes)'!$B34+L12*('Facturación-801 (energía)'!$B34-'Facturación-801 (clientes)'!$B34*30000))*0.5 -> 0 | L61: =+(K12*'Facturación-801 (clientes)'!$C34+(L10*10000+L11*20000)*'Facturación-801 (clientes)'!$C34+L12*('Facturación-801 (energía)'!$C34-'Facturación-801 (clientes)'!$C34*30000))*0.5 -> 0 | M61: =+(K12*'Facturación-801 (clientes)'!$D34+(L10*10000+L11*20000)*'Facturación-801 (clientes)'!$D34+L12*('Facturación-801 (energía)'!$D34-'Facturación-801 (clientes)'!$D34*30000))*0.5 -> 0 | N61: =+(K12*'Facturación-801 (clientes)'!$E34+(L10*10000+L11*20000)*'Facturación-801 (clientes)'!$E34+L12*('Facturación-801 (energía)'!$E34-'Facturación-801 (clientes)'!$E34*30000))*0.5 -> 0 | O61: =+(K12*'Facturación-801 (clientes)'!$F34+(L10*10000+L11*20000)*'Facturación-801 (clientes)'!$F34+L12*('Facturación-801 (energía)'!$F34-'Facturación-801 (clientes)'!$F34*30000))*0.5 -> 0 | P61: =+(K12*'Facturación-801 (clientes)'!$G34+(L10*10000+L11*20000)*'Facturación-801 (clientes)'!$G34+L12*('Facturación-801 (energía)'!$G34-'Facturación-801 (clientes)'!$G34*30000))*0.5 -> 0 | Q61: 0 | S61: - Partidos Políticos | T61: =+(T12*'Facturación-801 (clientes)'!$B34+(U10*10000+U11*20000)*'Facturación-801 (clientes)'!$B34+U12*('Facturación-801 (energía)'!$B34-'Facturación-801 (clientes)'!$B34*30000))*0.5 -> 0 | U61: =+(T12*'Facturación-801 (clientes)'!$C34+(U10*10000+U11*20000)*'Facturación-801 (clientes)'!$C34+U12*('Facturación-801 (energía)'!$C34-'Facturación-801 (clientes)'!$C34*30000))*0.5 -> 0 | V61: =+(T12*'Facturación-801 (clientes)'!$D34+(U10*10000+U11*20000)*'Facturación-801 (clientes)'!$D34+U12*('Facturación-801 (energía)'!$D34-'Facturación-801 (clientes)'!$D34*30000))*0.5 -> 0 | W61: =+(T12*'Facturación-801 (clientes)'!$E34+(U10*10000+U11*20000)*'Facturación-801 (clientes)'!$E34+U12*('Facturación-801 (energía)'!$E34-'Facturación-801 (clientes)'!$E34*30000))*0.5 -> 0 | X61: =+(T12*'Facturación-801 (clientes)'!$F34+(U10*10000+U11*20000)*'Facturación-801 (clientes)'!$F34+U12*('Facturación-801 (energía)'!$F34-'Facturación-801 (clientes)'!$F34*30000))*0.5 -> 0 | Y61: =+(T12*'Facturación-801 (clientes)'!$G34+(U10*10000+U11*20000)*'Facturación-801 (clientes)'!$G34+U12*('Facturación-801 (energía)'!$G34-'Facturación-801 (clientes)'!$G34*30000))*0.5 -> 0 | Z61: 0
A62: Demanda Máxima (50,001-más) | B62: =SUM(B63:B66) -> 61354.21613 | C62: 64754.92837 | D62: 61267.93285 | E62: 62435.0177 | F62: 59614.18124 | G62: 64618.66651 | H62: 374044.9428 | J62: Demanda Máxima (50,001-más) | K62: =SUM(K63:K66) -> 390.88 | L62: 390.88 | M62: 390.88 | N62: 390.88 | O62: 390.88 | P62: 390.88 | Q62: 2345.28 | S62: Demanda Máxima (50,001-más) | T62: =SUM(T63:T66) -> 60963.33613 | U62: 64364.04837 | V62: 60877.05285 | W62: 62044.1377 | X62: 59223.30124 | Y62: 64227.78651 | Z62: 371699.6628
A63: - Regulares | B63: =+B13*'Facturación-801 (clientes)'!$B36+(C10*10000+C11*20000+C12*20000)*'Facturación-801 (clientes)'!$B36+C13*('Facturación-801 (energía)'!$B36-'Facturación-801 (clientes)'!$B36*50000) -> 61146.88853 | C63: =+B13*'Facturación-801 (clientes)'!$C36+(C10*10000+C11*20000+C12*20000)*'Facturación-801 (clientes)'!$C36+C13*('Facturación-801 (energía)'!$C36-'Facturación-801 (clientes)'!$C36*50000) -> 64536.03251 | D63: =+B13*'Facturación-801 (clientes)'!$D36+(C10*10000+C11*20000+C12*20000)*'Facturación-801 (clientes)'!$D36+C13*('Facturación-801 (energía)'!$D36-'Facturación-801 (clientes)'!$D36*50000) -> 61060.89865 | E63: =+B13*'Facturación-801 (clientes)'!$E36+(C10*10000+C11*20000+C12*20000)*'Facturación-801 (clientes)'!$E36+C13*('Facturación-801 (energía)'!$E36-'Facturación-801 (clientes)'!$E36*50000) -> 62224.01215 | F63: =+B13*'Facturación-801 (clientes)'!$F36+(C10*10000+C11*20000+C12*20000)*'Facturación-801 (clientes)'!$F36+C13*('Facturación-801 (energía)'!$F36-'Facturación-801 (clientes)'!$F36*50000) -> 59412.77399 | G63: =+B13*'Facturación-801 (clientes)'!$G36+(C10*10000+C11*20000+C12*20000)*'Facturación-801 (clientes)'!$G36+C13*('Facturación-801 (energía)'!$G36-'Facturación-801 (clientes)'!$G36*50000) -> 64400.24218 | H63: 372780.848 | J63: - Regulares | K63: =+K13*'Facturación-801 (clientes)'!$B36+(L10*10000+L11*20000+L12*20000)*'Facturación-801 (clientes)'!$B36+L13*('Facturación-801 (energía)'!$B36-'Facturación-801 (clientes)'!$B36*50000) -> 390.88 | L63: =+K13*'Facturación-801 (clientes)'!$C36+(L10*10000+L11*20000+L12*20000)*'Facturación-801 (clientes)'!$C36+L13*('Facturación-801 (energía)'!$C36-'Facturación-801 (clientes)'!$C36*50000) -> 390.88 | M63: =+K13*'Facturación-801 (clientes)'!$D36+(L10*10000+L11*20000+L12*20000)*'Facturación-801 (clientes)'!$D36+L13*('Facturación-801 (energía)'!$D36-'Facturación-801 (clientes)'!$D36*50000) -> 390.88 | N63: =+K13*'Facturación-801 (clientes)'!$E36+(L10*10000+L11*20000+L12*20000)*'Facturación-801 (clientes)'!$E36+L13*('Facturación-801 (energía)'!$E36-'Facturación-801 (clientes)'!$E36*50000) -> 390.88 | O63: =+K13*'Facturación-801 (clientes)'!$F36+(L10*10000+L11*20000+L12*20000)*'Facturación-801 (clientes)'!$F36+L13*('Facturación-801 (energía)'!$F36-'Facturación-801 (clientes)'!$F36*50000) -> 390.88 | P63: =+K13*'Facturación-801 (clientes)'!$G36+(L10*10000+L11*20000+L12*20000)*'Facturación-801 (clientes)'!$G36+L13*('Facturación-801 (energía)'!$G36-'Facturación-801 (clientes)'!$G36*50000) -> 390.88 | Q63: 2345.28 | S63: - Regulares | T63: =+T13*'Facturación-801 (clientes)'!$B36+(U10*10000+U11*20000+U12*20000)*'Facturación-801 (clientes)'!$B36+U13*('Facturación-801 (energía)'!$B36-'Facturación-801 (clientes)'!$B36*50000) -> 60756.00853 | U63: =+T13*'Facturación-801 (clientes)'!$C36+(U10*10000+U11*20000+U12*20000)*'Facturación-801 (clientes)'!$C36+U13*('Facturación-801 (energía)'!$C36-'Facturación-801 (clientes)'!$C36*50000) -> 64145.15251 | V63: =+T13*'Facturación-801 (clientes)'!$D36+(U10*10000+U11*20000+U12*20000)*'Facturación-801 (clientes)'!$D36+U13*('Facturación-801 (energía)'!$D36-'Facturación-801 (clientes)'!$D36*50000) -> 60670.01865 | W63: =+T13*'Facturación-801 (clientes)'!$E36+(U10*10000+U11*20000+U12*20000)*'Facturación-801 (clientes)'!$E36+U13*('Facturación-801 (energía)'!$E36-'Facturación-801 (clientes)'!$E36*50000) -> 61833.13215 | X63: =+T13*'Facturación-801 (clientes)'!$F36+(U10*10000+U11*20000+U12*20000)*'Facturación-801 (clientes)'!$F36+U13*('Facturación-801 (energía)'!$F36-'Facturación-801 (clientes)'!$F36*50000) -> 59021.89399 | Y63: =+T13*'Facturación-801 (clientes)'!$G36+(U10*10000+U11*20000+U12*20000)*'Facturación-801 (clientes)'!$G36+U13*('Facturación-801 (energía)'!$G36-'Facturación-801 (clientes)'!$G36*50000) -> 64009.36218 | Z63: 370435.568
